Workbook

Sheet Introduction
C2: CHEF Calculation Aid
C3: Chemical Hazard Engineering Fundamentals
C4: Version 4.5
C5: ="Latest Revision Date " & TEXT(MAX('Revision History'!D:D),"M/DD/YY") -> Latest Revision Date 12/28/25
B7: Welcome to CHEF 4.5 (Chemical Hazard Engineering Fundamentals). The CHEF Calculational Aid was developed through the collaborative efforts of volunteers from member companies of the Center for Chemical Process Safety (CCPS). This Calculation Aid is intended to support training efforts utilizing the CHEF Guide. Special appreciation is extended to the Dow Chemical Company for donating CHEF for global use and for providing the resources to help modify this software such that companies can tailor CHEF to meet their company-specific criteria. It is sincerely hoped that companies using CHEF during their hazard evaluations and risks assessments will be able to improve their process safety performance.
B21: Disclaimer: It is sincerely hoped that the information presented in this software will lead to an even better safety record for the entire industry; however, neither the American Institute of Chemical Engineers, its consultants, CCPS Technical Steering Committee and Subcommittee members, their employers, their employers officers and directors, nor The Dow Chemical Company, its employees, officers and directors, warrant or represent, expressly or by implication, the correctness or accuracy of the content of the information presented in this software. The default values used in both the RAST and CHEF tools at the time the software was issued were based on engineering judgement, industry guidance, and industry practice. As between (1) American Institute of Chemical Engineers, its consultants, CCPS Technical Steering Committee and Subcommittee members, their employers, their employer’s officers and directors, and The Dow Chemical Company, its employees, officers and directors, and (2) the user of this software, the user accepts any and all legal liability or responsibility whatsoever for the consequences of its use, misuse, or changes to the software or tools.
B40: Please do not distribute this software freely to colleagues, as this software is subject to updates through CCPS. If you have received this program without participating in CHEF Training, please contact CCPS at ccps@aiche.org for future update communications. Thank you.
C43: Copyright © 2026
C44: American Institute of Chemical Engineers

Sheet Chemical Hazards
Y1: Conversion Factors | AA1: Chemical Properties: | AB1: A | AC1: B | AD1: C | AE1: D | AF1: E
G2: CHEMICAL HAZARDS AND CHEMICAL MIXTURE INPUT INFORMATION | P2: Estimated Mixture Properties as Described in Source Models - Section 12.13 | AA2: Mol Weight | AB2: =IF(Chemical_A="","",VLOOKUP(Chemical_A,Chemical_Table,COLUMN('Chemical Table'!C1),FALSE)) ->  | AC2: =IF(Chemical_B="","",VLOOKUP(Chemical_B,Chemical_Table,COLUMN('Chemical Table'!C1),FALSE)) ->  | AD2: =IF(Chemical_C="","",VLOOKUP(Chemical_C,Chemical_Table,COLUMN('Chemical Table'!C1),FALSE)) ->  | AE2: =IF(Chemical_D="","",VLOOKUP(Chemical_D,Chemical_Table,COLUMN('Chemical Table'!C1),FALSE)) ->  | AF2: =IF(Chemical_E="","",VLOOKUP(Chemical_E,Chemical_Table,COLUMN('Chemical Table'!C1),FALSE)) -> 
G3: Inputs for one or more chemical components must be entered in shaded "yellow" fields if Table Data Value is not used | P3: ESTIMATED VAPOR COMPOSITION equation 12-19 | Y3: =IF(E6<>"",VLOOKUP(E6,Conversion_Table,2,0),1) -> 1 | AA3: NFPA Health | AB3: =IF(Chemical_A="","",VLOOKUP(Chemical_A,Chemical_Table,COLUMN('Chemical Table'!M1),FALSE)) ->  | AC3: =IF(Chemical_B="","",VLOOKUP(Chemical_B,Chemical_Table,COLUMN('Chemical Table'!M1),FALSE)) ->  | AD3: =IF(Chemical_C="","",VLOOKUP(Chemical_C,Chemical_Table,COLUMN('Chemical Table'!M1),FALSE)) ->  | AE3: =IF(Chemical_D="","",VLOOKUP(Chemical_D,Chemical_Table,COLUMN('Chemical Table'!M1),FALSE)) ->  | AF3: =IF(Chemical_E="","",VLOOKUP(Chemical_E,Chemical_Table,COLUMN('Chemical Table'!M1),FALSE)) -> 
A4: Process Inputs: | C4: Input Value | D4: Input Units | H4: Note that Weight Fraction, Molecular Weight and Vapor Pressure data, in addition to physical State of Contents, must be entered to estimate Vapor Composition | Y4: =IF(F21<>"",VLOOKUP(F21,Conversion_Table,2,0),1) -> 1 | AA4: NFPA Flammability | AB4: =IF(Chemical_A="","",VLOOKUP(Chemical_A,Chemical_Table,COLUMN('Chemical Table'!N1),FALSE)) ->  | AC4: =IF(Chemical_B="","",VLOOKUP(Chemical_B,Chemical_Table,COLUMN('Chemical Table'!N1),FALSE)) ->  | AD4: =IF(Chemical_C="","",VLOOKUP(Chemical_C,Chemical_Table,COLUMN('Chemical Table'!N1),FALSE)) ->  | AE4: =IF(Chemical_D="","",VLOOKUP(Chemical_D,Chemical_Table,COLUMN('Chemical Table'!N1),FALSE)) ->  | AF4: =IF(Chemical_E="","",VLOOKUP(Chemical_E,Chemical_Table,COLUMN('Chemical Table'!N1),FALSE)) -> 
B5: Temperature, T | E5: =IF(D5="",C5,IF(D5="F",ROUND((C5-32)/1.8,1),C5)) -> 0 | F5: C | Y5: =IF(F22<>"",VLOOKUP(F22,Conversion_Table,2,0),1) -> 1 | AA5: NFPA Stability | AB5: =IF(Chemical_A="","",VLOOKUP(Chemical_A,Chemical_Table,COLUMN('Chemical Table'!O1),FALSE)) ->  | AC5: =IF(Chemical_B="","",VLOOKUP(Chemical_B,Chemical_Table,COLUMN('Chemical Table'!O1),FALSE)) ->  | AD5: =IF(Chemical_C="","",VLOOKUP(Chemical_C,Chemical_Table,COLUMN('Chemical Table'!O1),FALSE)) ->  | AE5: =IF(Chemical_D="","",VLOOKUP(Chemical_D,Chemical_Table,COLUMN('Chemical Table'!O1),FALSE)) ->  | AF5: =IF(Chemical_E="","",VLOOKUP(Chemical_E,Chemical_Table,COLUMN('Chemical Table'!O1),FALSE)) -> 
B6: Physical State of Contents | D6: Assumed liquid if blank | S6: ="System Contents are Entered as "&C6 -> System Contents are Entered as | Y6: =IF(F23<>"",VLOOKUP(F23,Conversion_Table,2,0),1) -> 1 | AA6: Boiling Pt | AB6: =IF(Chemical_A="","",VLOOKUP(Chemical_A,Chemical_Table,COLUMN('Chemical Table'!G1),FALSE)) ->  | AC6: =IF(Chemical_B="","",VLOOKUP(Chemical_B,Chemical_Table,COLUMN('Chemical Table'!G1),FALSE)) ->  | AD6: =IF(Chemical_C="","",VLOOKUP(Chemical_C,Chemical_Table,COLUMN('Chemical Table'!G1),FALSE)) ->  | AE6: =IF(Chemical_D="","",VLOOKUP(Chemical_D,Chemical_Table,COLUMN('Chemical Table'!G1),FALSE)) ->  | AF6: =IF(Chemical_E="","",VLOOKUP(Chemical_E,Chemical_Table,COLUMN('Chemical Table'!G1),FALSE)) ->  | AG6: C
D7: Estimated Vapor Pressure at Specified Temperature: | E7: =T14-101.325 -> -101.325 | F7: kPa gauge | K7: NFPA Hazard Ratings (Table Values) | Y7: =IF(F24<>"",VLOOKUP(F24,Conversion_Table,2,0),1) -> 1 | AA7: Flash Point | AB7: =IF(Chemical_A="","",VLOOKUP(Chemical_A,Chemical_Table,COLUMN('Chemical Table'!I1),FALSE)) ->  | AC7: =IF(Chemical_B="","",VLOOKUP(Chemical_B,Chemical_Table,COLUMN('Chemical Table'!I1),FALSE)) ->  | AD7: =IF(Chemical_C="","",VLOOKUP(Chemical_C,Chemical_Table,COLUMN('Chemical Table'!I1),FALSE)) ->  | AE7: =IF(Chemical_D="","",VLOOKUP(Chemical_D,Chemical_Table,COLUMN('Chemical Table'!I1),FALSE)) ->  | AF7: =IF(Chemical_E="","",VLOOKUP(Chemical_E,Chemical_Table,COLUMN('Chemical Table'!I1),FALSE)) ->  | AG7: C
A8: Chemical Inputs: Table Name | D8: Input Name | F8: Wt Fraction | G8: Second Liq Phase | H8: Mol Wt Data Table Value | I8: Mol Wt Input Value | J8: Mol Wt for Equation | K8: Health | L8: Flammability | M8: Stability | P8: Chemical Name | R8: Mol Fract Liquid Phase A | S8: Mol Fract Liquid Phase B | T8: Partial Pressure, kPa | U8: Mol Fract Vapor | V8: Wt Fract Vapor | Y8: =IF(F25<>"",VLOOKUP(F25,Conversion_Table,2,0),1) -> 1 | AA8: Lower Flammable Limit | AB8: =IF(Chemical_A="","",VLOOKUP(Chemical_A,Chemical_Table,COLUMN('Chemical Table'!J1),FALSE)) ->  | AC8: =IF(Chemical_B="","",VLOOKUP(Chemical_B,Chemical_Table,COLUMN('Chemical Table'!J1),FALSE)) ->  | AD8: =IF(Chemical_C="","",VLOOKUP(Chemical_C,Chemical_Table,COLUMN('Chemical Table'!J1),FALSE)) ->  | AE8: =IF(Chemical_D="","",VLOOKUP(Chemical_D,Chemical_Table,COLUMN('Chemical Table'!J1),FALSE)) ->  | AF8: =IF(Chemical_E="","",VLOOKUP(Chemical_E,Chemical_Table,COLUMN('Chemical Table'!J1),FALSE)) ->  | AG8: Vol %
H9: =AB$2 ->  | J9: =IF(I9="",H9,I9) ->  | K9: =AB$3 ->  | L9: =AB$4 ->  | M9: =AB$5 ->  | P9: =IF(B$9="",IF(D$9="","",D$9),B$9) ->  | R9: =IF(AG33>0,AB33/AG33,0) -> 0 | S9: =IF(AG34>0,AB34/AG34,0) -> 0 | T9: =(R9+S9)*G21 -> 0 | U9: =IF(AND(C6<>"Vapor",T$14>0),T9/T$14,IF(AG35>0,AB35/AG35,0)) -> 0 | V9: =IF(AG36>0,AB36/AG36,0) -> 0 | Y9: =IF(K21<>"",VLOOKUP(K21,Conversion_Table,2,0),1) -> 1 | AA9: ERPG-2 | AB9: =IF(Chemical_A="","",VLOOKUP(Chemical_A,Chemical_Table,COLUMN('Chemical Table'!E1),FALSE)) ->  | AC9: =IF(Chemical_B="","",VLOOKUP(Chemical_B,Chemical_Table,COLUMN('Chemical Table'!E1),FALSE)) ->  | AD9: =IF(Chemical_C="","",VLOOKUP(Chemical_C,Chemical_Table,COLUMN('Chemical Table'!E1),FALSE)) ->  | AE9: =IF(Chemical_D="","",VLOOKUP(Chemical_D,Chemical_Table,COLUMN('Chemical Table'!E1),FALSE)) ->  | AF9: =IF(Chemical_E="","",VLOOKUP(Chemical_E,Chemical_Table,COLUMN('Chemical Table'!E1),FALSE)) ->  | AG9: ppm
H10: =AC$2 ->  | J10: =IF(I10="",H10,I10) ->  | K10: =AC$3 ->  | L10: =AC$4 ->  | M10: =AC$5 ->  | P10: =IF(B$10="",IF(D$10="","",D$10),B$10) ->  | R10: =IF(AG33>0,AC33/AG33,0) -> 0 | S10: =IF(AG34>0,AC34/AG34,0) -> 0 | T10: =(R10+S10)*G22 -> 0 | U10: =IF(AND(C6<>"Vapor",T$14>0),T10/T$14,IF(AG35>0,AC35/AG35,0)) -> 0 | V10: =IF(AG36>0,AC36/AG36,0) -> 0 | Y10: =IF(K22<>"",VLOOKUP(K22,Conversion_Table,2,0),1) -> 1 | AA10: ERPG-3 | AB10: =IF(Chemical_A="","",VLOOKUP(Chemical_A,Chemical_Table,COLUMN('Chemical Table'!F1),FALSE)) ->  | AC10: =IF(Chemical_B="","",VLOOKUP(Chemical_B,Chemical_Table,COLUMN('Chemical Table'!F1),FALSE)) ->  | AD10: =IF(Chemical_C="","",VLOOKUP(Chemical_C,Chemical_Table,COLUMN('Chemical Table'!F1),FALSE)) ->  | AE10: =IF(Chemical_D="","",VLOOKUP(Chemical_D,Chemical_Table,COLUMN('Chemical Table'!F1),FALSE)) ->  | AF10: =IF(Chemical_E="","",VLOOKUP(Chemical_E,Chemical_Table,COLUMN('Chemical Table'!F1),FALSE)) ->  | AG10: ppm
H11: =AD$2 ->  | K11: =AD$3 ->  | L11: =AD$4 ->  | M11: =AD$5 ->  | P11: =IF(B$11="",IF(D$11="","",D$11),B$11) ->  | R11: =IF(AG33>0,AD33/AG33,0) -> 0 | S11: =IF(AG34>0,AD34/AG34,0) -> 0 | T11: =(R11+S11)*G23 -> 0 | U11: =IF(AND(C6<>"Vapor",T$14>0),T11/T$14,IF(AG35>0,AD35/AG35,0)) -> 0 | V11: =IF(AG36>0,AD36/AG36,0) -> 0 | Y11: =IF(K23<>"",VLOOKUP(K23,Conversion_Table,2,0),1) -> 1 | AA11: ="Chemical Properties at Temperature of "&E5&" C" -> Chemical Properties at Temperature of 0 C
H12: =AE$2 ->  | K12: =AE$3 ->  | L12: =AE$4 ->  | M12: =AE$5 ->  | P12: =IF(B$12="",IF(D$12="","",D$12),B$12) ->  | R12: =IF(AG33>0,AE33/AG33,0) -> 0 | S12: =IF(AG34>0,AE34/AG34,0) -> 0 | T12: =(R12+S12)*G24 -> 0 | U12: =IF(AND(C6<>"Vapor",T$14>0),T12/T$14,IF(AG35>0,AE35/AG35,0)) -> 0 | V12: =IF(AG36>0,AE36/AG36,0) -> 0 | Y12: =IF(K24<>"",VLOOKUP(K24,Conversion_Table,2,0),1) -> 1 | AA12: Vapor Pressure, Psat | AB12: =IF(Chemical_A="",0,ROUND(101.325*EXP(AB19-AB20/($E$5+273.15-AB21)),1)) -> 0 | AC12: =IF(Chemical_B="",0,ROUND(101.325*EXP(AC19-AC20/($E$5+273.15-AC21)),1)) -> 0 | AD12: =IF(Chemical_C="",0,ROUND(101.325*EXP(AD19-AD20/($E$5+273.15-AD21)),1)) -> 0 | AE12: =IF(Chemical_D="",0,ROUND(101.325*EXP(AE19-AE20/($E$5+273.15-AE21)),1)) -> 0 | AF12: =IF(Chemical_E="",0,ROUND(101.325*EXP(AF19-AF20/($E$5+273.15-AF21)),1)) -> 0 | AG12: kPa absolute
H13: =AF$2 ->  | K13: =AF$3 ->  | L13: =AF$4 ->  | M13: =AF$5 ->  | P13: =IF(B$13="",IF(D$13="","",D$13),B$13) ->  | R13: =IF(AG33>0,AF33/AG33,0) -> 0 | S13: =IF(AG34>0,AF34/AG34,0) -> 0 | T13: =(R13+S13)*G25 -> 0 | U13: =IF(AND(C6<>"Vapor",T$14>0),T13/T$14,IF(AG35>0,AF35/AG35,0)) -> 0 | V13: =IF(AG36>0,AF36/AG36,0) -> 0 | Y13: =IF(K25<>"",VLOOKUP(K25,Conversion_Table,2,0),1) -> 1 | AA13: Ideal Vapor Density, rV | AB13: =IF(Chemical_A="",0,ROUND(0.12*(101.3)*AB2/(273.15+$E$5),2)) -> 0 | AC13: =IF(Chemical_B="",0,ROUND(0.12*(101.3)*AC2/(273.15+$E$5),2)) -> 0 | AD13: =IF(Chemical_C="",0,ROUND(0.12*(101.3)*AD2/(273.15+$E$5),2)) -> 0 | AE13: =IF(Chemical_D="",0,ROUND(0.12*(101.3)*AE2/(273.15+$E$5),2)) -> 0 | AF13: =IF(Chemical_E="",0,ROUND(0.12*(101.3+$F$6)*AF2/(273.15+$E$5),2)) -> 0 | AG13: kg/cu m
F14: =SUM(F9:F13) -> 0 | G14: =IF(F14>1,"Beware - the sum of weight fractions is great than one",IF(F14<0.999,"Beware - the sum of weight fractions is less than one", "")) -> Beware - the sum of weight fractions is less than one | S14: Sum of Partial Pressure = | T14: =SUM(T9:T13) -> 0 | Y14: =IF(F33<>"",VLOOKUP(F33,Conversion_Table,2,0),1) -> 1 | AA14: Liquid Density, rL | AB14: =IF(Chemical_A="",0,IF(1000*(AB23-AB24*$E$5)>2*AB13,ROUND(1000*(AB23-AB24*$E$5),1),2*AB13)) -> 0 | AC14: =IF(Chemical_B="",0,IF(1000*(AC23-AC24*$E$5)>2*AC13,ROUND(1000*(AC23-AC24*$E$5),1),2*AC13)) -> 0 | AD14: =IF(Chemical_C="",0,IF(1000*(AD23-AD24*$E$5)>2*AD13,ROUND(1000*(AD23-AD24*$E$5),1),2*AD13)) -> 0 | AE14: =IF(Chemical_D="",0,IF(1000*(AE23-AE24*$E$5)>2*AE13,ROUND(1000*(AE23-AE24*$E$5),1),2*AE13)) -> 0 | AF14: =IF(Chemical_E="",0,IF(1000*(AF23-AF24*$E$5)>2*AF13,ROUND(1000*(AF23-AF24*$E$5),1),2*AF13)) -> 0 | AG14: kg/cu m
Y15: =IF(F34<>"",VLOOKUP(F34,Conversion_Table,2,0),1) -> 1 | AA15: Liquid Heat Capacity, CS | AB15: =IF(Chemical_A="",0,ROUND(4.1868*(AB26+AB27*$E$5),3)) -> 0 | AC15: =IF(Chemical_B="",0,ROUND(4.1868*(AC26+AC27*$E$5),3)) -> 0 | AD15: =IF(Chemical_C="",0,ROUND(4.1868*(AD26+AD27*$E$5),3)) -> 0 | AE15: =IF(Chemical_D="",0,ROUND(4.1868*(AE26+AE27*$E$5),3)) -> 0 | AF15: =IF(Chemical_E="",0,ROUND(4.1868*(AF26+AF27*$E$5),3)) -> 0 | AG15: kJ/kg C
P16: ESTIMATED MIXTURE LIQUID DENSITY and VAPOR MOLECULAR WEIGHT equation 12-20 and equation 12-21 | Y16: =IF(F35<>"",VLOOKUP(F35,Conversion_Table,2,0),1) -> 1 | AA16: Vapor Heat Capacity, CS | AB16: =IF(Chemical_A="",0,ROUND(4.1868*(AB26-AB30+(AB27-2*AB31)*$E$5),3)) -> 0 | AC16: =IF(Chemical_B="",0,ROUND(4.1868*(AC26-AC30+(AC27-2*AC31)*$E$5),3)) -> 0 | AD16: =IF(Chemical_C="",0,ROUND(4.1868*(AD26-AD30+(AD27-2*AD31)*$E$5),3)) -> 0 | AE16: =IF(Chemical_D="",0,ROUND(4.1868*(AE26-AE30+(AE27-2*AE31)*$E$5),3)) -> 0 | AF16: =IF(Chemical_E="",0,ROUND(4.1868*(AF26-AF30+(AF27-2*AF31)*$E$5),3)) -> 0 | AG16: kJ/kg C
Y17: =IF(F36<>"",VLOOKUP(F36,Conversion_Table,2,0),1) -> 1 | AA17: Heat of Vaporization, DHV | AB17: =IF(Chemical_A="",0,IF(4.1868*(AB29-AB30*$E$5-AB31*$E$5^2)>50,ROUND(4.1868*(AB29-AB30*$E$5-AB31*$E$5^2),1),50)) -> 0 | AC17: =IF(Chemical_B="",0,IF(4.1868*(AC29-AC30*$E$5-AC31*$E$5^2)>50,ROUND(4.1868*(AC29-AC30*$E$5-AC31*$E$5^2),1),50)) -> 0 | AD17: =IF(Chemical_C="",0,IF(4.1868*(AD29-AD30*$E$5-AD31*$E$5^2)>50,ROUND(4.1868*(AD29-AD30*$E$5-AD31*$E$5^2),1),50)) -> 0 | AE17: =IF(Chemical_D="",0,IF(4.1868*(AE29-AE30*$E$5-AE31*$E$5^2)>50,ROUND(4.1868*(AE29-AE30*$E$5-AE31*$E$5^2),1),50)) -> 0 | AF17: =IF(Chemical_E="",0,IF(4.1868*(AF29-AF30*$E$5-AF31*$E$5^2)>50,ROUND(4.1868*(AF29-AF30*$E$5-AF31*$E$5^2),1),50)) -> 0 | AG17: kJ/kg
A18: Physical Property Inputs: | Y18: =IF(F37<>"",VLOOKUP(F37,Conversion_Table,2,0),1) -> 1
D19: Vapor Pressure at Input Temperature | I19: Liquid Density at Input Temperature | Y19: =IF(K33<>"",VLOOKUP(K33,Conversion_Table,2,0),1) -> 1 | AA19: Vapor Pressure A | AB19: =VLOOKUP(Chemical_A,Chemical_Table,COLUMN('Chemical Table'!$AE$1),FALSE) ->  | AC19: =VLOOKUP(Chemical_B,Chemical_Table,COLUMN('Chemical Table'!$AE$1),FALSE) ->  | AD19: =VLOOKUP(Chemical_C,Chemical_Table,COLUMN('Chemical Table'!$AE$1),FALSE) ->  | AE19: =VLOOKUP(Chemical_D,Chemical_Table,COLUMN('Chemical Table'!$AE$1),FALSE) ->  | AF19: =VLOOKUP(Chemical_E,Chemical_Table,COLUMN('Chemical Table'!$AE$1),FALSE) -> 
D20: Data Table Value | E20: Input Value | F20: Input Units | G20: Equation Input | H20: Equation Units | I20: Data Table Value | J20: Input Value | K20: Input Units | L20: Equation Input | M20: Equation Units | P20: Chemical Name | R20: Wt Fraction / Density | V20: Mw * Mole Fract Vapor | Y20: =IF(K34<>"",VLOOKUP(K34,Conversion_Table,2,0),1) -> 1 | AA20: Vapor Pressure B | AB20: =VLOOKUP(Chemical_A,Chemical_Table,COLUMN('Chemical Table'!$AF$1),FALSE) ->  | AC20: =VLOOKUP(Chemical_B,Chemical_Table,COLUMN('Chemical Table'!$AF$1),FALSE) ->  | AD20: =VLOOKUP(Chemical_C,Chemical_Table,COLUMN('Chemical Table'!$AF$1),FALSE) ->  | AE20: =VLOOKUP(Chemical_D,Chemical_Table,COLUMN('Chemical Table'!$AF$1),FALSE) ->  | AF20: =VLOOKUP(Chemical_E,Chemical_Table,COLUMN('Chemical Table'!$AF$1),FALSE) -> 
B21: =IF(B$9="",IF(D$9="","",D$9),B$9) ->  | D21: =AB$12 -> 0 | G21: =IF(E21="",D21,E21*Y4) -> 0 | H21: kPa | I21: =AB$14 -> 0 | L21: =IF(J21="",I21,J21*Y9) -> 0 | M21: kg/cu m | P21: =IF(B$9="",IF(D$9="","",D$9),B$9) ->  | R21: =IF(L21>0,F9/L21,0) -> 0 | V21: =IF(J9<>"",U9*J9,0) -> 0 | Y21: =IF(K35<>"",VLOOKUP(K35,Conversion_Table,2,0),1) -> 1 | AA21: Vapor Pressure C | AB21: =VLOOKUP(Chemical_A,Chemical_Table,COLUMN('Chemical Table'!$AG$1),FALSE) ->  | AC21: =VLOOKUP(Chemical_B,Chemical_Table,COLUMN('Chemical Table'!$AG$1),FALSE) ->  | AD21: =VLOOKUP(Chemical_C,Chemical_Table,COLUMN('Chemical Table'!$AG$1),FALSE) ->  | AE21: =VLOOKUP(Chemical_D,Chemical_Table,COLUMN('Chemical Table'!$AG$1),FALSE) ->  | AF21: =VLOOKUP(Chemical_E,Chemical_Table,COLUMN('Chemical Table'!$AG$1),FALSE) -> 
B22: =IF(B$10="",IF(D$10="","",D$10),B$10) ->  | D22: =AC$12 -> 0 | G22: =IF(E22="",D22,E22*Y5) -> 0 | H22: kPa | I22: =AC$14 -> 0 | L22: =IF(J22="",I22,J22*Y10) -> 0 | M22: kg/cu m | P22: =IF(B$10="",IF(D$10="","",D$10),B$10) ->  | R22: =IF(L22>0,F10/L22,0) -> 0 | V22: =IF(J10<>"",U10*J10,0) -> 0 | Y22: =IF(K36<>"",VLOOKUP(K36,Conversion_Table,2,0),1) -> 1
B23: =IF(B$11="",IF(D$11="","",D$11),B$11) ->  | D23: =AD$12 -> 0 | G23: =IF(E23="",D23,E23*Y6) -> 0 | H23: kPa | I23: =AD$14 -> 0 | L23: =IF(J23="",I23,J23*Y11) -> 0 | M23: kg/cu m | P23: =IF(B$11="",IF(D$11="","",D$11),B$11) ->  | R23: =IF(L23>0,F11/L23,0) -> 0 | V23: =IF(J11<>"",U11*J11,0) -> 0 | Y23: =IF(K37<>"",VLOOKUP(K37,Conversion_Table,2,0),1) -> 1 | AA23: Liquid Density A | AB23: =VLOOKUP(Chemical_A,Chemical_Table,COLUMN('Chemical Table'!$X$1),FALSE) ->  | AC23: =VLOOKUP(Chemical_B,Chemical_Table,COLUMN('Chemical Table'!$X$1),FALSE) ->  | AD23: =VLOOKUP(Chemical_C,Chemical_Table,COLUMN('Chemical Table'!$X$1),FALSE) ->  | AE23: =VLOOKUP(Chemical_D,Chemical_Table,COLUMN('Chemical Table'!$X$1),FALSE) ->  | AF23: =VLOOKUP(Chemical_E,Chemical_Table,COLUMN('Chemical Table'!$X$1),FALSE) -> 
B24: =IF(B$12="",IF(D$12="","",D$12),B$12) ->  | D24: =AE$12 -> 0 | G24: =IF(E24="",D24,E24*Y7) -> 0 | H24: kPa | I24: =AE$14 -> 0 | L24: =IF(J24="",I24,J24*Y12) -> 0 | M24: kg/cu m | P24: =IF(B$12="",IF(D$12="","",D$12),B$12) ->  | R24: =IF(L24>0,F12/L24,0) -> 0 | V24: =IF(J12<>"",U12*J12,0) -> 0 | Y24: =IF(D56<>"",VLOOKUP(D56,Conversion_Table,2,0),1) -> 1 | AA24: Liquid Density B | AB24: =VLOOKUP(Chemical_A,Chemical_Table,COLUMN('Chemical Table'!$Y$1),FALSE) ->  | AC24: =VLOOKUP(Chemical_B,Chemical_Table,COLUMN('Chemical Table'!$Y$1),FALSE) ->  | AD24: =VLOOKUP(Chemical_C,Chemical_Table,COLUMN('Chemical Table'!$Y$1),FALSE) ->  | AE24: =VLOOKUP(Chemical_D,Chemical_Table,COLUMN('Chemical Table'!$Y$1),FALSE) ->  | AF24: =VLOOKUP(Chemical_E,Chemical_Table,COLUMN('Chemical Table'!$Y$1),FALSE) -> 
B25: =IF(B$13="",IF(D$13="","",D$13),B$13) ->  | D25: =AF$12 -> 0 | G25: =IF(E25="",D25,E25*Y8) -> 0 | H25: kPa | I25: =AF$14 -> 0 | L25: =IF(J25="",I25,J25*Y13) -> 0 | M25: kg/cu m | P25: =IF(B$13="",IF(D$13="","",D$13),B$13) ->  | R25: =IF(L25>0,F13/L25,0) -> 0 | V25: =IF(J13<>"",U13*J13,0) -> 0 | Y25: =IF('Reactivity Hazards'!E12<>"",VLOOKUP('Reactivity Hazards'!E12,Conversion_Table,2,0),1) -> 1
Q26: Liquid rMixture = 1 / S (xi / rLi) = | R26: =IF(SUM(R21:R25)>0,1/SUM(R21:R25),0) -> 0 | S26: kg/cu m | U26: Vapor Mw = S yi * Mwi = | V26: =SUM(V21:V25) -> 0 | Y26: =IF('Reactivity Hazards'!E13<>"",VLOOKUP('Reactivity Hazards'!E13,Conversion_Table,2,0),1) -> 1 | AA26: Liquid Heat Capacity A | AB26: =VLOOKUP(Chemical_A,Chemical_Table,COLUMN('Chemical Table'!$Z$1),FALSE) ->  | AC26: =VLOOKUP(Chemical_B,Chemical_Table,COLUMN('Chemical Table'!$Z$1),FALSE) ->  | AD26: =VLOOKUP(Chemical_C,Chemical_Table,COLUMN('Chemical Table'!$Z$1),FALSE) ->  | AE26: =VLOOKUP(Chemical_D,Chemical_Table,COLUMN('Chemical Table'!$Z$1),FALSE) ->  | AF26: =VLOOKUP(Chemical_E,Chemical_Table,COLUMN('Chemical Table'!$Z$1),FALSE) -> 
Y27: =IF('Reactivity Hazards'!E15>"",VLOOKUP('Reactivity Hazards'!E15,Conversion_Table,2,0),1) -> 1 | AA27: Liquid Heat Capacity B | AB27: =VLOOKUP(Chemical_A,Chemical_Table,COLUMN('Chemical Table'!$AA$1),FALSE) ->  | AC27: =VLOOKUP(Chemical_B,Chemical_Table,COLUMN('Chemical Table'!$AA$1),FALSE) ->  | AD27: =VLOOKUP(Chemical_C,Chemical_Table,COLUMN('Chemical Table'!$AA$1),FALSE) ->  | AE27: =VLOOKUP(Chemical_D,Chemical_Table,COLUMN('Chemical Table'!$AA$1),FALSE) ->  | AF27: =VLOOKUP(Chemical_E,Chemical_Table,COLUMN('Chemical Table'!$AA$1),FALSE) -> 
P28: ="ESTIMATED MIXTURE "&IF(C6="Vapor","VAPOR ","LIQUID ")&"HEAT CAPACITY and HEAT OF VAPORIZATION" -> ESTIMATED MIXTURE LIQUID HEAT CAPACITY and HEAT OF VAPORIZATION | Y28: =IF('Reactivity Hazards'!E14>"",VLOOKUP('Reactivity Hazards'!E14,Conversion_Table,2,0),1) -> 1
Y29: =IF('Reactivity Hazards'!E35<>"",VLOOKUP('Reactivity Hazards'!E35,Conversion_Table,2,0),1) -> 1 | AA29: Heat of Vaporization A | AB29: =VLOOKUP(Chemical_A,Chemical_Table,COLUMN('Chemical Table'!$AB$1),FALSE) ->  | AC29: =VLOOKUP(Chemical_B,Chemical_Table,COLUMN('Chemical Table'!$AB$1),FALSE) ->  | AD29: =VLOOKUP(Chemical_C,Chemical_Table,COLUMN('Chemical Table'!$AB$1),FALSE) ->  | AE29: =VLOOKUP(Chemical_D,Chemical_Table,COLUMN('Chemical Table'!$AB$1),FALSE) ->  | AF29: =VLOOKUP(Chemical_E,Chemical_Table,COLUMN('Chemical Table'!$AB$1),FALSE) -> 
P30: equation 12-22 and equation 12-23 | Y30: =IF('Reactivity Hazards'!E36<>"",VLOOKUP('Reactivity Hazards'!E36,Conversion_Table,2,0),1) -> 1 | AA30: Heat of Vaporization B | AB30: =VLOOKUP(Chemical_A,Chemical_Table,COLUMN('Chemical Table'!$AC$1),FALSE) ->  | AC30: =VLOOKUP(Chemical_B,Chemical_Table,COLUMN('Chemical Table'!$AC$1),FALSE) ->  | AD30: =VLOOKUP(Chemical_C,Chemical_Table,COLUMN('Chemical Table'!$AC$1),FALSE) ->  | AE30: =VLOOKUP(Chemical_D,Chemical_Table,COLUMN('Chemical Table'!$AC$1),FALSE) ->  | AF30: =VLOOKUP(Chemical_E,Chemical_Table,COLUMN('Chemical Table'!$AC$1),FALSE) -> 
D31: =IF(C$6="Vapor","Vapor ","Liquid ")&"Heat Capacity at Input Temperature" -> Liquid Heat Capacity at Input Temperature | I31: Heat of Vaporization at Input Temperature | AA31: Heat of Vaporization C | AB31: =VLOOKUP(Chemical_A,Chemical_Table,COLUMN('Chemical Table'!$AD$1),FALSE) ->  | AC31: =VLOOKUP(Chemical_B,Chemical_Table,COLUMN('Chemical Table'!$AD$1),FALSE) ->  | AD31: =VLOOKUP(Chemical_C,Chemical_Table,COLUMN('Chemical Table'!$AD$1),FALSE) ->  | AE31: =VLOOKUP(Chemical_D,Chemical_Table,COLUMN('Chemical Table'!$AD$1),FALSE) ->  | AF31: =VLOOKUP(Chemical_E,Chemical_Table,COLUMN('Chemical Table'!$AD$1),FALSE) -> 
D32: Data Table Value | E32: Input Value | F32: Input Units | G32: Equation Input | H32: Equation Units | I32: Data Table Value | J32: Input Value | K32: Input Units | L32: Equation Input | M32: Equation Units | P32: Chemical Name | R32: Wt Fraction * Heat Capacity | U32: Wt Fraction * Heat of Vaporize | AG32: Sum
B33: =IF(B$9="",IF(D$9="","",D$9),B$9) ->  | D33: =IF(C$6="Vapor",AB$16,AB$15) -> 0 | G33: =IF(E33="",D33,E33*Y14) -> 0 | H33: kJ/kg C | I33: =AB$17 -> 0 | L33: =IF(J33="",I33,J33*Y19) -> 0 | M33: kJ/kg | P33: =IF(B$9="",IF(D$9="","",D$9),B$9) ->  | R33: =F9*G33 -> 0 | U33: =V9*L33 -> 0 | AA33: Liquid Phase A | AB33: =IF(J9="",0,IF(AND(J9>0,G9<>"Yes"),F9/J9,0)) -> 0 | AC33: =IF(J10="",0,IF(AND(J10>0,G10<>"Yes"),F10/J10,0)) -> 0 | AD33: =IF(J11="",0,IF(AND(J11>0,G11<>"Yes"),F11/J11,0)) -> 0 | AE33: =IF(J12="",0,IF(AND(J12>0,G12<>"Yes"),F12/J12,0)) -> 0 | AF33: =IF(J13="",0,IF(AND(J13>0,G13<>"Yes"),F13/J13,0)) -> 0 | AG33: =SUM(AB33:AF33) -> 0
B34: =IF(B$10="",IF(D$10="","",D$10),B$10) ->  | D34: =IF(C$6="Vapor",AC$16,AC$15) -> 0 | G34: =IF(E34="",D34,E34*Y15) -> 0 | H34: kJ/kg C | I34: =AC$17 -> 0 | L34: =IF(J34="",I34,J34*Y20) -> 0 | M34: kJ/kg | P34: =IF(B$10="",IF(D$10="","",D$10),B$10) ->  | R34: =F10*G34 -> 0 | U34: =V10*L34 -> 0 | AA34: Liquid Phase B | AB34: =IF(J9="",0,IF(AND(J9>0,G9="Yes"),F9/J9,0)) -> 0 | AC34: =IF(J10="",0,IF(AND(J10>0,G10="Yes"),F10/J10,0)) -> 0 | AD34: =IF(J11="",0,IF(AND(J11>0,G11="Yes"),F11/J11,0)) -> 0 | AE34: =IF(J12="",0,IF(AND(J12>0,G12="Yes"),F12/J12,0)) -> 0 | AF34: =IF(J13="",0,IF(AND(J13>0,G13="Yes"),F13/J13,0)) -> 0 | AG34: =SUM(AB34:AF34) -> 0
B35: =IF(B$11="",IF(D$11="","",D$11),B$11) ->  | D35: =IF(C$6="Vapor",AD$16,AD$15) -> 0 | G35: =IF(E35="",D35,E35*Y16) -> 0 | H35: kJ/kg C | I35: =AD$17 -> 0 | L35: =IF(J35="",I35,J35*Y21) -> 0 | M35: kJ/kg | P35: =IF(B$11="",IF(D$11="","",D$11),B$11) ->  | R35: =F11*G35 -> 0 | U35: =V11*L35 -> 0 | AA35: Overall | AB35: =SUM(AB33:AB34) -> 0 | AC35: =SUM(AC33:AC34) -> 0 | AD35: 0 | AE35: 0 | AF35: 0 | AG35: =SUM(AG33:AG34) -> 0
B36: =IF(B$12="",IF(D$12="","",D$12),B$12) ->  | D36: =IF(C$6="Vapor",AE$16,AE$15) -> 0 | G36: =IF(E36="",D36,E36*Y17) -> 0 | H36: kJ/kg C | I36: =AE$17 -> 0 | L36: =IF(J36="",I36,J36*Y22) -> 0 | M36: kJ/kg | P36: =IF(B$12="",IF(D$12="","",D$12),B$12) ->  | R36: =F12*G36 -> 0 | U36: =V12*L36 -> 0 | AA36: Vapor Mol Fract * Mole Wt. | AB36: =IF(J9="",0,U9*J9) -> 0 | AC36: =IF(J10="",0,U10*J10) -> 0 | AD36: =IF(J11="",0,U11*J11) -> 0 | AE36: =IF(J12="",0,U12*J12) -> 0 | AF36: =IF(J13="",0,U13*J13) -> 0 | AG36: =SUM(AB36:AF36) -> 0
B37: =IF(B$13="",IF(D$13="","",D$13),B$13) ->  | D37: =IF(C$6="Vapor",AF$16,AF$15) -> 0 | G37: =IF(E37="",D37,E37*Y18) -> 0 | H37: kJ/kg C | I37: =AF$17 -> 0 | L37: =IF(J37="",I37,J37*Y23) -> 0 | M37: kJ/kg | P37: =IF(B$13="",IF(D$13="","",D$13),B$13) ->  | R37: =F13*G37 -> 0 | U37: =V13*L37 -> 0
Q38: Liquid CMixture = S (x'i * CLi) = | R38: =SUM(R33:R37) -> 0 | S38: kJ/kg C
T39: Ht of VaporizeMixture = S (y'i * DHvi) = | U39: =SUM(U33:U37) -> 0 | V39: kJ/kg
P41: ESTIMATED MIXTURE LFL and MINIMUM FLASH POINT equation 3-1
A42: Flammability Property Inputs:
D44: Flash Point (Liquid) | I44: Lower Flammable Limit
B45: Chemical Name | D45: Data Table Value | E45: Input Value | F45: Input Units | G45: Equation Input | H45: Equation Units | I45: Data Table Value | J45: Input Value | K45: Input Units | L45: Equation Input | M45: Equation Units | P45: Chemical Name | R45: Mol Fract Vapor / LFL
B46: =IF(B$9="",IF(D$9="","",D$9),B$9) ->  | D46: =IF(AND(AB$7=0,AB$8=0),"",AB$7) ->  | G46: =IF(E46="",D46,IF(F46="F",ROUND((E46-32)/1.8,1),E46)) ->  | H46: C | I46: =IF(AND(AB$7=0,AB$8=0),"",AB$8) ->  | L46: =IF(J46="",I46,IF(AND(K46="mg/cu m",J9=0),0,IF(K46="mg/cu m",ROUND(J46*0.002445/J9,2),IF(K46="ppm",J46/10000,J46)))) ->  | M46: vol % | P46: =IF(B$9="",IF(D$9="","",D$9),B$9) ->  | R46: =IF(L46="",0,IF(L46>0,U9/L46,0)) -> 0 | S46: The Minimum Flash Point for any Component is:
B47: =IF(B$10="",IF(D$10="","",D$10),B$10) ->  | D47: =IF(AND(AC$7=0,AC$8=0),"",AC$7) ->  | G47: =IF(E47="",D47,IF(F47="F",ROUND((E47-32)/1.8,1),E47)) ->  | H47: C | I47: =IF(AND(AC$7=0,AC$8=0),"",AC$8) ->  | L47: =IF(J47="",I47,IF(AND(K47="mg/cu m",J10=0),0,IF(K47="mg/cu m",ROUND(J47*0.002445/J10,2),IF(K47="ppm",J47/10000,J47)))) ->  | M47: vol % | P47: =IF(B$10="",IF(D$10="","",D$10),B$10) ->  | R47: =IF(L47="",0,IF(L47>0,U10/L47,0)) -> 0
B48: =IF(B$11="",IF(D$11="","",D$11),B$11) ->  | D48: =IF(AND(AD$7=0,AD$8=0),"",AD$7) ->  | H48: C | I48: =IF(AND(AD$7=0,AD$8=0),"",AD$8) ->  | L48: =IF(J48="",I48,IF(AND(K48="mg/cu m",J11=0),0,IF(K48="mg/cu m",ROUND(J48*0.002445/J11,2),IF(K48="ppm",J48/10000,J48)))) ->  | M48: vol % | P48: =IF(B$11="",IF(D$11="","",D$11),B$11) ->  | R48: =IF(L48="",0,IF(L48>0,U11/L48,0)) -> 0 | T48: =MIN(G46:G50) -> 0 | U48: C
B49: =IF(B$12="",IF(D$12="","",D$12),B$12) ->  | D49: =IF(AND(AE$7=0,AE$8=0),"",AE$7) ->  | H49: C | I49: =IF(AND(AE$7=0,AE$8=0),"",AE$8) ->  | L49: =IF(J49="",I49,IF(AND(K49="mg/cu m",J12=0),0,IF(K49="mg/cu m",ROUND(J49*0.002445/J12,2),IF(K49="ppm",J49/10000,J49)))) ->  | M49: vol % | P49: =IF(B$12="",IF(D$12="","",D$12),B$12) ->  | R49: =IF(L49="",0,IF(L49>0,U12/L49,0)) -> 0
B50: =IF(B$13="",IF(D$13="","",D$13),B$13) ->  | D50: =IF(AND(AF$7=0,AF$8=0),"",AF$7) ->  | H50: C | I50: =IF(AND(AF$7=0,AF$8=0),"",AF$8) ->  | L50: =IF(J50="",I50,IF(AND(K50="mg/cu m",J10=0),0,IF(K50="mg/cu m",ROUND(J50*0.002445/J13,2),IF(K50="ppm",J50/10000,J50)))) ->  | M50: vol % | P50: =IF(B$13="",IF(D$13="","",D$13),B$13) ->  | R50: =IF(L50="",0,IF(L50>0,U13/L50,0)) -> 0
Q51: S yi / LFLi = | R51: =SUM(R46:R50) -> 0
Q52: LFLMixture = 1 / (S yi / LFLi) = | R52: =IF(R51>0,1/R51,"") ->  | S52: Vol %
P54: ESTIMATED MIXTURE ERPG-2 and ERPG-3 Dose adjusted ERPG per equation 4-1 and mixture ERPG per equation 4-3
A55: Toxicity Property Inputs: | C55: Input Value | D55: Input Units | E55: Equation Input | F55: Equation Units
B56: Exposure Duration, t | E56: =IF(C56="",60,C56*Y24) -> 60 | F56: min
D58: One-Hour ERPG-2 | H58: One-Hour ERPG-3 | Q58: ="Based on Exposure Duration of "&ROUND(E56,1)&" min" -> Based on Exposure Duration of 60 min
B59: ERPG-2 | D59: Data Table Value | E59: Input Value | F59: Input Units | G59: Equation Input | H59: Data Table Value | I59: Input Value | J59: Input Units | K59: Equation Input | L59: Equation Units | M59: Dose Exponent, n | P59: Chemical Name | R59: ERPG-2 (t /60)1/n | S59: Mol Fract Vapor / ERPG-2 (t /60)1/n | U59: ERPG-3 (t /60)1/n | V59: Mol Fract Vapor / ERPG-3 (t /60)1/n
B60: =IF(B$9="",IF(D$9="","",D$9),B$9) ->  | D60: =AB$9 ->  | G60: =IF(E60="",D60,IF(AND(F60="mg/cu m",J9=0),0,IF(F60="mg/cu m",ROUND(E60*24.45/J9,2),IF(F60="vol %",E60*10000,E60)))) ->  | H60: =AB$10 ->  | K60: =IF(I60="",H60,IF(AND(J60="mg/cu m",J9=0),0,IF(J60="mg/cu m",ROUND(I60*24.45/J9,2),IF(J60="vol %",I60*10000,I60)))) ->  | L60: ppm | P60: =IF(B$9="",IF(D$9="","",D$9),B$9) ->  | R60: =IF(G60="",0,G60*(60/E$56)^IF(M60<>"",1/M60,IF(E$56>60,1,0.5))) -> 0 | S60: =IF(R60>0,U9/R60,0) -> 0 | U60: =IF(K60="",0,K60*(60/E$56)^IF(M60<>"",1/M60,IF(E$56>60,1,0.5))) -> 0 | V60: =IF(U60>0,U9/U60,0) -> 0
B61: =IF(B$10="",IF(D$10="","",D$10),B$10) ->  | D61: =AC$9 ->  | G61: =IF(E61="",D61,IF(AND(F61="mg/cu m",J10=0),0,IF(F61="mg/cu m",ROUND(E61*24.45/J10,2),IF(F61="vol %",E61*10000,E61)))) ->  | H61: =AC$10 ->  | K61: =IF(I61="",H61,IF(AND(J61="mg/cu m",J10=0),0,IF(J61="mg/cu m",ROUND(I61*24.45/J10,2),IF(J61="vol %",I61*10000,I61)))) ->  | L61: ppm | P61: =IF(B$10="",IF(D$10="","",D$10),B$10) ->  | R61: =IF(G61="",0,G61*(60/E$56)^IF(M61<>"",1/M61,IF(E$56>60,1,0.5))) -> 0 | S61: =IF(R61>0,U10/R61,0) -> 0 | U61: =IF(K61="",0,K61*(60/E$56)^IF(M61<>"",1/M61,IF(E$56>60,1,0.5))) -> 0 | V61: =IF(U61>0,U10/U61,0) -> 0
B62: =IF(B$11="",IF(D$11="","",D$11),B$11) ->  | D62: =AD$9 ->  | G62: =IF(E62="",D62,IF(AND(F62="mg/cu m",J11=0),0,IF(F62="mg/cu m",ROUND(E62*24.45/J11,2),IF(F62="vol %",E62*10000,E62)))) ->  | H62: =AD$10 ->  | K62: =IF(I62="",H62,IF(AND(J62="mg/cu m",J11=0),0,IF(J62="mg/cu m",ROUND(I62*24.45/J11,2),IF(J62="vol %",I62*10000,I62)))) ->  | L62: ppm | P62: =IF(B$11="",IF(D$11="","",D$11),B$11) ->  | R62: =IF(G62="",0,G62*(60/E$56)^IF(M62<>"",1/M62,IF(E$56>60,1,0.5))) -> 0 | S62: 0 | U62: =IF(K62="",0,K62*(60/E$56)^IF(M62<>"",1/M62,IF(E$56>60,1,0.5))) -> 0 | V62: =IF(U62>0,U11/U62,0) -> 0
B63: =IF(B$12="",IF(D$12="","",D$12),B$12) ->  | D63: =AE$9 ->  | H63: =AE$10 ->  | L63: ppm | P63: =IF(B$12="",IF(D$12="","",D$12),B$12) ->  | R63: =IF(G63="",0,G63*(60/E$56)^IF(M63<>"",1/M63,IF(E$56>60,1,0.5))) -> 0 | S63: 0 | U63: =IF(K63="",0,K63*(60/E$56)^IF(M63<>"",1/M63,IF(E$56>60,1,0.5))) -> 0 | V63: =IF(U63>0,U12/U63,0) -> 0
B64: =IF(B$13="",IF(D$13="","",D$13),B$13) ->  | D64: =AF$9 ->  | H64: =AF$10 ->  | L64: ppm | P64: =IF(B$13="",IF(D$13="","",D$13),B$13) ->  | R64: =IF(G64="",0,G64*(60/E$56)^IF(M64<>"",1/M64,IF(E$56>60,1,0.5))) -> 0 | S64: 0 | U64: =IF(K64="",0,K64*(60/E$56)^IF(M64<>"",1/M64,IF(E$56>60,1,0.5))) -> 0 | V64: =IF(U64>0,U13/U64,0) -> 0
R65: S yi / ERPG-2'i = | S65: =SUM(S60:S64) -> 0 | U65: S yi / ERPG-3'i = | V65: =SUM(V60:V64) -> 0
R66: ERPG-2'Mixture = 1 / (S yi / ERPG-2'i) = | S66: =IF(S65>0,1/S65,"") ->  | U66: ppmv ERPG-3'Mixture = | V66: =IF(V65>0,1/V65,"") ->  | W66: ppmv
Q67: Note: n is assumed 2 for interpolation of exposure duration less than one hour and 1 for extrapolation of exposure duration to greater than one hour if not entered
B71: Copyright © 2026
B72: American Institute of Chemical Engineers

Sheet Reactivity Hazards
T1: Conversion Factors
E2: REACTIVITY HAZARDS INPUT INFORMATION | N2: ln(Vap Press) = A -B / (T + 273) | V2: Trial TNR Temp 1 | W2: =F37+20 -> 20 | X2: C
E3: Required Inputs are Shaded "Yellow" | L3: Initial Temperature for Plot = | M3: =MIN(F11,0) -> 0 | N3: C | O3: Vap Press A | P3: =IF(F28>0,LN(F28)+P4/(D28+273),0) -> 0 | T3: =IF(E12<>"",VLOOKUP(E12,Conversion_Table,2,0),1) -> 1 | V3: Trial TNR Temp 2 | W3: =1/(LN(F$35*F$36*IF(W2>F$37+1,W2-F$37,1)*60/(F$16*F$17)/(F$13*IF(D$21="",1,D$21)))*8.3145/(-1000*F$14)+1/(F$11+273))-273 ->  | X3: C
B4: Description: | L4: Maximum Temperature Rise for Plot = | M4: =M3+IF(D19<>"Endothermic",IF(F16>0,F15/F16,0.01),0.01) -> 0.01 | N4: C | O4: Vap Press B | P4: =IF(AND(F28>0,F29>0,D28<>D29),(LN(F28)-LN(F29))/(1/(D29+273)-1/(D28+273)),0) -> 0 | T4: =IF(E13<>"",VLOOKUP(E13,Conversion_Table,2,0),1) -> 1 | V4: Trial TNR Temp 3 | X4: C
L5: Vap Press at Initial Temperature = | M5: =IF(D20<>"Vapor",EXP(P$3-P$4/(F$11+273))/100,0) -> 0.01 | N5: bar | O5: Pad Gas = | P5: =IF(F12+1.013-M5>0,F12+1.013-M5,0) -> 1.003 | Q5: bar | T5: =IF(E14<>"",VLOOKUP(E14,Conversion_Table,2,0),1) -> 1 | V5: Trial TNR Temp 4 | X5: C
L6: Conversion | M6: Temp, C | N6: Vap Press, bar | O6: Total Press, bar | P6: Temp Rate | Q6: Cool Rate, C/min | T6: =IF(E15<>"",VLOOKUP(E15,Conversion_Table,2,0),1) -> 1 | V6: Trial TNR Temp 5 | X6: C
L7: 0 | M7: =M3 -> 0 | N7: =IF(AND(D$20<>"Vapor",D$19<>"Endothermic"),EXP(P$3-P$4/(M7+273))/100,NA()) -> 0.01 | O7: =IF(AND(D$20<>"Vapor",D$19<>"Endothermic"),EXP(P$3-P$4/(M7+273))/100,0)+P$5*(M7+273)/(F$11+273)+0.08345*L7*F$18*(M7+273)*IF(AND(D$20<>"Vapor",D$22<>""),D$22/(1.01-D$22),1) -> 1.013 | P7: =IF(D$19="Endothermic",NA(),F$13*IF(D$21="",1,D$21)*(1-L7)*EXP((-1000*F$14/8.3145)*(1/(M7+273)-1/(F$11+273)))) -> 0 | Q7: =IF(AND(F$17>0,M7>F$37),F$35*F$36*(M7-F$37)*60/(F$16*F$17),NA()) ->  | T7: =IF(E17<>"",VLOOKUP(E17,Conversion_Table,2,0),1) -> 1 | V7: Trial TNR Temp 6 | X7: C
C8: Select Reactivity Screening Estimate | L8: 0.001 | M8: =(M3+F11)/2 -> 0 | N8: 0.01 | O8: 1.013 | P8: 0 | T8: =IF(E18<>"",VLOOKUP(E18,Conversion_Table,2,0),1) -> 1 | V8: Trial TNR Temp 7 | X8: C
L9: 0.005 | M9: =F11 -> 0 | N9: 0.01 | O9: 1.013 | P9: 0 | T9: =IF(G26<>"",VLOOKUP(G26,Conversion_Table,2,0),1) -> 1 | V9: Trial TNR Temp 8 | X9: C
D10: Input Value | E10: Input Units | F10: Equation Input | G10: Equation Units | L10: 0.1 | M10: =F$11+L10*M$4 -> 0.001 | N10: 0.01 | O10: 1.013003674 | P10: 0 | T10: =IF(G27<>"",VLOOKUP(G27,Conversion_Table,2,0),1) -> 1 | V10: Trial TNR Temp 9 | X10: C
B11: Initial (or Detected Onset) Temperature, T0 | F11: =IF(E11="F",ROUND((D11-32)/1.8,1),D11) -> 0 | G11: C | L11: 0.2 | M11: 0.002 | N11: 0.01 | O11: 1.013007348 | P11: 0 | T11: =IF(E16<>"",VLOOKUP(E16,Conversion_Table,2,0),1) -> 1 | V11: Trial TNR Temp 10 | X11: C
B12: Initial Pressure, P0 | F12: =IF(E12<>"",D12*T3,D12)/100 -> 0 | G12: bar gauge | L12: 0.3 | M12: 0.003 | N12: 0.01 | O12: 1.013011022 | P12: 0 | T12: =IF(E35<>"",VLOOKUP(E35,Conversion_Table,2,0),1) -> 1
B13: Initial Observed Temperature Rate, r0 | F13: =IF(E13<>"",D13*T4,D13) -> 0 | G13: C/min | L13: 0.4 | M13: 0.004 | N13: 0.01 | O13: 1.013014696 | P13: 0 | T13: =IF(E36<>"",VLOOKUP(E36,Conversion_Table,2,0),1) -> 1
B14: Activation Energy, DE | F14: =IF(E14<>"",D14*T5,D14) -> 0 | G14: kJ/g mole | L14: 0.5 | M14: 0.005 | N14: 0.01 | O14: 1.01301837 | P14: 0
B15: Heat of Reaction per Mass, DHr | F15: =IF(E15<>"",ABS(D15*T6),ABS(D15)) -> 0 | G15: kJ/kg | L15: 0.6 | M15: 0.006 | N15: 0.01 | O15: 1.013022044 | P15: 0
B16: Contents Average Heat Capacity, C | F16: =IF(E16<>"",D16*T11,D16) -> 0 | G16: kJ/kg C | L16: 0.7 | M16: 0.007 | N16: 0.01 | O16: 1.013025718 | P16: 0
B17: Total Reaction Mass | F17: =IF(E17<>"",D17*T7,D17) -> 0 | G17: kg | L17: 0.8 | M17: 0.008 | N17: 0.01 | O17: 1.013029392 | P17: 0
B18: Net Mole Vapor Generated/Liter Contents | F18: =IF(E18<>"",D18*T8,D18) -> 0 | G18: g mole/liter contents | L18: 0.9 | M18: 0.009 | N18: 0.01 | O18: 1.013033066 | P18: 0
B19: Exothermic or Endothermic Reaction | E19: Assumed Exothermic if blank | L19: 0.95 | M19: 0.0095 | N19: 0.01 | O19: 1.013034903 | P19: 0
B20: Vapor or Liquid Phase Reaction | E20: Assumed Liquid if blank | L20: 0.98 | M20: 0.0098 | N20: 0.01 | O20: 1.013036005 | P20: 0
B21: Thermal Inertia of Testing Device | E21: Note: A value of 1 indicates an adiabatic data. Assumed 1 if blank. | L21: 0.99 | M21: 0.0099 | N21: 0.01 | O21: 1.013036373 | P21: 0
B22: Equipment of Vessel Fill Fraction, FF | E22: Assumed 0.5 if blank | L22: 0.995 | M22: 0.00995 | N22: 0.01 | O22: 1.013036556 | P22: 0
F23: Vol Ratio (Vr / VV) = 1 for vapor phase or Fill Fr / (1 - Fill Fr) for liquid phase reaction = | G23: =IF(OR(D20="Vapor",D22=""),1,D22/(1-D22)) -> 1
D24: =IF(OR(F14>200,F14<30),"Activation Energy Outside of Normal Range","") -> Activation Energy Outside of Normal Range | K24: MAXIMUM ADIABATIC TEMPERATURE and PRESSURE Reactivity Hazards - section 5.7
D25: Temperature | E25: Temp Units | F25: Vapor Press | G25: Pressure Units
B26: Input Temperature 1 and Vap Press 1
B27: Input Temperature 2 and Vap Press 2
B28: Vapor Pressure at Temperature 1 | D28: =IF(E26="F",ROUND((D26-32)/1.8,1),D26) -> 0 | E28: C | F28: =IF(G26<>"",F26*T9,F26) -> 0 | G28: kPa absolute | K28: Maximum Adiabatic Temperature (equation 5-1), TMax = T0 - DHr / C
B29: Vapor Pressure at Temperature 2 | D29: =IF(E27="F",ROUND((D27-32)/1.8,1),D27) -> 0 | E29: C | F29: =IF(G27<>"",F27*T10,F27) -> 0 | G29: kPa absolute | L29: TMax = | M29: =ROUND(F11,1)&" + "&ROUND(F15,1)&" / "&ROUND(F16,3)&" = " -> 0 + 0 / 0 = | O29: =IF(D16="",0,ROUND(F11+F15/F16,1)) -> 0 | P29: C
E30: Estimated Vap Pressure at Initial Reaction Temperature, PVP@To = | F30: =IF(D11="",0,EXP(P3-P4/(F11+273))/100) -> 0 | G30: bar
E31: Estimated Vap Pressure at Max Reaction Temperature, PVP@Tmax = | F31: =IF(O29="","",EXP(P3-P4/(O29+273))/100) -> 0.01 | G31: bar | J31: Maximum Adiabatic Pressure (equation 5-2), Pmax = Ppad (Tmax / T0 ) + PVP@Tmax + b R Tmax ( Vr / VV)
E32: Estimated Pad Gas Pressure at T0 = P0 - PVP@To = | F32: =IF(F30="","",F12+1.013-F30) -> 1.013 | G32: bar | J32: Pmax = | K32: =ROUND(F32,2)&" ( "&O29&"+273 ) / ("&ROUND(F11,1)&"+273 ) + "&ROUND(F31,2)&" + "&ROUND(F18,4)&" ( 0.083 ) ("&O29&"+273) ( "&ROUND(G23,2)&" ) =" -> 1.01 ( 0+273 ) / (0+273 ) + 0.01 + 0 ( 0.083 ) (0+273) ( 1 ) = | Q32: =F32*(O29+273)/(F11+273)+F31+F18*0.083*(O29+273)*G23 -> 1.023 | R32: bar
D34: Input Value | E34: Input Units | F34: Equation Input | G34: Equation Units | K34: TEMPERATURE OF NO RETURN - Exothermic Reaction Reactivity Hazards - section 5.16
B35: Equipment or Vessel Heat Transfer Area, A | F35: =IF(E35<>"",D35*T12,D35) -> 0 | G35: m2
B36: Heat Loss Coefficient, U | F36: =IF(E36<>"",D36*T13,D36) -> 0 | G36: kWatt/m2 C
B37: Coolant Temperature, TCoolant | F37: =IF(E37="F",ROUND((D37-32)/1.8,1),D37) -> 0 | G37: C
B38: Ref Temperature for Time to Max Rate, TRef | F38: =IF(E38="F",ROUND((D38-32)/1.8,1),D38) -> 0 | G38: C | K38: Temperature of No Return (equation 5-4), TNR = 1 / [R ln (r0 / rTNR) / DE + 1 / T0]
E39: Estimated Temp Rate at TREF, qREF = | F39: =IF(D$19="Endothermic",NA(),F$13*IF(D$21="",1,D$21)*EXP((-1000*F$14/8.3145)*(1/(F38+273)-1/(F$11+273)))) -> 0 | G39: C/min | K39: where rTNR = U A (TNR - Tcoolant) / ( M C )
N41: TNR solved by trial and error or graphically yields: | O41: =IF(OR(F13=0,F16=0,F35=0,F36=0),"",IF(W11<F37,"< Coolant T",W11)) ->  | P41: C
B43: Copyright © 2026 | K43: TIME TO MAXIMUM RATE - Exothermic Reaction Reactivity Hazards - section 5.17
B44: American Institute of Chemical Engineers
K47: Time to Maximum Rate (equation 5-5), tMR = R TRef2 / ( rRef DE )
K48: where rRef determined by thermal kinetic expression: r = r0 exp[ -( DE / R ) ( 1 / TRef - 1 / T0 )
K50: tMR = | L50: ="8.3145 ( "&ROUND(F38,1)&" + 273 )^2 / ( "&ROUND(F39,3)&" ( "&ROUND(1000*F14,1)&" ) ) = " -> 8.3145 ( 0 + 273 )^2 / ( 0 ( 0 ) ) = | P50: =IF(OR(F11=0,F39=0),"",8.3145*(F38+273)^2/(1000*F39*F14)) ->  | Q50: min
O51: or | P51: =IF(P50="","",IF(P50<6,P50*60,IF(P50>6000,P50/1440,IF(P50>600,P50/60,P50)))) ->  | Q51: =IF(P50<6,"sec",IF(P50>6000,"day",IF(P50>600,"hour","min"))) -> day

Sheet Example Scenarios
B2: Below are example scenarios for general chemical process equipment, fired equipment, and solids handling equipment as described in the CHEF Guide under "What Could Go Wrong?". Each scenario group contains selected initiating events, typical loss events, and potential incident outcome for common equipment. Each entry is aligned with one or more deviations of a process parameter or common failure mode. This is not intended as a complete listing, but a starting point for Hazard Identification and Risk Analysis study teams in identifying scenarios for risk analysis.
B4: Common Chemical Process Equipment
B5: Fired Equipment
B6: Solids Handling Equipment
B8: Go to Top | C8: Example Listing of scenario groups for Common Chemical Process Equipment per Scenario Development - section 11.8
B9: Scenario or Hazard Category | C9: Parameter/ Deviation | D9: Applicable Equipment | E9: Initiating Events (Partial List) | F9: Loss Event* | G9: Incident Outcome | I9: Notes:
B10: Blocked-In with Thermal Expansion | C10: Flow-No | D10: Drum Oven Heat Exchanger Piping, Pump** | E10: Procedure Failure (Human Error) Flow Control Failure | F10: Gasket Leak Equipment Rupture Equipment Damage | G10: Flammable Release Toxic Release Chemical Exposure | I10: Thermal expansion may result in a gasket leak that goes undetected (only material within the blocked -in region would initially leak) until the equipment or piping returns to normal operation.
B11: Casing or Containment Failure | C11: Flow-Loss of Containment | D11: Pump | E11: Canned or Magnetic Drive Failure | F11: Small Hole Leak | G11: Flammable Release Toxic Release Chemical Exposure
B12: Connection Failure | C12: Flow-Loss of Containment | D12: Drum/IBC Handling Tank Truck/Rail Car/Tote | E12: Procedure Failure (Human Error) | F12: Gasket Leak | G12: Flash Fire or Fireball Chemical Exposure
B13: Damage from Movement | C13: Flow-Loss of Containment | D13: Tank Truck/Rail Car/Tote | E13: Procedure Failure (Human Error) | F13: Full-Bore Leak | G13: Flammable Release Toxic Release Chemical Exposure
B14: Drain or Vent Valve Open | C14: Flow-Loss of Containment | D14: All | E14: Procedure Failure (Human Error) Flow Control Failure | F14: Drain or Vent Leak | G14: Flammable Release Toxic Release Chemical Exposure
B15: Excessive Heat Input - Heat Transfer | C15: Temperature-High Pressure-High Heat Input-High | D15: All with Heat Transfer Capability | E15: Temperature Control Failure Residence Time Failure (Solids) Feed rate Control Failure | F15: Relief Venting Equipment Rupture Equipment Damage | G15: Flammable Release Toxic Release Flash Fire or Fireball Physical Explosion Business Loss
B16: Excessive Heat Input - Mechanical or Frictional | C16: Temperature-High Pressure-High Heat Input-High | D16: All with Mixing, Fluid Movement, or Electric Heating | E16: Bearing or Seal Failure Mechanical Failure Speed Control Failure | F16: Relief Venting Equipment Rupture Equipment Damage | G16: Flammable Release Toxic Release Flash Fire or Fireball Physical Explosion Business Loss
B17: Excessive Heat Input - Pool Fire Exposure | C17: Temperature-High Pressure-High Heat Input-High | D17: All | E17: Scenarios involving spill plus ignition in nearby liquid-containing equipment | F17: Relief Venting Equipment Rupture Equipment Damage | G17: Flammable Release Toxic Release Flash Fire or Fireball Physical Explosion Business Loss
B18: Excessive Pad Gas Pressure | C18: Flow-High | D18: All | E18: Flow Control Failure Pressure Control Failure Procedure Failure (Human Error) | F18: Gasket Leak Relief Venting Equipment Rupture | G18: Flammable Release Toxic Release Physical Explosion Business Loss
B19: Exhaustion of Scrubbing Media | C19: Composition-Wrong Concentration | D19: Adsorber/Scrubber Vapor Quench | E19: Flow Control Failure Procedure Failure (Human Error) | F19: Vent Release | G19: Flammable Release Toxic Release
B20: High Temperature Failure | C20: Temperature-High | D20: Vapor Quench | E20: Flow Control Failure | F20: Equipment Failure | G20: Toxic Release Physical Explosion Business Loss
B21: Hose or Loading Arm Connection | C21: Flow-Loss of Containment | D21: Drum/IBC Handling Tank Truck/Rail Car/Tote | E21: Procedure Failure (Human Error) | F21: Gasket Leak | G21: Flammable Release Toxic Release Chemical Exposure
B22: Hydraulic Surge | C22: Flow-Loss of Containment | D22: Piping Pump** | E22: Flow Control Failure Procedure Failure (Human Error) | F22: Gasket Leak | G22: Flammable Release Toxic Release Chemical Exposure
B23: Ignitable Headspace | C23: Composition-Wrong Concentration Electrostatic Charge-High Electrical Conductivity-Low | D23: All but Liquid-Full Equipment | E23: Flow Control Failure Failure of Bonding or Grounding Particle Size Control Failure (Solids) Wrong Type or Damaged Bag, Pak or Drum (Solids) Improper Changing Dust Collector Bag or Screen (Solids) | F23: Gasket Leak Equipment Rupture Equipment Damage | G23: Flammable Release Toxic Release Flash Fire or Fireball Physical Explosion Business Loss
B24: Liquid in Vapor Feed | C24: Level-High | D24: Compressor or Blower Turbine or Gas Expander | E24: Level Control Failure | F24: Equipment Damage | G24: Chemical Exposure
B25: Loss of Flow - Adsorber or Scrubber | C25: Flow-Low | D25: Adsorber/Scrubber Vapor Quench | E25: Flow Control Failure Pump Failure | F25: Vent Release | G25: Flammable Release Toxic Release
B26: Low Temperature Embrittlement | C26: Temperature-Low | D26: All | E26: Temperature Control Failure Leak of Liquified Gas | F26: Full-Bore Leak | G26: Flammable Release Toxic Release
B27: Mechanical Integrity Failure - Large | C27: Flow-Loss of Containment | D27: All - to address Residual Failures | E27: Residual Failure | F27: Very Large Hole Size Leak | G27: Flammable Release Toxic Release Chemical Exposure
B28: Mechanical Integrity Failure - Small | C28: Flow-Loss of Containment | D28: All - to address Residual Failures | E28: Residual Failure | F28: Very Small Hole Size Leak | G28: Flammable Release Toxic Release Chemical Exposure
B29: Overfill, Overflow, or Backflow | C29: Level-High Flow-Backflow | D29: All Liquid Containing Equipment | E29: Level Control Failure Procedure Failure (Human Error) | F29: Overflow Release Equipment Damage Equipment Rupture | G29: Flammable Release Toxic Release Physical Explosion Business Loss
B30: Overflow - Flooding or Plugging | C30: Level-High | D30: Adsorber/Scrubber Distillation Vapor Quench | E30: Level Control Failure Pressure Control Failure Flow Control Failure | F30: Overflow Release Equipment Damage Equipment Rupture | G30: Flammable Release Toxic Release Physical Explosion Business Loss
B31: Physical Damage or Puncture | C31: Flow-Loss of Containment | D31: Drum/IBC Handling Piping Pump** | E31: Procedure Failure (Human Error) | F31: Full-Bore Leak | G31: Flammable Release Toxic Release
B32: Piping or Equipment Leak - Full Bore | C32: Flow-Loss of Containment | D32: All | E32: Hose Failure Pipe Failure Mechanical Failure (nozzle) | F32: Full-Bore Leak | G32: Flammable Release Toxic Release Chemical Exposure
B33: Piping or Equipment Leak - Small | C33: Flow-Loss of Containment | D33: All | E33: Procedure Failure (Human Error) Mechanical Failure (Loading Arm, etc.) | F33: Small Hole Size Leak | G33: Flammable Release Toxic Release Chemical Exposure
B34: Pump Deadhead | C34: Flow-No Temperature-High | D34: Pump | E34: Flow Control Failure Procedure Failure (Human Error) Utility Failure | F34: Equipment Rupture | G34: Flammable Release Toxic Release Physical Explosion Business Loss
B35: Relief Device Failure | C35: Flow-Loss of Containment | D35: All | E35: Mechanical Failure | F35: Relief Hole Size Leak | G35: Flammable Release Toxic Release Chemical Exposure
B36: Rotating Equipment Damage | C36: Speed-High | D36: All Rotating Equipment | E36: Speed Control Failure Mechanical Failure | F36: Equipment Rupture Equipment Damage | G36: Flammable Release Toxic Release Flash Fire or Fireball Physical Explosion Business Loss
B37: Seal Leak | C37: Flow-Loss of Containment | D37: Compressor or Blower Pump, Turbine or Gas Expander Stirred Reactor/Crystallizer | E37: Mechanical Seal Failure Utility Failure Procedure Failure (Human Error) | F37: Mechanical Seal Hole Size Leak | G37: Flammable Release Toxic Release Chemical Exposure
B38: Tube Failure | C38: Flow-Loss of Containment | D38: Heat Exchanger | E38: Heat Exchanger Tube Failure | F38: Tube Hole Size Leak | G38: Flammable Release Toxic Release Business Loss
B39: Uncontrolled Reaction | C39: Reaction-High Rate Temperature-High Composition-Wrong | D39: All | E39: Flow Control Failure Temperature Control Failure | F39: Relief Venting Equipment Rupture | G39: Flammable Release Toxic Release Flash Fire or Fireball Physical Explosion Business Loss
B40: Uncontrolled Reaction - Incompatible Materials | C40: Reaction-Wrong Reaction | D40: All | E40: Addition of Wrong Recipe (Human Error) Addition of Wrong Material (Human Error) | F40: Equipment Rupture | G40: Flammable Release Toxic Release Flash Fire or Fireball Physical Explosion Business Loss
B41: Vacuum Damage | C41: Pressure-Low | D41: All | E41: Pressure Control Failure Mechanical Failure | F41: Full-Bore Leak Equipment Damage | G41: Flammable Release Toxic Release Business Loss
B42: *Each Loss Event represents separate Scenarios **Where Piping included with Pump ***Equipment Failure represents total loss of containment without Physical Explosion
B46: Go to Top | D46: Example Listing of scenario groups for Common Fired Equipment
B47: Scenario or Hazard Category | C47: Parameter/ Deviation | D47: Applicable Equipment | E47: Initiating Events (Partial List) | F47: Loss Event* | G47: Incident Outcome | I47: Notes:
B48: Accumulation of Untreated Vent or Waste | C48: Flow-High | D48: Fired Equipment - Incinerator or TTU Vapor Quench | E48: Flow Control Failure | F48: Vent Release | G48: Flammable Release Toxic Release | I48: The initiating cause for "flash-back of vent to fired equipment" occurs in the fired equipment unit while the loss event may occur in any interconnected equipment containing combustible vapor or dust.
B49: Flash Back of Vent to Fired Equipment | C49: Composition-Wrong Concentration | D49: All Interconnected Equipment | E49: Flow Control Failure Pressure Control Failure Procedure Failure (Human Error) | F49: Equipment Rupture Equipment Damage | G49: Flash Fire or Fireball Physical Explosion Business Loss
B50: Fuel Accumulation during Light Off | C50: Flow-High | D50: Fired Equipment - Combustion Unit Fired Equipment - Fire Tube Unit Fired Equipment - Incinerator or TTU | E50: Flow Control Failure Mechanical Failure (Damper or Blower) | F50: Equipment Rupture Equipment Damage | G50: Flash Fire or Fireball Physical Explosion Business Loss
B51: Fuel Accumulation during Operation | C51: Flow-High | D51: Fired Equipment - Combustion Unit Fired Equipment - Fire Tube Unit Fired Equipment - Incinerator or TTU | E51: Flow Control Failure Mechanical Failure (Damper or Blower) | F51: Equipment Rupture Equipment Damage | G51: Flash Fire or Fireball Physical Explosion Business Loss
B52: Fuel Accumulation while Down | C52: Flow-High | D52: Fired Equipment - Combustion Unit Fired Equipment - Fire Tube Unit Fired Equipment - Incinerator or TTU | E52: Flow Control Failure Procedure Failure (Human Error) | F52: Vent Release Equipment Rupture Equipment Damage | G52: Flash Fire or Fireball Physical Explosion Business Loss
B53: High Fuel Flow or Energy Content | C53: Flow-High | D53: Fired Equipment - Combustion Unit Fired Equipment - Fire Tube Unit Fired Equipment - Incinerator or TTU | E53: Flow Control Failure | F53: Equipment Damage | G53: Flash Fire or Fireball Physical Explosion Business Loss
B54: High Temperature Failure | C54: Temperature-High | D54: Vapor Quench | E54: Flow Control Failure | F54: Equipment Failure | G54: Toxic Release Physical Explosion Business Loss
B55: Liquid in Vapor Feed | C55: Level-High | D55: Compressor or Blower Turbine or Gas Expander | E55: Level Control Failure | F55: Flaming Liquid Release | G55: Chemical Exposure
B56: Loss of Flow or Level - Fired Equipment | C56: Level-Low | D56: Fired Equipment-Process Heater | E56: Flow Control Failure Level Control Failure Pump Failure | F56: Equipment Failure*** | G56: Flammable Release Toxic Release
B57: Loss of Pilot or Ignition | C57: Composition-Wrong Concentration | D57: Fired Equipment-Flare | E57: Flow Control Failure Mechanical Failure (Ignitor) | F57: Vent Release | G57: Flammable Release Toxic Release
B58: Loss of Vacuum - Thermal Oxidizer | C58: Pressure-Low | D58: Fired Equipment-Incinerator or TTU | E58: Pressure Control Failure Mechanical Failure (Blower) | F58: Vent Release | G58: Flammable Release Toxic Release
B59: Plugged or Frozen Vent Line | C59: Flow-No | D59: Fired Equipment-Flare | E59: Temperature Control Failure Utility Failure | F59: Equipment Damage | G59: Business Loss
B60: *Each Loss Event represents separate Scenarios
B64: Go to Top | D64: Example Listing of scenario groups for Common Dust Handling Equipment
B65: Scenario or Hazard Category | C65: Parameter/ Deviation | D65: Applicable Equipment | E65: Initiating Events (Partial List) | F65: Loss Event* | G65: Incident Outcome | I65: Notes:
B66: Connection Failure | C66: Flow-Loss of Containment | D66: All Dust Handling Equipment | E66: Boot or Flex Hose Failure (Solids) | F66: Gasket Leak Solids Spill | G66: Flash Fire or Fireball Chemical Exposure | I66: Rotating Equipment includes Blenders, Mills, Grinders, Screw Conveyors, Air Classifiers, and Agitated Dryers or Agitated Vessels. These types of equipment (in addition to Bucket Elevators) operate with internal dust clouds, may have rotating parts, and prone to solids build-up or tramp metal issues. If the maximum ignition energy from the source can not exceed the dust MIE, the scenario may not be credible. Human Discharge (up to 30 mJ), Propagating Brush discharge (up to 1000 mJ) associated with flowing material, Conical Pile or Bulking Brush Discharge (20 mJ for large volumes to 1 for piles > 1 m3 ) versus very high energy for mechanical sparks involving high speed rotating equipment > 10 m/sec tip speed. Probability of Ignition Probability of Ignition increases for high-speed rotating equipment or fluidized equipment due to dust concentration in the combustible range and mechanical sparks from striking tramp metal or grinder/mill media. Probability of Ignition increases with mix of dust and pellets, depth of solids (conical brush), solids velocity (bulking brush or propagating brush), non-conductive sections of conveyors for viewing, and non-conductive hoses or flexible connections. (propagating brush). Probability of Ignition increases with decreasing minimum ignition energy including small particles and/or hybrid mixtures. Loss of Grounding or Bonding includes inadequate Human Grounding, improper use of non-conductive components, non-conductive build-up on equipment surfaces, in addition to physical loss of ground connections (including hoses and bulk bags) or cage failure in dust collectors. Addition of Wrong Material may include changes in moisture or particle size (which can impact MIE or cause material build-up/strain on rotating equipment) in addition to chemical contamination which may lead to uncontrolled reaction. The Initiating Events for “Propagation of Flame or Burning Ember” and “Dust Accumulation in Process Area” are results of evaluation for other LOPA Scenarios (possibly involving upstream equipment items and Domino Effect). The Initiating Event frequency is estimated as the summation of frequencies for all contributing scenarios rather than simple Cause-Consequence LOPA.
B67: Dust Accumulation in Process Area | C67: Flow-Loss of Containment | D67: All Solids Handling Equipment | E67: Any scenario that could dislodge accumulated dust (explosion within nearby equipment, etc.) | F67: Secondary Dust Release | G67: Building Explosion
B68: Excessive Heat Input - Heat Transfer | C68: Temperature-High Pressure-High Heat Input-High | D68: All with Heat Transfer Capability (such as Dryer) | E68: Temperature Control Failure Residence Time Failure (Solids) Feed rate Control Failure | F68: Internal Dust Explosion Equipment Damage Smoldering Particles | G68: Fireball Physical Explosion Business Loss
B69: Excessive Heat Input - Mechanical or Frictional | C69: Temperature-High Pressure-High Heat Input-High | D69: All with Mixing, Fluid Movement, or Electric Heating | E69: Bearing or Seal Failure Mechanical Failure Speed Control Failure | F69: Internal Dust Explosion Equipment Damage Smoldering Particles | G69: Fireball Physical Explosion Business Loss
B70: Ignitable Headspace | C70: Composition-Wrong Concentration Electrostatic Charge-High Electrical Conductivity-Low | D70: All | E70: Flow Control Failure Failure of Bonding or Grounding Particle Size Control Failure (Solids) Wrong Type or Damaged Bag, Pak or Drum (Solids) Improper Changing Dust Collector Bag or Screen (Solids) | F70: Internal Dust Explosion Equipment Damage Smoldering Particles | G70: Fireball Physical Explosion Business Loss
B71: Introduction of Foreign Material | C71: Composition-Contaminants | D71: Rotating Equipment Mechanical Conveyor (Solids) | E71: Mechanical Failure Procedure Failure (Human Error) | F71: Internal Dust Explosion Equipment Damage Smoldering Particles | G71: Fireball Physical Explosion Business Loss
B72: Physical Damage or Puncture | C72: Flow-Loss of Containment | D72: Drum/IBC Handling | E72: Procedure Failure (Human Error) | F72: Solids Spill | G72: Chemical Exposure Primary Dust Explosion
B73: Pressure Damage | C73: Pressure-High | D73: All Dust Handling Equipment | E73: Pressure Control Failure Regulator Failure | F73: Solids Spill Equipment Rupture | G73: Chemical Exposure Primary Dust Explosion
B74: Propagation of Flame or Burning Ember | C74: Composition-Foreign | D74: All Dust Handling Equipment | E74: Any upstream scenario resulting in explosion or smoldering particles (Solids) | F74: Equipment Rupture | G74: Fireball Physical Explosion Business Loss
B75: Rotating Equipment Damage | C75: Speed-High | D75: All Rotating Equipment | E75: Speed Control Failure Mechanical Failure | F75: Internal Dust Explosion Equipment Damage Smoldering Particles | G75: Fireball Physical Explosion Business Loss
B76: Uncontrolled Reaction | C76: Reaction-High Rate Temperature-High Composition-Wrong | D76: All | E76: Flow Control Failure Temperature Control Failure | F76: Internal Dust Explosion Equipment Damage Smoldering Particles | G76: Fireball Physical Explosion Business Loss
B77: Uncontrolled Reaction - Incompatible Materials | C77: Reaction-Wrong Reaction | D77: All | E77: Addition of Wrong Recipe (Human Error) Addition of Wrong Material (Human Error) | F77: Internal Dust Explosion Equipment Damage Smoldering Particles | G77: Fireball Physical Explosion Business Loss
B78: Vacuum Damage | C78: Pressure-Low | D78: All | E78: Pressure Control Failure Mechanical Failure | F78: Solids Spill Equipment Damage | G78: Chemical Exposure Primary Dust Explosion
B79: *Each Loss Event represents separate Scenarios

Sheet Source Models
E2: SOURCE MODELS INPUT INFORMATION | M2: ESTIMATED VAPOR RELEASE RATE | T2: LIQUID RELEASE - ESTIMATED FLASH FRACTION | AB2: Conversion Factors
D3: Required Inputs are Shaded "Yellow" | AC3: Conversion Table | AF3: VaporList | AH3: Chemical Properties:
L4: Hole Size (equation 12-4): | T4: Flash Fraction (equation 12-24), Fv = CS ( T-TB ) / DHV | X4: =" = ( "&ROUND(H33,2)&" ) ( "&H17&" - "&H29&" ) / ( "&ROUND(H34,1)&" )" -> = ( 0 ) ( 0 - 0 ) / ( 0 ) | AB4: =IF(F18<>"",VLOOKUP(F18,Conversion_Table,2,0),1) -> 1 | AC4: mm | AD4: 0.001 | AF4: Hole Size | AH4: Mol Weight | AI4: =IF(Chemical="","",VLOOKUP(Chemical,Chemical_Table,COLUMN('Chemical Table'!C1),FALSE)) -> 
B5: STEP 1 - Select Type of Release | L5: V = 23 cd d2 P0 { [ (PA/P0)1.429- (PA/P0)1.714] Mw / T }1/2 based on 1.4 isentropic exponent | T5: Fv = | U5: =IF(AND(E5<>"Heat with Vaporization",$H$27="Liquid"),IF(H34>0,IF(H17>H29,IF(H33*(H17-H29)/H34<0.999999,ROUND(H33*(H17-H29)/H34,3),0.999999),0.000001),0.000001),0) -> 0 | X5: Initial Fraction Vapor = | Y5: =IF(OR(E5="",E5="Heat with Vaporization",H27="Vapor",U5=0),0,IF(E5="Equipment Rupture",U5*H19/W70,U5*IF(E5="Short Pipe-Flashing Liquid",M41,IF(E5="Specified Rate",M45,M33))/W64)) -> 0 | AB5: =IF(F19<>"",VLOOKUP(F19,Conversion_Table,2,0),1) -> 1 | AC5: cm | AD5: 0.01 | AF5: Specified Rate
E6: =IF(H27="","Options for Type of Release will Change Depending on Physical State from Step 3","") -> Options for Type of Release will Change Depending on Physical State from Step 3 | L6: PA / P0 = | M6: =IF(101.3/(H18+101.3)<0.528,0.528,ROUND(101.3/(H18+101.3),3)) -> 1 | N6: =IF(101.3/(H18+101.3)<0.528," limited to 0.528","") ->  | P6: Note: PA = 101.3 kPa | AB6: =IF(F31<>"",VLOOKUP(F31,Conversion_Table,2,0),1) -> 1 | AC6: m | AD6: 1 | AF6: 10 Minute Release | AH6: Estimated Boiling Pt | AI6: =IF(Chemical="","",ROUND(AI14/AI13+AI15-273.15,1)) ->  | AJ6: C
E7: =IF(H27="","",IF(AND(H27="Liquid",H18>=50,H31/(101.325+H18)>0.9,E5="Hole Size"),"Consider Release Type as 'Short Pipe-Flashing Liquid' for Pipe or Hose Failure Cases",IF(AND(H27="Liquid",H18>=50,H31/(101.325+H18)<0.9,E5="Short Pipe-Flashing Liquid"),"Release Temperature Needs to be Much Higher than the Normal Boiling Point to be Considered 'Flashing Liquid'",""""))) ->  | L7: =" V = 23 "&"( "&H12&" )"&" ( "&ROUND(H11,3)&" )^2 "&" ( "&ROUND(101.3+H18,2)&" ) { ( "&ROUND(M6,3)&" )^1.429 - ( "&ROUND(M6,3)&" )^1.714 } ( "&H28&" ) / ( "&H17+273.15&" )}^1/2 =" -> V = 23 ( 0.61 ) ( 0 )^2 ( 101.3 ) { ( 1 )^1.429 - ( 1 )^1.714 } ( 0 ) / ( 273.15 )}^1/2 = | AB7: =IF(F32<>"",VLOOKUP(F32,Conversion_Table,2,0),1) -> 1 | AC7: in | AD7: 0.0254 | AF7: Equipment Rupture | AH7: ="Chemical Properties at Release Temperature of "&H17&" C" -> Chemical Properties at Release Temperature of 0 C
B8: STEP 2 - Enter Required Release Information | L8: V = | M8: =IF(AND($H$27="Vapor",$E$5="Hole Size"),ROUND(23*H12*H11^2*(101.3+H18)*((M6^1.429-M6^1.714)*H28/(273.15+H17))^0.5,3-LOG10(23*H12*H11^2*(101.3+H18)*((M6^1.429-M6^1.714)*H28/(273.15+H17))^0.5)),0) -> 0 | N8: kg/sec | O8: ="- or -" -> - or - | P8: =IF(M8>0,ROUND(132*M8,2-LOG10(132*M8)),0) -> 0 | Q8: lb/min | T8: LIQUID RELEASE - ESTIMATED AEROSOL FRACTION | AB8: =IF(F33<>"",VLOOKUP(F33,Conversion_Table,2,0),1) -> 1 | AC8: ft | AD8: 0.3048 | AH8: Vapor Pressure, Psat | AI8: =IF(Chemical="",0,ROUND(101.325*EXP(AI13-AI14/(H17+273.15-AI15)),1)) -> 0 | AJ8: kPa absolute
A9: Input Units may be changed - Input Values in "blue" will be converted to appropriate equation units | K9: 1 hr Release = | M9: =IF(E$19="",ROUND(M8*3600,1),IF(M8*3600<H$19,ROUND(M8*3600,1),H$19)) -> 0 | N9: kg | O9: ="- or -" -> - or - | P9: =ROUND(2.2*M9,1) -> 0 | Q9: lb | AB9: =IF(F34<>"",VLOOKUP(F34,Conversion_Table,2,0),1) -> 1 | AC9: liter | AD9: 0.001 | AF9: LiquidList | AH9: Liquid Density, rL | AI9: =IF(Chemical="",0,IF(1000*(AI17-AI18*H17)>2*P38,ROUND(1000*(AI17-AI18*H17),1),2*P38)) -> 0 | AJ9: kg/cu m
B10: Release Inputs: | E10: Input Value | F10: Input Units | H10: Equation Input | I10: Equation Units | AB10: =IF(F39<>"",VLOOKUP(F39,Conversion_Table,2,0),1) -> 1 | AC10: gal | AD10: 0.003785412 | AF10: Hole Size | AH10: Liquid Heat Capacity, CS | AI10: =IF(Chemical="",0,ROUND(4.1868*(AI20+AI21*H17),3)) -> 0 | AJ10: kJ/kg C
C11: Hole Size, d | H11: =IF(AND($H$27="Liquid",H14>0,H18>0,E11=""),AF21,E11*AB14) -> 0 | I11: m | L11: Specified Rate: | T11: Selected Liquid Release Rate, L = | W11: =IF(E5="Short Pipe-Flashing Liquid",M41,IF(E5="Specified Rate",M45,IF(E5="Equipment Rupture",0,M33))) -> 0 | X11: kg/sec | AB11: =IF(F41<>"",VLOOKUP(F41,Conversion_Table,2,0),1) -> 1 | AC11: cu ft | AD11: 0.02831685 | AF11: Short Pipe-Flashing Liquid | AH11: Heat of Vaporization, DHV | AI11: =IF(Chemical="",0,IF(4.1868*(AI23-AI24*H17-AI25*H17*H17)>50,ROUND(4.1868*(AI23-AI24*H17-AI25*H17*H17),1),50)) -> 0 | AJ11: kJ/kg
C12: Coefficient cd (typically Square Edged Hole) | E12: Sharp- Edged Hole | H12: =IF(E12="Rounded Nozzle",1,IF(E12="Short Pipe L/D<3",0.81,0.61)) -> 0.61 | I12: dimensionless | L12: V = | M12: =IF(AND($H$27="Vapor",$E$5="Specified Rate"),H14,0) -> 0 | N12: kg/sec | O12: ="- or -" -> - or - | P12: =IF(M12>0,ROUND(132*M12,2-LOG10(132*M12)),0) -> 0 | Q12: lb/min | AB12: =IF(F42<>"",VLOOKUP(F42,Conversion_Table,2,0),1) -> 1 | AC12: cu m | AD12: 1 | AF12: Heat with Vaporization | AJ12: Alternate VP
C13: Heat Input Rate, q | H13: =E13*AB15 -> 0 | I13: kWatt | K13: 1 hr Release = | M13: =IF(E$19="",ROUND(M12*3600,1),IF(M12*3600<H$19,ROUND(M12*3600,1),H$19)) -> 0 | N13: kg | O13: ="- or -" -> - or - | P13: =ROUND(2.2*M13,1) -> 0 | Q13: lb | T13: Flashing Fluid Density, r' = 1 / [ Fv / rV + ( 1 - Fv ) / rL ] = | AB13: =IF(F43<>"",VLOOKUP(F43,Conversion_Table,2,0),1) -> 1 | AC13: sq m | AD13: 1 | AF13: Specified Rate | AH13: Vapor Pressure A | AI13: =VLOOKUP(Chemical,Chemical_Table,COLUMN('Chemical Table'!AE1),FALSE) ->  | AJ13: =AJ14/(H29+273.15) -> 0
C14: Specified Rate (at either specified Hole | H14: =ROUND(IF(AND(E19>0,$E$5="10 Minute Release"),H19/600,E14*AB16),4) -> 0 | I14: kg/sec | W14: =IF(E5="Short Pipe-Flashing Liquid","1 / [ "&ROUND(U5,3)&" / "&P38&" + ( 1 - "&ROUND(U5,3)&" ) / "&H32&" ] =","") ->  | X14: =IF($H$27="Liquid",IF(OR(H32=0,P38=0,E5<>"Short Pipe-Flashing Liquid"),H32,ROUND(1/(U5/P38+(1-U5)/H32),1)),0) -> 0 | Y14: kg/m3 | AB14: =IF(F11<>"",VLOOKUP(F11,Conversion_Table,2,0),1) -> 1 | AC14: sq ft | AD14: 0.09290304 | AF14: 10 Minute Release | AH14: Vapor Pressure B | AI14: =VLOOKUP(Chemical,Chemical_Table,COLUMN('Chemical Table'!AF1),FALSE) ->  | AJ14: =H34*H28/8.3145 -> 0
C15: Size or Release Pressure) | D15: =IF(AND($H$27="Liquid",H14>0,H18>0,H11>0,ABS(E18-AF24)>0.1),"Mismatch in Hole Size and Pressure Inputs, Equivalent Release Pressure = "&ROUND(AF24,3)&" kPa",IF(AND($H$27="Liquid",H14>0,H18=0,H11>0)," Equivalent Release Pressure = "&ROUND(AF24,3)&" kPa",IF(AND($H$27="Liquid",H14>0,H18>0,H11>0)," Equivalent Hole Diameter at Specified Liquid Rate = "&ROUND(AF21,3)&" m",0))) -> 0 | L15: Heat Input with Vaporization (equations 12-12 to 12-15): | AB15: =IF(F13<>"",VLOOKUP(F13,Conversion_Table,2,0),1) -> 1 | AC15: atm | AD15: 101.325 | AF15: Equipment Rupture | AH15: Vapor Pressure C | AI15: =VLOOKUP(Chemical,Chemical_Table,COLUMN('Chemical Table'!AG1),FALSE) ->  | AJ15: 0
B16: Process Inputs: | E16: Input Value | F16: Input Units | H16: Equation Input | I16: Equation Units | L16: V = q / DHV | M16: =" = ( "&ROUND(H13,2)&" ) / ( "&ROUND(H34,2)&" )" -> = ( 0 ) / ( 0 ) | T16: Liquid or Two-Phase Release Velocity (equation 12-8), vd = 1.27 L / [ d2 cd r' ] = | AB16: =IF(F14<>"",VLOOKUP(F14,Conversion_Table,2,0),1) -> 1 | AC16: bar | AD16: 100
C17: Release Temperature, T | H17: =IF(F17="F",ROUND((E17-32)/1.8,1),E17) -> 0 | I17: C | L17: V = | M17: =IF(AND($E$5="Heat with Vaporization",H34>0),ROUND(H13/H34,3-LOG10(H13/H34)),0) -> 0 | N17: kg/sec | O17: ="- or -" -> - or - | P17: =IF(M17>0,ROUND(132*M17,2-LOG10(132*M17)),0) -> 0 | Q17: lb/min | V17: or vd = 1.524 [ 1000 (P0 - PA) / r' + 9.8 h' ]0.5 = | AC17: kPa | AD17: 1 | AF17: Liquid or two-phase release velocity for hole size | AH17: Liquid Density A | AI17: =VLOOKUP(Chemical,Chemical_Table,COLUMN('Chemical Table'!X1),FALSE) -> 
C18: Release Pressure (gauge), P0 - PA | H18: =E18*AB4 -> 0 | I18: kPa gauge | K18: 1 hr Release = | M18: =IF(M17="","",IF(E$19="",ROUND(M17*3600,1),IF(M17*3600<H$19,ROUND(M17*3600,1),H$19))) -> 0 | N18: kg | O18: ="- or -" -> - or - | P18: =IF(M18="","",ROUND(2.2*M18,1)) -> 0 | Q18: lb | W18: =IF(E5="Equipment Rupture","1.524 [ 1000 ( "&ROUND(H18,1)&" ) / "&ROUND(X14,1)&" + 9.8 ( "&H41&" ) ]^0.5 =","1.27 ( "&W11&" ) / [ ( "&ROUND(H11,3)&" )^2 ( "&IF(E5="Short Pipe-Flashing Liquid",1,H12)&" ) ( "&X14&" ) ] =") -> 1.27 ( 0 ) / [ ( 0 )^2 ( 0.61 ) ( 0 ) ] = | X18: =IF(OR(AND(H11=0,$E$5<>"10 Minute Release",$E$5<>"Equipment Rupture"),H27<>"Liquid"),0,IF(H11="",0,IF(OR($E$5="10 Minute Release",$E$5="Equipment Rupture"),AF18,1.27*W11/(IF(E5="Short Pipe-Flashing Liquid",1,H12)*H11^2*X14)))) -> 0 | Y18: m/sec | AC18: psi | AD18: 6.894756664 | AF18: =IF(H27="Liquid",1.524*(1000*H18/X14+9.8*H41)^0.5,0) -> 0 | AH18: Liquid Density B | AI18: =VLOOKUP(Chemical,Chemical_Table,COLUMN('Chemical Table'!Y1),FALSE) -> 
C19: Total Inventory (Leave Blank for 1 hour leak) | H19: =IF(E19="","",ROUND(E19*AB5,2)) ->  | I19: kg | AC19: mmHg | AD19: 0.1333234305
D20: =IF(E5="Equipment Rupture","Inventory Must be Entered for Equipment Rupture","") ->  | E20: =IF(AND(H17<20,H29>25),"Release of very cold liquid, consider increasing 'apparent' Release Temperature to near ambient","") ->  | L20: 10 Minute Release: | T20: Estimated Droplet Diameter (equation 12-26), dd = 170 (1 - FV) / vd2 = | AC20: kWatt | AD20: 1 | AF20: Equivalent Hole Size for Specified Rate | AH20: Liquid Heat Capacity A | AI20: =VLOOKUP(Chemical,Chemical_Table,COLUMN('Chemical Table'!Z1),FALSE) -> 
B21: STEP 3 - Enter Chemical Properties (or Select Chemical Name from Pic List) | L21: V = | M21: =IF(AND(H27="Vapor",E5="10 Minute Release"),ROUND(H19/600,3-LOG10(H19/600)),0) -> 0 | N21: kg/sec | O21: ="- or -" -> - or - | P21: =IF(M21>0,ROUND(132*M21,2-LOG10(132*M21)),0) -> 0 | Q21: lb/min | W21: ="170 ( 1 - "&ROUND(U5,3)&" ) / "&ROUND(X18,1)&"^2 =" -> 170 ( 1 - 0 ) / 0^2 = | X21: =IF(OR(X18<0.1,H27<>"Liquid"),0,IF(170*(1-U5)/X18^2<10,170*(1-U5)/X18^2,10)) -> 0 | Y21: mm | AC21: kcal/sec | AD21: 4.1868 | AF21: =IF(AND($H$27="Liquid",H18>0),(H14/(1.2*H12*(H32*(1000*H18+9.8*H32*H41))^0.5))^0.5,0) -> 0 | AH21: Liquid Heat Capacity B | AI21: =VLOOKUP(Chemical,Chemical_Table,COLUMN('Chemical Table'!AA1),FALSE) -> 
I22: Cas No. | K22: 1 hr Release = | M22: =IF(AND(H27="Vapor",E5="10 Minute Release"),H19,0) -> 0 | N22: kg | O22: ="- or -" -> - or - | P22: =IF(M22="","",ROUND(2.2*M22,1)) -> 0 | Q22: lb | X22: =IF(H27="Vapor",0,IF(AND(H27="Liquid",X18<4),"Limited to 10 mm droplet diameter",IF(170*(1-U5)/X18^2>10,"Limited to 10 mm droplet diameter",""))) ->  | AC22: HP | AD22: 0.7457
C23: Chemical Name | I23: =IF(Chemical="","",VLOOKUP(Chemical,Chemical_Table,COLUMN('Chemical Table'!B1),FALSE)) ->  | T23: Liquid Spray Distance (equation 12-7), s = vd t = 0.45 vd h1/2 = | AC23: BTU/hr | AD23: 0.00029281 | AF23: Equivalent Pressure for Specified Rate | AH23: Heat of Vaporization A | AI23: =VLOOKUP(Chemical,Chemical_Table,COLUMN('Chemical Table'!AB1),FALSE) -> 
L24: Equipment Rupture: | V24: ="0.45 ( "&ROUND(X18,2)&" ) ( "&H43&" )^0.5 = " -> 0.45 ( 0 ) ( 1 )^0.5 = | W24: =IF(X18>0,0.45*X18*H43^0.5,"") ->  | X24: m - or - | Y24: =IF(W24<>"",3.28*W24,"") ->  | Z24: ft | AC24: kcal/min | AD24: 251.208 | AF24: =IF(AND($H$27="Liquid",H11>0),((E14/(1.2*H12*H11^2))^2-9.8*H32*H41)/(1000*H32),0) -> 0 | AH24: Heat of Vaporization B | AI24: =VLOOKUP(Chemical,Chemical_Table,COLUMN('Chemical Table'!AC1),FALSE) -> 
E25: (Leave Input Value Blank to accept Chemical Data Table Values) | L25: Total Release = | M25: =IF(OR(D27<>"Vapor",E5<>"Equipment Rupture"),0,IF(E$19="",ROUND(0.12*H39*H28*(101.3+H18)/(273.15+H17),2),H19)) -> 0 | N25: kg | O25: ="- or -" -> - or - | P25: =ROUND(2.2*M25,1) -> 0 | Q25: lb | AC25: kwatt /sq m C | AD25: 1 | AH25: Heat of Vaporization C | AI25: =VLOOKUP(Chemical,Chemical_Table,COLUMN('Chemical Table'!AD1),FALSE) -> 
D26: Data Table Value | E26: Input Value | F26: Input Units | H26: Equation Input | I26: Equation Units | T26: Aerosol Temperature (equation 12-28): | AC26: kcal/hr sq m C | AD26: 0.001162 | AF26: total liquid release quantity
C27: Physical State | D27: =IF(Chemical="","",IF(H31>H18+101.325,"Vapor","Liquid")) ->  | H27: =IF(E27="",D27,E27) ->  | T27: T' = { 7.9 vd2 h'0.5 Ud TAmb / [rL (1-FV) ] + CS T - FD DHV } / { 7.9 vd2 h'0.5 Ud / [ rL (1-FV) ] + CS } | AC27: BTU/hr sq ft F | AD27: 0.00567826 | AF27: =IF(E5="Short Pipe-Flashing Liquid",M42,IF(E5="Specified Rate",M46,IF(E5="Equipment Rupture",M49,M34))) -> 0 | AH27: Ambient Temperature | AI27: 25 | AJ27: C
C28: Molecular Weight, Mw | D28: =AI4 ->  | H28: =IF(AND(D28="",E28=""),0,IF(E28="",D28,E28)) -> 0 | M28: ESTIMATED LIQUID RELEASE RATE | V28: Aerosol Temperature, T' = | W28: =IF($H$27="Liquid",ROUND(AI48,2),0) -> 0 | X28: =" C ( "&W28+273.15&" K )" -> C ( 273.15 K ) | AC28: kg/cu m | AD28: 1 | AH28: Daytime Solar Radiation | AI28: 0.5 | AJ28: kW/m2
C29: Normal Boiling Point, TB | D29: =IF(Chemical="","",IF(F29="F",ROUND((1.8*AI6+32),1),AI6)) ->  | H29: =IF(AND(D29="",E29=""),0,IF(F29="F",ROUND((IF(E29="",D29,E29)-32)/1.8,1),IF(E29="",D29,E29))) -> 0 | I29: C | V29: Vapor Pressure at Aerosol Temp, Psat = | W29: =IF($H$27="Liquid",AI49,0) -> 0 | X29: kPa | AC29: g/ml | AD29: 1000 | AH29: Heat Loss Coefficient, UD | AI29: =IF(AI27>H29,0.2,0.02) -> 0.2 | AJ29: kW/m2 K
B30: Liquid Properties at Release Temperature: | L30: Hole Size - Subcooled Liquid (equation 12-5): | AC30: g/liter | AD30: 1 | AH30: Heat Loss Coefficient, UGnd | AI30: =IF(AI27>H29,0.2,0.02) -> 0.2 | AJ30: kW/m2 K
C31: Vapor Pressure, Psat | D31: =IF(F31<>"",ROUND(AI8/AB6,4),AI8) -> 0 | H31: =IF(AND(E31="",D31=""),0,IF(E31="",D31*AB6,E31*AB6)) -> 0 | I31: kPa absolute | L31: L = 1.1 cd d2 { rL [ 1000 (P0 - PA) + 9.8 rL h' ] }1/2 Bernoulli equation | T31: Aerosol Fraction (equation 12-27), FD = 0.043 vd2 Mw2/3 Psat h1/2 / [ rL T' ( 1 - Fv ) ] = | AC31: lb/cu ft | AD31: 16.01846
C32: Liquid Density, rL | D32: =IF(H27="Vapor","",IF(F32<>"",ROUND(AI9/AB7,3),AI9)) -> 0 | H32: =IF(AND(E32="",D32=""),0,IF(E32="",ROUND(D32*AB7,1),ROUND(E32*AB7,1))) -> 0 | I32: kg/cu m | L32: ="L = 1.1 "&"( "&H12&" )"&" ( "&ROUND(H11,3)&" )^2 "&" { ( "&H32&" ) { [ 1000 ( "&ROUND(H18,2)&" ) + 9.8 ( "&H32&" ) ( "&H41&" ) ] }^1/2 =" -> L = 1.1 ( 0.61 ) ( 0 )^2 { ( 0 ) { [ 1000 ( 0 ) + 9.8 ( 0 ) ( 0 ) ] }^1/2 = | T32: ="0.043 ( "&IF(X18>4,ROUND(X18,2),4)&" )^2 ( "&H28& " )^2/3 ( "&ROUND(W29,3)&" ) ( "&H43&" )^1/2 / [ "&H32&" ( 273.15 + "&W28&" ) ( 1 - "&ROUND(U5,3)&" ) ]" -> 0.043 ( 4 )^2 ( 0 )^2/3 ( 0 ) ( 1 )^1/2 / [ 0 ( 273.15 + 0 ) ( 1 - 0 ) ] | AC32: lb/gal | AD32: 119.83 | AH32: Aerosol Temperature - Trial and Error
C33: Liquid Heat Capacity, CS | D33: =IF(H27="Vapor","",IF(F33<>"",ROUND(AI10/AB8,3),AI10)) -> 0 | H33: =IF(AND(E33="",D33=""),0,IF(E33="",D33*AB8,E33*AB8)) -> 0 | I33: kJ/kg C | L33: L = | M33: =IF(AND(H27="Liquid",$E$5="10 Minute Release"),ROUND(H19/600,3-LOG(H19/600)),IF(AND($H$27="Liquid",$E$5="Hole Size",$E$18>0),ROUND(1.1*H12*H11^2*(H32*(1000*H18+9.8*H32*H41))^0.5,3-LOG10(1.1*H12*H11^2*(H32*(1000*H18+9.8*H32*H41))^0.5)),0)) -> 0 | N33: kg/sec | O33: ="- or -" -> - or - | P33: =IF(M33>0,ROUND(132*M33,2-LOG10(132*M33)),0) -> 0 | Q33: lb/min | T33: FD = | U33: =IF(X14=0,0,IF(U5<1,IF(0.043*IF(X18<4,4,X18)^2*H28^0.667*W29*H43^0.5/(H32*(273.15+W28)*(1-U5))>1,1,ROUND(0.043*IF(X18<4,4,X18)^2*H28^0.667*W29*H43^0.5/(H32*(273.15+W28)*(1-U5)),4)),0)) -> 0 | V33: =IF(X18<4," Limited to minimum droplet diameter of 10 mm or velocity of 4 m/sec","") -> Limited to minimum droplet diameter of 10 mm or velocity of 4 m/sec | AC33: kcal/kg C | AD33: 4.183998882 | AH33: Temperature - Trial 1 | AI33: =IF($H$27="Liquid",IF(H17<H29,H17,H29),0) -> 0 | AJ33: C
C34: Heat of Vaporization, DHV | D34: =IF(F34<>"",ROUND(AI11/AB9,1),AI11) -> 0 | H34: =IF(AND(E34="",D34=""),0,IF(E34="",D34*AB9,E34*AB9)) -> 0 | I34: kJ/kg | L34: 1 hr Release = | M34: =IF(E$19="",ROUND(M33*3600,1),IF(M33*3600<H$19,ROUND(M33*3600,1),H$19)) -> 0 | N34: kg | O34: ="- or -" -> - or - | P34: =ROUND(2.2*M34,1) -> 0 | Q34: lb | AC34: cal/g C | AD34: 4.183998882 | AH34: Vapor Pressure - Trial 1 | AI34: =IF($H$27="Liquid",IF(Chemical="",101.325*EXP(AJ$13-AJ$14/(AI33+273.15)),101.325*EXP(AI$13-AI$14/(AI33+273.15-AI$15))),0) -> 0 | AJ34: kPa
AC35: kJ/kg C | AD35: 1 | AH35: Aerosol Fraction - Trial 1 | AI35: =IF(X$14=0,0,IF(U$5<1,IF(0.043*IF(X$18<4,4,X$18)^2*H$28^0.667*AI34*H$43^0.5/(H$32*(273.15+AI33)*(1-U$5))>1,1,ROUND(0.043*IF(X$18<4,4,X$18)^2*H$28^0.667*AI34*H$43^0.5/(H$32*(273.15+AI33)*(1-U$5)),4)),0)) -> 0
B36: STEP 4 - Enter Equipment and Plant Layout Information | L36: Hole Size - Flashing Saturated Liquid (equation 12-6 for path length > 0.1 m): | T36: LIQUID RELEASE - ESTIMATED POOL EVAPORATION | AC36: J/g C | AD36: 1 | AH36: Temperature - Trial 2 | AI36: =(MIN(H$29,(7.9*X$18^2*H$43^0.5*AI$29*(AI$27+273.15)/(H$32*(1-U$5))+H$33*(H$17+273.15)-AI35*H$34)/(7.9*X$18^2*H$43^0.5*AI$29/(H$32*(1-U$5))+H$33)-273.15)+AI33)/2 ->  | AJ36: C
E37: Input Value | F37: Input Units | H37: Equation Input | I37: Equation Units | L37: Vapor Density (equation 10-16), | N37: rV = 0.12 P Mw / T as ideal gas at release pressure | AC37: BTU/lb F | AD37: 4.183998882 | AH37: Vapor Pressure - Trial 2 | AI37: =IF($H$27="Liquid",IF(Chemical="",101.325*EXP(AJ$13-AJ$14/(AI36+273.15)),101.325*EXP(AI$13-AI$14/(AI36+273.15-AI$15))),0) -> 0 | AJ37: kPa
C38: Equipment Location | G38: (Assumed Outdoor if Blank) | O38: =" = 0.12 ( "&ROUND(101.3+H18,1)&" ) ( "&H28&" ) / ( "&273.15+H17&" ) =" -> = 0.12 ( 101.3 ) ( 0 ) / ( 273.15 ) = | P38: =ROUND(0.12*(101.3+H18)*H28/(273.15+H17),2) -> 0 | Q38: Kg/m3 | AC38: kJ/kg | AD38: 1 | AH38: Aerosol Fraction - Trial 2 | AI38: =IF(X$14=0,0,IF(U$5<1,IF(0.043*IF(X$18<4,4,X$18)^2*H$28^0.667*AI37*H$43^0.5/(H$32*(273.15+AI36)*(1-U$5))>1,1,ROUND(0.043*IF(X$18<4,4,X$18)^2*H$28^0.667*AI37*H$43^0.5/(H$32*(273.15+AI36)*(1-U$5)),4)),0)) -> 0
C39: Equipment Volume, VEquip | H39: =E39*AB10 -> 0 | I39: cu m | L39: L = 25 d2 { DHV / [ ( 1 / rV ) - ( 1 / rL ) ] } / [ CS T ]1/2 | T39: Release Duration, tL = Inventory / L = | W39: =H19&" / "&W11&" = " -> / 0 = | X39: =IF(W11>0,IF(H19="",3600,IF(H19/W11>3600,3600,ROUND(H19/W11,2))),0) -> 0 | Y39: sec | AC39: cal/g | AD39: 4.183998882 | AH39: Temperature - Trial 3 | AI39: =(MIN(H$29,(7.9*X$18^2*H$43^0.5*AI$29*(AI$27+273.15)/(H$32*(1-U$5))+H$33*(H$17+273.15)-AI38*H$34)/(7.9*X$18^2*H$43^0.5*AI$29/(H$32*(1-U$5))+H$33)-273.15)+AI36)/2 ->  | AJ39: C
C40: Estimated Contained Mass (for Reference if volume and density entered) | H40: =H39*H32 -> 0 | I40: kg | L40: =" = 25 ( "&ROUND(H11,3)&" )^2 { ( "&ROUND(H34,1)&" ) / [ ( 1 / "&P38&" ) + ( 1 / "&H32&" ) ] } / [ ( "&ROUND(H33,2)&" ) ( "&273.15+H17&" ) ]^1/2 =" -> = 25 ( 0 )^2 { ( 0 ) / [ ( 1 / 0 ) + ( 1 / 0 ) ] } / [ ( 0 ) ( 273.15 ) ]^1/2 = | W40: =IF(AND(H19<>"",W11>0),IF(H19/W11>3600,"Release Duration Greater than 1 Hour - will be limited to 1 hour",""),"") ->  | AC40: J/g | AD40: 1 | AH40: Vapor Pressure - Trial 3 | AI40: =IF($H$27="Liquid",IF(Chemical="",101.325*EXP(AJ$13-AJ$14/(AI39+273.15)),101.325*EXP(AI$13-AI$14/(AI39+273.15-AI$15))),0) -> 0 | AJ40: kPa
C41: Liquid Height within Equipment, h' | H41: =E41*AB11 -> 0 | I41: m | L41: L = | M41: =IF($E$5="Short Pipe-Flashing Liquid",IF(OR(H29>H17,H32=0,H33=0),0,ROUND(25*H11^2*(H34/(1/P38-1/H32))/((H33*(273.15+H17))^0.5),3-LOG10(25*H11^2*(H34/(1/P38-1/H32))/((H33*(273.15+H17))^0.5)))),0) -> 0 | N41: kg/sec | O41: ="- or -" -> - or - | P41: =IF(M41>0,ROUND(132*M41,2),0) -> 0 | Q41: lb/min | T41: Estimated Liquid Rate to Pool, L' = L ( 1 - Fv ) ( 1 - FD ) = | AC41: kcal/kg | AD41: 4.183998882 | AH41: Aerosol Fraction - Trial 3 | AI41: =IF(X$14=0,0,IF(U$5<1,IF(0.043*IF(X$18<4,4,X$18)^2*H$28^0.667*AI40*H$43^0.5/(H$32*(273.15+AI39)*(1-U$5))>1,1,ROUND(0.043*IF(X$18<4,4,X$18)^2*H$28^0.667*AI40*H$43^0.5/(H$32*(273.15+AI39)*(1-U$5)),4)),0)) -> 0
C42: Diked Area (Leave Blank if No Dike) | H42: =IF(E42="","No Dike",ROUND(E42*AB12,3-LOG(E42*AB12))) -> No Dike | I42: sq m | L42: 1 hr Release = | M42: =IF(E$19="",ROUND(M41*3600,1),IF(M41*3600<H$19,ROUND(M41*3600,1),H$19)) -> 0 | N42: kg | O42: ="- or -" -> - or - | P42: =IF(M42="","",ROUND(2.2*M42,1)) -> 0 | Q42: lb | W42: =W11&" ( 1 - "&U5&" ) ( 1 - "&U33&" ) =" -> 0 ( 1 - 0 ) ( 1 - 0 ) = | X42: =IF(AND(W11>0,U33<1),ROUND(W11*(1-U5)*(1-U33),4),0) -> 0 | Y42: kg/sec | AC42: BTU/lb | AD42: 2.324443823 | AH42: Temperature - Trial 4 | AI42: =(MIN(H$29,(7.9*X$18^2*H$43^0.5*AI$29*(AI$27+273.15)/(H$32*(1-U$5))+H$33*(H$17+273.15)-AI41*H$34)/(7.9*X$18^2*H$43^0.5*AI$29/(H$32*(1-U$5))+H$33)-273.15)+AI39)/2 ->  | AJ42: C
C43: Leak Elevation above Surface, h | H43: =IF(E43="",1,E43*AB13) -> 1 | I43: m | AC43: kg/sec | AD43: 1 | AH43: Vapor Pressure - Trial 4 | AI43: =IF($H$27="Liquid",IF(Chemical="",101.325*EXP(AJ$13-AJ$14/(AI42+273.15)),101.325*EXP(AI$13-AI$14/(AI42+273.15-AI$15))),0) -> 0 | AJ43: kPa
C44: Outdoor Wind Speed | E44: 3 | F44: m/sec | H44: =IF(E44="",3,E44) -> 3 | I44: m/sec | L44: Specified Rate: | V44: Pool Temperature (equation 12-31): | AC44: kg/min | AD44: =1/60 -> 0.01666666667 | AH44: Aerosol Fraction - Trial 4 | AI44: =IF(X$14=0,0,IF(U$5<1,IF(0.043*IF(X$18<4,4,X$18)^2*H$28^0.667*AI43*H$43^0.5/(H$32*(273.15+AI42)*(1-U$5))>1,1,ROUND(0.043*IF(X$18<4,4,X$18)^2*H$28^0.667*AI43*H$43^0.5/(H$32*(273.15+AI42)*(1-U$5)),4)),0)) -> 0
L45: L = | M45: =IF(AND($H$27="Liquid",$E$5="Specified Rate"),H14,0) -> 0 | N45: kg/sec | O45: ="- or -" -> - or - | P45: =ROUND(132*M45,2) -> 0 | Q45: lb/min | T45: TP = { T' L' CS + AP ( S + UGnd TAmb - mP DHV )} / { L' CS + UGnd AP } | AC45: kg/hr | AD45: =1/3600 -> 0.0002777777778 | AH45: Temperature - Trial 5 | AI45: =(MIN(H$29,(7.9*X$18^2*H$43^0.5*AI$29*(AI$27+273.15)/(H$32*(1-U$5))+H$33*(H$17+273.15)-AI44*H$34)/(7.9*X$18^2*H$43^0.5*AI$29/(H$32*(1-U$5))+H$33)-273.15)+AI42)/2 ->  | AJ45: C
L46: 1 hr Release = | M46: =IF(E$19="",ROUND(M45*3600,1),IF(M45*3600<H$19,ROUND(M45*3600,1),H$19)) -> 0 | N46: kg | O46: ="- or -" -> - or - | P46: =ROUND(2.2*M46,1) -> 0 | Q46: lb | V46: Pool Temperature TP = | W46: =ROUND(AI74,2) -> 0 | X46: =" C ( "&W46+273.15&" K )" -> C ( 273.15 K ) | AC46: lb/sec | AD46: =1/2.2046226 -> 0.4535923745 | AH46: Vapor Pressure - Trial 5 | AI46: =IF($H$27="Liquid",IF(Chemical="",101.325*EXP(AJ$13-AJ$14/(AI45+273.15)),101.325*EXP(AI$13-AI$14/(AI45+273.15-AI$15))),0) -> 0 | AJ46: kPa
C47: Copyright © 2026 | V47: Vapor Pressure at Pool Temp, Psat = | W47: =IF(AI77=0,0,AI75) -> 0 | X47: kPa | AC47: lb/min | AD47: 0.0075599 | AH47: Aerosol Fraction - Trial 5 | AI47: =IF(X$14=0,0,IF(U$5<1,IF(0.043*IF(X$18<4,4,X$18)^2*H$28^0.667*AI46*H$43^0.5/(H$32*(273.15+AI45)*(1-U$5))>1,1,ROUND(0.043*IF(X$18<4,4,X$18)^2*H$28^0.667*AI46*H$43^0.5/(H$32*(273.15+AI45)*(1-U$5)),4)),0)) -> 0
C48: American Institute of Chemical Engineers | L48: Equipment Rupture: | W48: ="Daytime with Wind Speed ( "&E38&" Location ) =" -> Daytime with Wind Speed ( Location ) = | X48: =IF(E38="Indoor",0.1,H44) -> 3 | Y48: m/sec | AC48: lb/hr | AD48: 0.0001259983333 | AH48: Aerosol Temperature | AI48: =(MIN(H$29,(7.9*X$18^2*H$43^0.5*AI$29*(AI$27+273.15)/(H$32*(1-U$5))+H$33*(H$17+273.15)-AI47*H$34)/(7.9*X$18^2*H$43^0.5*AI$29/(H$32*(1-U$5))+H$33)-273.15)+AI45)/2 ->  | AJ48: C
L49: Total Release = | M49: =IF(AND(H27="Liquid",E5="Equipment Rupture"),IF(E$19="",ROUND(H39*H32,2),H19),0) -> 0 | N49: kg | O49: ="- or -" -> - or - | P49: =ROUND(2.2*M49,1) -> 0 | Q49: lb | AC49: kg | AD49: 1 | AH49: Vapor Press at Aerosol T | AI49: =IF($H$27="Liquid",IF(Chemical="",101.325*EXP(AJ$13-AJ$14/(AI48+273.15)),101.325*EXP(AI$13-AI$14/(AI48+273.15-AI$15))),0) -> 0 | AJ49: kPa
L50: Initial Vapor = | M50: =ROUND((U5+(1-U5)*U33)*M49,2) -> 0 | N50: kg | O50: ="- or -" -> - or - | P50: =IF(M50>0,ROUND(2.2*M50,2),0) -> 0 | Q50: lb | T50: Evaporation Rate (equation 12-32), mP = 0.0021 Mw2/3 u0.78 Psat / TP | AC50: lb | AD50: 0.4535924 | AH50: Aerosol Fraction | AI50: =IF(X$14=0,0,IF(U$5<1,IF(0.043*IF(X$18<4,4,X$18)^2*H$28^0.667*AI49*H$43^0.5/(H$32*(273.15+AI48)*(1-U$5))>1,1,ROUND(0.043*IF(X$18<4,4,X$18)^2*H$28^0.667*AI49*H$43^0.5/(H$32*(273.15+AI48)*(1-U$5)),4)),0)) -> 0
W51: ="0.0021 ( "&H28&" )^2/3 ( "&X48&" )^0.78 ( "&ROUND(W47,3)&" ) / ( 273.15 + "&W46&" ) = " -> 0.0021 ( 0 )^2/3 ( 3 )^0.78 ( 0 ) / ( 273.15 + 0 ) = | X51: =0.0021*H28^0.667*X48^0.78*W47/(273.15+W46) -> 0 | Y51: kg/sec m2 | AC51: sec | AD51: =1/60 -> 0.01666666667 | AH51: Error | AI51: =ABS(AI48-AI45) ->  | AJ51: C
AC52: min | AD52: 1
T53: Estimated Max Pool Area (equation 12-29), | Y53: AP = L' / [ rL / ( 100 tL ) + mP / 2 ] = | AC53: hr | AD53: 60 | AH53: Pool Temperature - Trial and Error
U54: or (Inventory - Initial Vapor) 100 / rL for Equipment Rupture | AC54: C/sec | AD54: =60 -> 60 | AH54: Pool Temperature - Trial 1 | AI54: =IF(AI48<AI33,AI48,AI33) ->  | AJ54: C
W55: =IF(E5="Equipment Rupture","( "&M49&" - "&M50&" ) 100 / "&H32&" = ",X42&" / [ "&H32&" / { 100 ( "&X39&" ) } + "&ROUND(X51,6)&" / 2 ] = ") -> 0 / [ 0 / { 100 ( 0 ) } + 0 / 2 ] = | X55: =IF(OR(H27<>"Liquid",AND(E5="Equipment Rupture",M50>=M49),AND(E5<>"Equipment Rupture",X42=0)),0,IF(AND(H32>0,OR(E5="Equipment Rupture",W11>0)),IF(E42="",IF(E5="Equipment Rupture",ROUND((M49-M50)*100/H32,2-LOG10(M49-M50)*100/H32),ROUND(X42/(H32/(100*X39)+X51/2),2-LOG10(X42/(H32/(100*X39)+X51/2)))),IF(H42>IF(E5="Equipment Rupture",(M49-M50)*100/H32,X42/(H32/(100*X39)+X51/2)),IF(E5="Equipment Rupture",ROUND((M49-M50)*100/H32,2-LOG10(M49-M50)*100/H32),ROUND(X42/(H32/(100*X39)+X51/2),2-LOG10(X42/(H32/(100*X39)+X51/2)))),H42)),0)) -> 0 | Y55: m2 | AC55: C/min | AD55: 1 | AH55: Vapor Pressure - Trial 1 | AI55: =IF($H$27="Liquid",IF(Chemical="",101.325*EXP(AJ$13-AJ$14/(AI54+273.15)),101.325*EXP(AI$13-AI$14/(AI54+273.15-AI$15))),0) -> 0 | AJ55: kPa
X56: =IF(X55=H42,"limited to dike area","") ->  | AC56: C/hr | AD56: =1/60 -> 0.01666666667 | AH56: Evaporation Rate - Trial 1 | AI56: =0.0021*H$28^0.667*X$48^0.78*AI55/(273.15+AI54) ->  | AJ56: kg/sec m2
T57: Pool Evaporation = mP AP | W57: ="= ( "&ROUND(X51,6)&" ) ( "&X55&" ) =" -> = ( 0 ) ( 0 ) = | X57: =IF(OR(AND(E5="Equipment Rupture",H27="Liquid"),X55*X51<X42),ROUND(X55*X51,2),X42) -> 0 | Y57: kg/sec | AC57: F/sec | AD57: =60/1.8 -> 33.33333333 | AH57: Pool Area - Trial 1 | AI57: =IF(OR(H$27<>"Liquid",AND(E$5="Equipment Rupture",M$50>=M$49),AND(E$5<>"Equipment Rupture",X$42=0)),0,IF(AND(H$32>0,OR(E$5="Equipment Rupture",W$11>0)),IF(E$42="",IF(E$5="Equipment Rupture",ROUND((M$49-M$50)*100/H$32,2-LOG10(M$49-M$50)*100/H$32),ROUND(X$42/(H$32/(100*X$39)+AI56/2),2-LOG10(X$42/(H$32/(100*X$39)+AI56/2)))),IF(H$42>IF(E$5="Equipment Rupture",(M$49-M$50)*100/H$32,X$42/(H$32/(100*X$39)+AI56/2)),IF(E$5="Equipment Rupture",ROUND((M$49-M$50)*100/H$32,2-LOG10(M$49-M$50)*100/H$32),ROUND(X$42/(H$32/(100*X$39)+AI56/2),2-LOG10(X$42/(H$32/(100*X$39)+AI553)))),H$42)),0)) -> 0 | AJ57: m2
X58: =IF(X55*X51<X42,"","limited to pool fill rate") -> limited to pool fill rate | AC58: F/min | AD58: =1/1.8 -> 0.5555555556 | AH58: Pool Temperature - Trial 2 | AI58: =IF(AI57=0,0,(MIN(H$29,((AI$54+273.15)*X$42*H$33+AI57*(AI$28+AI$30*(AI$27+273.15)-AI56*H$34))/(X$42*H$33+AI$30*AI57)-273.15))+AI54)/2 -> 0 | AJ58: C
AC59: F/hr | AD59: =1/108 -> 0.009259259259 | AH59: Vapor Pressure - Trial 2 | AI59: =IF($H$27="Liquid",IF(Chemical="",101.325*EXP(AJ$13-AJ$14/(AI58+273.15)),101.325*EXP(AI$13-AI$14/(AI58+273.15-AI$15))),0) -> 0 | AJ59: kPa
AC60: kcal/g mole | AD60: 4.183998882 | AH60: Evaporation Rate - Trial 2 | AI60: =0.0021*H$28^0.667*X$48^0.78*AI59/(273.15+AI58) -> 0 | AJ60: kg/sec m2
T61: LIQUID RELEASE - ESTIMATED AIRBORNE QUANTITY | AC61: kJ/g mole | AD61: 1 | AH61: Pool Area - Trial 2 | AI61: =IF(OR(H$27<>"Liquid",AND(E$5="Equipment Rupture",M$50>=M$49),AND(E$5<>"Equipment Rupture",X$42=0)),0,IF(AND(H$32>0,OR(E$5="Equipment Rupture",W$11>0)),IF(E$42="",IF(E$5="Equipment Rupture",ROUND((M$49-M$50)*100/H$32,2-LOG10(M$49-M$50)*100/H$32),ROUND(X$42/(H$32/(100*X$39)+AI60/2),2-LOG10(X$42/(H$32/(100*X$39)+AI60/2)))),IF(H$42>IF(E$5="Equipment Rupture",(M$49-M$50)*100/H$32,X$42/(H$32/(100*X$39)+AI60/2)),IF(E$5="Equipment Rupture",ROUND((M$49-M$50)*100/H$32,2-LOG10(M$49-M$50)*100/H$32),ROUND(X$42/(H$32/(100*X$39)+AI60/2),2-LOG10(X$42/(H$32/(100*X$39)+AI557)))),H$42)),0)) -> 0 | AJ61: m2
AC62: g mole/ml | AD62: 1000 | AH62: Pool Temperature - Trial 3 | AI62: =IF(AI61=0,0,(MIN(H$29,((AI$54+273.15)*X$42*H$33+AI61*(AI$28+AI$30*(AI$27+273.15)-AI60*H$34))/(X$42*H$33+AI$30*AI61)-273.15))+AI58)/2 -> 0 | AJ62: C
T63: Liquid Release - Airborne Quantity = L [ Fv + FD ( 1 - Fv ) ] + mP AP = | AC63: g mole/liter | AD63: 1 | AH63: Vapor Pressure - Trial 3 | AI63: =IF($H$27="Liquid",IF(Chemical="",101.325*EXP(AJ$13-AJ$14/(AI62+273.15)),101.325*EXP(AI$13-AI$14/(AI62+273.15-AI$15))),0) -> 0 | AJ63: kPa
V64: =W11&" [ "&ROUND(U5,3)&" + "&U33&" ( 1 - "&ROUND(U5,3)&" ) ] + "&X57&" = " -> 0 [ 0 + 0 ( 1 - 0 ) ] + 0 = | W64: =IF(W11>0,ROUND(W11*(U5+U33*(1-U5))+X57,3-LOG10(W11*(U5+U33*(1-U5))+X57)),0) -> 0 | X64: kg/sec - or - | Y64: =ROUND(132*W64,2) -> 0 | Z64: lb/min | AC64: lb mole/cu ft | AD64: 16.01846 | AH64: Evaporation Rate - Trial 3 | AI64: =0.0021*H$28^0.667*X$48^0.78*AI63/(273.15+AI62) -> 0 | AJ64: kg/sec m2
AC65: m/sec | AD65: 1 | AH65: Pool Area - Trial 3 | AI65: =IF(OR(H$27<>"Liquid",AND(E$5="Equipment Rupture",M$50>=M$49),AND(E$5<>"Equipment Rupture",X$42=0)),0,IF(AND(H$32>0,OR(E$5="Equipment Rupture",W$11>0)),IF(E$42="",IF(E$5="Equipment Rupture",ROUND((M$49-M$50)*100/H$32,2-LOG10(M$49-M$50)*100/H$32),ROUND(X$42/(H$32/(100*X$39)+AI64/2),2-LOG10(X$42/(H$32/(100*X$39)+AI64/2)))),IF(H$42>IF(E$5="Equipment Rupture",(M$49-M$50)*100/H$32,X$42/(H$32/(100*X$39)+AI64/2)),IF(E$5="Equipment Rupture",ROUND((M$49-M$50)*100/H$32,2-LOG10(M$49-M$50)*100/H$32),ROUND(X$42/(H$32/(100*X$39)+AI64/2),2-LOG10(X$42/(H$32/(100*X$39)+AI561)))),H$42)),0)) -> 0 | AJ65: m2
T66: Liquid Release - Airborne Quantity for Equipment Rupture | AC66: ft/sec | AD66: 0.3048 | AH66: Pool Temperature - Trial 4 | AI66: =IF(AI65=0,0,(MIN(H$29,((AI$54+273.15)*X$42*H$33+AI65*(AI$28+AI$30*(AI$27+273.15)-AI64*H$34))/(X$42*H$33+AI$30*AI65)-273.15))+AI62)/2 -> 0 | AJ66: C
T67: ="If Initial Vapor / Total Vapor or "&ROUND(M50,2)&" kg / "&ROUND(W70,2)&" kg < 0.01, Use Maximum Pool Evaloration Rate" -> If Initial Vapor / Total Vapor or 0 kg / 0 kg < 0.01, Use Maximum Pool Evaloration Rate | AC67: mile/hr | AD67: 0.447 | AH67: Vapor Pressure - Trial 4 | AI67: =IF($H$27="Liquid",IF(Chemical="",101.325*EXP(AJ$13-AJ$14/(AI66+273.15)),101.325*EXP(AI$13-AI$14/(AI66+273.15-AI$15))),0) -> 0 | AJ67: kPa
V68: or | W68: =IF(OR(E5<>"Equipment Rupture",W70=0),0,IF(M50/W70<0.01,ROUND(X57,2),0)) -> 0 | X68: kg/sec - or - | Y68: =ROUND(132*W68,2) -> 0 | Z68: lb/min | AH68: Evaporation Rate - Trial 4 | AI68: =0.0021*H$28^0.667*X$48^0.78*AI67/(273.15+AI66) -> 0 | AJ68: kg/sec m2
AH69: Pool Area - Trial 4 | AI69: =IF(OR(H$27<>"Liquid",AND(E$5="Equipment Rupture",M$50>=M$49),AND(E$5<>"Equipment Rupture",X$42=0)),0,IF(AND(H$32>0,OR(E$5="Equipment Rupture",W$11>0)),IF(E$42="",IF(E$5="Equipment Rupture",ROUND((M$49-M$50)*100/H$32,2-LOG10(M$49-M$50)*100/H$32),ROUND(X$42/(H$32/(100*X$39)+AI68/2),2-LOG10(X$42/(H$32/(100*X$39)+AI68/2)))),IF(H$42>IF(E$5="Equipment Rupture",(M$49-M$50)*100/H$32,X$42/(H$32/(100*X$39)+AI68/2)),IF(E$5="Equipment Rupture",ROUND((M$49-M$50)*100/H$32,2-LOG10(M$49-M$50)*100/H$32),ROUND(X$42/(H$32/(100*X$39)+AI68/2),2-LOG10(X$42/(H$32/(100*X$39)+AI565)))),H$42)),0)) -> 0 | AJ69: m2
V70: 1 hour Airborne Quantity = | W70: =IF(IF(E5="Equipment Rupture",IF(H27="Liquid",M50,M25),(W64-X57)*X39)+3600*X57<AF27,IF(E5="Equipment Rupture",IF(H27="Liquid",M50,M25),(W64-X57)*X39)+3600*X57,AF27) -> 0 | X70: kg - or - | Y70: =ROUND(2.2*W70,1) -> 0 | Z70: lb | AH70: Pool Temperature - Trial 5 | AI70: =IF(AI69=0,0,(MIN(H$29,((AI$54+273.15)*X$42*H$33+AI69*(AI$28+AI$30*(AI$27+273.15)-AI68*H$34))/(X$42*H$33+AI$30*AI69)-273.15))+AI66)/2 -> 0 | AJ70: C
X71: based on pool evaporation for 1 hour | AH71: Vapor Pressure - Trial 5 | AI71: =IF($H$27="Liquid",IF(Chemical="",101.325*EXP(AJ$13-AJ$14/(AI70+273.15)),101.325*EXP(AI$13-AI$14/(AI70+273.15-AI$15))),0) -> 0 | AJ71: kPa
AH72: Evaporation Rate - Trial 5 | AI72: =0.0021*H$28^0.667*X$48^0.78*AI71/(273.15+AI70) -> 0 | AJ72: kg/sec m2
AH73: Pool Area - Trial 5 | AI73: =IF(OR(H$27<>"Liquid",AND(E$5="Equipment Rupture",M$50>=M$49),AND(E$5<>"Equipment Rupture",X$42=0)),0,IF(AND(H$32>0,OR(E$5="Equipment Rupture",W$11>0)),IF(E$42="",IF(E$5="Equipment Rupture",ROUND((M$49-M$50)*100/H$32,2-LOG10(M$49-M$50)*100/H$32),ROUND(X$42/(H$32/(100*X$39)+AI72/2),2-LOG10(X$42/(H$32/(100*X$39)+AI72/2)))),IF(H$42>IF(E$5="Equipment Rupture",(M$49-M$50)*100/H$32,X$42/(H$32/(100*X$39)+AI72/2)),IF(E$5="Equipment Rupture",ROUND((M$49-M$50)*100/H$32,2-LOG10(M$49-M$50)*100/H$32),ROUND(X$42/(H$32/(100*X$39)+AI72/2),2-LOG10(X$42/(H$32/(100*X$39)+AI569)))),H$42)),0)) -> 0 | AJ73: m2
AH74: Pool Temperature | AI74: =IF(AI73=0,0,(MIN(H$29,((AI$54+273.15)*X$42*H$33+AI73*(AI$28+AI$30*(AI$27+273.15)-AI72*H$34))/(X$42*H$33+AI$30*AI73)-273.15))+AI70)/2 -> 0 | AJ74: C
AH75: Vapor Press at Pool T | AI75: =IF($H$27="Liquid",IF(Chemical="",101.325*EXP(AJ$13-AJ$14/(AI74+273.15)),101.325*EXP(AI$13-AI$14/(AI74+273.15-AI$15))),0) -> 0 | AJ75: kPa
AH76: Evaporation Rate | AI76: =0.0021*H$28^0.667*X$48^0.78*AI75/(273.15+AI74) -> 0 | AJ76: kg/sec m2
AH77: Pool Area | AI77: =IF(OR(H$27<>"Liquid",AND(E$5="Equipment Rupture",M$50>=M$49),AND(E$5<>"Equipment Rupture",X$42=0)),0,IF(AND(H$32>0,OR(E$5="Equipment Rupture",W$11>0)),IF(E$42="",IF(E$5="Equipment Rupture",ROUND((M$49-M$50)*100/H$32,2-LOG10(M$49-M$50)*100/H$32),ROUND(X$42/(H$32/(100*X$39)+AI76/2),2-LOG10(X$42/(H$32/(100*X$39)+AI76/2)))),IF(H$42>IF(E$5="Equipment Rupture",(M$49-M$50)*100/H$32,X$42/(H$32/(100*X$39)+AI76/2)),IF(E$5="Equipment Rupture",ROUND((M$49-M$50)*100/H$32,2-LOG10(M$49-M$50)*100/H$32),ROUND(X$42/(H$32/(100*X$39)+AI76/2),2-LOG10(X$42/(H$32/(100*X$39)+AI573)))),H$42)),0)) -> 0 | AJ77: m2
AH78: Error | AI78: =ABS(AI74-AI70) -> 0 | AJ78: C

Sheet Vapor Dispersions
T1: SIMPLE VAPOR DISPERSION | AB1: Determination of Vapor Dispersion Correlating Parameters (equations 12-4 to 12-17)
E2: VAPOR DISPERSION INPUT INFORMATION | L2: JET MIXING | AS2: Conversion Factors
D3: Required Inputs are Shaded "Yellow" | T3: ="for "&D48&" m/sec Wind Speed, Class "&I48&" Atmospheric Stability, and "&H50&" Surface Roughness" -> for 3 m/sec Wind Speed, Class D Atmospheric Stability, and Rural Surface Roughness | AB3: DENSE GAS DISPERSION (Britter-McQuaid) per Section 13-6 | AJ3: COMBINED DENSE AND NEUTRALLY BUOYANT PLUME MODEL per Section 13-9
B4: STEP 1 - Select Location, Type of Release, Concentration and Distance of Interest | L4: Vapor Density at atmospheric pressure (equation 12-21), r0 = 0.12 P Mw / T | AS4: =IF(F13<>"",VLOOKUP(F13,Conversion_Table,2,0),1) -> 1
C5: Release Location (Assumed Outdoor if Blank) | O5: =" = 0.12 ( "&101.3&" ) ( "&H26&" ) / ( "&273.15+H32&" ) =" -> = 0.12 ( 101.3 ) ( 0 ) / ( 273.15 ) = | P5: =ROUND(0.12*(101.3)*H26/(273.15+H32),3) -> 0 | Q5: kg/m3 as ideal gas | AC5: Initial Vapor Density | AD5: =IF(AND(E6<>"Subcooled Liquid",P11>0),ROUND(P5*P11/1000000+(1-P11/1000000)*1.18,3),IF(E6="Subcooled Liquid",H36*ROUND(0.12*(101.3)*H26/(273.15+H32),3)/101.3+(1-H36/101.3)*1.18,ROUND(0.12*(101.3)*H26/(273.15+H32),3))) -> 0 | AE5: kg/m3 | AF5: C at X = 0 | AG5: =IF(E6="Subcooled Liquid",MIN(H36/101.3,1),IF(AND(E6="Vapor",E43="Vertically Upward"),AG6,1)) -> 1 | AH5: volume fraction | AJ5: Plume Model - Dense Gas | AO5: Combined Model | AS5: =IF(F31<>"",VLOOKUP(F31,Conversion_Table,2,0),1) -> 1
C6: Type of Release | L6: Discharge Velocity (equation 12-8 with cd=1), v0 = 1.27 Q / ( r0 d02 ) | AB6: Initial Buoyancy Parameter, g0 = g (r0 - ra) / ra | AF6: C0 = | AG6: =IF(AD5>0,IF(AND(E6<>"Subcooled Liquid",P11>0),P11/1000000,IF(E6="Subcooled Liquid",MIN(H36,101.3)/101.3,1)),1) -> 1 | AH6: volume fraction | AJ6: Distance | AK6: Cm | AL6: ln(x) | AM6: ln(y) | AO6: Distance | AP6: Cm | AS6: =IF(F33<>"",VLOOKUP(F33,Conversion_Table,2,0),1) -> 1
C7: Use Averaging Time Correction for Flammable Release | G7: Blank will not correct for flammable averaging time. | O7: =IF(E6="Vapor","= 1.27 ( "&H31&" ) / [ ( "&P5&" ) ( "&H40&" )^2 ] = ",IF(E6="Flashing Liquid","Entered Discharge Velocity times Initial Fraction Vapor = ","")) ->  | P7: =IF(E5<>"Indoor",IF(AND(H40>0,E6="Vapor"),ROUND(1.27*H31/(P5*H40^2),1),IF(E6="Flashing Liquid",H34,0)),0) -> 0 | Q7: m/sec | AE7: ="= 9.8 ( "&ROUND(AD5,2)&" - 1.18 ) / 1.18 =" -> = 9.8 ( 0 - 1.18 ) / 1.18 = | AF7: =9.8*(AD5-1.18)/1.18 -> -9.8 | AG7: m / sec2 | AK7: =AB15*AG$6 -> 0.1081669691 | AL7: =LN(AD15) -> 0 | AM7: =LN(AK7) -> -2.224079235 | AN7: =IF(AND(AG$12="Yes",AO7<AJ$14),AK$13*AO7^AM$13,NA()) ->  | AO7: 10 | AP7: =IF(AE$64>0,IF(AND(AG$12="Yes",AO7<AJ$14),AK$13*AO7^AM$13,AE$64*(AO7-AJ$14+AJ$15)^AG$64),1) -> 1 | AS7: =IF(F36<>"",VLOOKUP(F36,Conversion_Table,2,0),1) -> 1
L8: =IF(E6="Subcooled Liquid","Assumed Low Velocity for Liquid Release","") ->  | O8: limited to sonic velocity of ~ 108 ( T / Mw )1/2 = | P8: =IF(P5>0,ROUND(108*((H32+273)/H26)^0.5,1),0) -> 0 | Q8: m/sec | AF8: Dense Gas Volumetric Rate, q0 = ( Q / r0 at X=0 ) / C0 | AK8: 0.05432999088 | AL8: 0 | AM8: =LN(AK8) -> -2.912678886 | AO8: 20 | AP8: 1 | AS8: =IF(F40<>"",VLOOKUP(F40,Conversion_Table,2,0),1) -> 1
A9: Input Units may be changed - Input Values in "blue" will be converted to appropriate equation units | L9: =IF(P7>P8,"Unusually High Discharge Velocity. Check inputs for release rate and discharge pipe diameter.","") ->  | AB9: ="= ( "&ROUND(H31,2)& " kg/sec / "&ROUND(P5,2)&" kg/m^3 ) / "&ROUND(AG6,4)&" volume fraction = " -> = ( 0 kg/sec / 0 kg/m^3 ) / 1 volume fraction = | AG9: =IF(P5>0,ROUND((H31/P5)/AG6,3),0) -> 0 | AH9: m3 / sec | AK9: 0.02179159049 | AL9: 0 | AM9: -3.826231141 | AO9: 50 | AP9: 1 | AS9: =IF(F42<>"",VLOOKUP(F42,Conversion_Table,2,0),1) -> 1
E10: Input Value | F10: Input Units | H10: Equation Input | I10: Equation Units | L10: Concentration at Xt (Equation 13-2), Ct = 1.18 C0 u / ( r0 f0 v0 ) at rair=1.18 Kg/m3 | AB10: Plume Model Correlating Parameter, f = [ g02 q0 / u5 ]1/5 = | AK10: 0.01090576395 | AL10: 0 | AM10: -4.518463827 | AO10: 100 | AP10: 1 | AS10: =IF(F44<>"",VLOOKUP(F44,Conversion_Table,2,0),1) -> 1
C11: Concentration of Interest | H11: =IF(AND(F11="mg/cu m",H26=0),0,IF(F11="mg/cu m",ROUND(E11*24.45/H26,2),IF(F11="vol %",E11*10000,E11))) -> 0 | I11: ppm | O11: ="= 1.18 (1 x 10^6 ) ( "&D48&" ) / [ ( "&P5&" ) "&IF(E6="Flashing Liquid",E35,1)&" ( "&IF(P7<P8,P7,P8)&" ) ] =" -> = 1.18 (1 x 10^6 ) ( 3 ) / [ ( 0 ) 1 ( 0 ) ] = | P11: =IF(H31=0,0,IF(AND(E5<>"Indoor",E6<>"Subcooled Liquid"),IF(AND(P5>0,P7>0),ROUND(1180000*D48/(P5*IF(E6="Flashing Liquid",E35,1)*IF(P7<P8,P7,P8)),1),1000000),0)) -> 0 | Q11: ppm | AE11: ="= [ "&ROUND(AF7,3)&"^2 ( "&ROUND(AG9,2)&" ) / "&D48&"^5 ]^(1/5) =" -> = [ -9.8^2 ( 0 ) / 3^5 ]^(1/5) = | AF11: =IF(AF7>0,AF7^2*(H31/(P5*AG6))/D48^5,0)^0.2 -> 0 | AK11: 0.005455377574 | AL11: 0 | AM11: -5.211153446 | AO11: 200 | AP11: 1 | AR11: Vapor Pressure A | AS11: =VLOOKUP(Chemical_2,Chemical_Table,COLUMN('Chemical Table'!AE1),FALSE) -> 
C12: Concentration of Interest for Hazard Analysis is typically 1/2 LFL, LFL, ER-2, ER-3 or LC50 | M12: Alternate weather Concentration at Xt | U12: per Correlation Details with Concentration in ppmv | AB12: Dense Gas Check, f5/6 > 0.15; | AE12: =IF(AF7>0,AF11^(5/6),0) -> 0 | AF12: > 0.15 --> | AG12: =IF(AND(AF7>0,AE12>0.15),"Yes","No") -> No | AK12: 0.002182750412 | AL12: 0 | AM12: -6.127169541 | AO12: 500 | AP12: 1 | AR12: Vapor Pressure B | AS12: =VLOOKUP(Chemical_2,Chemical_Table,COLUMN('Chemical Table'!AF1),FALSE) -> 
D13: Outdoor Downwind Distance of Interest, X | H13: =ROUND(E13*AS4,1) -> 0 | I13: m | O13: ="= 1.18 (1 x 10^6 ) ( "&D49&" ) / [ ( "&P5&" ) "&IF(E6="Flashing Liquid",E35,1)&" ( "&IF(P7<P8,P7,P8)&" ) ] =" -> = 1.18 (1 x 10^6 ) ( 1.5 ) / [ ( 0 ) 1 ( 0 ) ] = | P13: =IF(H31=0,0,IF(AND(E5<>"Indoor",E6<>"Subcooled Liquid"),IF(AND(P5>0,P7>0),ROUND(1180000*D49/(P5*IF(E6="Flashing Liquid",E35,1)*IF(P7<P8,P7,P8)),1),1000000),0)) -> 0 | Q13: ppm | T13: Plume or Continuous: Cm = | V13: =IF(H31>0,ROUND(AM31*1000000*H$26*D$48/H$31,-4),0) -> 0 | W13: ( Q / Mw ) / ( u X ^ | Y13: =IF(H31>0,-AO31,0) -> 0 | Z13: ) | AJ13: Cm = | AK13: =IF(AG$12="Yes",AF$42*EXP(INDEX(LINEST(AM7:AM12,AL7:AL12),2)),0) -> 0 | AL13: X^ | AM13: =IF(AG$12="Yes",INDEX(LINEST(AM7:AM12,AL7:AL12),1)+AH$42,0) -> 0 | AO13: 1000 | AP13: 1 | AR13: Vapor Pressure C | AS13: =VLOOKUP(Chemical_2,Chemical_Table,COLUMN('Chemical Table'!AG1),FALSE) -> 
C14: Distance of Interest is typically to the property limit, to an unrestricted work area, or to an occupied building | L14: =IF(E6="Flashing Liquid","Only a Fraction of Total Vapor Present Initially at the Release Velocity","") ->  | T14: Puff or Instantaneous: Cm = | V14: =IF(H33>0,AM62*1000000*H$26/H$33,0) -> 0 | W14: ( Q* / Mw ) / ( X ^ | Y14: =IF(H$33>0,-AO62,0) -> 0 | Z14: ) | AB14: Cm/C0 | AC14: X / ( q0 u )1/2 | AD14: Distance | AJ14: =IF(AG$12="Yes",(AK$13/AK14)^(-1/AM$13),0) -> 0 | AK14: =AB21*AG$6 -> 1 | AL14: Transition Dense Gas | AO14: 2000 | AP14: 1 | AR14: Vapor Pressure | AS14: =IF(Chemical_2="",0,ROUND(101.325*EXP(AS11-AS12/(H32+273.15-AS13)),1)) -> 0 | AT14: kPa absolute
E15: Note that Concentration of Interest is Needed for Estimation of Exposure Duration for Instantaneous Release | O15: Sonic Equiv. Discharge Diameter, d0' = d0(v0/v0')1/2= | P15: =IF(P8>0,ROUND(H40*(P7/P8)^0.5,4),0) -> 0 | Q15: m | U15: ="per Correlation Details for "&D49&" m/sec "&I49&" Stability with Concentration in ppmv" -> per Correlation Details for 1.5 m/sec F Stability with Concentration in ppmv | AB15: =0.1*298/(273+H$32)/(0.1*298/(273+H$32)+0.9) -> 0.1081669691 | AC15: =IF(AG$12="Yes",IF(LOG(AF$11)<-0.55,56.2,IF(LOG(AF$11)<-0.14,10^(1.88+0.24*LOG(AF$11)),10^(1.78-0.5*LOG(AF$11)))),"") ->  | AD15: =IF(AND(AG$12="Yes",H$31>0),AC15*(AG$9/D$48)^0.5,1) -> 1 | AJ15: =IF(AG$12="Yes",(AE$64/AK15)^(-1/AG$64),0) -> 0 | AK15: =AK14 -> 1 | AL15: Transition Neutrally Buoyant | AO15: 5000 | AP15: 1 | AR15: Estimated Boiling Pt | AS15: =IF(Chemical_2="","",ROUND(AS12/AS11+AS13-273.15,1)) ->  | AT15: C
L16: Jet Mixing Transition Distance (equation 13-3), Xt = 3.125 d0 ( v0 f0 / u ) / ( r0 / rair )1/2 | T16: Plume or Continuous: Cm = | V16: =IF(H31>0,ROUND(AU47*1000000*H$26*D$49/H$31,-4),0) -> 0 | W16: ( Q / Mw ) / ( u X ^ | Y16: =IF(H31>0,-AV47,0) -> 0 | Z16: ) | AB16: =0.05*298/(273+H$32)/(0.05*298/(273+H$32)+0.95) -> 0.05432999088 | AC16: =IF(AG$12="Yes",IF(LOG(AF$11)<-0.68,83.2,IF(LOG(AF$11)<-0.29,10^(2.16+0.36*LOG(AF$11)),IF(LOG(AF$11)<-0.18,114.8,10^(1.96-0.56*LOG(AF$11))))),"") ->  | AD16: 1 | AL16: Estimate of Reference Distance = | AM16: =$D$48*(IF(AND($H$33>0,$H$31>0),MIN($H$33/$H$31,3600),3600)) -> 10800 | AO16: 10000 | AP16: 1
B17: STEP 2 - Enter Chemical Properties (or Select Chemical Name from Pic List) | O17: ="= 3.125 ( "&IF(P7<P8,H40,P15)&" ) ( "&IF(P7<P8,P7,P8)&" ( "&IF(E6="Flashing Liquid",E35,1)&" ) / "&D48&" ) ( "&P5&" / 1.18 )^1/2 =" -> = 3.125 ( 0 ) ( 0 ( 1 ) / 3 ) ( 0 / 1.18 )^1/2 = | P17: =IF(H40<>"",ROUND(2.877*(IF(P7<P8,H40,P15)*IF(E6="Flashing Liquid",E35,1)/D48)*IF(P7<P8,P7,P8)*P5^0.5,1),0) -> 0 | Q17: =" m at "&D48&" m/sec wind" -> m at 3 m/sec wind | T17: Puff or Instantaneous: Cm = | V17: =IF(H33>0,AU76*1000000*H$26/H$33,0) -> 0 | W17: ( Q* / Mw ) / ( X ^ | Y17: =-AV76 -> 0 | Z17: ) | AB17: =0.02*298/(273+H$32)/(0.02*298/(273+H$32)+0.98) -> 0.02179159049 | AC17: =IF(AG$12="Yes",IF(LOG(AF$11)<-0.69,120.2,IF(LOG(AF$11)<-0.31,10^(2.39+0.45*LOG(AF$11)),IF(LOG(AF$11)<-0.16,177.8,10^(2.16-0.54*LOG(AF$11))))),"") ->  | AD17: 1 | AS17: Alternate Dense Gas Plume
I18: Cas No. | M18: Alternate weather Transition Distance | AB18: =0.01*298/(273+H$32)/(0.01*298/(273+H$32)+0.99) -> 0.01090576395 | AC18: =IF(AG$12="Yes",IF(LOG(AF$11)<-0.7,177.8,IF(LOG(AF$11)<-0.29,10^(2.59+0.49*LOG(AF$11)),IF(LOG(AF$11)<-0.2,281.8,10^(2.35-0.52*LOG(AF$11))))),"") ->  | AD18: 1 | AT18: Initial Vapor Density | AU18: =IF(AND(E6<>"Subcooled Liquid",P13>0),ROUND(P5*P13/1000000+(1-P13/1000000)*1.18,3),IF(E6="Subcooled Liquid",H36*ROUND(0.12*(101.3)*H26/(273.15+H32),3)/101.3+(1-H36/101.3)*1.18,ROUND(0.12*(101.3)*H26/(273.15+H32),3))) -> 0 | AV18: kg/m3 | AW18: C at X = 0 | AX18: =IF(E6="Subcooled Liquid",MIN(H36/101.3,1),IF(AND(E6="Vapor",E43="Vertically Upward"),AX19,1)) -> 1 | AY18: volume fraction
C19: Chemical Name | I19: =IF(Chemical_2="","",VLOOKUP(Chemical_2,Chemical_Table,COLUMN('Chemical Table'!B1),FALSE)) ->  | O19: ="= 3.125 ( "&IF(P7<P8,H40,P15)&" ) ( "&IF(P7<P8,P7,P8)&" ( "&IF(E6="Flashing Liquid",E35,1)&" ) / "&D49&" ) ( "&P5&" / 1.18 )^1/2 =" -> = 3.125 ( 0 ) ( 0 ( 1 ) / 1.5 ) ( 0 / 1.18 )^1/2 = | P19: =IF(H40<>"",ROUND(2.877*(IF(P7<P8,H40,P15)*IF(E6="Flashing Liquid",E35,1)/D49)*IF(P7<P8,P7,P8)*P5^0.5,1),0) -> 0 | Q19: =" m at "&D49&" m/sec wind" -> m at 1.5 m/sec wind | T19: Test for Plume versus Puff Model at Dispersion Conditions: (equation 13-26) | AB19: =0.005*298/(273+H$32)/(0.005*298/(273+H$32)+0.995) -> 0.005455377574 | AC19: =IF(AG$12="Yes",IF(LOG(AF$11)<-0.67,251.2,IF(LOG(AF$11)<-0.28,10^(2.8+0.59*LOG(AF$11)),IF(LOG(AF$11)<-0.15,426.6,10^(2.56-0.49*LOG(AF$11))))),"") ->  | AD19: 1 | AS19: Initial Buoyancy Parameter, g0 = g (r0 - ra) / ra | AW19: C0 = | AX19: =IF(AU18>0,IF(AND(E6<>"Subcooled Liquid",P13>0),P13/1000000,IF(E6="Subcooled Liquid",MIN(H36,101.3)/101.3,1)),1) -> 1 | AY19: volume fraction
T20: If Q > (a*/a) u Q* X^(b-b*) ---> Instantaneous Model (from equating Puff and Plume correlation at X) | AB20: =0.002*298/(273+H$32)/(0.002*298/(273+H$32)+0.998) -> 0.002182750412 | AC20: =IF(AG$12="Yes",IF(LOG(AF$11)<-0.69,398.1,IF(LOG(AF$11)<-0.25,10^(2.87+0.39*LOG(AF$11)),IF(LOG(AF$11)<-0.13,588.8,10^(2.71-0.5*LOG(AF$11))))),"") ->  | AD20: 1 | AV20: ="= 9.8 ( "&ROUND(AU18,2)&" - 1.18 ) / 1.18 =" -> = 9.8 ( 0 - 1.18 ) / 1.18 = | AW20: =9.8*(AU18-1.18)/1.18 -> -9.8 | AX20: m / sec2
D21: Data Table Value | X21: =IF(OR(H31=0,H33=0),"",(ROUND(H31,2)&" kg/sec "&IF(H31>(V14/V13)*D48*H33*AM16^(Y13-Y14)," > "," < ")&" "&ROUND(V14/V13,5)&" ("&D48&" m/sec) "&ROUND(H33,0)&" kg ("&ROUND(AM16,0)&" m)^"&ROUND(Y13-Y14,2))&" or "&ROUND((V14/V13)*D48*H33*AM16^(Y13-Y14),2)&" kg/sec -->") ->  | Y21: =IF(H33=0,"Continuous",IF(H31=0,"Instantaneous",IF(H31>(V14/V13)*D48*H33*AM16^(Y13-Y14),"Instantaneous","Continuous"))) -> Continuous | AB21: =IF(AG$12="Yes",0.15^6/AF11^5,1) -> 1 | AC21: Transition | AW21: Dense Gas Volumetric Rate, q0 = ( Q / r0 at X=0 ) / C0
C22: Lower Flammable Limit, LFL | D22: =IF(Chemical_2="","",VLOOKUP(Chemical_2,Chemical_Table,COLUMN('Chemical Table'!J1),FALSE)) ->  | E22: vol % | F22: For reference in determining concentration of interest | L22: DISTANCE CORRECTION FOR INITIAL CONCENTRATION | U22: Alternate weather Puff versus Plume Model | AS22: ="= ( "&ROUND(H31,2)& " kg/sec / "&ROUND(P5,2)&" kg/m^3 ) / "&ROUND(AG6,4)&" volume fraction = " -> = ( 0 kg/sec / 0 kg/m^3 ) / 1 volume fraction = | AX22: =IF(P5>0,ROUND((H31/P5)/AX19,3),0) -> 0 | AY22: m3 / sec
C23: ERPG-3 Concentration | D23: =IF(Chemical_2="","",VLOOKUP(Chemical_2,Chemical_Table,COLUMN('Chemical Table'!F1),FALSE)) ->  | E23: ppm | X23: =IF(OR(H31=0,H33=0),"",(ROUND(H31,2)&" kg/sec "&IF(H31>(V17/V16)*D49*H33*AW34^(Y16-Y17)," > "," < ")&" "&ROUND(V17/V16,6)&" ("&D49&" m/sec) "&ROUND(H33,0)&" kg ("&ROUND(AW34,0)&" m)^"&ROUND(Y16-Y17,2))&" or "&ROUND((V17/V16)*D49*H33*AW34^(Y16-Y17),2)&" kg/sec -->") ->  | Y23: =IF(H33=0,"Continuous",IF(H31=0,"Instantaneous",IF(H31>(V17/V16)*D49*H33*AW34^(Y16-Y17),"Instantaneous","Continuous"))) -> Continuous | AS23: Plume Model Correlating Parameter, f = | AW23: =IF(AW20>0,AW20^2*(H31/(P5*AX19))/D49^5,0)^0.2 -> 0
C24: ERPG-2 Concentration | D24: =IF(Chemical_2="","",VLOOKUP(Chemical_2,Chemical_Table,COLUMN('Chemical Table'!E1),FALSE)) ->  | E24: ppm | L24: Vapor from Liquid Evaporation, Equipment Rupture, or Low Vapor Velocity (equation 13-25), | AS24: Dense Gas Check, f5/6 > 0.15; | AV24: =IF(AF7>0,AW23^(5/6),0) -> 0 | AW24: =IF(AND(AF7>0,AV24>0.15),"Yes","No") -> No
E25: Input Value | F25: Leave Blank to accept Chemical Data Table Mw | H25: Equation Input | L25: =IF(Y13>0,"Xo = "&ROUND(V13^(1/Y13),0)&" [ Q / ( u Mw C at X=0 ) ]^"&ROUND(1/Y13,2)&" - sin(a) Xt Continueous",0) -> 0 | AC25: Dense Gas Volume, V0 = | AD25: ( Q* / r0 at X=0 ) / C0 | AS25: Cm/C0 | AT25: X / ( Q / r0 u )1/2 | AU25: Distance | AV25: Cm | AW25: ln(x) | AX25: ln(y)
C26: Vapor Molecular Weight, Mw | D26: =IF(Chemical_2="","",VLOOKUP(Chemical_2,Chemical_Table,COLUMN('Chemical Table'!C1),FALSE)) ->  | H26: =IF(AND(D26="",E26=""),0,IF(E26="",D26,E26)) -> 0 | L26: =IF(Y14>0,"or Xo = "&ROUND(V14^(1/Y14),0)&" [ Q* / ( Mw Co ) ]^"&ROUND(1/Y14,2)&" Instantaneous",0) -> 0 | T26: ="Estimated Exposure Duration - "&Y21&" Dispersion (Equations 13-27, 13-29) " -> Estimated Exposure Duration - Continuous Dispersion (Equations 13-27, 13-29) | AB26: ="= ( "&ROUND(H33,2)& " kg / "&ROUND(P5,2)&" kg/m^3 ) / "&ROUND(AG6,4)&" volume fraction = " -> = ( 0 kg / 0 kg/m^3 ) / 1 volume fraction = | AG26: =ROUND((H33/P5)/AG6,1) ->  | AH26: m3 | AS26: =0.1*298/(273+H$32)/(0.1*298/(273+H$32)+0.9) -> 0.1081669691 | AT26: =IF(AW$24="Yes",IF(LOG(AW$23)<-0.55,56.2,IF(LOG(AW$23)<-0.14,10^(1.88+0.24*LOG(AW$23)),10^(1.78-0.5*LOG(AW$23)))),"") ->  | AU26: =IF(AND(AW$24="Yes",H$31>0),AT26*(AX$22/D$49)^0.5,1) -> 1 | AV26: =AS26*AX$19 -> 0.1081669691 | AW26: =LN(AU26) -> 0 | AX26: =LN(AV26) -> -2.224079235
C27: Normal Boiling Point, TB | D27: =IF(Chemical_2="","",IF(E27="F",ROUND((1.8*AS15+32),1),AS15)) ->  | H27: =IF(AND(D27="",E27=""),0,IF(F27="F",ROUND((IF(E27="",D27,E27)-32)/1.8,1),IF(E27="",D27,E27))) -> 0 | I27: C | O27: =IF(OR(Y13>0,Y14>0),IF(Y21="Instantaneous","= "&ROUND(V14^(1/Y14),0)&" [ ( "&H33&" / { "&H26&" ( "&ROUND(1000000*AG5,0)&" ) } ]^"&ROUND(1/Y14,2),"= "&ROUND(V13^(1/Y13),0)&" [ ( "&H31&" ) / { ( "&D48&" ) "&H26&" ( "&ROUND(1000000*AG5,0)&" ) } ]^"&ROUND(1/Y13,2))&IF(AND(E6="Vapor",E43="Horizontal")," - (1) "&ROUND(P17,1),"")&" = ",0) -> 0 | P27: =IF(OR(H26=0,E5="Indoor"),0,IF(Y21="Instantaneous",ROUND(V14^(1/Y14)*(H33/(H26*1000000*AG5))^(1/Y14),0),IF(V13^(1/Y13)*(H31/(D48*AD5*1000000*AG5))^(1/Y13)>0,ROUND(V13^(1/Y13)*(H31/(D48*H26*1000000*AG5))^(1/Y13)-IF(AND(E6="Vapor",E43="Horizontal"),P17,0),1),0))) -> 0 | Q27: m | T27: t = Q* / Q for Continuous or 2 (0.2) [Q* Tamb / (Mw C)]0.37/ Wind Speed for Instantaneous | AB27: Puff Model Correlating Parameter, F = [ g0 (V0)1/3 / u2 ]1/2 = | AS27: =0.05*298/(273+H$32)/(0.05*298/(273+H$32)+0.95) -> 0.05432999088 | AT27: =IF(AW$24="Yes",IF(LOG(AW$23)<-0.68,83.2,IF(LOG(AW$23)<-0.29,10^(2.16+0.36*LOG(AW$23)),IF(LOG(AW$23)<-0.18,114.8,10^(1.96-0.56*LOG(AW$23))))),"") ->  | AU27: 1 | AV27: =AS27*AX$19 -> 0.05432999088 | AW27: =LN(AU27) -> 0 | AX27: =LN(AV27) -> -2.912678886
M28: Alternate weather Initial Dilution Correction | T28: =IF(Y21="Instantaneous","Instanteous duration based on 2 Cloud Width at Concentration of Interest / divided by Wind Speed","") ->  | AE28: ="= [ "&ROUND(AF7,3)&" ( "&ROUND(AG26,2)&" )^(1/3) / "&D48&"^2 ]^(1/2) =" ->  | AF28: =IF(AF7>0,AF7*(H33/(P5*AG6))^(1/3)/D48^2,0)^0.5 -> 0 | AS28: =0.02*298/(273+H$32)/(0.02*298/(273+H$32)+0.98) -> 0.02179159049 | AT28: =IF(AW$24="Yes",IF(LOG(AW$23)<-0.69,120.2,IF(LOG(AW$23)<-0.31,10^(2.39+0.45*LOG(AW$23)),IF(LOG(AW$23)<-0.16,177.8,10^(2.16-0.54*LOG(AW$23))))),"") ->  | AU28: 1 | AV28: 0.02179159049 | AW28: 0 | AX28: -3.826231141
B29: STEP 3 - Enter Process Information | O29: =IF(OR(Y16>0,Y17>0),IF(Y23="Instantaneous","= "&ROUND(V17^(1/Y17),0)&" [ ( "&H33&" / { "&H26&" ( "&ROUND(1000000*AG5,0)&" ) } ]^"&ROUND(1/Y17,2),"= "&ROUND(V16^(1/Y16),0)&" [ ( "&H31&" ) / { ( "&D49&" ) "&H26&" ( "&ROUND(1000000*AG5,0)&" ) } ]^"&ROUND(1/Y16,2))&IF(AND(E6="Vapor",E43="Horizontal")," - (1) "&ROUND(P19,1),"")&" = ",0) -> 0 | P29: =IF(OR(H26=0,E5="Indoor"),0,IF(Y23="Instantaneous",ROUND(V17^(1/Y17)*(H33/(H26*1000000*AG5))^(1/Y17),0),IF(V16^(1/Y16)*(H31/(D49*AD5*1000000*AG5))^(1/Y16)>0,ROUND(V16^(1/Y16)*(H31/(D49*H26*1000000*AG5))^(1/Y16)-IF(AND(E6="Vapor",E43="Horizontal"),P19,0),1),0))) -> 0 | Q29: m | X29: =IF(OR(H31=0,Y21="Instantaneous"),"t = 2 ( "&ROUND(0.2*(H33*(298)/(H26*H11/1000000))^0.37,2)&" m ) / "&D48&" m/sec = ",IF(H33=0,"t = 3600","t = "&ROUND(H33,2)&" Kg / "&ROUND(H31,2)&" Kg/sec ")&" = ") ->  | Y29: =IF(H26=0,0,IF(H33=0,3600,MIN(3600,ROUND(IF(Y21="Instantaneous",MAX(2*0.2*(H33*(298)/(H26*H11/1000000))^0.37/D48,IF(H31<>0,H33/H31,0)),H33/H31),1)))) -> 0 | Z29: sec | AB29: Dense Gas Check, F1/2 > 0.2; | AE29: =IF(AF28>0,AF28,0) -> 0 | AF29: > 0.2 --> | AG29: =IF(AND(AF7>0,AE29>0.2),"Yes","No") -> No | AS29: =0.01*298/(273+H$32)/(0.01*298/(273+H$32)+0.99) -> 0.01090576395 | AT29: =IF(AW$24="Yes",IF(LOG(AW$23)<-0.7,177.8,IF(LOG(AW$23)<-0.29,10^(2.59+0.49*LOG(AW$23)),IF(LOG(AW$23)<-0.2,281.8,10^(2.35-0.52*LOG(AW$23))))),"") ->  | AU29: 1 | AV29: 0.01090576395 | AW29: 0 | AX29: -4.518463827
B30: Process Inputs: | E30: Input Value | F30: Input Units | H30: Equation Input | I30: Equation Units | U30: Alternate weather Estimated Exposure Duration | AK30: Combined Plume Correlation: | AL30: X = | AM30: =IF(AO31<>0,AW47^(-1/AO31),0) -> 0 | AN30: Cm^ | AO30: =IF(AO31<>0,1/AO31,0) -> 0 | AS30: =0.005*298/(273+H$32)/(0.005*298/(273+H$32)+0.995) -> 0.005455377574 | AT30: =IF(AW$24="Yes",IF(LOG(AW$23)<-0.67,251.2,IF(LOG(AW$23)<-0.28,10^(2.8+0.59*LOG(AW$23)),IF(LOG(AW$23)<-0.15,426.6,10^(2.56-0.49*LOG(AW$23))))),"") ->  | AU30: 1 | AV30: 0.005455377574 | AW30: 0 | AX30: -5.211153446
C31: Airborne Rate, Q | H31: =ROUND(E31*AS5,4) -> 0 | I31: kg/sec | X31: =IF(OR(H31=0,Y23="Instantaneous"),"t = 2 ( "&ROUND(0.2*(H33*(298)/(H26*H11/1000000))^0.37,2)&" m ) / "&D49&" m/sec = ",IF(H33=0,"t = 3600","t = "&ROUND(H33,2)&" Kg / "&ROUND(H31,2)&" Kg/sec ")&" = ") ->  | Y31: =IF(H26=0,0,IF(H33=0,3600,MIN(3600,ROUND(IF(Y23="Instantaneous",MAX(2*0.2*(H33*(298)/(H26*H11/1000000))^0.37/D49,IF(H31<>0,H33/H31,0)),H33/H31),1)))) -> 0 | Z31: sec | AJ31: (Continuous) | AL31: Cm = | AM31: =AW47 -> 1 | AN31: X^ | AO31: =AX47 -> 0 | AS31: =0.002*298/(273+H$32)/(0.002*298/(273+H$32)+0.998) -> 0.002182750412 | AT31: =IF(AW$24="Yes",IF(LOG(AW$23)<-0.69,398.1,IF(LOG(AW$23)<-0.25,10^(2.87+0.39*LOG(AW$23)),IF(LOG(AW$23)<-0.13,588.8,10^(2.71-0.5*LOG(AW$23))))),"") ->  | AU31: 1 | AV31: 0.002182750412 | AW31: 0 | AX31: -6.127169541
C32: Airborne Temperature, T | H32: =IF(F32="F",ROUND((E32-32)/1.8,1),E32) -> 0 | I32: C | L32: CORRECTION FOR RELEASE ELEVATION | AB32: Cm/C0 | AC32: X / ( Q / r0 )1/3 | AD32: Distance | AT32: Transition Dense Gas | AU32: =IF(AW$24="Yes",(AW$32/AV32)^(-1/AX$32),0) -> 0 | AV32: =IF(AW$24="Yes",AX19*0.15^6/AW$23^5,1) -> 1 | AW32: =IF(AW$24="Yes",AF$43*EXP(INDEX(LINEST(AX26:AX31,AW26:AW31),2)),1) -> 1 | AX32: =IF(AW$24="Yes",INDEX(LINEST(AX26:AX31,AW26:AW31),1)+AH$43,1) -> 1
C33: Total Release Quantity, Q* (Leave Blank if Unlimited) | H33: =ROUND(E33*AS6,2) -> 0 | I33: kg | T33: Maximum Downwind Distance to Concentration of Interest (per combined Dense Gas and Neuutrally Buoyant models) | AB33: =0.1*298/(273+H$32)/(0.1*298/(273+H$32)+0.9) -> 0.1081669691 | AC33: =IF(AG$29="Yes",IF(LOG(AF$28)<-0.44,5.01,IF(LOG(AF$28)<0.43,10^(0.81+0.26*LOG(AF$28)),8.51)),"") ->  | AD33: =IF(AND(H$33>0,AC33<>""),AC33*(H$33/(P$5*AG$6))^(1/3),1) -> 1 | AJ33: COMBINED DENSE AND NEUTRALLY BUOYANT PUFF MODEL | AT33: Transition Neutrally Buoyant | AU33: =IF(AW$24="Yes",(AE$71/AV33)^(-1/AG$71),0) -> 0 | AV33: =AV32 -> 1
C34: Liquid or Two-Phase Release Velocity* (Flashing Liquid) | H34: =ROUND(IF(F34="ft/min",E34*0.00508,E34),2) -> 0 | I34: m/sec | L34: Effective Release Elevation (equation 13-18): H = H' + 1.5 (v0/u) d0 [ sin q + 1.8 d0 ( 1- r0 / rair ) ] | T34: Continuous: X = a [ Q / ( u Mw Cm ) ]b - X0 | AB34: =0.05*298/(273+H$32)/(0.05*298/(273+H$32)+0.95) -> 0.05432999088 | AC34: =IF(AG$29="Yes",IF(LOG(AF$28)<-0.56,7.08,IF(LOG(AF$28)<0.31,10^(1+0.26*LOG(AF$28)),10^(1.12-0.12*LOG(AF$28)))),"") ->  | AD34: 1 | AV34: Alternate Estimate of Reference Distance = | AW34: =$D$49*(IF(AND($H$33>0,$H$31>0),MIN($H$33/$H$31,3600),3600)) -> 5400 | AX34: m
C35: Initial Fraction Vapor*, f0 (Flashing Liquid Only) | I35: Fraction | L35: Sin q = | M35: =IF(E43="Vertically Upward",1,0) -> 0 | N35: ="for "&IF(E43="","assumed Horizontal",E43)&" release" -> for assumed Horizontal release | R35: rair = 1.18 Kg/m3 | X35: =IF(Y13=0,0,"= "&ROUND(V13^(1/Y13),-2)&" [ ( "&H31&" ) / { ( "&D48&" ) "&H26&" ( "&ROUND(H11,2)&" ) } ]^"&ROUND(1/Y13,2)&" - "&ROUND(P27,1)&" = ") -> 0 | Y35: =IF(OR(H11=0,H26=0,H31=0,E5="Indoor",Y21="Instantaneous"),0,IF(V13^(1/Y13)*(H31/(D48*H$26*H11))^(1/Y13)-P27>1,ROUND(V13^(1/Y13)*(H31/(D$48*H$26*H$11))^(1/Y13)-P$27,0),0)) -> 0 | Z35: m | AB35: =0.02*298/(273+H$32)/(0.02*298/(273+H$32)+0.98) -> 0.02179159049 | AC35: =IF(AG$29="Yes",IF(LOG(AF$28)<-0.66,8.91,IF(LOG(AF$28)<0.32,10^(1.19+0.36*LOG(AF$28)),10^(1.38-0.26*LOG(AF$28)))),"") ->  | AD35: 1 | AJ35: Puff Model - Dense Gas | AO35: Combined Model | AS35: Combined Plume Model
C36: Vapor Pressure at Release Temp (Subcooled Liquid Only) | D36: =IF(E6="Subcooled Liquid",MIN(101.3,AS14),"") ->  | H36: =IF(AND(E36="",D36=""),0,IF(E36="",D36*AS7,E36*AS7)) -> 0 | I36: kPa absolute | L36: H' = | M36: =IF(E6<>"Vapor",0,H42) -> 0 | N36: ="m for "&IF(E6="","assumed Vapor",E6)&" release" -> m for assumed Vapor release | R36: at ambient conditions | T36: Instantaneous: X = a* [ (Q* / ( Mw Cm ) ]b* - X0 | AB36: =0.01*298/(273+H$32)/(0.01*298/(273+H$32)+0.99) -> 0.01090576395 | AC36: =IF(AG$29="Yes",IF(LOG(AF$28)<-0.71,14.1,IF(LOG(AF$28)<0.37,10^(1.39+0.34*LOG(AF$28)),10^(1.66-0.38*LOG(AF$28)))),"") ->  | AD36: 1 | AK36: Cm | AL36: ln(x) | AM36: ln(y) | AO36: Distance | AP36: Cm | AT36: Cm | AU36: ln(X) | AV36: ln(Y) | AW36: ln(X) | AX36: ln(Y)
D37: *Note that these inputs may not significantly change results | P37: ="H = "&M36&" + 1.5 ( "&IF(P7<P8,P7,P8)&" / "&D48&" ) ( "&H40&" ) [ "&M35&" + 1.8 ( "&H40&" ) ( 1 - "&P5&" / 1.18 ) ] = " -> H = 0 + 1.5 ( 0 / 3 ) ( 0 ) [ 0 + 1.8 ( 0 ) ( 1 - 0 / 1.18 ) ] = | Q37: =IF(AND(H42+1.5*IF(P7<P8,P7,P8)*H40*(M35+1.8*H40*(1-P5/1.18))/D48>0,E5<>"Indoor",E6="Vapor"),ROUND(H42+1.5*IF(P7<P8,P7,P8)*H40*(M35+1.8*H40*(1-P5/1.18))/D48,1),0) -> 0 | R37: m | X37: =IF(Y14=0,0,"= "&ROUND(V14^(1/Y14),-1)&" [ "&H33&" / ( "&H$26&" ( "&ROUND(H11,2)&" )) ]^"&ROUND(1/Y14,2)&" - "&ROUND(P27,1)&" = ") -> 0 | Y37: =IF(OR(H11=0,H26=0,E5="Indoor",Y21="Continuous"),0,IF(V14^(1/Y14)*(H33/(H26*H11))^(1/Y14)-P27>1,ROUND(V14^(1/Y14)*(H33/(H26*H11))^(1/Y14)-P27,0))) -> 0 | Z37: m | AB37: =0.005*298/(273+H$32)/(0.005*298/(273+H$32)+0.995) -> 0.005455377574 | AC37: =IF(AG$29="Yes",IF(LOG(AF$28)<-0.52,30.2,IF(LOG(AF$28)<0.24,10^(1.62+0.26*LOG(AF$28)),10^(1.75-0.3*LOG(AF$28)))),"") ->  | AD37: 1 | AK37: =AG$6*AB33 -> 0.1081669691 | AL37: =LN(AD33) -> 0 | AM37: =LN(AK37) -> -2.224079235 | AN37: =IF(AND(AG$29="Yes",AO37<AJ$45),AK$44*AO37^AM$44,NA()) ->  | AO37: 10 | AP37: =IF(AE$67>0,IF(AND(AG$29="Yes",AO37<AJ$45),AK$44*AO37^AM$44,AE$67*(AO37-AJ$45+AJ$46)^AG$67),1) -> 1 | AS37: 10 | AT37: =IF(AE$71>0,IF(AND(AG$12="Yes",AS37<AU$32),AW$32*AS37^AX$32,AE$71*(AS37-AU$32+AU$33)^AG$71),1) -> 1 | AU37: =LN(AS37) -> 2.302585093 | AV37: =LN(AT37) -> 0 | AW37: =LN(AO7) -> 2.302585093 | AX37: =LN(AP7) -> 0
B38: STEP 4 - Enter Equipment and Plant Layout Information | P38: =IF(Q37=0,"limited to 0 elevation above ground at 3 m/sec wind","elevation above ground at 3 m/sec wind") -> limited to 0 elevation above ground at 3 m/sec wind | W38: =IF(P11<H11,"Concentration at Jet Mixing Transition Distance less than Concentration of Interest","") ->  | AB38: =0.002*298/(273+H$32)/(0.002*298/(273+H$32)+0.998) -> 0.002182750412 | AC38: =IF(AG$29="Yes",IF(LOG(AF$28)<0.27,67.6,10^(1.92-0.32*LOG(AF$28))),"") ->  | AD38: 1 | AK38: 0.05432999088 | AL38: 0 | AM38: =LN(AK38) -> -2.912678886 | AO38: 20 | AP38: 1 | AS38: 20 | AT38: 1 | AU38: =LN(AS38) -> 2.995732274 | AV38: =LN(AT38) -> 0 | AW38: 2.995732274 | AX38: 0
B39: Equipment and Plant Layout Inputs: | E39: Input Value | F39: Input Units | H39: Equation Input | I39: Equation Units | T39: Alternate weather Maximum Downwind Distance to Concentration of Interest | AB39: =0.001*298/(273+H$32)/(0.001*298/(273+H$32)+0.999) -> 0.00109147514 | AC39: =IF(AG$29="Yes",IF(LOG(AF$28)<-0.1,118.9,10^(2.05-0.27*LOG(AF$28))),"") ->  | AD39: 1 | AK39: 0.02179159049 | AL39: 0 | AM39: -3.826231141 | AO39: 50 | AP39: 1 | AS39: 50 | AT39: 1 | AU39: 3.912023005 | AV39: 0 | AW39: 3.912023005 | AX39: 0
C40: Diameter of Hole or Discharge Piping, d0 | H40: =ROUND(E40*AS8,4) -> 0 | I40: m | T40: Continuous (equation 10-xx): X = a [ Q ( F ) / ( u Mw Cm ) ]b - X0 | AB40: =IF(AND(AG$29="Yes",AD5>0),0.2^3/AF28^3,1) -> 1 | AC40: Transition | AK40: 0.01090576395 | AL40: 0 | AM40: -4.518463827 | AO40: 100 | AP40: 1 | AS40: 100 | AT40: 1 | AU40: 4.605170186 | AV40: 0 | AW40: 4.605170186 | AX40: 0
B41: =IF(I41=""," The hole size for vapor release estimate or diameter of relief system discharge piping. If blank, no jet mixing used.","") -> The hole size for vapor release estimate or diameter of relief system discharge piping. If blank, no jet mixing used. | I41: =IF(P7>500,"Unusally high discharge velocity, consider increasing discharge pipe diameter ","") ->  | K41: CONCENTRATION FOR RELEASE WITHIN ENCLOSED PROCESS AREA | X41: =IF(Y16=0,0,"= "&ROUND(V16^(1/Y16),-2)&" [ ( "&H31&" ) / { ( "&D48&" ) "&H26&" ( "&ROUND(H11,2)&" ) } ]^"&ROUND(1/Y16,2)&" - "&ROUND(P29,1)&" = ") -> 0 | Y41: =IF(OR(H11=0,H26=0,H31=0,E5="Indoor",Y23="Instantaneous"),0,IF(V16^(1/Y16)*(H31/(D49*H26*H11))^(1/Y16)-P29>1,ROUND(V16^(1/Y16)*(H31/(D49*H26*H11))^(1/Y16)-P29,0),0)) -> 0 | Z41: m | AK41: 0.005455377574 | AL41: 0 | AM41: -5.211153446 | AO41: 200 | AP41: 1 | AS41: 200 | AT41: 1 | AU41: 5.298317367 | AV41: 0 | AW41: 5.298317367 | AX41: 0
C42: Release Elevation, h (Blank assumed at Ground) | H42: =ROUND(E42*AS9,0) -> 0 | I42: m | T42: Instantaneous (equation 10-xx): X = a* [ (Q* / ( Mw Cm ) ]b* - X0 | AE42: Overall Roughness Correction | AF42: =IF(H50="Urban",0.38,IF(H50="Residential",0.5,1)) -> 1 | AG42: X^ | AH42: 0 | AK42: 0.002182750412 | AL42: 0 | AM42: -6.127169541 | AO42: 500 | AP42: 1 | AS42: 500 | AT42: 1 | AU42: 6.214608098 | AV42: 0 | AW42: 6.214608098 | AX42: 0
C43: Release Direction (Assumed Horizontal if Blank) | L43: Check Limit for Total Release Divided by Enclosed Volume (equation 13-30) | X43: =IF(Y17=0,0,"= "&ROUND(V17^(1/Y17),-1)&" [ "&H33&" / ( "&H26&" ( "&ROUND(H11,2)&" )) ]^"&ROUND(1/Y17,2)&" - "&ROUND(P29,1)&" = ") -> 0 | Y43: =IF(OR(H11=0,H26=0,E5="Indoor",Y23="Continuous"),0,IF(V17^(1/Y17)*(H33/(H26*H11))^(1/Y17)-P29>1,ROUND(V17^(1/Y17)*(H33/(H26*H11))^(1/Y17)-P29,0))) -> 0 | Z43: m | AE43: Alternate Overall Roughness Correction | AF43: =AF42 -> 1 | AG43: X^ | AH43: =AH42 -> 0 | AK43: 0.00109147514 | AL43: 0 | AM43: =LN(AK43) -> -6.820225159 | AO43: 1000 | AP43: 1 | AS43: 1000 | AT43: 1 | AU43: 6.907755279 | AV43: 0 | AW43: 6.907755279 | AX43: 0
C44: Enclosed Process Area Volume, VBldg | H44: =ROUND(E44*AS10,1) -> 0 | I44: cu m | N44: CLimit = 2.45 x 107(Q* ) / [ Mw ( VB) ] = | P44: ="2.45 x 10^7 ( "&IF(H33=0,3600*H31,H33)&" ) / [ "&H26&" ( "&H44&" ) ] = " -> 2.45 x 10^7 ( 0 ) / [ 0 ( 0 ) ] = | Q44: =IF(OR(E5<>"Indoor",H26=0,H44=0),0,IF(24500000*IF(H33=0,3600*H31,H33)/(H26*H44)>1000000,1000000,ROUND(24500000*IF(H33=0,3600*H31,H33)/(H26*H44),1))) -> 0 | R44: ppm | AE44: Puff and Dense Gas Roughness based on Overall Correction of 0.38 for Urban and 0.5 for Residential | AJ44: Cm = | AK44: =IF(AG$29="Yes",AF$42*EXP(INDEX(LINEST(AM37:AM43,AL37:AL43),2)),1) -> 1 | AL44: X^ | AM44: =IF(AG$29="Yes",INDEX(LINEST(AM37:AM43,AL37:AL43),1)+AH$42,1) -> 1 | AO44: 2000 | AP44: 1 | AS44: 2000 | AT44: 1 | AU44: 7.60090246 | AV44: 0 | AW44: 7.60090246 | AX44: 0
C45: Enclosed Process Area Ventilation Rate | F45: Air Changes/Hr (Assumed 1 if Blank) | T45: Maximum Ground Level Concentration from Elevated Continuous Release | AJ45: =IF(AG$29="Yes",(AK$44/AK45)^(-1/AM$44),0) -> 0 | AK45: =AG$6*AB40 -> 1 | AL45: Transition Dense Gas | AO45: 5000 | AP45: 1 | AS45: 5000 | AT45: 1 | AU45: 8.517193191 | AV45: 0 | AW45: 8.517193191 | AX45: 0
L46: "Steady State" Concentration within Enclosed Process Area (equation 13-31) | T46: per Neutrally Buoyant Plume Model (equation 13-20) | AB46: NEUTRALLY BUOYANT GAS DISPERSION (Pasquill-Gifford) per Section 13-8 | AJ46: =IF(AG$29="Yes",(AE$67/AK46)^(-1/AG$67),0) -> 0 | AK46: =AK45 -> 1 | AL46: Transition Neutrally Buoyant | AO46: 10000 | AP46: 1 | AS46: 10000 | AT46: 1 | AU46: 9.210340372 | AV46: 0 | AW46: 9.210340372 | AX46: 0
L47: CIndoor = 8.8 x 1010 ( Q / Mw ) / (VR VB + 88020 Q / Mw ) = | V47: X at Cmax per sZ = DH / 21/2 = | W47: =AE49&" X^"&AG49 -> 0.25 X^0.71 | AU47: =EXP(INDEX(LINEST(AV37:AV46,AU37:AU46),2)) -> 1 | AV47: =INDEX(LINEST(AV37:AV46,AU37:AU46),1) -> 0 | AW47: =EXP(INDEX(LINEST(AX37:AX46,AW37:AW46),2)) -> 1 | AX47: =INDEX(LINEST(AX37:AX46,AW37:AW46),1) -> 0
C48: Wind Speed | D48: 3 | E48: m/sec | H48: Atm Stability Class | I48: D | P48: ="8.8 x 10^10 ( "&H31&" / "&H26&" ) / [ "&IF(E45="",1,E45)&" ( "&H44&" ) + 88020 ( "&H31&" ) / "&H26&" ] = " -> 8.8 x 10^10 ( 0 / 0 ) / [ 1 ( 0 ) + 88020 ( 0 ) / 0 ] = | Q48: =IF(AND(E5="Indoor",H26>0),ROUND(88000000000*(H31/H26)/(IF(E45="",1,E45)*H44+88020*H31/H26),1),0) -> 0 | R48: ppm | W48: =" X = [ "&ROUND(Q37,1)&" / (1.41 ("&AE49&")) ]^"&ROUND(1/AG49,2)&" = " -> X = [ 0 / (1.41 (0.25)) ]^1.41 = | X48: =ROUND((Q37/(1.41*AE49))^(1/AG49),1) -> 0 | Y48: m | AD48: Plume Model sY | AE48: =IF(H50="Rural",IF(I48="B",0.23,IF(I48="D",0.12,0.058)),IF(H50="Urban",IF(I48="B",0.76,IF(I48="D",0.38,0.26)),IF(I48="B",0.56,IF(I48="D",0.28,0.19)))) -> 0.12 | AF48: X^ | AG48: =IF(H50="Rural",0.93,IF(H50="Urban",0.83,0.85)) -> 0.93 | AU48: Alt Plume Dispersion | AW48: Plume Dispersion
C49: Alternate Wind Speed | D49: 1.5 | H49: Alternate Stability Class | I49: F | M49: =IF(Q48=Q44,"Limited to the Total Release divided by the Enclosed Volume","") -> Limited to the Total Release divided by the Enclosed Volume | R49: =IF(AND(Q48<>Q44,E45=""),"Assuming a Ventilation Rate of 1 Air Changes per Hour","") ->  | U49: ="sigma z = "&AE49&" X^"&AG49&" = " -> sigma z = 0.25 X^0.71 = | V49: =AE49*X48^AG49 -> 0 | X49: ="sigma y = "&AE48&" X^"&AG48&" = " -> sigma y = 0.12 X^0.93 = | Y49: =AE48*X48^AG48 -> 0 | AD49: Plume Model sZ | AE49: =IF(H50="Rural",IF(I48="B",0.12,IF(I48="D",0.25,0.071)),IF(H50="Urban",IF(I48="B",0.069,IF(I48="D",0.71,0.33)),IF(I48="B",0.068,IF(I48="D",0.41,0.24)))) -> 0.25 | AF49: X^ | AG49: =IF(H50="Rural",IF(I48="B",1,IF(I48="D",0.71,0.72)),IF(H50="Urban",IF(I48="B",1.25,IF(I48="D",0.65,0.71)),IF(I48="B",1.22,IF(I48="D",0.73,0.71)))) -> 0.71
G50: Surface Roughness | H50: Rural | L50: Concentration within Enclosed Process Area Time (equation 13-32) | T50: Cmax = 5730000 ( sZ / sY ) Q / ( Mw u DH2 ) " ground elevation" of 1.2 m used | AD50: Puff Model sX | AE50: =IF(I48="B",0.14,IF(I48="D",0.06,0.02)) -> 0.06 | AF50: X^ | AG50: =IF(I48="B",0.92,IF(I48="D",0.92,0.89))-AH$42/3 -> 0.92 | AS50: Alternate Dense Gas Puff
L51: CIndoor = 1 X 106 [ 1 – exp-[ VR + 88200 Q / ( Mw VB ) t ] / [ Mw VB VR / ( 88200 Q ) + 1 ]: | X51: =" = 5730000 ( "&ROUND(V49,1)&" / "&ROUND(Y49,1)&" ) "&IF(OR(Y21=0,H31<Y21),H31,Y21)&" / [ ( "&H26&" ) "&D48&" ( "&Q37&" - 1.2 )^2 ] = " -> = 5730000 ( 0 / 0 ) 0 / [ ( 0 ) 3 ( 0 - 1.2 )^2 ] = | Y51: =IF(OR(Y35=0,E5="Indoor",Y21<>"Continuous"),0,IF(AND(P5>0,Q37>1.3,E6="Vapor"),IF(5730000*(V49/Y49)*IF(OR(Y21=0,H31<Y21),H31,Y21)/((Q37-1.3)^2*D48*H26)<1000000,ROUND(5730000*(V49/Y49)*IF(OR(Y21=0,H31<Y21),H31,Y21)/((Q37-1.3)^2*D48*H26),1),1000000),1000000)) -> 0 | Z51: ppm | AD51: Puff Model sY | AE51: =IF(I48="B",0.14,IF(I48="D",0.06,0.02)) -> 0.06 | AF51: X^ | AG51: =IF(I48="B",0.92,IF(I48="D",0.92,0.89))-AH$42/3 -> 0.92 | AS51: Puff Model Correlating Parameter, f = | AW51: =IF(AD5>0,AF7*(AG26)^(1/3)/D49^2,0)^0.5 -> 0
L52: Time | M52: Concentration during Release | N52: Concentration | O52: Average Concentration | AD52: Puff Model sZ | AE52: =IF(I48="B",0.53,IF(I48="D",0.15,0.05))/AF$42 -> 0.15 | AF52: X^ | AG52: =IF(I48="B",0.73,IF(I48="D",0.7,0.61))-AH$42/3 -> 0.7 | AS52: Dense Gas Check, f1/6 > 0.15; | AV52: =IF(AF28>0,AW51,0) -> 0 | AW52: =IF(AND(AF7>0,AV52>0.2),"Yes","No") -> No
C53: Copyright © 2026 | T53: Maximum Concentration at Downwind Distance of Interest for X >X0 | AE53: Coefficients for Alternate of Night Weather | AS53: Cm/C0 | AT53: X / ( Q / r0 )1/3 | AU53: Distance | AV53: Cm | AW53: ln(x) | AX53: ln(y)
C54: American Institute of Chemical Engineers | L54: 0 | M54: =IF(OR($E$5<>"Indoor",H$26=0,H$44=0),0,IF(H31=0,Q44,1000000*(1-EXP((IF(E$45="",-1,-E$45)-(88020*H$31)/(H$26*H$44))*L54))/((H$26*H$44*IF(E$45="",1,E$45))/(88200*H$31)+1))) -> 0 | N54: =IF(OR($E$5<>"Indoor",H$26=0,H$44=0),0,IF(AND($H$33>0,$H$31=0),$Q$44,0)) -> 0 | T54: Continuous (equation 13-9): Cm = a Q / [ u Mw ( X + X0 )b ] | AD54: Plume Model sY | AE54: =IF(H50="Rural",IF(I49="B",0.23,IF(I49="D",0.12,0.058)),IF(H50="Urban",IF(I49="B",0.76,IF(I49="D",0.38,0.26)),IF(I49="B",0.56,IF(I49="D",0.28,0.19)))) -> 0.058 | AF54: X^ | AG54: =IF(H50="Rural",0.93,IF(H50="Urban",0.83,0.85)) -> 0.93 | AS54: =0.1*298/(273+H$32)/(0.1*298/(273+H$32)+0.9) -> 0.1081669691 | AT54: =IF(AW$52="Yes",IF(LOG(AW$51)<-0.44,5.01,IF(LOG(AW$51)<0.43,10^(0.81+0.26*LOG(AW$51)),8.51)),"") ->  | AU54: =IF(AND(H$33>0,AT54<>""),AT54*(AG$26)^(1/3),1) -> 1 | AV54: =AG$6*AS54 -> 0.1081669691 | AW54: =LN(AU54) -> 0 | AX54: =LN(AV54) -> -2.224079235
L55: 0.01 | M55: =IF(OR($E$5<>"Indoor",H$26=0,H$44=0),0,MIN($Q$44,1000000*(1-EXP((IF(E$45="",-1,-E$45)-(88020*H$31)/(H$26*H$44))*L55))/((H$26*H$44*IF(E$45="",1,E$45))/(88200*H$31)+1))) -> 0 | N55: =IF(OR($H$31=0,AND($H$33>0,$H$33/(3600*$H$31+0.000001)<L55)),IF(N54=0,$Q$44,N54)/(1+IF($E$45=0,1,$E$45)*(L55-L54)),M55) -> 0 | O55: =(L55-L54)*(N55+N54)/2 -> 0 | Q55: Release Duration = | X55: =" = "&ROUND(V13,1)&" ( "&H31&" ) / [ "&D48&" ( "&H26&" ) ( "&H13&" + "&ROUND(P27,1)&" )^"&ROUND(Y13,2)&" ] = " -> = 0 ( 0 ) / [ 3 ( 0 ) ( 0 + 0 )^0 ] = | Y55: =IF(OR(H26=0,E5="Indoor",E13="",Y21="Instantaneous"),0,IF(H13+P27>0,IF(V13*H31/(H26*D48*(H13+P27)^Y13)>1000000,1000000,ROUND(V13*H31/(H26*D48*(H13+P27)^Y13),1)),1000000)) -> 0 | Z55: ppm | AD55: Plume Model sZ | AE55: =IF(H50="Rural",IF(I49="B",0.12,IF(I49="D",0.25,0.071)),IF(H50="Urban",IF(I49="B",0.069,IF(I49="D",0.71,0.33)),IF(I49="B",0.068,IF(I49="D",0.41,0.24)))) -> 0.071 | AF55: X^ | AG55: =IF(H50="Rural",IF(I49="B",1,IF(I49="D",0.71,0.72)),IF(H50="Urban",IF(I49="B",1.25,IF(I49="D",0.65,0.71)),IF(I49="B",1.22,IF(I49="D",0.73,0.71)))) -> 0.72 | AS55: =0.05*298/(273+H$32)/(0.05*298/(273+H$32)+0.95) -> 0.05432999088 | AT55: =IF(AW$52="Yes",IF(LOG(AW$51)<-0.56,7.08,IF(LOG(AW$51)<0.31,10^(1+0.26*LOG(AW$51)),10^(1.12-0.12*LOG(AW$51)))),"") ->  | AU55: 1 | AV55: 0.05432999088 | AW55: =LN(AU55) -> 0 | AX55: =LN(AV55) -> -2.912678886
L56: 0.02 | M56: =IF(OR($E$5<>"Indoor",H$26=0,H$44=0),0,MIN($Q$44,1000000*(1-EXP((IF(E$45="",-1,-E$45)-(88020*H$31)/(H$26*H$44))*L56))/((H$26*H$44*IF(E$45="",1,E$45))/(88200*H$31)+1))) -> 0 | N56: =IF(OR($H$31=0,AND($H$33>0,$H$33/(3600*$H$31+0.000001)<L56)),N55/(1+IF($E$45=0,1,$E$45)*(L56-L55)),M56) -> 0 | O56: =(L56-L55)*(N56+N55)/2 -> 0 | Q56: =IF($H$31=0,"Instantaneous",IF(OR($H$33=0,$H$33/(3600*$H$31)>1),1,H33/(3600*$H$31))) -> Instantaneous | R56: =IF($H$31=0,""," hr") ->  | T56: Instantaneous (equation 13-13): Cm = a ( Q* / Mw ) / ( X + X0)b | AD56: Puff Model sX | AE56: =IF(I49="B",0.14,IF(I49="D",0.06,0.02)) -> 0.02 | AF56: X^ | AG56: =IF(I49="B",0.92,IF(I49="D",0.92,0.89))-AH$43/3 -> 0.89 | AS56: =0.02*298/(273+H$32)/(0.02*298/(273+H$32)+0.98) -> 0.02179159049 | AT56: =IF(AW$52="Yes",IF(LOG(AW$51)<-0.66,8.91,IF(LOG(AW$51)<0.32,10^(1.19+0.36*LOG(AW$51)),10^(1.38-0.26*LOG(AW$51)))),"") ->  | AU56: 1 | AV56: 0.02179159049 | AW56: 0 | AX56: -3.826231141
L57: 0.05 | M57: 0 | N57: 0 | O57: 0 | X57: =" = "&ROUND(V14,1)&" ( "&H33&" / "&H26&" ) / ( "&H13&" + "&ROUND(P27,1)&" )^"&ROUND(Y14,2)&" = " -> = 0 ( 0 / 0 ) / ( 0 + 0 )^0 = | Y57: =IF(OR(H26=0,E5="Indoor",E13="",Y21="Continuous"),0,IF(H13+P27>0,IF(V14*(H33/H26)/(H13+P27)^Y14>1000000,1000000,ROUND(V14*(H33/H26)/(H13+P27)^Y14,1)),1000000)) -> 0 | Z57: ppm | AD57: Puff Model sY | AE57: =IF(I49="B",0.14,IF(I49="D",0.06,0.02)) -> 0.02 | AF57: X^ | AG57: =IF(I49="B",0.92,IF(I49="D",0.92,0.89))-AH$43/3 -> 0.89 | AS57: =0.01*298/(273+H$32)/(0.01*298/(273+H$32)+0.99) -> 0.01090576395 | AT57: =IF(AW$52="Yes",IF(LOG(AW$51)<-0.71,14.1,IF(LOG(AW$51)<0.37,10^(1.39+0.34*LOG(AW$51)),10^(1.66-0.38*LOG(AW$51)))),"") ->  | AU57: 1 | AV57: 0.01090576395 | AW57: 0 | AX57: -4.518463827
L58: 0.1 | M58: 0 | N58: 0 | O58: 0 | Q58: Average Concentration (by summation of time increments) = | W58: =IF(H13+P27>0,"","Distance of Interest less than Initial Dilution Transition Distance - correlation does not apply") -> Distance of Interest less than Initial Dilution Transition Distance - correlation does not apply | AD58: Puff Model sZ | AE58: =IF(I49="B",0.53,IF(I49="D",0.15,0.05))/AF$43 -> 0.05 | AF58: X^ | AG58: =IF(I49="B",0.73,IF(I49="D",0.7,0.61))-AH$43/3 -> 0.61 | AS58: =0.005*298/(273+H$32)/(0.005*298/(273+H$32)+0.995) -> 0.005455377574 | AT58: =IF(AW$52="Yes",IF(LOG(AW$51)<-0.52,30.2,IF(LOG(AW$51)<0.24,10^(1.62+0.26*LOG(AW$51)),10^(1.75-0.3*LOG(AW$51)))),"") ->  | AU58: 1 | AV58: 0.005455377574 | AW58: 0 | AX58: -5.211153446
L59: 0.2 | M59: 0 | N59: 0 | O59: 0 | T59: Ground Level Concentration at Downwind Distance of Interest (equation 13-19) | AB59: The above neutrally buoyant dispersion coefficient correlations per: Guidelines for Chemical Process Quantitative Risk Analysis, CCPS, 2nd. "Residential" Surface Roughness interpolated to correspond to z0 of 0.5 to 1 m. Overall puff dispersion assumed to have the same response to surface roughness as plumes with correction distributed equally across sX, sY, and sZ. | AS59: =0.002*298/(273+H$32)/(0.002*298/(273+H$32)+0.998) -> 0.002182750412 | AT59: =IF(AW$52="Yes",IF(LOG(AW$51)<0.27,67.6,10^(1.92-0.32*LOG(AW$51))),"") ->  | AU59: 1 | AV59: 0.002182750412 | AW59: 0 | AX59: -6.127169541
L60: 0.3 | M60: 0 | N60: 0 | O60: 0 | Q60: =O66 -> 0 | R60: ppm | T60: C = Cm exp [ -0.5 ( DH / sZ } 2 ] "ground elevation" of 1.2 m used | AS60: =0.001*298/(273+H$32)/(0.001*298/(273+H$32)+0.999) -> 0.00109147514 | AT60: =IF(AW$52="Yes",IF(LOG(AW$51)<-0.1,118.9,10^(2.05-0.27*LOG(AW$51))),"") ->  | AU60: 1 | AV60: 0.00109147514 | AW60: =LN(AU60) -> 0 | AX60: =LN(AV60) -> -6.820225159
L61: 0.4 | M61: 0 | N61: 0 | O61: 0 | X61: =" = ( "&IF(Y21="Instantaneous",Y57,Y55)&" ) exp [ -0.5 { ( "&Q37&" - 1.2 ) / ( "&AE49&" ( "&H13&" + "&ROUND(P27,1)&" )^"&AG49&" ) }^2 ] = " -> = ( 0 ) exp [ -0.5 { ( 0 - 1.2 ) / ( 0.25 ( 0 + 0 )^0.71 ) }^2 ] = | Y61: =IF(AND(Q37-1.2>0,E6="Vapor",E42<>"",Y21<>"Instantaneous"),ROUND(Y55*EXP(-0.5*((Q37-1.2)/(AE49*(H13+IT28)^AG49))^2),1),0) -> 0 | Z61: ppm | AK61: Combined Puff Correlation: | AL61: X = | AM61: =IF(AO62<>0,AW76^(-1/AO62),0) -> 0 | AN61: Cm^ | AO61: =IF(AO62<>0,1/AO62,0) -> 0 | AT61: Transition Dense Gas | AU61: =IF(AND(AW$52="Yes",AD5>0),(AW61/AV61)^(-1/AX61),0) -> 0 | AV61: =IF(AND(AW$52="Yes",AD$5>0),AG$6*0.2^3/AW$51^3,1) -> 1 | AW61: =IF(AW$52="Yes",AF$43*EXP(INDEX(LINEST(AX54:AX60,AW54:AW60),2)),1) -> 1 | AX61: =IF(AW$52="Yes",INDEX(LINEST(AX54:AX60,AW54:AW60),1)+AH$43,1) -> 1
L62: 0.5 | M62: 0 | N62: 0 | O62: 0 | Q62: Estimated Average Concentration using Equation 13-32 at t = Release Duration / 2 | AJ62: (Instantaneous) | AL62: Cm = | AM62: =AW76 -> 1 | AN62: X^ | AO62: =AX76 -> 0 | AT62: Transition Neutrally Buoyant | AU62: =IF(AW$52="Yes",(AE$74/AV62)^(-1/AG$74),0) -> 0 | AV62: =AV61 -> 1
L63: 0.6 | M63: 0 | N63: 0 | O63: 0
L64: 0.8 | M64: 0 | N64: 0 | O64: 0 | Q64: =IF(OR($E$5<>"Indoor",H$26=0,H$44=0),0,IF(H31=0,Q44/(1+0.5*IF(E$45="",1,E$45)),MIN($Q$44,1000000*(1-EXP((IF(E$45="",-1,-E$45)-(88020*H$31)/(H$26*H$44))*Q56/2))/((H$26*H$44*IF(E$45="",1,E$45))/(88200*H$31)+1)))) -> 0 | R64: ppm | AC64: Plume Correlation: | AD64: Cm = | AE64: =IF(H$26>0,(24.45*H$31/(H$26*D$48))*IF(F7="Yes",2,1)/(3.142*AE48*AE49),0) -> 0 | AF64: X^ | AG64: =-(AG48+AG49) -> -1.64 | AJ64: COMBINED MODEL PUFF ISOPLETH at GROUND ELEVATION based on Neutrally Buoyant Dispersion Coefficients | AS64: Combined Puff Model
L65: 1 | M65: 0 | N65: 0 | O65: 0 | AD65: X = | AE65: =IF(AE64>0,AE64^(-1/AG64),0) -> 0 | AF65: Cm ^ | AG65: =1/AG64 -> -0.6097560976 | AS65: Distance | AT65: Cm | AU65: ln(X) | AV65: ln(Y) | AW65: ln(X) | AX65: ln(Y)
N66: Average = | O66: =SUM(O55:O65) -> 0 | AN66: Based on Distance to Concentration of Interest | AO66: =Y$37 -> 0 | AP66: m | AS66: 10 | AT66: =IF(AE$74>0,IF(AND(AW$52="Yes",AS66<AU$61),AW$61*AS66^AX$61,AE$74*(AS66-AU$61+AU$62)^AG$74),1) -> 1 | AU66: =LN(AS66) -> 2.302585093 | AV66: =LN(AT66) -> 0 | AW66: =LN(AO37) -> 2.302585093 | AX66: =LN(AP37) -> 0
AC67: Puff Correlation: | AD67: Cm = | AE67: =IF(H$26>0,2*H$33*(24.45/H$26)*IF(F7="Yes",2,1)/((2*3.142)^1.5*AE50*AE51*AE52),0) -> 0 | AF67: X^ | AG67: =-(AG50+AG51+AG52) -> -2.54 | AN67: Concentration of Interest | AO67: =H$11 -> 0 | AP67: ppmv | AS67: 20 | AT67: 1 | AU67: =LN(AS67) -> 2.995732274 | AV67: =LN(AT67) -> 0 | AW67: =LN(AO38) -> 2.995732274 | AX67: =LN(AP38) -> 0
AD68: X = | AE68: =IF(AE67>0,AE67^(-1/AG67),0) -> 0 | AF68: Cm^ | AG68: =1/AG67 -> -0.3937007874 | AN68: and Time to Distance to Concentration of Interest | AO68: =AO66/D48 -> 0 | AP68: sec | AS68: 50 | AT68: 1 | AU68: 3.912023005 | AV68: 0 | AW68: =LN(AO39) -> 3.912023005 | AX68: 0
AK69: Time (sec) | AL69: Distance, X | AM69: sY, sX | AN69: Cm | AO69: Distance, Y | AP69: X-ut | AS69: 100 | AT69: 1 | AU69: 4.605170186 | AV69: 0 | AW69: =LN(AO40) -> 4.605170186 | AX69: 0
AE70: Coefficients for Alternate of Night Weather | AK70: =0.1*AO$68 -> 0 | AL70: =AK70*D$48 -> 0 | AM70: =IF(AL70>0,AE$51*AL70^AG$51,1) -> 1 | AN70: =IF(AL70>0,IF(V$14*(H$33/H$26)/(AL70+P$27)^Y$14>1000000,1000000,V$14*(H$33/H$26)/(AL70+P$27)^Y$14),0) -> 0 | AO70: =IF(AL70>0,AM70*(-2*LN(AO$67/AN70))^0.5,0) -> 0 | AP70: =AO70 -> 0 | AS70: 200 | AT70: 1 | AU70: 5.298317367 | AV70: 0 | AW70: =LN(AO41) -> 5.298317367 | AX70: 0
AC71: Plume Correlation: | AD71: Cm = | AE71: =IF(H$26>0,(24.45*H$31/(H$26*D$49))*IF(F7="Yes",2,1)/(3.142*AE54*AE55),0) -> 0 | AF71: X^ | AG71: =-(AG54+AG55) -> -1.65 | AL71: =AL70-AO70 -> 0 | AN71: =AN70*EXP(-0.5*(AO70/AM70)^2) -> 0 | AO71: 0 | AP71: =AO71 -> 0 | AS71: 500 | AT71: 1 | AU71: 6.214608098 | AV71: 0 | AW71: =LN(AO42) -> 6.214608098 | AX71: 0
AD72: X = | AE72: =IF(AE71>0,AE71^(-1/AG71),0) -> 0 | AF72: Cm ^ | AG72: =1/AG71 -> -0.6060606061 | AL72: =AL70-0.67*AO70 -> 0 | AN72: =AN70*EXP(-0.5*(0.67*AO70/AM70)^2) -> 0 | AO72: =IF(AN72>0,AM70*(-2*LN(AO$67/AN72))^0.5,0) -> 0 | AP72: =AO72 -> 0 | AS72: 1000 | AT72: 1 | AU72: 6.907755279 | AV72: 0 | AW72: =LN(AO43) -> 6.907755279 | AX72: 0
AL73: =AL70 -> 0 | AN73: =AN70 -> 0 | AO73: =AO70 -> 0 | AP73: 0 | AS73: 2000 | AT73: 1 | AU73: 7.60090246 | AV73: 0 | AW73: =LN(AO44) -> 7.60090246 | AX73: 0
AC74: Puff Correlation: | AD74: Cm = | AE74: =IF(H$26>0,2*H$33*(24.45/H$26)*IF(F7="Yes",2,1)/((2*3.142)^1.5*AE56*AE57*AE58),0) -> 0 | AF74: X^ | AG74: =-(AG56+AG57+AG58) -> -2.39 | AL74: =AL70+0.67*AO70 -> 0 | AN74: =AN70*EXP(-0.5*(0.67*AO70/AM70)^2) -> 0 | AO74: =IF(AN74>0,AM70*(-2*LN(AO$67/AN74))^0.5,0) -> 0 | AP74: 0 | AS74: 5000 | AT74: 1 | AU74: 8.517193191 | AV74: 0 | AW74: =LN(AO45) -> 8.517193191 | AX74: 0
AD75: X = | AE75: =IF(AE74>0,AE74^(-1/AG74),0) -> 0 | AF75: Cm^ | AG75: =1/AG74 -> -0.4184100418 | AL75: =AL70+AO70 -> 0 | AN75: =AN70*EXP(-0.5*(AO70/AM70)^2) -> 0 | AO75: 0 | AP75: 0 | AS75: 10000 | AT75: 1 | AU75: 9.210340372 | AV75: 0 | AW75: =LN(AO46) -> 9.210340372 | AX75: 0
AL76: =AL74 -> 0 | AO76: =-AO74 -> 0 | AP76: =AO76 -> 0 | AU76: =EXP(INDEX(LINEST(AV66:AV75,AU66:AU75),2)) -> 1 | AV76: =INDEX(LINEST(AV66:AV75,AU66:AU75),1) -> 0 | AW76: =EXP(INDEX(LINEST(AX66:AX75,AW66:AW75),2)) -> 1 | AX76: =INDEX(LINEST(AX66:AX75,AW66:AW75),1) -> 0
AB77: COMBINED MODEL PLUME ISOPLETH based on Neutrally Buoyant Dispersion Coefficients | AL77: =AL73 -> 0 | AO77: =-AO73 -> 0 | AP77: =AO77 -> 0 | AU77: Alt Puff Dispersion | AW77: Puff Dispersion
AL78: =AL72 -> 0 | AO78: =-AO72 -> 0 | AP78: 0
AF79: Based on Distance to Concentration of Interest | AG79: =Y$35 -> 0 | AH79: m | AL79: =AL71 -> 0 | AO79: =-AO71 -> 0 | AP79: 0 | AS79: Alternate Puff Cloud Width at 1/2 Distance to Concentration of Interest
AF80: Concentration of Interest | AG80: =H$11 -> 0 | AH80: ppmv | AK80: =0.25*AO$68 -> 0 | AL80: =AK80*D$48 -> 0 | AM80: =IF(AL80>0,AE$51*AL80^AG$51,1) -> 1 | AN80: =IF(AL80>0,IF(V$14*(H$33/H$26)/(AL80+P$27)^Y$14>1000000,1000000,V$14*(H$33/H$26)/(AL80+P$27)^Y$14),0) -> 0 | AO80: =IF(AL80>0,AM80*(-2*LN(AO$67/AN80))^0.5,0) -> 0 | AP80: =AO80 -> 0 | AT80: Distance, X | AU80: sY, sX | AV80: Cm | AW80: Distance, Y
AF81: Equivalent Release Elevation (vapor release only) | AG81: =Q$37 -> 0 | AH81: m | AL81: =AL80-AO80 -> 0 | AN81: =AN80*EXP(-0.5*(AO80/AM80)^2) -> 0 | AO81: 0 | AP81: =AO81 -> 0 | AT81: =Y43*0.5 -> 0 | AU81: =AE57*AT81^AG57 -> 0 | AV81: =IF(AT81>0,IF(V$17*(H$33/H$26)/(AT81+P$27)^Y$17>1000000,1000000,V$17*(H$33/H$26)/(AT81+P$27)^Y$17),0) -> 0 | AW81: =IF(AT81>0,AU81*(-2*LN(AO$67/AV81))^0.5,0) -> 0
AC82: Distance, X | AD82: sY | AE82: Cm | AF82: Distance, Y | AG82: Area | AL82: =AL80-0.67*AO80 -> 0 | AN82: =AN80*EXP(-0.5*(0.67*AO80/AM80)^2) -> 0 | AO82: =IF(AN82>0,AM80*(-2*LN(AO$67/AN82))^0.5,0) -> 0 | AP82: =AO82 -> 0
AC83: 0 | AD83: 0 | AE83: =AG6*1000000 -> 1000000 | AF83: 0 | AG83: 0 | AL83: =AL80 -> 0 | AN83: =AN80 -> 0 | AO83: =AO80 -> 0 | AP83: 0
AC84: =0.05*AG$79 -> 0 | AD84: =AE$48*AC84^AG$48 -> 0 | AE84: =IF(AG$79=0,0,IF(V$13*IF(F$7="Yes",2,1)*H$31/(H$26*D$48*(AC84+P$27)^Y$13)>1000000,1000000,V$13*IF(F$7="Yes",2,1)*H$31/(H$26*D$48*(AC84+P$27)^Y$13))*EXP(-0.5*((Q$37-1.2)/(AE$49*(AC84+P$27)^AG$49))^2)) -> 0 | AF84: =IF(AND(Y$21="Continuous",AG$79>0,AE84>AG$80),(-2*LN(AE$94/AE84)*AD84^2)^0.5,0) -> 0 | AG84: =(AC84-AC83)*(AF84+AF83)/2 -> 0 | AL84: =AL80+0.67*AO80 -> 0 | AN84: =AN80*EXP(-0.5*(0.67*AO80/AM80)^2) -> 0 | AO84: =IF(AN84>0,AM80*(-2*LN(AO$67/AN84))^0.5,0) -> 0 | AP84: 0
AC85: =0.1*AG$79 -> 0 | AD85: 0 | AE85: 0 | AF85: 0 | AG85: =(AC85-AC84)*(AF85+AF84)/2 -> 0 | AL85: =AL80+AO80 -> 0 | AN85: =AN80*EXP(-0.5*(AO80/AM80)^2) -> 0 | AO85: 0 | AP85: 0
AC86: =0.2*AG$79 -> 0 | AD86: 0 | AE86: 0 | AF86: 0 | AG86: 0 | AL86: =AL84 -> 0 | AO86: =-AO84 -> 0 | AP86: =AO86 -> 0
AC87: =0.4*AG$79 -> 0 | AD87: 0 | AE87: 0 | AF87: 0 | AG87: 0 | AL87: =AL83 -> 0 | AO87: =-AO83 -> 0 | AP87: =AO87 -> 0
AC88: =0.6*AG$79 -> 0 | AD88: 0 | AE88: 0 | AF88: 0 | AG88: 0 | AL88: =AL82 -> 0 | AO88: =-AO82 -> 0 | AP88: 0
AC89: =0.8*AG$79 -> 0 | AD89: 0 | AE89: 0 | AF89: 0 | AG89: 0 | AL89: =AL81 -> 0 | AO89: =-AO81 -> 0 | AP89: 0
AC90: =0.9*AG$79 -> 0 | AD90: 0 | AE90: 0 | AF90: 0 | AG90: 0 | AK90: =0.5*AO$68 -> 0 | AL90: =AK90*D$48 -> 0 | AM90: =IF(AL90>0,AE$51*AL90^AG$51,1) -> 1 | AN90: =IF(AL90>0,IF(V$14*(H$33/H$26)/(AL90+P$27)^Y$14>1000000,1000000,V$14*(H$33/H$26)/(AL90+P$27)^Y$14),0) -> 0 | AO90: =IF(AL90>0,AM90*(-2*LN(AO$67/AN90))^0.5,0) -> 0 | AP90: =AO90 -> 0
AC91: =0.95*AG$79 -> 0 | AD91: 0 | AE91: 0 | AF91: 0 | AG91: 0 | AL91: =AL90-AO90 -> 0 | AN91: =AN90*EXP(-0.5*(AO90/AM90)^2) -> 0 | AO91: 0 | AP91: =AO91 -> 0
AC92: =0.98*AG$79 -> 0 | AD92: 0 | AE92: 0 | AF92: 0 | AG92: 0 | AL92: =AL90-0.67*AO90 -> 0 | AN92: =AN90*EXP(-0.5*(0.67*AO90/AM90)^2) -> 0 | AO92: =IF(AN92>0,AM90*(-2*LN(AO$67/AN92))^0.5,0) -> 0 | AP92: =AO92 -> 0
AC93: =0.99*AG$79 -> 0 | AD93: 0 | AE93: 0 | AF93: 0 | AG93: 0 | AL93: =AL90 -> 0 | AN93: =AN90 -> 0 | AO93: =AO90 -> 0 | AP93: 0
AC94: =AG$79 -> 0 | AD94: 0 | AE94: 0 | AF94: 0 | AG94: 0 | AL94: =AL90+0.67*AO90 -> 0 | AN94: =AN90*EXP(-0.5*(0.67*AO90/AM90)^2) -> 0 | AO94: =IF(AN94>0,AM90*(-2*LN(AO$67/AN94))^0.5,0) -> 0 | AP94: 0
AC95: 0 | AF95: 0 | AL95: =AL90+AO90 -> 0 | AN95: =AN90*EXP(-0.5*(AO90/AM90)^2) -> 0 | AO95: 0 | AP95: 0
AC96: =AC84 -> 0 | AF96: =-AF84 -> 0 | AL96: =AL94 -> 0 | AO96: =-AO94 -> 0 | AP96: =AO96 -> 0
AC97: =AC85 -> 0 | AF97: =-AF85 -> 0 | AL97: =AL93 -> 0 | AO97: =-AO93 -> 0 | AP97: =AO97 -> 0
AC98: 0 | AF98: 0 | AL98: =AL92 -> 0 | AO98: =-AO92 -> 0 | AP98: 0
AC99: 0 | AF99: 0 | AL99: =AL91 -> 0 | AO99: =-AO91 -> 0 | AP99: 0
AC100: 0 | AF100: 0 | AK100: =0.75*AO$68 -> 0 | AL100: =AK100*D$48 -> 0 | AM100: =IF(AL100>0,AE$51*AL100^AG$51,1) -> 1 | AN100: =IF(AL100>0,IF(V$14*(H$33/H$26)/(AL100+P$27)^Y$14>1000000,1000000,V$14*(H$33/H$26)/(AL100+P$27)^Y$14),0) -> 0 | AO100: =IF(AL100>0,AM100*(-2*LN(AO$67/AN100))^0.5,0) -> 0 | AP100: =AO100 -> 0
AC101: 0 | AF101: 0 | AL101: =AL100-AO100 -> 0 | AN101: =AN100*EXP(-0.5*(AO100/AM100)^2) -> 0 | AO101: 0 | AP101: =AO101 -> 0
AC102: 0 | AF102: 0 | AL102: =AL100-0.67*AO100 -> 0 | AN102: =AN100*EXP(-0.5*(0.67*AO100/AM100)^2) -> 0 | AO102: =IF(AN102>0,AM100*(-2*LN(AO$67/AN102))^0.5,0) -> 0 | AP102: =AO102 -> 0
AC103: 0 | AF103: 0 | AL103: =AL100 -> 0 | AN103: =AN100 -> 0 | AO103: =AO100 -> 0 | AP103: 0
AC104: 0 | AF104: 0 | AL104: =AL100+0.67*AO100 -> 0 | AN104: =AN100*EXP(-0.5*(0.67*AO100/AM100)^2) -> 0 | AO104: =IF(AN104>0,AM100*(-2*LN(AO$67/AN104))^0.5,0) -> 0 | AP104: 0
AC105: 0 | AF105: 0 | AL105: =AL100+AO100 -> 0 | AN105: =AN100*EXP(-0.5*(AO100/AM100)^2) -> 0 | AO105: 0 | AP105: 0
AC106: 0 | AF106: 0 | AL106: =AL104 -> 0 | AO106: =-AO104 -> 0 | AP106: =AO106 -> 0
AL107: =AL103 -> 0 | AO107: =-AO103 -> 0 | AP107: =AO107 -> 0
AL108: =AL102 -> 0 | AO108: =-AO102 -> 0 | AP108: 0
AL109: =AL101 -> 0 | AO109: =-AO101 -> 0 | AP109: 0
AK110: =0.95*AO$68 -> 0 | AL110: =AK110*D$48 -> 0 | AM110: =IF(AL110>0,AE$51*AL110^AG$51,1) -> 1 | AN110: =IF(AL110>0,IF(V$14*(H$33/H$26)/(AL110+P$27)^Y$14>1000000,1000000,V$14*(H$33/H$26)/(AL110+P$27)^Y$14),0) -> 0 | AO110: =IF(AL110>0,AM110*(-2*LN(AO$67/AN110))^0.5,0) -> 0 | AP110: =AO110 -> 0
AL111: =AL110-AO110 -> 0 | AN111: =AN110*EXP(-0.5*(AO110/AM110)^2) -> 0 | AO111: 0 | AP111: =AO111 -> 0
AL112: =AL110-0.67*AO110 -> 0 | AN112: =AN110*EXP(-0.5*(0.67*AO110/AM110)^2) -> 0 | AO112: =IF(AN112>0,AM110*(-2*LN(AO$67/AN112))^0.5,0) -> 0 | AP112: =AO112 -> 0
AL113: =AL110 -> 0 | AN113: =AN110 -> 0 | AO113: =AO110 -> 0 | AP113: 0
AL114: =AL110+0.67*AO110 -> 0 | AN114: =AN110*EXP(-0.5*(0.67*AO110/AM110)^2) -> 0 | AO114: =IF(AN114>0,AM110*(-2*LN(AO$67/AN114))^0.5,0) -> 0 | AP114: 0
AL115: =AL110+AO110 -> 0 | AN115: =AN110*EXP(-0.5*(AO110/AM110)^2) -> 0 | AO115: 0 | AP115: 0
AL116: =AL114 -> 0 | AO116: =-AO114 -> 0 | AP116: =AO116 -> 0
AL117: =AL113 -> 0 | AO117: =-AO113 -> 0 | AP117: =AO117 -> 0
AL118: =AL112 -> 0 | AO118: =-AO112 -> 0 | AP118: 0
AL119: =AL111 -> 0 | AO119: =-AO111 -> 0 | AP119: 0
AF122: Based on Concentration of Interest | AG122: =H$11 -> 0 | AH122: ppmv | AK122: ="Time = "&ROUND(AK70,1)&" sec" -> Time = 0 sec | AL122: ="Time = "&ROUND(AK80,1)&" sec" -> Time = 0 sec | AM122: ="Time = "&ROUND(AK90,1)&" sec" -> Time = 0 sec | AN122: ="Time = "&ROUND(AK100,1)&" sec" -> Time = 0 sec | AO122: ="Time = "&ROUND(AK110,1)&" sec" -> Time = 0 sec
AF123: Equivalent Release Elevation | AG123: =AG81 -> 0 | AH123: m
AE124: Cloud Footprint Area = | AF124: =2*SUM(AG84:AG94) -> 0 | AG124: m2
AE125: Note that footprint area will be greater for dense gas release
AO137: Based on Concentration of Interest | AP137: =H$11 -> 0 | AQ137: ppmv

Sheet Explosions
L1: SIMPLE TNT MODEL per Section 14.4 | U1: BAKER-STREHLOW-TANG MODEL per Section 14.6
E2: EXPLOSION INPUT INFORMATION | AE2: Conversion Factors
D3: Required Inputs are Shaded "Yellow" | O3: Physical Explosion | X3: Building or Head Space Explosion
B4: STEP 1 - Select Type of Explosion and Distance of Interest | R4: Note: PA = 101.3 kPa | AE4: =IF(F8<>"",VLOOKUP(F8,Conversion_Table,2,0),1) -> 1
C5: Type of Explosion: | L5: Equivalent Vapor Volume, V* = VV + VL FV (rL/rV) (equation 14-2) | V5: Fuel Reactivity | W5: Obstacle Density or Congestion | AE5: =IF(F12<>"",VLOOKUP(F12,Conversion_Table,2,0),1) -> 1
A6: Input Units may be changed - Input Values in "blue" will be converted to appropriate equation units | P6: =" = ( "&H13&" ) [ ( "&E15&" ) ( "&E16&" ) ( "&H28&" / ( "&H32&" ) + ( 1 - "&E15&" ) ] =" -> = ( 0 ) [ ( ) ( ) ( / ( ) + ( 1 - ) ] = | Q6: =IF(AND(E5="Physical Explosion (Equipment Rupture)",H32<>""),ROUND(H13*(E15*E16*H28/H32+(1-E15)),2),H13) -> 0 | R6: m3 | W6: Low | X6: Medium | Y6: High | Z6: =IF(E38="Yes","Use Mach > 1 for 1 D Confinement","Use Mach "&AE15&" for "&IF(H30="Class 1 Dust",V9,IF(H30<>"High",V8,V7))&"Fuel Reactivity and "&IF(E37="Low",W6,IF(E37="High",Y6,X6))&" Confinement") -> Use Mach 0.5 for Low-Medium Fuel Reactivity and Medium Confinement | AE6: =IF(F13<>"",VLOOKUP(F13,Conversion_Table,2,0),1) -> 1
E7: Input Value | F7: Input Units | H7: Equation Input | I7: Equation Units | L7: Physical Explosion Energy (equation 14-1), QPV = V* PB [ ln ( PB / PA ) + ( PA / PB ) - 1 ] | V7: High | W7: 0.5 | X7: >1 | Y7: >1 | AE7: =IF(F20<>"",VLOOKUP(F20,Conversion_Table,2,0),1) -> 1
C8: Distance of Interest, X | H8: =ROUND(E8*AE4,1) -> 0 | I8: m | P8: =" = ( "&Q6&" ) ( "&H12+101.3&" ) [ LN ("&H12+101.3&" / 101.3 ) + ( 101.3 / "&H12+101.3&" ) - 1 ] = " -> = ( 0 ) ( 101.3 ) [ LN (101.3 / 101.3 ) + ( 101.3 / 101.3 ) - 1 ] = | Q8: =IF($E$5="Physical Explosion (Equipment Rupture)",ROUND(Q6*(101.3+H12)*(LN((101.3+H12)/101.3)+101.3/(101.3+H12)-1),1),0) -> 0 | R8: kJ | V8: Low-Medium | W8: 0.35 | X8: 0.5 | Y8: 1 | AE8: =IF(F21<>"",VLOOKUP(F21,Conversion_Table,2,0),1) -> 1
M9: kgTNTeq = QPV / 4690 = | N9: =ROUND(Q8/4690,2) -> 0 | O9: kg | V9: Class I Dust | X9: 0.35 | Y9: 0.5 | AE9: =IF(F36<>"",VLOOKUP(F36,Conversion_Table,2,0),1) -> 1
B10: STEP 2 - Enter Equipment Burst Pressure and Volume for Physical Explosion | I10: =IF(E5<>"Physical Explosion (Equipment Rupture)","Skip Step","") -> Skip Step | AE10: =IF(F43<>"",VLOOKUP(F43,Conversion_Table,2,0),1) -> 1
B11: Physical Explosion (Rupture) Inputs: | E11: Input Value | F11: Input Units | H11: Equation Input | L11: Scaled Overpressure at 1 psi = 0.068 | Y11: Potential Explosion Site (PES) Volume, VPES = VB = | Z11: =IF($E$5="Building or Head Space Explosion",H36,0) -> 0 | AA11: m3 | AE11: =IF(F44<>"",VLOOKUP(F44,Conversion_Table,2,0),1) -> 1
C12: Burst Pressure (gauge), PB - P0 | H12: =ROUND(E12*AE5,1) -> 0 | I12: kPa gauge | L12: Scaled Distance = 18 = X / kgTNTeq1/3 | AE12: =IF(F45<>"",VLOOKUP(F45,Conversion_Table,2,0),1) -> 1
C13: Equipment Volume, VEquip | H13: =ROUND(E13*AE6,4) -> 0 | I13: cu m | N13: ="Distance to 1 psi = 18 ( "&N9&" )^1/3 = " -> Distance to 1 psi = 18 ( 0 )^1/3 = | O13: =IF(AND(N9>0,$E$5="Physical Explosion (Equipment Rupture)"),ROUND(18*(N9)^0.333,1)&" m",0) -> 0 | X13: Explosion Energy (equation 14-6), QE = 3500 VPES = | AA13: Note: PA = 101.3 kPa | AE13: =IF(F46<>"",VLOOKUP(F46,Conversion_Table,2,0),1) -> 1
C14: Burst Temperature, TBurst | H14: =IF(F14="F",ROUND((E14-32)/1.8,1),E14) -> 0 | I14: C | V14: =" 3500 kJ/m^3 ( "&H36&" m^3 ) = " -> 3500 kJ/m^3 ( 0 m^3 ) = | W14: =ROUND(3500*Z11,-1) -> 0 | X14: kJ | AD14: Building Explosion
C15: Fraction Liquid Level (if Superheated), FF | L15: From Graph, Scaled Distance, R = X / kgTNTeq1/3 = | U15: Scaled Overpressure at 1 psi = 0.068 | AD15: Mach No. | AE15: =IF(E38="Yes",">1",IF(H30="Class 1 Dust",IF(E37="Low",0,IF(E37="High",0.5,0.35)),IF(H30="High",IF(E37="Low",0.5,">1"),IF(E37="Low",0.35,IF(E37="High",1,0.5))))) -> 0.5
C16: Flash Fract during Depressurization, FV | M16: =H8&" / ( "&N9&" )^1/3 = " -> 0 / ( 0 )^1/3 = | N16: =IF(N9>0,ROUND(H8/(N9)^0.333,2),0) -> 0 | W16: Scaled Distance, R = X / (2 QE / P0 )1/3 = | X16: =IF(OR(AND(H30="Class 1 Dust",E37="Low"),E5<>"Building or Head Space Explosion"),0,IF(AE15=1,4.1,IF(AE15=0.5,2.5,IF(AE15=0.35,1.5,5)))) -> 0 | AD16: Mach >1 | AE16: =IF(X21>0,IF(0.45/X21^1.17<20,0.45/X21^1.17,20),0) -> 0
L17: Scaled Overpressure = | N17: =IF(N16<=0,0,IF(EXP(160/(8.3+LN(N16))-17)>MIN(0.7,H12/101.3),"> "&MIN(0.7,ROUND(H12/101.3,3)),MIN(ROUND(H12/101.3,3),ROUND(EXP(160/(8.3+LN(N16))-17),3)))) -> 0 | U17: Distance to 1 psi = R (2 QE / P0 )1/3 = | AD17: Mach 1 | AE17: =IF(X21>0,IF(0.33/X21^1.12<1.2,0.33/X21^1.12,1.2),0) -> 0
B18: STEP 3 - Enter Quantity and Heat of Reaction for Condensed Phase Explosion | I18: =IF(E5<>"Condensed Phase Explosive","Skip Step","") -> Skip Step | M18: ="Overpressure at "&H8&" m = " -> Overpressure at 0 m = | N18: =IF(N17=0,0,IF(N17="> "&MIN(0.7,ROUND(H12/101.3,3)),"> "&MIN(10,ROUND(14.7*H12/101.3,2)),ROUND(N17*14.7,1)))& " psi or" -> 0 psi or | O18: =IF(N17=0,0,IF(N17="> "&MIN(0.7,ROUND(H12/101.3,3)),"> "&MIN(69,ROUND(101.3*H12/101.3,2)),ROUND(N17*101.3,1)))& " kPa" -> 0 kPa | W18: =X16&" [ 2 ( "&W14&" ) / 101.3 ]^1/3 = " -> 0 [ 2 ( 0 ) / 101.3 ]^1/3 = | X18: =IF(OR(AND(H30="Class 1 Dust",E37="Low"),E5<>"Building or Head Space Explosion"),0,ROUND(X16*(2*W14/101.3)^0.333,1)&" m") -> 0 | AD18: Mach 0.5 | AE18: =IF(X21>0,IF(0.18/X21^1.06<0.45,0.18/X21^1.06,0.45),0) -> 0
B19: Condensed Phase Explosive Inputs: | E19: Input Value | F19: Input Units | H19: Equation Input | AD19: Mach 0.35 | AE19: =IF(X21>0,IF(0.1/X21<0.22,0.1/X21,0.22),0) -> 0
C20: Mass of Material, M | H20: =IF(E20="",0,ROUND(E20*AE7,2)) -> 0 | I20: kg | L20: SIMPLE TNT MODEL | U20: From Graph, Scaled Distance, R = X / (2 QE / P0 )1/3 = | AD20: Scaled Overpressure | AE20: =IF(AND(H30="Class 1 Dust",E37="Low"),0,IF(AE15=1,AE17,IF(AE15=0.5,AE18,IF(AE15=0.35,AE19,AE16)))) -> 0
C21: Heat of Reaction per Mass, DHR | H21: =IF(E21="",0,ROUND(E21*AE8,1)) -> 0 | I21: kJ/kg | W21: =H8&" / [ 2 ( "&W14&" ) / 101.3 ]^1/3 = " -> 0 / [ 2 ( 0 ) / 101.3 ]^1/3 = | X21: =IF(W14>0,ROUND(H8/(2*W14/101.3)^0.333,3),0) -> 0 | AD21: Vapor Cloud Explosion
O22: Condensed Phase Explosive | U22: Scaled Overpressure = | W22: =IF(AE20>0.7,"> 0.7",ROUND(AE20,3)) -> 0 | AD22: Mach No. | AE22: =IF(H30="High",IF(E47="Low",0.5,">1"),IF(E47="Low",0.35,IF(E47="High",1,0.5))) -> 0.5
B23: STEP 4 - Enter Chemical Properties (or Select Chemical Name from Pic List) | I23: =IF(AND($E$5<>"Building or Head Space Explosion",$E$5<>"Vapor Cloud Explosion",$E$5<>"Physical Explosion (Equipment Rupture)"),"Skip Step","") -> Skip Step | V23: ="Overpressure at "&H8&" m = " -> Overpressure at 0 m = | W23: =IF(W22=0,0,IF(W22<0.7,ROUND(W22*14.7,1)& " psi or","> 10 psi or")) -> 0 | X23: =IF(W22=0,0,IF(W22<0.7,ROUND(W22*101.3,1)& " kPa","> 69 kPa")) -> 0 | AD23: Mach >1 | AE23: =IF(X46>0,IF(0.45/X46^1.17<20,0.45/X46^1.17,20),0) -> 0
I24: Cas No. | L24: Chemical Explosion Energy (equation 14-4), QChem = h M ( DHR ) | AD24: Mach 1 | AE24: =IF(X46>0,IF(0.33/X46^1.12<1.2,0.33/X46^1.12,1.2),0) -> 0
C25: Chemical Name | I25: =IF(Chemical_3="","",VLOOKUP(Chemical_3,Chemical_Table,COLUMN('Chemical Table'!B1),FALSE)) ->  | L25: assuming reaction efficiency, h = 0.5 | P25: =" = 0.5 ( "&H20&" ) ( "&H21&" ) = " -> = 0.5 ( 0 ) ( 0 ) = | Q25: =0.5*H20*H21 -> 0 | R25: KJ | U25: BAKER-STREHLOW-TANG MODEL | AD25: Mach 0.5 | AE25: =IF(X46>0,IF(0.18/X46^1.06<0.45,0.18/X46^1.06,0.45),0) -> 0
E26: Data Table Value | F26: User Value | H26: Equation Input | M26: kgTNTeq = QChem/ 4690 = | N26: =IF(E5="Condensed Phase Explosive",ROUND(Q25/4690,2),0) -> 0 | O26: kg | AD26: Mach 0.35 | AE26: =IF(X46>0,IF(0.1/X46<0.22,0.1/X46,0.22),0) -> 0
D27: Vapor Molecular Weight, Mw | E27: =IF(Chemical_3="","",VLOOKUP(Chemical_3,Chemical_Table,COLUMN('Chemical Table'!C1),FALSE)) ->  | H27: =IF(AND(D27="",E27=""),0,IF(F27="",E27,F27)) ->  | X27: Vapor Cloud Explosion (based on 3 m/sec wind speed) | AD27: Scaled Overpressure | AE27: =IF(AE22=1,AE24,IF(AE22=0.5,AE25,IF(AE22=0.35,AE26,AE23))) -> 0
D28: Liquid Density, rL (at Burst Temperature) | E28: =IF(Chemical_3="","",AE32) ->  | H28: =IF(AND(D28="",E28=""),0,IF(F28="",E28,F28)) ->  | I28: kg/m3 | L28: Scaled Overpressure at 1 psi = 0.068
D29: Lower Flammable Limit, LFL | E29: =IF(Chemical_3="","",VLOOKUP(Chemical_3,Chemical_Table,COLUMN('Chemical Table'!J1),FALSE)) ->  | H29: =IF(AND(D29="",E29=""),0,IF(F29="",E29,F29)) ->  | I29: vol % | L29: Scaled Distance = 18 = X / kgTNTeq1/3 | V29: Fuel Reactivity | W29: Obstacle Density or Congestion | AD29: Liquid Density A | AE29: =VLOOKUP(Chemical_3,Chemical_Table,COLUMN('Chemical Table'!X1),FALSE) -> 
B30: Fuel Reactivity based on Fundamental Burning Velocity | E30: =IF(Chemical_3="","",VLOOKUP(Chemical_3,Chemical_Table,COLUMN('Chemical Table'!S1),FALSE)) ->  | H30: =IF(AND(E30="",F30=""),"Medium",IF(F30="",E30,F30)) -> Medium | N30: ="Distance to 1 psi = 18 ( "&N26&" )^1/3 = " -> Distance to 1 psi = 18 ( 0 )^1/3 = | O30: =IF(E5="Condensed Phase Explosive",ROUND(18*(N26)^0.333,1)&" m",0) -> 0 | W30: Low | X30: Medium | Y30: High | Z30: ="Use Mach "&AE22&" for "&IF(H30<>"High",V32,V31)&"Fuel Reactivity and "&IF(E47="Low",W30,IF(E47="High",Y30,X30))&" Confinement" -> Use Mach 0.5 for Low-Medium Fuel Reactivity and Medium Confinement | AD30: Liquid Density B | AE30: =VLOOKUP(Chemical_3,Chemical_Table,COLUMN('Chemical Table'!Y1),FALSE) -> 
F31: (Leave User Value Blank to accept Data Table Value) | V31: High | W31: 0.5 | X31: >1 | Y31: >1 | AD31: Boiling Point | AE31: =VLOOKUP(Chemical_3,Chemical_Table,COLUMN('Chemical Table'!G1),FALSE) ->  | AF31: C
F32: Ideal Gas Vapor Density, rV (at Burst Temperature) | H32: =IF(OR(H27="",H12=""),"",ROUND(0.12*(H12+101.3)*H27/(273.15+H14),2)) ->  | I32: kg/m3 | L32: From Graph, Scaled Distance, R = X / kgTNTeq1/3= | V32: Low-Medium | W32: 0.35 | X32: 0.5 | Y32: 1 | AD32: Liquid Density | AE32: =1000*(AE29-AE30*IF(H14<>"",H14,AE31)) ->  | AF32: kg/m3
M33: =H8&" / ( "&N26&" )^1/3 = " -> 0 / ( 0 )^1/3 = | N33: =IF(AND(E5="Condensed Phase Explosive",N26>0),ROUND(H8/(N26)^0.333,2),0) -> 0
B34: STEP 5 - Enter Information for Building or Head Space Explosion | I34: =IF($E$5<>"Building or Head Space Explosion","Skip Step","") -> Skip Step | L34: Scaled Overpressure = | N34: =IF(N33<=0,0,IF(EXP(160/(8.3+LN(N33))-17)>0.7,"> 0.7",ROUND(EXP(160/(8.3+LN(N33))-17),3))) -> 0 | U34: Cloud Flammable Mass (equation 14-7, MFC = F Q XLFL / u or MFC = F Q* =
D35: Building or Head Space Explosion Inputs: | E35: Input Value | F35: Input Units | H35: Equation Input | M35: ="Overpressure at "&H8&" m = " -> Overpressure at 0 m = | N35: =IF(N34=0,0,IF(N34="> 0.7","> 10",ROUND(N34*14.7,1)))& " psi or" -> 0 psi or | O35: =IF(N34=0,0,IF(N34="> 0.7","> 69",ROUND(N34*101.3,1)))& " kPa" -> 0 kPa | Y35: =IF(OR(E42="Instantaneous",AND(H45<>0,H44*H43/H46>H45)),"1.0 ( "&H45&" ) = ","1.0 ( "&H44&" ) ( "&H43&" ) / "&H46&" = ") -> 1.0 ( 0 ) ( 0 ) / 3 = | Z35: =IF($E$5="Vapor Cloud Explosion",IF(OR(E42="instantaneous",AND(H45<>0,H44*H43/H46>H45)),ROUND(1*H45,0),ROUND(1*H44*H43/H46,0)),0) -> 0 | AA35: kg
C36: Building or Head Space Volume, VB | H36: =ROUND(E36*AE9,1) -> 0 | I36: cu m | T36: Distance to Explosion Epicenter, XEE= 0.5 XLFL= | Y36: ="0.5 ( "&H43&" ) = " -> 0.5 ( 0 ) = | Z36: =IF($E$5="Vapor Cloud Explosion",ROUND(0.5*H43,1),0) -> 0 | AA36: m
C37: Degree of Internal Congestion | F37: Assumed "Medium" if Blank | L37: MAXIMUM FRAGMENT RANGE | V37: =IF(45000*Z35>100000000,"Potential Explosion energy limited to 100000000 kJ","") -> 
C38: 1 D Confinement? (such as Fire Tube Boiler) | F38: Assumed "No" if Blank | X38: Explosion Energy (equation 14-5), QE = 45000 MFC = | AA38: Note: PA = 101.3 kPa
O39: Physical or Condensed Phase Explosion | V39: =" 45000 kJ/kg ( "&Z35&" kg ) = " -> 45000 kJ/kg ( 0 kg ) = | W39: =IF(ROUND(45000*Z35,-1)<100000000,ROUND(45000*Z35,-1),100000000) -> 0 | X39: kJ
B40: STEP 6 - Enter Information for Vapor Cloud Explosion | I40: =IF($E$5<>"Vapor Cloud Explosion","Skip Step","") -> Skip Step | U40: Scaled Overpressure at 1 psi = 0.068
B41: Vapor Cloud Explosion Inputs: | E41: Input Value | F41: Input Units | H41: Equation Input | M41: Maximum Fragment Range = 120 kgTNTeq1/3 (equation 15-3) | W41: Scaled Distance, R = X / (2 QE / P0 )1/3 = | X41: =IF($E$5="Vapor Cloud Explosion",IF(AE22=1,4.1,IF(AE22=0.5,2.5,IF(AE22=0.35,1.5,5))),0) -> 0
C42: Type of Release | G42: Assumed "Continuous" if Blank | O42: Explosion Energy, TNTeq = | P42: =IF(E5="Condensed Phase Explosive",N26,N9) -> 0 | Q42: kg | U42: Distance to 1 psi = R (2 QE / P0 )1/3 + XEE =
C43: Distance to LFL from Dispersion Model, XLFL | H43: =ROUND(E43*AE10,1) -> 0 | I43: m | O43: ="= 120 ( "&P42&" )^1/3 =" -> = 120 ( 0 )^1/3 = | P43: =IF(P42>0,ROUND(120*P42^(1/3),0)&" m","") ->  | W43: =X41&" [ 2 ( "&W39&" ) / 101.3 ]^1/3 + "&Z36&" = " -> 0 [ 2 ( 0 ) / 101.3 ]^1/3 + 0 = | X43: =IF($E$5="Vapor Cloud Explosion",ROUND(X41*(2*W39/101.3)^0.333+Z36,1)&" m",0) -> 0
C44: Vapor Rate | H44: =ROUND(E44*AE11,4) -> 0 | I44: kg/sec
C45: Total Vapor Released | H45: =IF(E45="",0,ROUND(E45*AE12,2)) -> 0 | I45: kg | T45: From Graph, Scaled Distance, R = ( X - XEE) / (2 QE / P0 )1/3 =
C46: Wind Speed (Assumed 3 m/sec if Blank) | H46: =IF(E46="",3,ROUND(E46*AE13,4)) -> 3 | I46: m/sec | W46: ="( "&H8&" - "&Z36&" ) / [ 2 ( "&W39&" ) / 101.3 ]^1/3 = " -> ( 0 - 0 ) / [ 2 ( 0 ) / 101.3 ]^1/3 = | X46: =IF(AND(E8>0,W39>0),IF(H8<Z36,0.01,ROUND((H8-Z36)/(2*W39/101.3)^0.333,3)),0) -> 0
C47: Degree of Outdoor Congestion | F47: Assumed "Medium" if Blank | U47: Scaled Overpressure = | W47: =IF(AND(H8>0,$E$5="Vapor Cloud Explosion"),IF(AE27>0.7,"> 0.7",ROUND(AE27,3)),0) -> 0
V48: ="Overpressure at "&H8&" m = " -> Overpressure at 0 m = | W48: =IF(W47=0,0,IF(W47<0.7,ROUND(W47*14.7,1)& " psi or","> 10 psi or")) -> 0 | X48: =IF(W47=0,0,IF(W47<0.7,ROUND(W47*101.3,1)& " kPa","> 69 kPa")) -> 0
X49: =IF(AND(H8>0,H8<Z36),"Distance of Interest is less than the distance from leak source to explosion epicenter","") -> 
C50: Copyright © 2026
C51: American Institute of Chemical Engineers

Sheet Impact Assessment
AF1: Vapor Correlation Exponent, b and a' | AL1: =IF(AND(H63>0,H65>0),LN(H63/H65)/LN(AL5/AL6),0.6) -> 0.6 | AM1: =IF(AL6>0,H63/(1/AL6)^AL1,0) -> 0
E2: ONSITE IMPACT ASSESSMENT INPUT INFORMATION | L2: OUTDOOR FLAMMABLE IMPACT | V2: OFFSITE OUTDOOR TOXIC RELEASE IMPACT | AF2: ="X = "&ROUND(AM1,1)&" [ 1 / C ]^ "&ROUND(AL1,3)&" for 3 D weather" -> X = 0 [ 1 / C ]^ 0.6 for 3 D weather
D3: Required Inputs are Shaded "Yellow" | AF3: Vapor Correlation Exponent, b and a' | AL3: =IF(AND(H64>0,H66>0),LN(H64/H66)/LN(AL5/AL6),0.4) -> 0.4 | AM3: =IF(AL6>0,H64/(1/AL6)^AL1,0) -> 0
B4: STEP 1 - Select Location and Scenario Outcome | AF4: ="X = "&ROUND(AM3,1)&" [ 1 / C ]^ "&ROUND(AL3,3)&" for 1.5 F weather" -> X = 0 [ 1 / C ]^ 0.4 for 1.5 F weather
D5: Release Location | G5: (Assumed Outdoor if Blank) | L5: Flash Fire | V5: Time-Scaled ER-2 = ER-2 / Exposure Duration1/n = | AA5: =H21&" / ( "&ROUND(H29,3)&" )^(1/n) = " -> 0 / ( 1 )^(1/n) = | AB5: =IF(H29>0,H21/H29^(1/H24),H21) -> 0 | AC5: ppm | AF5: Estimated LC1 Concentration | AL5: =IF(H29>0,H22*H20/H29^(1/H24),H22*H20) -> 0 | AM5: ppm
D6: Scenario Outcome | H6: =IF(AND(E5="Indoor",OR(E6="Vapor Cloud Explosion",E6="BLEVE or Fireball"))," Only with Outdoor Location",IF(AND(E5<>"Indoor",E6="Building Explosion")," Only with Indoor Location","")) ->  | L6: ="Distance to 1/2 LFL of "&ROUND(H62,1)&" m "&IF(H62<3,"Does not Exceed","Exceeds")&" 3 m Threshold for Severe Impact"&IF(H62<3," athough Injury may occur.",".") -> Distance to 1/2 LFL of 0 m Does not Exceed 3 m Threshold for Severe Impact athough Injury may occur. | V6: ="Offsite Concentration of "&ROUND(H56,1)&" ppm "&IF(AND(H56>AB5,AB5>0),"Exceeds","Does Not Exceed")&" Time-Scaled ER-2 Concentration of "&ROUND(AB5,1)&" ppm. "&IF(AND(H56>AB5,AB5>0),"Further Analysis Warranted.","") -> Offsite Concentration of 0 ppm Does Not Exceed Time-Scaled ER-2 Concentration of 0 ppm. | AF6: Estimated LC50 Concentration | AL6: =IF(H29>0,H23*H20/H29^(1/H24),H23*H20) -> 0 | AM6: ppm
H7: Equation Input | I7: (Assumed 1 if Blank) | Q7: Impact Area (Equation 15-1), = 0.3 XMultiple LFL2 | AF7: Lethality a coefficient (3 D) | AL7: =IF(AL6<>0,IF(AL5/AL6=1,0,LN(0.01)-LN(0.02)/(1-(AL5/AL6)^(2*AL1))),0) -> 0
E8: Number of Personnel Routinely in the Immediate Vicinity? | H8: =IF(E$6="Offsite Toxic Release",0,IF(F8="",1,F8+0.000001)) -> 1 | O8: =" = 0.3 ( "&ROUND(H62,1)&" )^2 =" -> = 0.3 ( 0 )^2 = | P8: =IF(AND(H62>=3,$E$5<>"Indoor",OR($E$6="Flash Fire",$E$6="Vapor Cloud Explosion")),0.3*H62^2,0) -> 0 | Q8: m2 | V8: =IF(AND(H63>0,H64>0,H65>0,H66>0,AC15<0.1),"Severe Offsite Toxic Impact Unlikely - Consider Minor Impacts such as Irritation or Objectionable Odor in Evaluation","") ->  | AF8: Lethality b coefficient (3 D) | AL8: =IF(AL5<>0,(LN(0.01)-AL7)*AL5^(2*AL1),0) -> 0
B9: Personnel in the Immediate Vicinity include those associated with procedures requiring operator attendance such as unloading a tank truck, sampling, in addition to personnel using nearby walkways, etc. | M9: Flash Fire Personnel Seriously Impacted, N = Impact Area times Population Density plus Personnel in Immediate Area | Z9: Lethality times Area (Outdoors 3 D) | AA9: =ROUND(AL17+AL19,0) -> 0 | AC9: (Equations 15-14 to 15-18) | AF9: Lethality a coefficient (1.5 F) | AL9: =IF(AL6<>0,IF(AL5/AL6=1,0,LN(0.01)-LN(0.02)/(1-(AL5/AL6)^(2*AL3))),0) -> 0
Z10: Lethality times Area (Indoors 3 D) | AA10: =ROUND(AL18+AL20,0) -> 0 | AF10: Lethality b coefficient (1.5 F) | AL10: =IF(AL5<>0,(LN(0.01)-AL9)*AL5^(2*AL3),0) -> 0
Q11: ="N = ( "&P8&" sq m ) "&H45&" people/sq m + "&H8&" = " -> N = ( 0 sq m ) 0.0002 people/sq m + 1 = | R11: =IF(P8=0,0,P8*H45+H8) -> 0 | Z11: Lethality times Area (Outdoors 1.5 f) | AA11: =ROUND(AL21+AL23,0) -> 0 | AF11: Concentration at Lethality Limit=1 (3 D) | AL11: =MIN(1000000,IF(AL7>0,(-AL8/AL7)^(1/(2*AL1)),0)) -> 0 | AM11: ppm
B12: STEP 2 - Enter Chemical Properties (or Select Chemical Name from Pic List) | Z12: Lethality times Area (Indoors 1.5 F) | AA12: =ROUND(AL22+AL24,0) -> 0 | AF12: Concentration at Lethality Limit=1 (1.5 F) | AL12: =MIN(1000000,IF(AL9>0,(-AL10/AL9)^(1/(2*AL3)),0)) -> 0 | AM12: ppm
H13: Cas No. | L13: Vapor Cloud Explosion (VCE) | U13: N = Population Density * { (1 - Fract 1.5 F) [ Fract Outdoors * Lethality times Area Outdoor 3 D + ( 1 - Fract Outdoors ) * Lethality times Area Indoor 3 D ) ] | AF13: Distance to Lethality Limit (Outdoors 3D | AL13: =IF(AND(AL11>0,AL6>0),(AL6/AL11)^AL1*H63,0) -> 0 | AM13: m
B14: Chemical Name | H14: =IF(Chemical_4="","",VLOOKUP(Chemical_4,Chemical_Table,COLUMN('Chemical Table'!B1),FALSE)) ->  | L14: ="Total Airborne Release of "&IF(H30=0,"Unlimited",H30)&" Kg "&IF(OR(H30=0,AND(H19<>"High",H30>=1000),AND(H19="High",H30>=100)),"Exceeds ","Does not Exceed ")&IF(H19="High",10,100)&" Kg Thresold for Vapor Cloud Explosion" -> Total Airborne Release of Unlimited Kg Exceeds 100 Kg Thresold for Vapor Cloud Explosion | W14: + Fract 1.5 F * [ Fract Outdoors * Lethality times Area Outdoor 1.5 F + ( 1 - Fract Outdoors ) * Lethality times Area Indoor 1.5 F ) ] } | AF14: Distance to Lethality Limit (Indoors 3 D) | AL14: =IF(AND(AL11>0,AL6>0),(H25*AL6/AL11)^AL1*H63,0) -> 0 | AM14: m
L15: ="Overpressure at Nearest Wall of "&IF(H58>H59,H58,H59)&" psi "&IF(OR(H58>IF(E40="Low Strength",0.5,IF(E40="Structural Frame",1.4,1)),H59>IF(E40="Low Strength",0.5,IF(E40="Structural Frame",1.4,1))),"Exceeds ","Does not Exceed ")&IF(E40="Low Strength",0.5,IF(E40="Structural Frame",1.4,1))&" psi Thresold for Building Damage" -> Overpressure at Nearest Wall of 0 psi Does not Exceed 1 psi Thresold for Building Damage | U15: =" N = "&H38&" people/sq m { "&1-H37&" [ "&H36&" ("&ROUND(AA9,0)&") + "&1-H36&" ("&ROUND(AA10,0)&" ] + "&H37&" [ "&H36&" ("&ROUND(AA11,0)&") + "&1-H36&" ("&ROUND(AA12,0)&") ] sq m } =" -> N = 0.0015 people/sq m { 0.8 [ 0.1 (0) + 0.9 (0 ] + 0.2 [ 0.1 (0) + 0.9 (0) ] sq m } = | AC15: =IF(OR(H63>0,H64>0,H65>0,H66>0),ROUND(H38*((1-H37)*(H36*AA9+(1-H36)*AA10)+H37*(H36*AA11+(1-H36)*AA12)),1),0) -> 0 | AF15: Distance to Lethality Limit (Outdoors 1.5 F) | AL15: =IF(AND(AL12>0,AL6>0),(AL6/AL12)^AL3*H64,0) -> 0 | AM15: m
E16: (Leave Input Value Blank to accept Chemical Data Table Values) | R16: ="Impact to "&$E$40&" Occupied Building (Figure 15.11), Vulnerability = " -> Impact to Occupied Building (Figure 15.11), Vulnerability = | S16: =IF(AND($E$5<>"Indoor",$E$6="Vapor Cloud Explosion",OR(H30=0,AND(H19<>"High",H30>=100),AND(H19="High",H30>=10)),OR(H58>IF(E40="Low Strength",0.5,IF(E40="Structural Frame",1.4,1)),H59>IF(E40="Low Strength",0.5,1))),ROUND(EXP(-4.5*(IF(E40="Low Strength",0.5,IF(E40="Structural Frame",1.4,1))/IF(H59=0,H58,H59))^2)+0.01,3),0) -> 0 | V16: ="Based on continuous release, "&H36&" fraction of total population outdoors, "&H37&" fraction of time at 1.5 m/sec class F atmospheric stability, and "&1-H37&" fraction of time at 3 m/sec class D atmospheric stability." -> Based on continuous release, 0.1 fraction of total population outdoors, 0.2 fraction of time at 1.5 m/sec class F atmospheric stability, and 0.8 fraction of time at 3 m/sec class D atmospheric stability. | AF16: Distance to Lethality Limit (Indoors 1.5 F) | AL16: =IF(AND(AL11>0,AL6>0),(H25*AL6/AL11)^AL3*H64,0) -> 0 | AM16: m
E17: Data Table Value | F17: Input Value | H17: Equation Input | M17: ="Number of Building Occupants Severely Impacted = Vulnerability times Total Building Occupants = " -> Number of Building Occupants Severely Impacted = Vulnerability times Total Building Occupants = | AF17: Lethality times Area within Initial Area (Outdoors 3 D) | AL17: =IF(H56>AB5,MAX(0,0.25*(AL13^2-H35^2)),0) -> 0 | AM17: m2
D18: Lower Flammable Limit, LFL | E18: =IF(Chemical_4="","",VLOOKUP(Chemical_4,Chemical_Table,COLUMN('Chemical Table'!J1),FALSE)) ->  | H18: =IF(AND(E18="",F18=""),0,IF(F18="",E18,F18)) -> 0 | I18: vol % | AF18: Lethality times Area within Initial Area (Indoors 3 D) | AL18: =IF(H56>AB5,MAX(0,0.25*(AL14^2-H35^2)),0) -> 0 | AM18: m2
D19: Fuel Reactivity based on Fundamental Burning Velocity | E19: =IF(Chemical_4="","",VLOOKUP(Chemical_4,Chemical_Table,COLUMN('Chemical Table'!S1),FALSE)) ->  | H19: =IF(AND(E19="",F19=""),"Medium",IF(F19="",E19,F19)) -> Medium | P19: ="N = "&S16&" ( "&F43&" ) = " -> N = 0 ( ) = | Q19: =ROUND(S16*F43,3) -> 0 | AF19: Integral of Lethality times Area beyond Initial Area (Outdoors 3 D) | AL19: =IF(H56>AB5,0.5*0.25*AL6^(2*AL1)*H63^2*(0-EXP(AL7+AL8*(MAX(H35,AL13)^2/(AL6^(2*AL1)*H63^2))))/AL8,0) -> 0 | AM19: m2
D20: ERPG-3 Concentration | E20: =IF(Chemical_4="","",VLOOKUP(Chemical_4,Chemical_Table,COLUMN('Chemical Table'!F1),FALSE)) ->  | H20: =IF(AND(E20="",F20=""),0,IF(F20="",E20,F20)) -> 0 | I20: ppm | R20: Total Personnel Severely Impacted = Flash Fire + Occupants Impacted = | S20: =R11+Q19 -> 0 | U20: ONSITE OUTDOOR TOXIC RELEASE IMPACT | AF20: Integral of Lethality times Area beyond Initial Area (Indoors 3 D) | AL20: =IF(H56>AB5,0.5*0.25*AL6^(2*AL1)*((H25^AL1)*H63)^2*(0-EXP(AL7+AL8*(MAX(H35,AL14)^2/(AL6^(2*AL1)*((H25^AL1)*H63)^2))))/AL8,0) -> 0 | AM20: m2
D21: ERPG-2 Concentration | E21: =IF(Chemical_4="","",VLOOKUP(Chemical_4,Chemical_Table,COLUMN('Chemical Table'!E1),FALSE)) ->  | H21: =IF(AND(E21="",F21=""),0,IF(F21="",E21,F21)) -> 0 | I21: ppm | AF21: Lethality times Area within Initial Area (Outdoors 1.5 F) | AL21: =IF(H56>AB5,MAX(0,0.25*(AL15^2-H35^2)),0) -> 0 | AM21: m2
D22: LC1 as Multiple of EPPG-3 Concentration | E22: 2 | H22: =IF(F22="",E22,F22) -> 2 | I22: typically 1 to 2 | AF22: Lethality times Area within Initial Area (Indoors 1.5 F) | AL22: =IF(H56>AB5,MAX(0,0.25*(AL16^2-H35^2)),0) -> 0 | AM22: m2
D23: LC50 as Multiple of EPPG-3 Concentration | E23: 5 | H23: 5 | I23: typically 3 to 5 | L23: INDOOR FLAMMABLE IMPACT | V23: Outdoor Onsite Impact | AF23: Integral of Lethality times Area beyond Initial Area (Outdoors 1.5 ) | AL23: =IF(H56>AB5,0.5*0.25*AL6^(2*AL3)*H64^2*(0-EXP(AL9+AL10*(MAX(H35,AL15)^2/(AL6^(2*AL3)*H64^2))))/AL10,0) -> 0 | AM23: m2
D24: Dose Exponent | E24: 2 | H24: =IF(F24="",E24,F24) -> 2 | I24: typically 1 to 2 | V24: ="Distance to Multiple of ER-3 of "&H63&" m "&IF(H63<3,"Does not Exceed","Exceeds")&" 3 m Threshold for Severe Impact "&IF(H63<3,"athough Injury may occur.",".") -> Distance to Multiple of ER-3 of 0 m Does not Exceed 3 m Threshold for Severe Impact athough Injury may occur. | AF24: Integral of Lethality times Area beyond Initial Area (Indoors 1.5 F) | AL24: =IF(H56>AB5,0.5*0.25*AL6^(2*AL3)*((H25^AL3)*H64)^2*(0-EXP(AL9+AL10*(MAX(H35,AL16)^2/(AL6^(2*AL3)*((H25^AL3)*H64)^2))))/AL10,0) -> 0 | AM24: m2
D25: Fraction Indoor/Outdoor Concentration | E25: 0.5 | H25: =IF(F25="",E25,F25) -> 0.5 | I25: typically 0.2 to 0.5 | AA25: Impact Area (Equation 15-1), = 0.3 XLC-502
D26: Dermal Toxicity Risk Phrase | E26: =IF(Chemical_4="","",VLOOKUP(Chemical_4,Chemical_Table,COLUMN('Chemical Table'!T1),FALSE)) ->  | H26: =IF(AND(E26="",F26=""),0,IF(F26="",E26,F26)) -> 0 | L26: Flash Fire | Y26: =" = 0.3 ( "&ROUND(H63,1)&" )^2 =" -> = 0.3 ( 0 )^2 = | Z26: =IF(AND(E5<>"Indoor",E6="Onsite Toxic Release"),0.3*H63^2,0) -> 0 | AA26: m2
E27: Does Process Temperature Represent a Thermal Hazard? | Q27: Impact Area (Equation 15-2), = VBldg2/3 Cindoor / 1/2 LFL | R27: =IF(H18=0,"",IF(0.0004*H70/H18>1,"Limited to entire Enclosed Area","")) ->  | V27: Personnel Seriously Impacted, N = Impact Area times Population Density plus Personnel in Immediate Area
E28: Input Value | F28: Input Units | H28: Equation Input | I28: Equation Units | O28: =" = 0.0004 ( "&H48&" )^2/3 ( "&H70&" ppm / "&H18&" vol% ) =" -> = 0.0004 ( 0 )^2/3 ( 0 ppm / 0 vol% ) = | P28: =IF(AND($E$5="Indoor",H18>0,OR($E$6="Flash Fire",$E$6="Building Explosion")),IF(0.0002*H70/H18<1,ROUND(0.0002*H48^0.667*H70/H18,1),ROUND(H48^0.667,1)),0) -> 0 | Q28: m2 | AA28: ="N = ( "&Z26&" sq m ) "&H45&" people/sq m + "&IF(H8<0.001,0,H8)&" = " -> N = ( 0 sq m ) 0.0002 people/sq m + 1 = | AB28: =IF(Z26=0,0,ROUND(Z26*H45+H8,3)) -> 0
D29: Release or Exposure Duration (leave blank if not limited) | H29: =IF(E29="",1,IF(F29="sec",E29/3600,IF(F29="min",E29/60,E29))) -> 1 | I29: hr | L29: ="Impact Area of "&ROUND(P28,1)&" sq m "&IF(P28<3,"Does not Indicate","Indicates")&" Potential for Severe Impact"&IF(P28<3," although Injury may occur.",".") -> Impact Area of 0 sq m Does not Indicate Potential for Severe Impact although Injury may occur.
D30: Total Airborne Quantity, AQTotal | H30: =IF(F30="lb",ROUND(E30/2.2,1),E30) -> 0 | I30: kg | Q30: Indoor Population Density = Max. Personnel within Enclosed Area / VBldg2/3 | V30: Occupied Building Impact - Toxic Infiltration
O31: ="N = ( "&H49&" - "&H8&" ) / ("&H48&")^2/3 = " -> N = ( 2 - 1 ) / (0)^2/3 = | P31: =IF(P28<3,0,IF(H49>H8,ROUND((H49-H8)/H48^0.667,4),0)) -> 0 | Q31: people/m2 | Z31: Average Indoor Concentration (per Equation 13-36), | AA31: CIndoor = COutdoor (1 = e-VR tD/2)
M32: Flash Fire Personnel Seriously Impacted, N = Impact Area times Population Density plus Personnel in Immediate Area | W32: Time hour | X32: Concentration during Release | Y32: Concentration | Z32: Average Concentration
B33: STEP 3 - Enter Plant Layout Information | AB33: Average Concentration (by summation of time increments) =
E34: Input Value | F34: Input Units | H34: Equation Input | I34: Equation Units | P34: ="N = ( "&P28&" sq m ) "&P31&" people/sq m + "&H8&" = " -> N = ( 0 sq m ) 0 people/sq m + 1 = | Q34: =IF(AND($E$5="Indoor",OR($E$6="Flash Fire",$E$6="Building Explosion")),IF(P28*P31+H8<H49,ROUND(P28*P31+H8,2),ROUND(MAX(H8,H49),2)),0) -> 0 | W34: 0 | X34: 0 | Y34: 0
D35: Distance to Property Limit or Offsite Population (Fence Line) | H35: =IF(F35="ft",ROUND(E35/3.281,0),E35) -> 0 | I35: m | W35: 0.01 | X35: =$H$57*(1-EXP(-$H$42*W35)) -> 0 | Y35: =IF($H$29>=W35,X35,1) -> 0 | Z35: =(W35-W34)*(Y34+Y35)/2 -> 0 | AB35: =Z46 -> 0 | AC35: ppm
E36: Fraction of Offsite Population Outdoors | H36: =IF(F36="",0.1,F36) -> 0.1 | I36: (Assumed 0.1 if Blank) | L36: Building Explosion | W36: 0.02 | X36: =$H$57*(1-EXP(-$H$42*W36)) -> 0 | Y36: =IF($H$29>=W36,X36,Y35/(1+$H$42*(W36-W35))) -> 0 | Z36: =(W36-W35)*(Y35+Y36)/2 -> 0
E37: Fraction of time for Night Weather | H37: =IF(F37="",0.2,F37) -> 0.2 | I37: (Assumed 0.2 if Blank) | L37: ="Avg Concentration within the Enclosed Process Area of "&H70&" ppm"&IF(H70>=10000*H18," Exceeds "," Does not Exceed ")&"the LFL Threshold." -> Avg Concentration within the Enclosed Process Area of 0 ppm Exceeds the LFL Threshold. | W37: 0.05 | X37: 0 | Y37: 0 | Z37: 0 | AB37: ="Based on Release Duration of "&H29&" hour" -> Based on Release Duration of 1 hour
D38: Offsite Population Density | H38: =IF(E38="",0.0015,IF(F38="people/sq ft",ROUND(E38/10.764,5),E38)) -> 0.0015 | I38: (Assumed 0.0015 people/m2 if Blank) | L38: ="Overpressure at Nearest Wall of "&IF(H58>H59,H58,H59)&" psi "&IF(OR(H58>IF(E40="Low Strength",0.5,IF(E40="Structural Frame",1.4,1)),H59>IF(E40="Low Strength",0.5,IF(E40="Structural Frame",1.4,1))),"Exceeds ","Does not Exceed ")&IF(E40="Low Strength",0.5,IF(E40="Structural Frame",1.4,1))&" psi Thresold for Building Damage" -> Overpressure at Nearest Wall of 0 psi Does not Exceed 1 psi Thresold for Building Damage | W38: 0.1 | X38: 0 | Y38: 0 | Z38: 0
R39: ="Impact to "&E40&" Occupied Building (Figure 15-11, Vulnerability = " -> Impact to Occupied Building (Figure 15-11, Vulnerability = | S39: =IF(AND($E$5="Indoor",$E$6="Building Explosion",H70>=10000*H18,OR(H58>IF(E40="Low Strength",0.5,IF(E40="Structural Frame",1.4,1)),H59>IF(E40="Low Strength",0.5,IF(E40="Structural Frame",1.4,1)))),ROUND(EXP(-4.5*(IF(E40="Low Strength",0.5,1)/IF(H59=0,H58,H59))^2)+0.01,3),0) -> 0 | W39: 0.2 | X39: 0 | Y39: 0 | Z39: 0
D40: Occupied Building Type | I40: (Assumed Typical Construction if Blank) | M40: ="Number of Building Occupants Severely Impacted = Vulnerability times Total Building Occupants = " -> Number of Building Occupants Severely Impacted = Vulnerability times Total Building Occupants = | W40: 0.3 | X40: 0 | Y40: 0 | Z40: 0
E41: Fraction of Offsite Impact Area Containing Occupied Buildings | H41: =IF(F41="",0.5,F41) -> 0.5 | W41: 0.4 | X41: 0 | Y41: 0 | Z41: 0 | AB41: Estimate Average d using Equation 13-36 at t = Release Duration / 2
E42: Ventilation Rate of Occupied Building (air changes / hour) | H42: =IF(F42="",3,F42) -> 3 | I42: (Assumed 3 if Blank) | P42: ="N = "&S39&" ( "&F43&" ) = " -> N = 0 ( ) = | Q42: =ROUND(S39*F43,3) -> 0 | W42: 0.5 | X42: 0 | Y42: 0 | Z42: 0
E43: Maximum Number of Occupants in Occupied Building | M43: Total Personnel Severely Impacted = Personnel within Enclosed Process Area + Occupants Impacted = | W43: 0.6 | X43: 0 | Y43: =IF($H$29>=W43,X43,Y42/(1+$H$42*(W43-W42))) -> 0 | Z43: 0 | AB43: =$H$57*(1-EXP(-$H$42*H29/2)) -> 0 | AC43: ppm
I44: (Assumed 0.0002 people/m2 if Blank) | S44: =Q34+Q42 -> 0 | W44: 0.8 | X44: 0 | Y44: =IF($H$29>=W44,X44,Y43/(1+$H$42*(W44-W43))) -> 0 | Z44: 0
D45: Onsite Outdoor Population Density | H45: =IF(E45="",0.0002,IF(F45="people/sq ft",ROUND(E45/10.764,5),E45)) -> 0.0002 | W45: 1 | X45: 0 | Y45: 0 | Z45: 0
B46: Outdoor Population Density should account for maintenance and other personnel who may occasionally be in nearby outdoor process areas. | Y46: Average = | Z46: =SUM(Z35:Z45) -> 0
L47: PHYSICAL EXPLOSION IMPACT | V47: ="Estimated Indoor Concenntration of "&ROUND(Z46,1)&" ppm "&IF(Z46<H20,"Does not Exceed","Exceeds")&" ER-3 of "&H20&" ppm Threshold for Severe Impact"&IF(Z46<H20," athough Injury may occur.",".") -> Estimated Indoor Concenntration of 0 ppm Exceeds ER-3 of 0 ppm Threshold for Severe Impact.
D48: Enclosed Process Area Volume, VBldg | H48: =IF(F48="cu ft",ROUND(E48/35.315,2),E48) -> 0 | I48: cu m
E49: Maximum Number of Personnel within Enclosed Process Area | H49: =IF(F49="",2,F49) -> 2 | I49: (Assumed 2 if Blank) | Y49: ="Average Concentration = "&ROUND(Z46,1)&" / "&ROUND(H20,1)&" = " -> Average Concentration = 0 / 0 = | Z49: =IF(AND(E5<>"Indoor",E6="Onsite Toxic Release"),ROUND(Z46/H20,1),0) -> 0 | AA49: times ER-3
L50: Direct Explosion Impact | AB50: ="Impact to Occupied Building (Figure 15.9), Vulnerability = " -> Impact to Occupied Building (Figure 15.9), Vulnerability = | AC50: =IF(Z49>1,MIN(1,ROUND(EXP(-4.605+3.912/(1-H22/H23)+3.912/(1/H23-1/H22)/Z49),3)),0) -> 0
D51: Dike or Spill Containment Area | H51: =IF(F51="sq ft",ROUND(E51/10.764,2),E51) -> 0 | I51: sq m | L51: ="Distance to Blast Impact of "&H67&" m "&IF(H67<1,"Does not Exceed","Exceeds")&" 1 m Threshold for Severe Impact "&IF(H111<3,"athough Injury may occur.",".") -> Distance to Blast Impact of 0 m Does not Exceed 1 m Threshold for Severe Impact athough Injury may occur. | V51: Number of Building Occupants Severely Impacted = Vulnerability times Total Building Occupants =
Q52: Direct Blast Impact Area, = p Xexpl2 | R52: =IF(H18=0,"",IF(AND(E5="Indoor",0.0004*H70/H18>1),"Limited to entire Enclosed Area","")) ->  | Z52: ="N = "&ROUND(AC50,3)&" ( "&F43&" ) = " -> N = 0 ( ) = | AA52: =ROUND(AC50*F43,3) -> 0
O53: =" = 3.14 ( "&ROUND(H67,1)&" )^2 =" -> = 3.14 ( 0 )^2 = | P53: =IF(AND(H67>=1,E6="Physical Explosion"),3.14*H67^2,0) -> 0 | Q53: m2 | AB53: Total Personnel Severely Impacted = Outdoor Onsite + Occupants Impacted = | AC53: =AB28+AA52 -> 0
B54: STEP 4 - Enter Hazard Distances | O54: Fragment Area = Fragment Range times width times number fragments
E55: Input Value | F55: Input Units | H55: Equation Input | I55: Equation Units | O55: =ROUND(H68,1)&" ( 1 m) "&H69&" =" -> 0 ( 1 m) 0 = | P55: =H68*H69 -> 0 | Q55: m2
D56: Concentration at Distance to Fence Line or Public | H56: =IF(F56="Vol %",E56*10000,E56) -> 0 | I56: ppm | M56: Direct Explosion Personnel Seriously Impacted, N = Impact Area times Population Density plus Personnel in Immediate Area | V56: TOXIC RELEASE IMPACT WITHIN ENCLOSED PROCESS AREA
D57: Concentration at Distance to Occupied Building | H57: =IF(F57="Vol %",E57*10000,E57) -> 0 | I57: ppm
D58: Explosion Overpressure at Distance to Occupied Building | H58: =IF(F58="kPa",ROUND(E58/6.895,2),E58) -> 0 | I58: psi | Q58: ="N = ( "&P53&" + "&P55&" sq m ) "&IF(E5="Indoor",IF(H48>0,ROUND((H49-H8)/H48^2/3,1),0),H45)&" people/sq m + "&H8&" = " -> N = ( 0 + 0 sq m ) 0.0002 people/sq m + 1 = | R58: =IF(E6="Physical Explosion",(P53+P55)*IF(E5="Indoor",IF(H48>0,(H49-H8)/H48^0.667,0),H45)+H8,0) -> 0
D59: Explosion Overpressure at Center of Occupied Building | H59: =IF(F59="kPa",ROUND(E59/6.895,2),E59) -> 0 | I59: psi | V59: ="Average Indoor Concentration of "&ROUND(H70,1)&" ppm "&IF(H70<H20,"Does not Exceed","Exceeds")&" ERPG-3 of "&ROUND(H20,1)&" ppm Threshold for Severe Impact"&IF(H70<H20," athough Injury may occur.",".") -> Average Indoor Concentration of 0 ppm Exceeds ERPG-3 of 0 ppm Threshold for Severe Impact.
D60: Distance to 1 psi Overpressure | H60: =IF(F60="ft",ROUND(E60/3.281,0),E60) -> 0 | I60: m | L60: Occupied Building Impact
D61: Spray Distance | H61: 0 | I61: m | L61: ="Overpressure at Nearest Wall of "&IF(H58>H59,ROUND(H58,1),ROUND(H59,1))&" psi "&IF(OR(H58>IF(E40="Low Strength",0.5,IF(E40="Structural Frame",1.4,1)),H59>IF(E40="Low Strength",0.5,IF(E40="Structural Frame",1.4,1))),"Exceeds ","Does not Exceed ")&IF(E40="Low Strength",0.5,IF(E40="Structural Frame",1.4,1))&" psi Thresold for Building Damage" -> Overpressure at Nearest Wall of 0 psi Does not Exceed 1 psi Thresold for Building Damage | AA61: Impact Area (Equation 15-2), = VBldg2/3 Cindoor / LC-50 | AB61: =" (using "&H23&" times ERPG-3)" -> (using 5 times ERPG-3)
D62: Distance to Multiple of Lower Flammable Limit | H62: 0 | I62: m | R62: ="Impact to "&$E$40&" Occupied Building (Figure 15-11), Vulnerability = " -> Impact to Occupied Building (Figure 15-11), Vulnerability = | S62: =IF(AND(E6="Physical Explosion",OR(H58>IF(E40="Structural Frame",1.4,IF(E40="Low Strength",0.5,1)),H59>IF(E40="Structural Frame",1.4,IF(E40="Low Strength",0.5,1)))),ROUND(EXP(-4.5*(IF(E40="Structural Frame",1.4,IF(E40="Low Strength",0.5,1))/IF(H59=0,H58,H59))^2)+0.02,3),0) -> 0 | Y62: =" = ( "&H48&" )^2/3 ( "&H70&" ppm / ( "&H23&" * "&H20&" ppm ) ) =" -> = ( 0 )^2/3 ( 0 ppm / ( 5 * 0 ppm ) ) = | Z62: =IF(AND(E5="Indoor",E6="Onsite Toxic Release",H23>0,H20>0),IF(H70/(H23*H20)<1,ROUND(H48^0.667*H70/(H23*H20),1),ROUND(H48^0.667,1)),0) -> 0 | AA62: m2 | AB62: =IF(H18=0,"",IF(0.0004*H70/H18>1,"Limited to entire Enclosed Area","")) -> 
D63: Distance to LC50 Concentration - Daytime Conditions | H63: 0 | I63: m | M63: ="Number of Building Occupants Severely Impacted = Vulnerability times Total Building Occupants = " -> Number of Building Occupants Severely Impacted = Vulnerability times Total Building Occupants = | AA63: Indoor Population Density = Max. Personnel within Enclosed Area / VBldg2/3
D64: Distance to LC50 Concentration - Nighttime Conditions | H64: 0 | I64: m | Y64: ="N = ( "&H49&" - "&H8&" ) / ( "&H48&" )^2/3 = " -> N = ( 2 - 1 ) / ( 0 )^2/3 = | Z64: =IF(Z62>0,IF(H49>H8,ROUND((H49-H8)/H48^0.667,4),0),0) -> 0 | AA64: people/m2
D65: Distance to LC1 Concentration - Daytime Conditions | H65: 0 | I65: m | P65: ="N = "&S62&" ( "&F43&" ) = " -> N = 0 ( ) = | Q65: =ROUND(S62*F43,3) -> 0 | W65: Toxic Release Personnel Seriously Impacted, N = Impact Area times Population Density plus Personnel in Immediate Area
D66: Distance to LC1 Concentration - Nighttime Conditions | H66: 0 | I66: m | R66: Total Personnel Severely Impacted = Direct Blast + Occupants Impacted = | S66: =R58+Q65 -> 0
D67: Distance to Severe Blast Impact | H67: 0 | I67: m | Z67: ="N = ( "&Z62&" sq m ) "&Z64&" people/sq m + "&H8&" = " -> N = ( 0 sq m ) 0 people/sq m + 1 = | AA67: =IF(AND(E5="Indoor",E6="Onsite Toxic Release",Z62>0),IF(Z62*Z64+H8<H49,ROUND(Z62*Z64+H8,2),H49),0) -> 0
D68: Maximum Fragment Range | H68: 0 | I68: m
D69: Number of Fragments (typically 3 to 10) | H69: =E69 -> 0 | L69: OFFSITE EXPLOSION IMPACT
D70: Concentration within Enclosed Process Area | H70: =IF(F70="Vol %",E70*10000,E70) -> 0 | I70: ppm | V70: BLEVE or FIREBALL IMPACT (Outdoor Release Only)
L72: Estimated number of people impact within distributed occupied buildings beyond the distance to fence line or public based on building location relative the explosion epicenter
B73: Copyright © 2026 | V73: Flammable Mass in the Fireball assumed the Total Airborne Quantity
B74: American Institute of Chemical Engineers | O74: Coefficient a = | P74: =-4.5*(IF(E40="Structural Frame",1.4,IF(E40="Low Strength",0.5,1)))^2 -> -4.5 | Y74: =IF(AND(E5<>"Indoor",E6="BLEVE or Fireball"),H30,0) -> 0 | Z74: Kg | AA74: =IF(0.012*H18*0.03*H62^3>H30,"","Limited to Total Airborne Quantity") -> Limited to Total Airborne Quantity
L75: People Impacted (Equation 15-13) = p f PD ( X1 psi2 ) [ 0 - exp(a X2/ X1 psi2)] / a | V75: =IF(Y74<1,"Less than 1 Kg Flammable Mass in the Fireball does not Indicate Potential for Severe Impact.","") -> Less than 1 Kg Flammable Mass in the Fireball does not Indicate Potential for Severe Impact.
R76: ="N = 3.14 ("&H41&") "&H38&" ("&H60&")^2 { 0 - exp["&P74&" ("&H35&")^2 / ("&H60&")^2 ] } / "&P74&" = " -> N = 3.14 (0.5) 0.0015 (0)^2 { 0 - exp[-4.5 (0)^2 / (0)^2 ] } / -4.5 = | S76: =IF(E6="Offsite Explosion",ROUND(3.14*H41*H38*H60^2*(0-EXP(P74*H35^2/H60^2))/P74,2),0) -> 0 | AA76: Fireball Duration, t = 0.45 M1/3 for M < 30000 kg or 2.6 M1/6 for M > 30000 kg = | AB76: =IF(Y74>30000,2.6*Y74^(1/6),0.45*Y74^(1/3)) -> 0 | AC76: sec
AB78: Thermal Radiation Impact Distance (Equation 15-5), Xexpl = 2.64 t0.379 M0.307
L79: CHEMICAL EXPOSURE IMPACT | Y79: =" = 2.64 ( "&ROUND(AB76,1)&" )^0.379 ( "&ROUND(AB76,1)&" )^0.307 =" -> = 2.64 ( 0 )^0.379 ( 0 )^0.307 = | Z79: =IF(Y74>=1,ROUND(2.64*AB76^0.379*Y74^0.307,1),0) -> 0 | AA79: m
Y80: Thermal Radiation Impact Area = p Xexpl2 | AA80: =" = 3.14 ( "&Z79&" )^2 =" -> = 3.14 ( 0 )^2 = | AB80: =ROUND(3.14*Z79^2,1) -> 0 | AC80: m2
L81: =IF(OR(H26="Very Toxic",H26="Toxic",H26="Corrosive",F27="Yes"),"Potential contact with Hazardous Material. Consider Body Area Exposed and Temperature-Toxicity Interactions to Confirm Severity of Impact.","Does Not Meet Criteria for Severe Dermal Impact although Injury May Occur.") -> Does Not Meet Criteria for Severe Dermal Impact although Injury May Occur. | W81: BLEVE or Fireball Personnel Seriously Impacted, N = ( Impact Area times Population Density plus Personnel in Immediate Area ) times Fraction Personnel in Direct radiation path
Q83: Spray Impact Area, = 0.4 XSpray2 (assuming 45 deg spray angle) | R83: =IF(H18=0,"",IF(AND(E5="Indoor",0.0004*H70/H18>1),"Limited to entire Enclosed Area","")) -> 
O84: =" = 0.4 ( "&ROUND(H61,1)&" )^2 =" -> = 0.4 ( 0 )^2 = | P84: =IF(AND(OR(H26="Very Toxic",H26="Toxic",H26="Corrosive",F27="Yes"),E6="Chemical Exposure"),0.4*H61^2,0) -> 0 | Q84: m2 | AA84: ="N = [ ( "&AB80&" sq m ) "&ROUND(H45,1)&" people/sq m + "&ROUND(H8,1)&" ] 0.5 = " -> N = [ ( 0 sq m ) 0 people/sq m + 1 ] 0.5 = | AB84: =IF(AND(E5<>"Indoor",E6="BLEVE or Fireball"),IF(AB80=0,0,(AB80*H45+H8)*0.5),0) -> 0
M85: Personnel Seriously Impacted by Spray, N = Impact Area times Population Density plus Personnel in Immediate Area | Z85: Assuming 50% of population seek shelter or are not in the direct radiation path
Q87: ="N = ( "&ROUND(P84,1)&" sq m ) "&IF(E5="Indoor",IF(H48>0,(H49-H8)/(H48^2/3),0),H45)&" people/sq m + "&H8&" = " -> N = ( 0 sq m ) 0.0002 people/sq m + 1 = | R87: =IF(AND(E6="Chemical Exposure",P84>0),P84*IF(E5="Indoor",IF(H48>0,(H49-H8)/(H48^2/3),0),H45)+H8,0) -> 0
V88: POOL FIRE RADIATION
V91: ="Estimated Pool Fire Thermal Radiation Vertical Distance based on containment surface area of "&ROUND(H51,1)&" m^2, typical burning rate of 0.05 kg/m^2 s, 42000 kJ/kg heat of combustion for typical hydrocarbon and 0.35 fraction of combustion energy radiated." -> Estimated Pool Fire Thermal Radiation Vertical Distance based on containment surface area of 0 m^2, typical burning rate of 0.05 kg/m^2 s, 42000 kJ/kg heat of combustion for typical hydrocarbon and 0.35 fraction of combustion energy radiated.
Y94: XThermal = [ 58.5 A / Er – 2.67 A0.695 ]1/2
V95: Thermal Radiation Level, Er | Y95: (Equation 15-10) | AB95: Consider exposure duration at specific radiation to determine human harm impact
W96: 4 | X96: kw/m2 | Z96: =IF(OR(W96="",H$51=0),"",(58.5*H$51/W96-2.67*H$51^0.695)^0.5) ->  | AA96: m
W97: 12.5 | X97: kw/m2 | Z97: =IF(OR(W97="",H$51=0),"",(58.5*H$51/W97-2.67*H$51^0.695)^0.5) ->  | AA97: m
W98: 37.5 | X98: kw/m2 | Z98: =IF(OR(W98="",H$51=0),"",(58.5*H$51/W98-2.67*H$51^0.695)^0.5) ->  | AA98: m

Sheet Frequency Evaluation
L2: PFD for REVEALED and UNREVEALED FAILURES
D4: Probability of Failure on Demand, PFD, Inputs
D5: Required Inputs are Shaded "Yellow" | J5: PFD for Unrevealed Failure (equation 16-4), PFDavg = 1/2 l t
D6: Failure Rate, l | F6: failure/year | K6: PFDavg = | L6: =" 1/2 ( "&E6&" ) "&E7&" = " -> 1/2 ( ) = | N6: =IF(OR(E6="",E7=""),"",0.5*E6*E7) -> 
D7: Inspection Interval, t | F7: year
D8: Mean Time to Repair, MTTR | F8: year | J8: PFD for Revealed Failure (equation 16-5), PFD = 1 - e-l t
B9: Mean Time Between Failures, MTBF = 1 / l = | F9: =IF(E6="","",1/E6) ->  | G9: year | K9: PFD = | L9: =" 1 - exp( -"&E6&" * "&E7&" )" -> 1 - exp( - * ) | N9: =IF(OR(E6="",E7=""),"",1-EXP(-E6*E7)) -> 
D10: (equation 16-3)
I11: PFD for Revealed Failure that may be repaired (equation 16-6), PFD = MTTR/ MTBF
B12: Worksheets for Simple Fault Tree and Simple Event Tree are below. A listing of common Frequency or Probability of Failure on Demand (PFD) values are shown to the right. | K12: PFD = | L12: =E8&" / "&F9&" = " -> / = | N12: =IF(OR(F9="",E8=""),"",IF(F9>0,ROUND(E8/F9,4),0)) -> 
J17: Top Event
C18: SIMPLE FAULT TREE | H18: Frequency
C19: section 16.10 | H19: =D26+I26+N26 -> 0
C20: Enter Top Event and Intermediate Event Descriptions | H20: per Year
C21: Leave IEFs or PFDs blank that to not apply
C22: Allows up to three branches or causes | J22: OR
D25: Frequency | I25: Frequency | N25: Frequency
D26: =IF(E29="OR",C33+F36,IF(F36="",C33,C33*F36)) -> 0 | I26: =IF(J29="OR",H33+K36,IF(K36="",H33,H33*K36)) -> 0 | N26: =IF(O29="OR",M33+P36,IF(P36="",M33,M33*P36)) -> 0
D27: per Year | I27: per Year | N27: per Year
E29: AND | J29: AND | O29: AND
C32: Frequency | H32: Frequency | M32: Frequency
C33: =IF(D36="OR",C43+E43,IF(E43="",C43,C43*E43)) -> 0 | H33: =IF(I36="OR",H43+J43,IF(J43="",H43,H43*J43)) -> 0 | M33: =IF(N36="OR",M43+O43+Q43,IF(AND(O43="",Q43=""),M43,IF(Q43="",M43*O43,IF(O43="",M43*Q43,M43*O43*Q43)))) -> 0
C34: per Year | H34: per Year | M34: per Year
D36: AND | E36: =IF(E29="OR","IEF =","PFD =") -> PFD = | I36: AND | J36: =IF(J29="OR","IEF =","PFD =") -> PFD = | N36: AND | O36: =IF(O29="OR","IEF =","PFD =") -> PFD = | U36: CCPS Layers of Protection Analysis, Simplified Process Risk Assessment (2001) page 71
F37: =IF(E29="OR","per year","") ->  | K37: =IF(J29="OR","per year","") ->  | P37: =IF(O29="OR","per year","") -> 
B43: IEF = | D43: =IF(D36="OR","IEF =","PFD =") -> PFD = | G43: IEF = | I43: =IF(I36="OR","IEF =","PFD =") -> PFD = | L43: IEF = | N43: =IF(N36="OR","IEF =","PFD =") -> PFD = | P43: =IF(N36="OR","IEF =","PFD =") -> PFD =
C44: per Year | E44: =IF(D36="OR","per year","") ->  | H44: per Year | J44: =IF(I36="OR","per year","") ->  | M44: per Year | O44: =IF(N36="OR","per year","") ->  | Q44: =IF(N36="OR","per year","") -> 
C49: Initial Event Description | E49: Event Description | G49: Event Description | I49: Event Description | K49: Event Description | M49: Event Description
C52: Frequency per Year | E52: PFD or Probability | G52: PFD or Probability | I52: PFD or Probability | K52: PFD or Probability | M52: PFD or Probability
O53: Outcome Description | Q53: Frequency
M54: ="Yes ("&N52&")" -> Yes ()
C55: SIMPLE EVENT TREE | Q55: =D52*F52*H52*J52*L52*N52 -> 0
C56: section 16.11 | K56: ="Yes ("&L52&")" -> Yes () | Q56: per Year
C57: Enter Event and Outcome Descriptions (such as Protective Layers or Conditions)
C58: Enter IEF and Leave PFDs blank that to not apply | I58: ="Yes ("&J52&")" -> Yes () | Q58: =D52*F52*H52*J52*L52*(1-N52) -> 0
C59: Allows up to 6 Outcome | Q59: per Year
M60: ="No ("&1-N52&")" -> No (1)
G61: ="Yes ("&H52&")" -> Yes () | Q61: =D52*F52*H52*J52*(1-L52) -> 0
Q62: per Year
K63: ="No ("&1-L52&")" -> No (1)
E64: ="Yes ("&F52&")" -> Yes () | Q64: =D52*F52*H52*(1-J52) -> 0
Q65: per Year
I66: ="No ("&1-J52&")" -> No (1)
C67: Initial Event | Q67: =D52*F52*(1-H52) -> 0
Q68: per Year | U68: CCPS Layers of Protection Analysis, Simplified Process Risk Assessment (2001) page 92 and 96.
C69: =D52&" per Year" -> per Year | G69: ="No ("&1-H52&")" -> No (1)
Q70: =D52*(1-F52) -> 0
Q71: per Year
E72: ="No ("&1-F52&")" -> No (1)
P73: Sum of Frequencies = | Q73: =Q55+Q58+Q61+Q64+Q67+Q70 -> 0
Q74: per Year
B79: Copyright © 2026
B80: American Institute of Chemical Engineers
U86: CCPS Guidelines for Layers of Protection Analysis (2001) page 103

Sheet LOPA Form
B2: Example LOPA Documentation Form per Layers of Protection Analysis - Section 18
C3: Inputs are shaded "yellow"
B4: Scenario Number: | C4: Equipment Identification: | D4: Scenario Title:
B6: Date: | C6: Description | D6: Probability | E6: Frequency (per year)
B8: Consequence Description/ Category
B9: Risk Tolerance Criteria (Category or Frequency)
B10: Initiating Event (typically a frequency)
B11: Enabling Condition or Event
B12: Conditional Modifiers (if applicable)
C13: Probability of Ignition
C14: Probability of Personnel in Affected Area
C15: Probability of Fatal Injury
C16: Others
B17: Frequency of Unmitigated Consequence | E17: =E10*IF(D11="",1,D11)*IF(D13="",1,D13)*IF(D14="",1,D14)*IF(D15="",1,D15)*IF(D16="",1,D16) -> 0
B18: Independent Protection Layers (IPLs)
B19: BPCS
B20: Human Intervention
B21: SIF
B22: Pressure Relief Device
B23: Other Protection Layers (must justify)
B24: Safeguards (Non-IPLs)
B29: Total PFD for all IPLs | D29: =IF(D19="",1,D19)*IF(D20="",1,D20)*IF(D21="",1,D21)*IF(D22="",1,D22)*IF(D23="",1,D23) -> 1
B30: Frequency of Mitigated Consequence | E30: =D29*E17 -> 0
B31: Risk Tolerance Criteria Met? (yes/no)
B32: Actions Required to Meet Risk Tolerance Criteria
B33: Notes
B34: References (link to originating hazard review, PFD, P&ID, etc.)
B35: LOPA Analysis (and Team Members)
B37: This form is from CCPS, Layers of Protection Analysis Simplified Process Risk Assessment (2001) page 50.
B39: Copyright © 2026
B40: American Institute of Chemical Engineers

Sheet References
B2: References:
B4: Guidelines for Chemical Process Quantitative Risk Analysis, 2nd Edition, Center for Chemical Process Safety, American Institute of Chemical Engineers, New York (2000)
B5: Guidelines for Consequence Analysis of Chemical Releases, Center for Chemical Process Safety, American Institute of Chemical Engineers, New York (1999)
B6: Layer of Protection Analysis - Simplified Process Risk Assessment, Center for Chemical Process Safety, American Institute of Chemical Engineers, New York (2001)
B7: Guidelines for Evaluating the Characteristics of Vapor Cloud Explosions, Flash Fires, and BLEVEs, 2nd Edition, Center for Chemical Process Safety, American Institute of Chemical Engineers, New York (2010)
B8: Crowl and Louvar, Chemical Process Safety Fundamentals with Applications, 3rd Edition, Prentice Hall, (2011)
B9: Mannan, Lee’s Loss Prevention in the Process Industries, 3rd Edition, Elsevier, (2005)
B10: Green and Perry, Perry’s Chemical Engineers’ Handbook, 8th Edition, McGraw-Hill, New York (2008)
B11: First, Kenneth. "Scenario identification and evaluation for layers of protection analysis." Journal of Loss
B12: Prevention in the Process Industries November 2010: 705-718. Print.
B14: Chemical Hazard Engineering Fundamentals (CHEF) Guide version 4.5, Center for Chemical Process Safety (2025)

Sheet Chemical Table (hidden)
A1: Chemical | B1: CAS Number | C1: Mol Wt | D1: ERPG1 (ppm) | E1: ERPG2 (ppm) | F1: ERPG3 (ppm) | G1: Boiling Point (C) | H1: Melting Point (C) | I1: Flash Point (C) | J1: LFL (vol %) | K1: UFL (vol %) | L1: Autoignition Temp (C) | M1: NH | N1: NF | O1: NS | P1: Minimum Ignition Energy | Q1: Easily Ignited | R1: Flame Speed | S1: Flame Speed Class | T1: Dermal Tox Risk Statement | U1: Aquatic Tox Risk Statement | V1: Liquid Conductivity | W1: Liquid Conductivity Category | X1: Liq Density (g/cc) A Coeff | Y1: Liq Density (g/cc) B Coeff | Z1: Liq Cp (cal/g-C) A Coeff | AA1: Liq Cp (cal/g-C) B Coeff | AB1: DHv (cal/g) A Coeff | AC1: DHv (cal/g) B Coeff | AD1: DHv (cal/g) C Coeff | AE1: Vapor Press (atm) A Coeff | AF1: Vapor Press (atm) B Coeff | AG1: Vapor Press (atm) C Coeff
A2: Acetaldehyde | B2: 75-07-0 | C2: 44.05 | D2: 10 | E2: 200 | F2: 1000 | G2: 20.3 | H2: -123 | I2: -37.8 | J2: 4 | M2: 2 | N2: 4 | O2: 2 | Q2: Normal | S2: Medium | W2: Conductive | X2: 0.795 | Y2: 0.001364 | Z2: 0.5 | AA2: 0.000773 | AB2: 145.2 | AC2: 0.2685 | AD2: 0.000355 | AE2: 9.9343 | AF2: 2608.4 | AG2: 30.8
A3: Acetic Acid | B3: 64-19-7 | C3: 60.1 | D3: 5 | E3: 35 | F3: 250 | G3: 117.9 | H3: 16.5 | I3: 40 | J3: 5.4 | M3: 3 | N3: 3 | O3: 0 | Q3: Normal | S3: Medium | T3: Corrosive | W3: Conductive | X3: 1.073 | Y3: 0.001231 | Z3: 0.464 | AA3: 0.001062 | AB3: 96 | AC3: 0.013 | AD3: 0.000261 | AE3: 10.7691 | AF3: 3764.2 | AG3: 41.38
A4: Acetic Anhydride | B4: 108-24-7 | C4: 102.1 | D4: 0.5 | E4: 15 | F4: 100 | G4: 138.6 | H4: -73 | I4: 54 | J4: 2.7 | M4: 3 | N4: 2 | O4: 1 | Q4: Normal | S4: Medium | T4: Corrosive | W4: Conductive | X4: 1.104 | Y4: 0.0013 | Z4: 0.345 | AA4: 0.000816 | AB4: 117.8 | AC4: 0.401 | AD4: 0 | AE4: 13.311 | AF4: 5481.3 | AG4: 0
A5: Acetone | B5: 67-64-1 | C5: 58.1 | D5: 200 | E5: 3200 | F5: 5200 | G5: 56.1 | H5: -94.6 | I5: -17.8 | J5: 2.6 | M5: 1 | N5: 3 | O5: 0 | Q5: Normal | S5: Medium | W5: Conductive | X5: 0.808 | Y5: 0.00118 | Z5: 0.512 | AA5: 0.00059 | AB5: 134.2 | AC5: 0.2338 | AD5: 0.000233 | AE5: 9.8425 | AF5: 2831.55 | AG5: 41.51
A6: Acetone Cyanohydrin | B6: 75-86-5 | C6: 85.1 | D6: 2 | E6: 7.1 | F6: 15 | G6: 162 | H6: -19.2 | I6: 74 | J6: 2.2 | M6: 3 | N6: 2 | O6: 0 | X6: 0.953 | Y6: 0.001217 | Z6: 0.52 | AA6: 0.0016333 | AB6: 191.9 | AC6: 0.180556 | AD6: 0.000694 | AE6: 13.7342 | AF6: 5300.84 | AG6: 51.05
A7: Acetonitrile | B7: 75-05-8 | C7: 41.05 | D7: 13 | E7: 320 | F7: 670 | G7: 81.7 | H7: -43.9 | I7: 2 | J7: 3 | K7: 16 | L7: 525 | M7: 2 | N7: 3 | O7: 0 | Q7: Normal | S7: Medium | T7: Harmful | W7: Conductive | X7: 0.803 | Y7: 0.001086 | Z7: 0.537 | AA7: 0.000711 | AB7: 199.7 | AC7: 0.2463 | AD7: 0.000531 | AE7: 9.8954 | AF7: 3127.43 | AG7: 37.94
A8: Acetylene | B8: 74-86-2 | C8: 26.04 | D8: 65000 | E8: 230000 | F8: 400000 | G8: -84.9 | H8: -80.8 | I8: -150 | J8: 2.5 | M8: 0 | N8: 4 | O8: 3 | Q8: Elevated | S8: High | X8: 0.457 | Y8: 0.00185 | Z8: 0.832 | AA8: 0.0019375 | AB8: 96.9 | AC8: 0.58125 | AD8: 0 | AE8: 10.4615677 | AF8: 1965.49964 | AG8: 0
A9: Acrolein | B9: 107-02-8 | C9: 56.1 | D9: 0.05 | E9: 0.15 | F9: 1.5 | G9: 52.5 | H9: -87.7 | I9: -26 | J9: 2.8 | K9: 31 | L9: 235 | M9: 4 | N9: 3 | O9: 3 | Q9: Normal | S9: Medium | T9: Toxic | U9: Very Toxic | W9: Conductive | X9: 0.855 | Y9: 0.001201 | Z9: 0.453 | AA9: 0.001151 | AB9: 133.9 | AC9: 0.1725 | AD9: 0.000597 | AE9: 9.8121 | AF9: 2824.64 | AG9: 37.53
A10: Acrylamide | B10: 79-06-1 | C10: 71.08 | D10: 3.4 | E10: 37.8 | F10: 37.8 | G10: 230.2 | H10: 84.5 | M10: 3 | N10: 0 | O10: 1 | Q10: Normal | S10: Medium | T10: Corrosive | X10: 0.997 | Y10: 0.00066 | Z10: 0.443 | AA10: 0.00095 | AB10: 243.7 | AC10: 0.167 | AD10: 0.00022 | AE10: 13.1384 | AF10: 6003.78 | AG10: 45.23
A11: Acrylic Acid | B11: 79-10-7 | C11: 72.1 | D11: 1 | E11: 50 | F11: 250 | G11: 141.3 | H11: 13.9 | I11: 49.9 | J11: 5.3 | M11: 3 | N11: 2 | O11: 2 | Q11: Normal | S11: Medium | T11: Corrosive | U11: Very Toxic | X11: 1.075 | Y11: 0.00124 | Z11: 0.429 | AA11: 0.001015 | AB11: 120 | AC11: 0.2 | AD11: 0 | AE11: 10.9902 | AF11: 3888.69 | AG11: 60.72
A12: Acrylonitrile | B12: 107-13-1 | C12: 53.1 | D12: 10 | E12: 35 | F12: 75 | G12: 77.2 | H12: -83.5 | I12: -5 | J12: 3 | K12: 17 | L12: 481 | M12: 4 | N12: 3 | O12: 2 | Q12: Normal | S12: Medium | T12: Toxic | U12: Toxic | W12: Conductive | X12: 0.827 | Y12: 0.001204 | Z12: 0.484 | AA12: 0.000509 | AB12: 157.1 | AC12: 0.206 | AD12: 0.00028 | AE12: 9.7858 | AF12: 3033.48 | AG12: 40.4
A13: Allyl Alcohol | B13: 107-18-6 | C13: 58.1 | D13: 0.9 | E13: 13 | F13: 40 | G13: 96.9 | H13: -129 | I13: 21 | J13: 2.5 | M13: 4 | N13: 3 | O13: 1 | Q13: Normal | S13: Medium | T13: Toxic | U13: Very Toxic | W13: Conductive | X13: 0.872 | Y13: 0.001063 | Z13: 0.579 | AA13: 0.001263 | AB13: 198.9 | AC13: 0.265 | AD13: 0.000594 | AE13: 11.4765 | AF13: 3583.24 | AG13: 58.2
A14: Allyl Chloride | B14: 107-05-1 | C14: 76.53 | D14: 3 | E14: 40 | F14: 300 | G14: 45 | H14: -134.5 | I14: -32 | J14: 1 | M14: 3 | N14: 3 | O14: 1 | T14: Harmful | U14: Very Toxic | X14: 0.96 | Y14: 0.0014 | Z14: 0.357 | AA14: 0.0006 | AB14: 95.2 | AC14: 0.1478 | AD14: 0.00029 | AE14: 9.7954 | AF14: 2751.49 | AG14: 37.23
A15: Allylamine | B15: 107-11-9 | C15: 57.1 | D15: 0.42 | E15: 3.3 | F15: 18 | G15: 58 | H15: -93 | I15: -29 | J15: 2.2 | M15: 3 | N15: 3 | O15: 0 | Q15: Normal | S15: Medium | T15: Toxic | U15: Toxic | X15: 0.778 | Y15: 0.001116 | Z15: 0.567 | AA15: 0.001088 | AB15: 143.6 | AC15: 0.229 | AD15: 0.000427 | AE15: 9.6469 | AF15: 2652.64 | AG15: 56.37
A16: Ammonia | B16: 7664-41-7 | C16: 17.03 | D16: 25 | E16: 150 | F16: 1500 | G16: -33.4 | H16: -77.7 | I16: -65 | J16: 15 | K16: 28 | L16: 650 | M16: 3 | N16: 2 | O16: 0 | Q16: Low | S16: Low | U16: Very Toxic | W16: Conductive | X16: 0.635 | Y16: 0.001348 | Z16: 1.172 | AA16: 0.000783 | AB16: 300.5 | AC16: 0.8714 | AD16: 0.001681 | AE16: 10.1227 | AF16: 2021.47 | AG16: 39.45
A17: Amyl Acetate | B17: 628-63-7 | C17: 130.19 | D17: 100 | E17: 100 | F17: 4000 | G17: 149.3 | H17: -71 | I17: 25 | J17: 1 | M17: 2 | N17: 2 | O17: 0 | W17: Semi-Conductive | X17: 0.893 | Y17: 0.001046 | Z17: 0.439 | AA17: 0.0009417 | AB17: 92.7 | AC17: 0.118611 | AD17: 0.000181 | AE17: 10.5116 | AF17: 3932.03 | AG17: 49.59
A18: Amyl Alcohol | B18: 71-41-0 | C18: 88.15 | D18: 20 | E18: 20 | F18: 43 | G18: 137.8 | H18: -77.6 | I18: 46.85 | J18: 1.2 | M18: 2 | N18: 2 | O18: 0 | W18: Conductive | X18: 0.83 | Y18: 0.0009 | Z18: 0.543 | AA18: 0.0022417 | AB18: 163.3 | AC18: 0.279306 | AD18: 0.000309 | AE18: 9.897 | AF18: 3090.33 | AG18: 97.11
A19: Benzene | B19: 71-43-2 | C19: 78.1 | D19: 50 | E19: 150 | F19: 1000 | G19: 80.1 | H19: 5.5 | I19: -11 | J19: 1.2 | M19: 2 | N19: 3 | O19: 0 | Q19: Normal | S19: Medium | W19: Non-Conductive | X19: 0.904 | Y19: 0.001221 | Z19: 0.39 | AA19: 0.000958 | AB19: 106.6 | AC19: 0.1285 | AD19: 0.000325 | AE19: 9.3814 | AF19: 2853.09 | AG19: 49.21
A20: Benzocyclobutane | B20: 694-87-1 | C20: 104.2 | D20: 2 | E20: 15 | F20: 85 | G20: 151.1 | I20: 35 | J20: 0.8 | K20: 16.6 | L20: 243 | M20: 0 | N20: 3 | O20: 0 | Q20: Normal | S20: Medium | X20: 0.956 | Y20: 0.000948 | Z20: 0.341 | AA20: 0.000925 | AB20: 104.6 | AC20: 0.09578 | AD20: 0.000167 | AE20: 9.7827 | AF20: 3657.38 | AG20: 50.49
A21: Benzoyl chloride | B21: 98-88-4 | C21: 140.6 | D21: 0.3 | E21: 5 | F21: 20 | G21: 197.2 | H21: -0.2 | I21: 72 | J21: 1.2 | K21: 4.9 | M21: 3 | N21: 2 | O21: 2 | Q21: Normal | S21: Medium | X21: 1.234 | Y21: 0.00109 | Z21: 0.239 | AA21: 0.00072 | AB21: 89.5 | AC21: 0.055 | AD21: 0.00015 | AE21: 10.4353 | AF21: 4414.26 | AG21: 47.37
A22: Biphenyl | B22: 92-52-4 | C22: 154.2 | D22: 0.05 | E22: 5 | F22: 10.5 | G22: 255.3 | H22: 68.9 | I22: 113 | J22: 0.6 | M22: 2 | N22: 0 | O22: 0 | Q22: Normal | S22: Medium | U22: Very Toxic | W22: Semi-Conductive | X22: 1.058 | Y22: 0.00089 | Z22: 0.314 | AA22: 0.000899 | AB22: 100 | AC22: 0.0725 | AD22: 0.000104 | AE22: 9.8712 | AF22: 4443.71 | AG22: 78.51
A23: Bromine | B23: 7726-95-6 | C23: 159.8 | D23: 0.1 | E23: 0.5 | F23: 5 | G23: 58.7 | H23: -7.3 | M23: 3 | N23: 0 | O23: 0 | U23: Very Toxic | W23: Non-Conductive | X23: 3.185 | Y23: 0.003783 | Z23: 0.103 | AA23: 7.92e-05 | AB23: 48.4 | AC23: 0.0575 | AD23: 0.0001 | AE23: 9.8712 | AF23: 2920.34 | AG23: 36.08
A24: Butadiene (1,3) | B24: 106-99-0 | C24: 54.1 | D24: 10 | E24: 200 | F24: 5000 | G24: -4.4 | H24: -108.9 | I24: -76.2 | J24: 2 | K24: 11.5 | L24: 420 | M24: 2 | N24: 4 | O24: 2 | Q24: Elevated | S24: Medium | X24: 0.639 | Y24: 0.001143 | Z24: 0.535 | AA24: 0.001072 | AB24: 98.2 | AC24: 0.2534 | AD24: 0.000445 | AE24: 9.2389 | AF24: 2187.11 | AG24: 32
A25: Butane | B25: 106-97-8 | C25: 58.1 | D25: 5500 | E25: 17000 | F25: 53000 | G25: -0.6 | I25: -72 | J25: 1.6 | M25: 1 | N25: 4 | O25: 0 | Q25: Normal | S25: Medium | X25: 0.602 | Y25: 0.0011 | Z25: 0.567 | AA25: 0.00118 | AB25: 93.1 | AC25: 0.238 | AD25: 0 | AE25: 10.439 | AF25: 2843.5 | AG25: 0
A26: Butanol (n) | B26: 71-36-3 | C26: 74.12 | D26: 59 | E26: 790 | F26: 8000 | G26: 118 | I26: 36 | J26: 1.7 | M26: 2 | N26: 3 | O26: 0 | Q26: Normal | S26: Medium | W26: Conductive | X26: 0.826 | Y26: 0.00079 | Z26: 0.529 | AA26: 0.00211 | AB26: 175.7 | AC26: 0.223 | AD26: 0 | AE26: 14.784 | AF26: 5776.3 | AG26: 0
A27: Butyl Acetate, n- | B27: 123-86-4 | C27: 116.16 | D27: 5 | E27: 200 | F27: 3000 | G27: 126 | H27: -77.9 | I27: 22 | J27: 1.4 | M27: 2 | N27: 3 | O27: 0 | W27: Semi-Conductive | X27: 0.9 | Y27: 0.00113 | Z27: 0.453 | AA27: 0.0006082 | AB27: 94 | AC27: 0.151909 | AD27: 7.73e-05 | AE27: 10.7786 | AF27: 3909.65 | AG27: 38.51
A28: Butyl Acetate, sec- | B28: 105-46-4 | C28: 116.16 | D28: 600 | E28: 1700 | F28: 10000 | G28: 112 | H28: -9.9 | I28: 16 | J28: 1.7 | M28: 2 | N28: 3 | O28: 0 | X28: 0.891 | Y28: 0.001189 | Z28: 0.431 | AA28: 0.0009199 | AB28: 89.2 | AC28: 0.122712 | AD28: 0.000214 | AE28: 9.751 | AF28: 3209.31 | AG28: 56.22
A29: Butyl Acetate, tert- | B29: 540-88-5 | C29: 116.16 | D29: 600 | E29: 1700 | F29: 10000 | G29: 96 | H29: -58.2 | I29: 14.1 | J29: 1.3 | M29: 2 | N29: 3 | O29: 0 | X29: 0.889 | Y29: 0.001112 | Z29: 0.426 | AA29: 0.0012269 | AB29: 80.5 | AC29: 0.094167 | AD29: 0.000286 | AE29: 9.982 | AF29: 3242.13 | AG29: 44.47
A30: Butyl Acrylate | B30: 141-32-2 | C30: 128.17 | D30: 0.05 | E30: 25 | F30: 250 | G30: 146.6 | H30: -64.6 | I30: 36 | J30: 1.3 | M30: 3 | N30: 3 | O30: 2 | Q30: Normal | S30: Medium | T30: Harmful | W30: Semi-Conductive | X30: 0.9145778 | Y30: 0.00088748 | Z30: 0.4095490667 | AA30: 0.0008555933333 | AB30: 90.58928933 | AC30: 0.1300889333 | AD30: 0 | AE30: 12.62637378 | AF30: 5314.199964 | AG30: 0
A31: Butyl Hydroperoxide (tertiary) | B31: 75-91-2 | C31: 90.12 | E31: 0.74 | F31: 22 | G31: 115 | H31: 4.3 | I31: 26.666 | M31: 2 | N31: 2 | O31: 3 | X31: 0.912 | Y31: 0.001119 | Z31: 0.54 | AA31: 0.0014212 | AB31: 138.2 | AC31: 0.206755 | AD31: 0.000234 | AE31: 12.1381 | AF31: 4130.5 | AG31: 48.86
A32: Butyl Isocyanate | B32: 111-36-4 | C32: 99.13 | D32: 0.01 | E32: 0.05 | F32: 1 | G32: 115.3 | I32: 17 | M32: 3 | N32: 3 | O32: 2 | X32: 0.909 | Y32: 0.001088 | Z32: 0.363 | AA32: 0.0010458 | AB32: 100.7 | AC32: 0.116667 | AD32: 0.000208 | AE32: 9.9336 | AF32: 3365.02 | AG32: 50.88
A33: Butyl Methacrylate, n- | B33: 97-88-1 | C33: 142.2 | D33: 0.17 | E33: 1.7 | F33: 224 | G33: 163 | H33: -75.4 | I33: 48.85 | J33: 2 | M33: 3 | N33: 2 | O33: 0 | X33: 0.913 | Y33: 0.001008 | Z33: 0.458 | AA33: 0.000952 | AB33: 86.2 | AC33: 0.09336 | AD33: 0.000163 | AE33: 10.2899 | AF33: 3929.22 | AG33: 54.88
A34: Butyraldehyde | B34: 123-72-8 | C34: 72.11 | D34: 0.3 | E34: 75 | F34: 547 | G34: 74 | H34: -99 | I34: -22 | J34: 1.9 | M34: 2 | N34: 3 | O34: 1 | X34: 0.806 | Y34: 0.001037 | Z34: 0.529 | AA34: 0.0008688 | AB34: 116.9 | AC34: 0.214318 | AD34: 0.000216 | AE34: 9.64 | AF34: 2910.27 | AG34: 45.43
A35: Carbon Dioxide | B35: 124-38-9 | C35: 44.01 | G35: -87.8 | H35: -56.6 | M35: 0 | N35: 0 | O35: 0 | X35: 0.974 | Y35: 0.004125 | Z35: 0.473 | AA35: 0 | AB35: 60.1 | AC35: 0.395 | AD35: 0.000125 | AE35: 9.8098 | AF35: 1590.96 | AG35: 21.73
A36: Carbon Disulfide | B36: 75-15-0 | C36: 76.14 | D36: 1 | E36: 50 | F36: 500 | G36: 46.2 | H36: -112 | I36: -30 | J36: 1.3 | M36: 2 | N36: 3 | O36: 0 | Q36: Elevated | S36: Medium | W36: Non-Conductive | X36: 1.291 | Y36: 0.001686 | Z36: 0.253 | AA36: 0.0001864 | AB36: 89.7 | AC36: 0.122397 | AD36: 0.000215 | AE36: 9.6643 | AF36: 2846.65 | AG36: 25.12
A37: Carbon Monoxide | B37: 630-08-0 | C37: 28 | D37: 200 | E37: 350 | F37: 500 | G37: -191.5 | I37: -210 | J37: 12.5 | M37: 2 | N37: 4 | O37: 0 | Q37: Normal | S37: Low | X37: 0.7 | Y37: 0 | Z37: 0.6 | AA37: 0 | AB37: 50 | AC37: 0 | AD37: 0 | AE37: 9.16832878 | AF37: 748.8930037 | AG37: 0
A38: Carbon Tetrachloride | B38: 56-23-5 | C38: 153.82 | D38: 20 | E38: 100 | F38: 750 | G38: 76.8 | H38: -22.8 | M38: 3 | N38: 0 | O38: 0 | T38: Toxic | U38: Harmful | W38: Non-Conductive | X38: 1.63 | Y38: 0.002093 | Z38: 0.193 | AA38: 0.0001695 | AB38: 52.2 | AC38: 0.0651 | AD38: 0.000145 | AE38: 9.2032 | AF38: 2784.92 | AG38: 47.34
A39: Chlorine | B39: 7782-50-5 | C39: 70.91 | D39: 1 | E39: 3 | F39: 20 | G39: -34 | H39: -101 | M39: 4 | N39: 0 | O39: 0 | W39: Non-Conductive | X39: 1.461 | Y39: 0.003066 | Z39: 0.236 | AA39: 0.000396 | AB39: 64.1 | AC39: 0.1602 | AD39: 0.000594 | AE39: 9.5019 | AF39: 2046.46 | AG39: 23.81
A40: Chloroacetic Acid | B40: 79-11-8 | C40: 94.5 | D40: 1.5 | E40: 6.5 | F40: 15 | G40: 189 | M40: 4 | N40: 0 | O40: 1 | Q40: Normal | S40: Medium | T40: Very Toxic | U40: Very Toxic | W40: Conductive | X40: 1.4521 | Y40: 0.001339 | Z40: 0.3659 | AA40: 0.0004508 | AB40: 159.88 | AC40: 0.1711 | AD40: 0 | AE40: 15.7617 | AF40: 7206.13 | AG40: 0
A41: Chlorobenzene | B41: 108-90-7 | C41: 112.6 | D41: 10 | E41: 150 | F41: 400 | G41: 132 | H41: -45.3 | I41: 27 | J41: 1.8 | K41: 9.6 | M41: 3 | N41: 3 | O41: 0 | Q41: Normal | S41: Medium | X41: 1.131 | Y41: 0.001191 | Z41: 0.297 | AA41: 0.00062 | AB41: 89.7 | AC41: 0.0905 | AD41: 0.000155 | AE41: 9.6132 | AF41: 3405.44 | AG41: 51
A42: Chlorodifluoro Methane (Freon 22) | B42: 75-45-6 | C42: 86.47 | D42: 1250 | E42: 2100 | F42: 2400 | G42: -48 | H42: -157.4 | M42: 2 | N42: 0 | O42: 0 | X42: 1.267 | Y42: 0.00357 | Z42: 0.301 | AA42: 0.00064 | AB42: 48.6 | AC42: 0.2098 | AD42: 0.000696 | AE42: 9.3158 | AF42: 1825.17 | AG42: 36.46
A43: Chloroform | B43: 67-66-3 | C43: 119.38 | E43: 50 | F43: 5000 | G43: 61.2 | H43: -63.5 | M43: 2 | N43: 0 | O43: 1 | W43: Semi-Conductive | X43: 1.521 | Y43: 0.002095 | Z43: 0.228 | AA43: 0.000181 | AB43: 65.3 | AC43: 0.104512 | AD43: 0.000141 | AE43: 9.4808 | AF43: 2754.26 | AG43: 43.82
A44: Chloropicrin | B44: 76-06-2 | C44: 164.38 | D44: 0.075 | E44: 0.15 | F44: 1.5 | G44: 112 | H44: -69.5 | M44: 4 | N44: 0 | O44: 3 | X44: 1.69 | Y44: 0.00171 | Z44: 0.195 | AA44: 0.0004 | AB44: 58.2 | AC44: 0.071 | AD44: 0 | AE44: 11.894 | AF44: 4579.1 | AG44: 0
A45: Chloropropane (n) | B45: 540-54-5 | C45: 78.54 | G45: 46.1 | H45: -122.8 | I45: -20.2 | J45: 2.6 | Q45: Normal | S45: Medium | X45: 0.913 | Y45: 0.001325 | Z45: 0.418 | AA45: 0.0007613 | AB45: 94.8 | AC45: 0.1875 | AD45: 0.000313 | AE45: 9.5108 | AF45: 2640.69 | AG45: 41.63
A46: Chlorosulfonic Acid | B46: 7790-94-5 | C46: 116.52 | D46: 0.42 | E46: 2.1 | F46: 6.29 | G46: 153.85 | H46: -80 | M46: 4 | N46: 0 | O46: 2 | X46: 1.786 | Y46: 0.001607 | Z46: 0.232 | AA46: 0.0004714 | AB46: 100.4 | AC46: 0.086173 | AD46: 0.000168 | AE46: 9.7823 | AF46: 3557 | AG46: 64.38
A47: Chlorotrifluoroethylene | B47: 79-38-9 | C47: 116.47 | D47: 20 | E47: 100 | F47: 300 | G47: -28.2 | H47: -158.3 | J47: 8.4 | M47: 3 | N47: 4 | O47: 3 | X47: 1.368 | Y47: 0.0003 | Z47: 0.266 | AA47: 0.0004667 | AB47: 38.5 | AC47: 0.1384 | AD47: 0.000249 | AE47: 9.2251 | AF47: 1964.48 | AG47: 31.9
A48: Crotonaldehyde, cis- | B48: 15798-64-8 | C48: 70.09 | D48: 0.2 | E48: 5 | F48: 15 | G48: 88.7 | H48: -114.8 | I48: 8 | J48: 2.1 | X48: 0.837 | Y48: 0.001073 | Z48: 0.46 | AA48: 0.001421 | AB48: 132.6 | AC48: 0.1981 | AD48: 0.00019 | AE48: 10.021 | AF48: 3157.89 | AG48: 46.91
A49: Crotonaldehyde, trans- | B49: 123-73-9 | C49: 70.09 | D49: 0.2 | E49: 4.4 | F49: 14 | G49: 102.3 | H49: -75 | I49: 13 | J49: 2.1 | M49: 3 | N49: 3 | O49: 0 | T49: Toxic | U49: Very Toxic | X49: 0.867 | Y49: 0.001083 | Z49: 0.462 | AA49: 0.0007957 | AB49: 133.4 | AC49: 0.180227 | AD49: 0.000159 | AE49: 9.9797 | AF49: 3317.69 | AG49: 43.05
A50: Crotonic Acid | B50: 3724-65-0 | C50: 86.1 | D50: 0.85 | E50: 9.37 | F50: 56.8 | G50: 171.9 | H50: 15.5 | I50: 78.9 | J50: 2.3 | M50: 3 | N50: 2 | O50: 0 | Q50: Normal | S50: Medium | T50: Corrosive | X50: 1.05 | Y50: 0.001071 | Z50: 0.537 | AA50: 0.0005145 | AB50: 166.2 | AC50: 0.14018 | AD50: 0.000217 | AE50: 11.5913 | AF50: 4462.71 | AG50: 60.08
A51: Crotonyl Chloride | B51: 625-35-4 | C51: 104.5 | D51: 0.15 | E51: 1.5 | F51: 10 | G51: 121 | H51: -64 | I51: 35 | J51: 3.3 | M51: 3 | N51: 2 | O51: 0 | Q51: Normal | S51: Medium | T51: Corrosive | X51: 1.105 | Y51: 0.001283 | Z51: 0.335 | AA51: 0.000728 | AB51: 100.2 | AC51: 0.1172 | AD51: 0.000105 | AE51: 10.0635 | AF51: 3430.01 | AG51: 53.54
A52: Cumene | B52: 98-82-8 | C52: 120.2 | E52: 300 | F52: 730 | G52: 152.4 | H52: -96 | I52: 33.4 | J52: 0.88 | M52: 2 | N52: 3 | O52: 1 | Q52: Normal | S52: Medium | U52: Toxic | W52: Non-Conductive | X52: 0.883 | Y52: 0.000935 | Z52: 0.377 | AA52: 0.0010025 | AB52: 92.3 | AC52: 0.09365 | AD52: 0.000153 | AE52: 9.4432 | AF52: 3426.88 | AG52: 62.62
A53: Cyanamide | B53: 420-04-2 | C53: 42 | D53: 1.165 | E53: 1.16 | F53: 1.92 | G53: 265 | H53: 44 | I53: 141 | J53: 1.6 | M53: 3 | N53: 1 | O53: 1 | Q53: Normal | S53: Medium | T53: Harmful | X53: 1.314 | Y53: 0.001154 | Z53: 0.588 | AA53: 0.000668 | AB53: 415.2 | AC53: 0.3458 | AD53: 0.000126 | AE53: 12.456 | AF53: 6170.11 | AG53: 42.94
A54: Cyanoacetamide | B54: 107-91-5 | C54: 84.1 | D54: 0.87 | E54: 8.72 | F54: 52.3 | G54: 332.1 | H54: 118 | I54: 215 | M54: 2 | N54: 0 | O54: 0 | X54: 1.496 | Y54: 0.00113 | Z54: 0.413 | AA54: 0.000565 | AB54: 222.2 | AC54: 0.158 | AD54: 0 | AE54: 13.94 | AF54: 8435.7 | AG54: 0
A55: Cyanopyridine (2-) | B55: 100-70-9 | C55: 104.1 | D55: 0.3 | E55: 3 | F55: 15 | G55: 231.6 | H55: 27 | I55: 89 | J55: 1 | M55: 2 | N55: 2 | O55: 0 | Q55: Normal | S55: Medium | X55: 1.113 | Y55: 0.00099 | Z55: 0.365 | AA55: 0.000785 | AB55: 134.6 | AC55: 0.0996 | AD55: 0.00013 | AE55: 10.0095 | AF55: 4399.99 | AG55: 65.08
A56: Cyclohexanone | B56: 108-94-1 | C56: 98.1 | D56: 60 | E56: 830 | F56: 5000 | G56: 155.4 | H56: -31 | I56: 44 | J56: 1.1 | M56: 2 | N56: 2 | O56: 0 | Q56: Normal | S56: Medium | W56: Conductive | X56: 0.966 | Y56: 0.000955 | Z56: 0.414 | AA56: 0.001035 | AB56: 114.1 | AC56: 0.163 | AD56: 0.00015 | AE56: 9.5246 | AF56: 3508.33 | AG56: 60.33
A57: Dichloropropane (1,2-) (Propylene Dichloride) | B57: 78-87-5 | C57: 112.99 | D57: 30 | E57: 220 | F57: 2000 | G57: 96.3 | H57: -100 | I57: 16 | J57: 3.2 | M57: 1 | N57: 3 | O57: 0 | Q57: Normal | S57: Medium | X57: 1.188 | Y57: 0.00154 | Z57: 0.297 | AA57: 0.000515 | AB57: 79 | AC57: 0.093 | AD57: 0.00021 | AE57: 9.4312 | AF57: 3006.42 | AG57: 50.69
A58: Diethanol amine | B58: 111-42-2 | C58: 105.1 | D58: 0.7 | E58: 1.19 | F58: 30.2 | G58: 268.5 | H58: 28 | I58: 138 | J58: 1.53 | M58: 2 | N58: 0 | O58: 1 | Q58: Normal | S58: Medium | X58: 1.135 | Y58: 0.000803 | Z58: 0.447 | AA58: 0.00094 | AB58: 194.4 | AC58: 0.11 | AD58: 0.00024 | AE58: 13.124 | AF58: 6176.66 | AG58: 71.43
A59: Diethyl Benzene (m-) | B59: 141-93-5 | C59: 134.22 | D59: 10 | E59: 100 | F59: 500 | G59: 181.1 | H59: -83.9 | I59: 56 | J59: 0.67 | K59: 6.03 | L59: 450 | M59: 2 | N59: 2 | O59: 0 | U59: Toxic | X59: 0.882 | Y59: 0.000879 | Z59: 0.406 | AA59: 0.001003 | AB59: 94.6 | AC59: 0.1063 | AD59: 0.000132 | AE59: 9.8677 | AF59: 3891.8 | AG59: 60.01
A60: Diethyl Ketone | B60: 96-22-0 | C60: 86.13 | D60: 300 | E60: 300 | F60: 310 | G60: 102 | H60: -39.9 | I60: 13 | J60: 1.6 | M60: 2 | N60: 3 | O60: 0 | W60: Conductive | X60: 0.832 | Y60: 0.001107 | Z60: 0.481 | AA60: 0.0009276 | AB60: 110.7 | AC60: 0.144394 | AD60: 0.00028 | AE60: 9.6968 | AF60: 3112.79 | AG60: 54.22
A61: Diethyl Sulfate | B61: 64-67-5 | C61: 154.19 | E61: 0.15 | F61: 9.7 | G61: 209.5 | H61: -25 | I61: 78 | J61: 1.6 | M61: 3 | N61: 1 | O61: 1 | X61: 1.209 | Y61: 0.001185 | Z61: 0.331 | AA61: 0.0006161 | AB61: 89.3 | AC61: 0.056463 | AD61: 9.94e-05 | AE61: 10.8869 | AF61: 4678.43 | AG61: 52.92
A62: Diethylamine | B62: 109-89-7 | C62: 73.14 | G62: 55.5 | H62: -50 | I62: -23 | J62: 1.8 | M62: 3 | N62: 3 | O62: 0 | T62: Toxic | X62: 0.716 | Y62: 0.000985 | Z62: 0.56 | AA62: 0.00112 | AB62: 107.6 | AC62: 0.2259 | AD62: 0.000265 | AE62: 9.6787 | AF62: 2751.97 | AG62: 44.95
A63: Diethylene Triamine | B63: 111-40-0 | C63: 103.2 | D63: 1 | E63: 1 | F63: 1 | G63: 206.5 | H63: -39 | I63: 95 | J63: 2 | K63: 6.7 | L63: 358 | M63: 3 | N63: 1 | O63: 0 | Q63: Normal | S63: Medium | T63: Harmful | X63: 0.976 | Y63: 0.001096 | Z63: 0.53 | AA63: 0.000868 | AB63: 146.4 | AC63: 0.13075 | AD63: 0.000261 | AE63: 10.4934 | AF63: 4266.79 | AG63: 74.07
A64: Diisobutyl Ketone | B64: 108-83-8 | C64: 142.2 | D64: 25 | E64: 25 | F64: 2000 | G64: 168 | H64: -46 | I64: 49 | J64: 0.8 | M64: 2 | N64: 2 | O64: 0 | Q64: Normal | S64: Medium | X64: 0.824 | Y64: 0.000895 | Z64: 0.34 | AA64: 0.00083 | AB64: 87.2 | AC64: 0.0795 | AD64: 0.000155 | AE64: 9.839 | AF64: 3682.92 | AG64: 67.19
A65: Diisobutylcarbinol | B65: 108-82-7 | C65: 144.26 | G65: 178.6 | H65: -65 | M65: 0 | N65: 2 | O65: 0 | X65: 0.822 | Y65: 0.000842 | Z65: 0.461 | AA65: 0.0012125 | AB65: 97.2 | AC65: 0.103472 | AD65: 0.000205 | AE65: 8.7491 | AF65: 2945.67 | AG65: 113.5
A66: Di-isobutylene | B66: 107-39-1 | C66: 112.21 | D66: 225 | E66: 2500 | F66: 15000 | G66: 101.4 | H66: -93.5 | I66: -6 | J66: 0.9 | M66: 2 | N66: 3 | O66: 0 | X66: 0.728 | Y66: 0.000923 | Z66: 0.485 | AA66: 0.0010955 | AB66: 79.6 | AC66: 0.116364 | AD66: 0.000194 | AE66: 9.1204 | AF66: 2969.36 | AG66: 49.61
A67: Diketene | B67: 674-82-8 | C67: 84.08 | D67: 1 | E67: 5 | F67: 50 | G67: 127.4 | H67: -6.5 | I67: 46 | M67: 2 | N67: 3 | O67: 2 | X67: 1.105 | Y67: 0.001212 | Z67: 0.431 | AA67: 0.000296 | AB67: 132.4 | AC67: 0.18752 | AD67: 0.000166 | AE67: 10.0335 | AF67: 3486.1 | AG67: 53.59
A68: Dimethyl Acetamide | B68: 127-19-5 | C68: 87.1 | D68: 12 | E68: 12 | F68: 400 | G68: 166.1 | H68: -20 | I68: 70 | J68: 1.8 | M68: 2 | N68: 2 | O68: 1 | Q68: Normal | S68: Medium | T68: Toxic | W68: Conductive | X68: 0.959 | Y68: 0.0009 | Z68: 0.478 | AA68: 0.000149 | AB68: 144.5 | AC68: 0.4756 | AD68: 0 | AE68: 12.887 | AF68: 5614.3 | AG68: 0
A69: Dimethyl Disulfide | B69: 624-92-0 | C69: 94.2 | D69: 0.01 | E69: 50 | F69: 250 | G69: 109.7 | H69: -84.7 | I69: 7 | J69: 1.1 | K69: 16 | M69: 2 | N69: 3 | O69: 0 | U69: Very Toxic | X69: 1.087 | Y69: 0.00124 | Z69: 0.355 | AA69: 0.00046 | AB69: 100.6 | AC69: 0.118 | AD69: 0.0002 | AE69: 9.5005 | AF69: 3141.51 | AG69: 52.26
A70: Dimethyl Formamide | B70: 68-12-2 | C70: 73.1 | D70: 2 | E70: 100 | F70: 200 | G70: 151.1 | H70: -60.5 | I70: 57 | J70: 2 | M70: 2 | N70: 2 | O70: 0 | Q70: Normal | S70: Medium | T70: Toxic | W70: Conductive | X70: 0.968 | Y70: 0.001 | Z70: 0.453 | AA70: 0.000916 | AB70: 168.3 | AC70: 0.536 | AD70: 0 | AE70: 12.659 | AF70: 5380.2 | AG70: 0
A71: Dimethyl Sulphate | B71: 77-78-1 | C71: 126.1 | D71: 0.024 | E71: 0.12 | F71: 1.6 | G71: 189 | I71: 83 | J71: 2.9 | M71: 4 | N71: 2 | O71: 1 | Q71: Normal | S71: Medium | W71: Conductive | X71: 1.35 | Y71: 0.00117 | Z71: 0.5 | AA71: 0 | AB71: 93.9 | AC71: 0.083 | AD71: 0 | AE71: 12.462 | AF71: 5757.5 | AG71: 0
A72: Dimethylamine (anhy) | B72: 124-40-3 | C72: 45.08 | D72: 0.6 | E72: 100 | F72: 350 | G72: 7 | H72: -134 | I72: -58 | J72: 2.8 | M72: 3 | N72: 4 | O72: 0 | Q72: Normal | S72: Medium | W72: Conductive | X72: 0.679 | Y72: 0.0012 | Z72: 0.695 | AA72: 0.000623 | AB72: 142.8 | AC72: 0.407 | AD72: 0 | AE72: 11.572 | AF72: 3239.1 | AG72: 0
A73: Dimethylsulfoxide (DMSO) | B73: 67-68-5 | C73: 78.1 | D73: 250 | E73: 250 | F73: 900 | G73: 191 | H73: 18.5 | I73: 95 | J73: 2.6 | K73: 42 | L73: 215 | M73: 1 | N73: 2 | O73: 0 | Q73: Normal | S73: Medium | X73: 1.122 | Y73: 0.00104 | Z73: 0.409 | AA73: 0.000655 | AB73: 165.4 | AC73: 0.137 | AD73: 0.00015 | AE73: 10.4744 | AF73: 4280.78 | AG73: 55.52
A74: Dioctylphthalate | B74: 117-84-0 | C74: 390.6 | D74: 0.44 | E74: 4.63 | F74: 582 | G74: 384 | H74: -50 | I74: 216 | J74: 0.3 | K74: 2.9 | L74: 391 | M74: 0 | N74: 1 | O74: 0 | Q74: Normal | S74: Medium | X74: 1.007 | Y74: 0.000934 | Z74: 0.283 | AA74: 0.000764 | AB74: 73.3 | AC74: 0.05895 | AD74: 6.35e-05 | AE74: 11.3947 | AF74: 6005.9 | AG74: 129.89
A75: Diphenyl Methane | B75: 101-81-5 | C75: 168.24 | D75: 1 | E75: 10.8 | F75: 65.4 | G75: 264.7 | H75: 25.2 | I75: 130 | J75: 0.8 | L75: 485 | M75: 1 | N75: 1 | O75: 0 | X75: 1.02 | Y75: 0.000777 | Z75: 0.329 | AA75: 0.000799 | AB75: 93.3 | AC75: 0.05378 | AD75: 0.000107 | AE75: 10.276 | AF75: 4834.2 | AG75: 67.87
A76: Diphenyl Oxide | B76: 101-84-8 | C76: 170.21 | D76: 0.01 | E76: 5 | F76: 100 | G76: 258.1 | H76: 26.9 | I76: 112 | J76: 0.7 | K76: 6 | L76: 620 | M76: 1 | N76: 1 | O76: 0 | Q76: Normal | S76: Medium | U76: Toxic | W76: Conductive | X76: 1.099 | Y76: 0.000963 | Z76: 0.365 | AA76: 0.000607 | AB76: 94.7 | AC76: 0.0924 | AD76: 4.07e-05 | AE76: 9.8125 | AF76: 4407.87 | AG76: 82.31
A77: Dipropylene Glycol | B77: 25265-71-8 | C77: 134.2 | D77: 36.4 | E77: 72.9 | F77: 72.9 | G77: 232.2 | H77: -40 | I77: 118 | J77: 1.4 | M77: 1 | N77: 1 | O77: 0 | Q77: Normal | S77: Medium | X77: 1.041 | Y77: 0.000824 | Z77: 0.472 | AA77: 0.001135 | AB77: 146.3 | AC77: 0.1395 | AD77: 0.000195 | AE77: 12.3213 | AF77: 5483.49 | AG77: 60.94
A78: Divinyl Benzene | B78: 1321-74-0 | C78: 130.19 | D78: 28 | E78: 28 | F78: 170 | G78: 199.7 | I78: 69 | J78: 0.7 | M78: 3 | N78: 2 | O78: 1 | Q78: Normal | S78: Medium | X78: 0.941 | Y78: 0.000957 | Z78: 0.358 | AA78: 0.00083 | AB78: 98 | AC78: 0.079 | AD78: 0.000128 | AE78: 9.9192 | AF78: 4145.55 | AG78: 55.41
A79: Dodecyl Mercaptan (n-) | B79: 112-55-0 | C79: 202.4 | E79: 0.5 | F79: 3 | G79: 274.7 | H79: -9 | I79: 87 | M79: 3 | N79: 1 | O79: 0 | Q79: Normal | S79: Medium | T79: Harmful | X79: 0.863 | Y79: 0.000724 | Z79: 0.411 | AA79: 0.000959 | AB79: 85.2 | AC79: 0.06567 | AD79: 8.7e-05 | AE79: 10.4389 | AF79: 4886.62 | AG79: 79.36
A80: Dodecyl Mercaptan (t-) | B80: 25103-58-6 | C80: 202.4 | D80: 0.1 | E80: 50 | F80: 300 | G80: 238.1 | H80: -45 | I80: 87 | M80: 2 | N80: 1 | O80: 0 | Q80: Normal | S80: Medium | U80: Very Toxic | X80: 0.879 | Y80: 0.000944 | Z80: 0.42 | AA80: 0.001097 | AB80: 84.8 | AC80: 0.0753 | AD80: 0.000133 | AE80: 11.7691 | AF80: 5644.69 | AG80: 31.7
A81: Epichlorohydrin | B81: 106-89-8 | C81: 92.5 | D81: 5 | E81: 20 | F81: 100 | G81: 116.4 | H81: -57.1 | I81: 31 | J81: 3.8 | M81: 3 | N81: 3 | O81: 2 | Q81: Normal | S81: Medium | X81: 1.21 | Y81: 0.001435 | Z81: 0.333 | AA81: 0.000635 | AB81: 111.2 | AC81: 0.1194 | AD81: 0.000232 | AE81: 9.937 | AF81: 3289.59 | AG81: 58.56
A82: Ethalfluralin | B82: 55283-68-6 | C82: 333.27 | D82: 0.073 | E82: 0.66 | F82: 3.3 | G82: 334 | H82: 54 | I82: 151 | M82: 1 | N82: 1 | O82: 2 | Q82: Normal | S82: Medium | X82: 1.326 | Y82: 0.001076 | Z82: 0.268 | AA82: 0.000512 | AB82: 55.6 | AC82: 0.03138 | AD82: 5.63e-05 | AE82: 9.9179 | AF82: 5125.75 | AG82: 90.65
A83: Ethane | B83: 74-84-0 | C83: 30.07 | D83: 3000 | E83: 33000 | F83: 200000 | G83: -88.7 | H83: -183.2 | I83: -130.2 | J83: 3 | K83: 12.5 | L83: 472 | M83: 1 | N83: 4 | O83: 0 | Q83: Normal | S83: Medium | X83: 0.438 | Y83: 0.001225 | Z83: 0.671 | AA83: 0.000838 | AB83: 82.9 | AC83: 0.43125 | AD83: 0.000594 | AE83: 8.976 | AF83: 1498.75 | AG83: 17.5
A84: Ethanol | B84: 64-17-5 | C84: 46.07 | D84: 1800 | E84: 3300 | G84: 78 | H84: -114.5 | I84: 13 | J84: 4.3 | M84: 2 | N84: 3 | O84: 1 | Q84: Normal | S84: Medium | T84: Harmful | W84: Conductive | X84: 0.808 | Y84: 0.00088 | Z84: 0.538 | AA84: 0.00191 | AB84: 228.4 | AC84: 0.315 | AD84: 0 | AE84: 14.471 | AF84: 5083.7 | AG84: 0
A85: Ethanolamine | B85: 141-43-5 | C85: 61.08 | D85: 0.1 | E85: 6 | F85: 100 | G85: 170.5 | H85: 7.9 | I85: 85 | J85: 2.5 | M85: 3 | N85: 1 | O85: 0 | Q85: Normal | S85: Medium | T85: Harmful | W85: Conductive | X85: 1.03 | Y85: 0.000756 | Z85: 0.625 | AA85: 0.001149 | AB85: 251.2 | AC85: 0.364 | AD85: 0 | AE85: 15.317 | AF85: 6788.3 | AG85: 0
A86: Ethyl Acetate | B86: 141-78-6 | C86: 88.11 | D86: 200 | E86: 2000 | F86: 8000 | G86: 77.1 | H86: -83.6 | I86: -4 | J86: 2 | M86: 1 | N86: 3 | O86: 0 | Q86: Normal | S86: Medium | W86: Conductive | X86: 0.919 | Y86: 0.001276 | Z86: 0.461 | AA86: 0.0005537 | AB86: 100.8 | AC86: 0.179902 | AD86: 0.000129 | AE86: 9.86 | AF86: 2962.28 | AG86: 50.06
A87: Ethyl Acrylate | B87: 140-88-5 | C87: 100.1 | D87: 0.01 | E87: 30 | F87: 300 | G87: 99.7 | H87: -71 | I87: 10 | J87: 1.4 | M87: 3 | N87: 3 | O87: 2 | Q87: Normal | S87: Medium | X87: 0.952 | Y87: 0.001385 | Z87: 0.38 | AA87: 0.00083 | AB87: 93.6 | AC87: 0.1125 | AD87: 0.000325 | AE87: 9.4904 | AF87: 2967.02 | AG87: 60.24
A88: Ethyl Benzene | B88: 100-41-4 | C88: 106.17 | D88: 33 | E88: 1100 | F88: 1800 | G88: 136 | H88: -95 | I88: 22.7 | J88: 0.82 | M88: 2 | N88: 3 | O88: 0 | W88: Non-Conductive | X88: 0.885 | Y88: 0.000979 | Z88: 0.377 | AA88: 0.0009917 | AB88: 97.9 | AC88: 0.105278 | AD88: 0.000184 | AE88: 9.5046 | AF88: 3365.51 | AG88: 55.32
A89: Ethyl Chloride | B89: 75-00-3 | C89: 64.51 | G89: 12.3 | H89: -136.4 | I89: -50 | J89: 3.5 | M89: 2 | N89: 4 | O89: 0 | U89: Harmful | W89: Conductive | X89: 0.914 | Y89: 0.00135 | Z89: 0.379 | AA89: 0.0006556 | AB89: 94.2 | AC89: 0.193889 | AD89: 0.000327 | AE89: 9.5703 | AF89: 2432.03 | AG89: 31.43
A90: Ethyl Chloroacetate | B90: 105-39-5 | C90: 122.55 | E90: 1.2 | F90: 7.1 | G90: 143 | H90: -25.9 | I90: 64 | J90: 5.2 | M90: 3 | N90: 2 | O90: 2 | Q90: Normal | S90: Medium | W90: Conductive | X90: 1.1758 | Y90: 0.001248 | Z90: 0.3268 | AA90: 0.0006055 | AB90: 97.58 | AC90: 0.13516 | AD90: 0 | AE90: 12.85376 | AF90: 5356.19 | AG90: 0
A91: Ethyl Chloroformate | B91: 541-41-3 | C91: 108.52 | E91: 5 | F91: 10 | G91: 92.9 | H91: -81.2 | I91: 2 | J91: 3.5 | M91: 3 | N91: 3 | O91: 1 | X91: 1.161 | Y91: 0.001621 | Z91: 0.441 | AA91: 0.0006231 | AB91: 115.3 | AC91: 0.201429 | AD91: 0.000286 | AE91: 13.6201 | AF91: 4436.6 | AG91: 40.89
A92: Ethyl Cyanoacetate | B92: 105-56-6 | C92: 113.1 | D92: 1 | E92: 12 | F92: 61 | G92: 206 | H92: -22.5 | I92: 110 | J92: 1.7 | M92: 0 | N92: 1 | O92: 0 | W92: Conductive | X92: 1.081 | Y92: 0.00102 | Z92: 0.425 | AA92: 0.000866 | AB92: 152.5 | AC92: 0.173 | AD92: 0 | AE92: 13.235 | AF92: 6339.7 | AG92: 0
A93: Ethyl Ether | B93: 60-29-7 | C93: 74.12 | D93: 500 | E93: 500 | F93: 19000 | G93: 34.5 | H93: -116.3 | I93: -45 | J93: 1.9 | M93: 2 | N93: 4 | O93: 3 | X93: 0.728 | Y93: 0.0012 | Z93: 0.5 | AA93: 0.001025 | AB93: 92.2 | AC93: 0.1854 | AD93: 0.000355 | AE93: 9.3614 | AF93: 2479.87 | AG93: 42.35
A94: Ethyl Hexaldehyde | B94: 123-05-7 | C94: 128.21 | D94: 300 | E94: 1500 | F94: 1500 | G94: 164 | I94: 44 | J94: 0.85 | M94: 1 | N94: 2 | O94: 0 | X94: 0.839 | Y94: 0.000979 | Z94: 0.454 | AA94: 0.0007917 | AB94: 92.5 | AC94: 0.138333 | AD94: 5.56e-05 | AE94: 10.583 | AF94: 4210.83 | AG94: 39.38
A95: Ethyl Hexanol (2-) | B95: 104-76-7 | C95: 130.23 | D95: 0.1 | E95: 100 | F95: 200 | G95: 184.6 | H95: -70 | I95: 73 | J95: 0.9 | M95: 2 | N95: 3 | O95: 0 | Q95: Normal | S95: Medium | T95: Harmful | W95: Semi-Conductive | X95: 0.86 | Y95: 0.000939 | Z95: 0.618 | AA95: 0.000917 | AB95: 142.4 | AC95: 0.2553 | AD95: 0.000174 | AE95: 9.0416 | AF95: 2962.2 | AG95: 129.95
A96: Ethyl Hexonic Acid | B96: 149-57-5 | C96: 144.21 | D96: 2.54 | E96: 8.65 | F96: 100 | G96: 227.5 | I96: 114 | M96: 2 | N96: 2 | O96: 0 | X96: 0.936 | Y96: 0.000948 | Z96: 0.468 | AA96: 0.0010667 | AB96: 133.3 | AC96: 0.143621 | AD96: 0.000214 | AE96: 12.9064 | AF96: 5732.43 | AG96: 58.81
A97: Ethyl Hexyl Acrylate | B97: 103-11-7 | C97: 184.28 | D97: 15 | E97: 21 | F97: 150 | G97: 217.6 | H97: -90 | I97: 82 | J97: 0.7 | M97: 3 | N97: 2 | O97: 1 | W97: Semi-Conductive | X97: 0.906 | Y97: 0.001007 | Z97: 0.389 | AA97: 0.0009799 | AB97: 79 | AC97: 0.070723 | AD97: 0.000126 | AE97: 9.9899 | AF97: 4170.41 | AG97: 73.53
A98: Ethyl Toluene | B98: 611-14-3 | C98: 120.19 | D98: 2.44 | E98: 26.4 | F98: 488 | G98: 165.2 | H98: -80.9 | I98: 39 | J98: 1 | L98: 440 | M98: 0 | N98: 2 | O98: 0 | X98: 0.899 | Y98: 0.000913 | Z98: 0.399 | AA98: 0.00095 | AB98: 97.5 | AC98: 0.0993 | AD98: 0.000144 | AE98: 9.5723 | AF98: 3588.81 | AG98: 63.41
A99: Ethyl Vinylether | B99: 109-92-2 | C99: 72.1 | D99: 9.4 | E99: 100 | F99: 620 | G99: 35.8 | H99: -115.8 | I99: -46.2 | J99: 1.7 | Q99: Normal | S99: Medium | X99: 0.774 | Y99: 0.001238 | Z99: 0.479 | AA99: 0.0009785 | AB99: 95.9 | AC99: 0.18835 | AD99: 0.000368 | AE99: 9.5815 | AF99: 2603.08 | AG99: 37.26
A100: Ethylene | B100: 74-85-1 | C100: 28.05 | D100: 600 | E100: 6600 | F100: 40000 | G100: -103.8 | I100: -140 | J100: 2.7 | M100: 2 | N100: 4 | O100: 2 | Q100: Elevated | S100: High | X100: 0.385 | Y100: 0.00184 | Z100: 0.75 | AA100: 0.0021 | AB100: 65 | AC100: 0.48 | AD100: 0 | AE100: 9.714 | AF100: 1643 | AG100: 0
A101: Ethylene Diamine | B101: 107-15-3 | C101: 60.1 | D101: 0.03 | E101: 15 | F101: 75 | G101: 117 | H101: 10 | I101: 34 | J101: 3.9 | M101: 3 | N101: 2 | O101: 0 | Q101: Normal | S101: Medium | W101: Conductive | X101: 0.914 | Y101: 0.00095 | Z101: 0.597 | AA101: 0.0008 | AB101: 185.2 | AC101: 0.234 | AD101: 0 | AE101: 13.557 | AF101: 5285.8 | AG101: 0
A102: Ethylene Dichloride | B102: 107-06-2 | C102: 98.96 | D102: 50 | E102: 200 | F102: 300 | G102: 83.5 | H102: -35.7 | I102: 13.3 | J102: 4.5 | M102: 2 | N102: 3 | O102: 0 | W102: Semi-Conductive | X102: 1.275 | Y102: 0.001562 | Z102: 0.289 | AA102: 0.0004179 | AB102: 87.7 | AC102: 0.111848 | AD102: 0.000208 | AE102: 9.9142 | AF102: 3127.68 | AG102: 41.19
A103: Ethylene Glycol | B103: 107-21-1 | C103: 62.1 | D103: 30 | E103: 150 | F103: 900 | G103: 197.4 | H103: -13.4 | I103: 111 | J103: 3.2 | M103: 2 | N103: 1 | O103: 1 | Q103: Normal | S103: Medium | W103: Conductive | X103: 1.129 | Y103: 0.000856 | Z103: 0.571 | AA103: 0.0009014 | AB103: 254.6 | AC103: 0.19 | AD103: 0.000357 | AE103: 12.3962 | AF103: 5117.64 | AG103: 57.58
A104: Ethylene Oxide | B104: 75-21-8 | C104: 44.05 | E104: 50 | F104: 500 | G104: 10.5 | H104: -112.4 | I104: -50 | J104: 3 | K104: 100 | L104: 429 | M104: 3 | N104: 4 | O104: 3 | Q104: Elevated | S104: High | W104: Conductive | X104: 0.891 | Y104: 0.001373 | Z104: 0.489 | AA104: 0.000679 | AB104: 140.9 | AC104: 0.2587 | AD104: 0.000483 | AE104: 9.8684 | AF104: 2468.44 | AG104: 33.47
A105: Formaldehyde | B105: 50-00-0 | C105: 30.03 | D105: 1 | E105: 10 | F105: 40 | G105: -19.2 | H105: -118.3 | I105: -30 | J105: 7 | M105: 3 | N105: 2 | O105: 2 | Q105: Normal | S105: Medium | T105: Toxic | X105: 0.77 | Y105: 0.0018 | Z105: 0.72 | AA105: 0.00064 | AB105: 182 | AC105: 0.47 | AD105: 0 | AE105: 11.42 | AF105: 2900 | AG105: 0
A106: Formic Acid | B106: 64-18-6 | C106: 46.03 | D106: 3 | E106: 25 | F106: 250 | G106: 100.6 | H106: 8 | I106: 59.9 | J106: 18 | M106: 3 | N106: 2 | O106: 1 | Q106: Normal | S106: Medium | T106: Corrosive | X106: 1.254 | Y106: 0.001555 | Z106: 0.494 | AA106: 0.000808 | AB106: 124 | AC106: 0.09 | AD106: 0 | AE106: 10.2896 | AF106: 3528.27 | AG106: 30.31
A107: Glycerine | B107: 56-81-5 | C107: 92.1 | D107: 7.96 | E107: 82.3 | F107: 664 | G107: 289.6 | H107: 17.9 | I107: 199 | M107: 1 | N107: 1 | O107: 0 | X107: 1.3 | Y107: 0.000884 | Z107: 0.458 | AA107: 0.0007218 | AB107: 231.5 | AC107: 0.128881 | AD107: 0.000219 | AE107: 10.0033 | AF107: 4144.07 | AG107: 143.4
A108: HCFC 142B (Chloro-1,1-Difluoroethane, 1-) | B108: 75-68-3 | C108: 100.5 | D108: 10000 | E108: 15000 | F108: 25000 | G108: -9.2 | H108: -130.8 | I108: -59 | J108: 7.8 | M108: 0 | N108: 4 | O108: 0 | X108: 1.158 | Y108: 0.002188 | Z108: 0.306 | AA108: 0.0004313 | AB108: 54.7 | AC108: 0.041563 | AD108: -0.000516 | AE108: 9.3641 | AF108: 2167.07 | AG108: 32.6
A109: Heptane | B109: 142-82-5 | C109: 100.2 | D109: 490 | E109: 800 | F109: 4900 | G109: 98.4 | H109: -90.6 | I109: -4 | J109: 1.1 | M109: 1 | N109: 3 | O109: 0 | Q109: Normal | S109: Medium | W109: Non-Conductive | X109: 0.696 | Y109: 0.000918 | Z109: 0.495 | AA109: 0.0012327 | AB109: 90.8 | AC109: 0.1351453 | AD109: 0.000226 | AE109: 9.5329 | AF109: 3094.57 | AG109: 47.27
A110: Hexachlorobutadiene | B110: 87-68-3 | C110: 260.76 | D110: 1 | E110: 3 | F110: 10 | G110: 214.2 | H110: -18.6 | M110: 3 | N110: 0 | O110: 0 | X110: 1.713 | Y110: 0.001643 | Z110: 0.158 | AA110: 0.000225 | AB110: 52.5 | AC110: 0.045408 | AD110: 6.89e-05 | AE110: 9.7802 | AF110: 4105.13 | AG110: 68.29
A111: Hexafluoroacetone | B111: 684-16-2 | C111: 166.02 | E111: 1 | F111: 50 | G111: -27.3 | H111: -125.5 | M111: 3 | N111: 0 | O111: 2 | X111: 1.421 | Y111: 0.003921 | Z111: 0.389 | AA111: 0.0013214 | AB111: 27 | AC111: 0.035 | AD111: -0.0015 | AE111: 9.8676 | AF111: 2133.81 | AG111: 29.94
A112: Hexane | B112: 110-54-3 | C112: 86.2 | E112: 2900 | F112: 8600 | G112: 68.7 | H112: -95.3 | I112: -22 | J112: 1.1 | M112: 2 | N112: 3 | O112: 0 | Q112: Normal | S112: Medium | W112: Non-Conductive | X112: 0.674 | Y112: 0.001025 | Z112: 0.512 | AA112: 0.001225 | AB112: 91.6 | AC112: 0.1439 | AD112: 0.000355 | AE112: 9.3192 | AF112: 2765.81 | AG112: 45.11
A113: Hexanol, 2- | B113: 626-93-7 | C113: 102.18 | E113: 0.91 | F113: 5.5 | G113: 139.9 | H113: -50.2 | I113: 41 | J113: 1.2 | M113: 2 | N113: 2 | O113: 0 | X113: 0.831 | Y113: 0.00095 | Z113: 0.544 | AA113: 0.00114 | AB113: 144.8 | AC113: 0.290139 | AD113: 0.000247 | AE113: 13.0795 | AF113: 5042.49 | AG113: 32.37
A114: Hexanol, n- | B114: 111-27-3 | C114: 102.18 | D114: 1 | E114: 5.7 | F114: 34 | G114: 157.3 | H114: -47.4 | I114: 63 | J114: 1.2 | M114: 3 | N114: 2 | O114: 0 | Q114: Normal | S114: Medium | X114: 0.833 | Y114: 0.000867 | Z114: 0.589 | AA114: 0.0011375 | AB114: 151.2 | AC114: 0.239375 | AD114: 0.000271 | AE114: 9.2789 | AF114: 2886.34 | AG114: 118.62
A115: Hexene, 1- | B115: 592-41-6 | C115: 84.16 | E115: 500 | F115: 5000 | G115: 63.5 | H115: -139.8 | I115: -26 | J115: 1.2 | M115: 2 | N115: 3 | O115: 0 | Q115: Normal | S115: Medium | X115: 0.688 | Y115: 0.00099 | Z115: 0.53 | AA115: 0.0015642 | AB115: 90.6 | AC115: 0.143167 | AD115: 0.000254 | AE115: 9.6571 | AF115: 2911.18 | AG115: 35.08
A116: Hydrazine | B116: 302-01-2 | C116: 32.05 | D116: 0.5 | E116: 5 | F116: 30 | G116: 113.5 | H116: 2 | I116: 38 | J116: 4.7 | M116: 3 | N116: 2 | O116: 1 | T116: Toxic | X116: 1.028 | Y116: 0.000981 | Z116: 0.729 | AA116: 0.000947 | AB116: 345.1 | AC116: 0.3295 | AD116: 0.000485 | AE116: 11.1733 | AF116: 3783.81 | AG116: 48.1
A117: Hydrogen Bromide | B117: 10035-10-6 | C117: 80.91 | D117: 1 | E117: 25 | F117: 120 | G117: -66.9 | H117: -86.9 | M117: 3 | N117: 0 | O117: 1 | W117: Conductive | X117: 1.889 | Y117: 0.004267 | Z117: 0.197 | AA117: -9.33e-05 | AB117: 42.7 | AC117: 0.169644 | AD117: 0.000276 | AE117: 9.7442 | AF117: 1878.2 | AG117: 13.49
A118: Hydrogen Chloride (anhy) | B118: 7647-01-0 | C118: 36.46 | D118: 3 | E118: 20 | F118: 150 | G118: -85 | M118: 3 | N118: 0 | O118: 1 | W118: Conductive | X118: 0.933 | Y118: 0.002814 | Z118: 0.47 | AA118: 7.98e-05 | AB118: 73.1 | AC118: 0.46113 | AD118: 0.000869 | AE118: 9.7335 | AF118: 1665.21 | AG118: 16.55
A119: Hydrogen Cyanide | B119: 74-90-8 | C119: 27.03 | E119: 10 | F119: 25 | G119: 25.7 | H119: -13.3 | I119: -18 | J119: 5.6 | K119: 40 | L119: 538 | M119: 4 | N119: 4 | O119: 2 | Q119: Elevated | S119: Medium | U119: Very Toxic | W119: Conductive | X119: 0.708 | Y119: 0.001472 | Z119: 0.758 | AA119: 0.0003111 | AB119: 251 | AC119: 0.955556 | AD119: 0.005556 | AE119: 11.1086 | AF119: 3278.4 | AG119: 3.61
A120: Hydrogen Fluoride | B120: 7664-39-3 | C120: 20.01 | D120: 2 | E120: 20 | F120: 50 | G120: 19 | H120: -117.7 | M120: 4 | N120: 0 | O120: 1 | T120: Very Toxic | X120: 1.01 | Y120: 0.00212 | Z120: 0.58 | AA120: 0.00388 | AB120: 80 | AC120: -0.43 | AD120: 0 | AE120: 10.572 | AF120: 3092.3 | AG120: 0
A121: Hydrogen Peroxide | B121: 7722-84-1 | C121: 34.03 | D121: 10 | E121: 50 | F121: 100 | G121: 150.2 | H121: -0.4 | M121: 3 | N121: 0 | O121: 3 | X121: 1.474 | Y121: 0.001265 | Z121: 0.634 | AA121: 0.000198 | AB121: 375.3 | AC121: 0.31495 | AD121: 0.000145 | AE121: 11.8311 | AF121: 4439.17 | AG121: 49.02
A122: Hydrogen Sulfide | B122: 7783-06-4 | C122: 34.08 | D122: 0.1 | E122: 30 | F122: 100 | G122: -60.3 | H122: -85.6 | J122: 4 | M122: 4 | N122: 4 | O122: 0 | Q122: Normal | S122: Medium | U122: Very Toxic | W122: Semi-Conductive | X122: 0.815 | Y122: 0.001753 | Z122: 0.513 | AA122: 0.0007733 | AB122: 110.1 | AC122: 0.404889 | AD122: 0.000942 | AE122: 9.8826 | AF122: 1940.4 | AG122: 16.4
A123: Isobutane | B123: 75-28-5 | C123: 58.12 | D123: 800 | E123: 800 | F123: 4000 | G123: -11.8 | H123: -159.4 | I123: -81.15 | J123: 1.6 | M123: 0 | N123: 4 | O123: 0 | X123: 0.575 | Y123: 0.001119 | Z123: 0.568 | AA123: 0.0012063 | AB123: 84 | AC123: 0.256406 | AD123: 0.00043 | AE123: 9.1414 | AF123: 2134.87 | AG123: 27.87
A124: Isobutanol | B124: 78-83-1 | C124: 74.12 | D124: 150 | E124: 1300 | F124: 8000 | G124: 107.9 | H124: -108 | I124: 28 | J124: 1.7 | M124: 1 | N124: 3 | O124: 0 | W124: Conductive | X124: 0.815 | Y124: 0.001041 | Z124: 0.556 | AA124: 0.0021364 | AB124: 169.6 | AC124: 0.209091 | AD124: 0.001033 | AE124: 12.1939 | AF124: 4050.53 | AG124: 50.93
A125: Isobutene | B125: 115-11-7 | C125: 56.1 | D125: 750 | E125: 1800 | F125: 11000 | G125: -6.9 | H125: -140.4 | I125: -76.1 | J125: 1.6 | M125: 1 | N125: 4 | O125: 0 | Q125: Normal | S125: Medium | X125: 0.612 | Y125: 0.001156 | Z125: 0.567 | AA125: 0.00118 | AB125: 91.5 | AC125: 0.26774 | AD125: 0.00047 | AE125: 9.1602 | AF125: 2141.6 | AG125: 32.43
A126: Isobutyl Acetate | B126: 110-19-0 | C126: 116.16 | D126: 440 | E126: 1260 | F126: 7500 | G126: 116.8 | H126: -98 | I126: 18 | J126: 1.3 | M126: 1 | N126: 3 | O126: 0 | Q126: Normal | S126: Medium | W126: Semi-Conductive | X126: 0.889 | Y126: 0.00113 | Z126: 0.435 | AA126: 0.0009913 | AB126: 91.3 | AC126: 0.134102 | AD126: 0.000219 | AE126: 10.2384 | AF126: 3526.94 | AG126: 46.93
A127: Isobutylene | B127: 115-11-7 | C127: 56.11 | D127: 750 | E127: 2500 | F127: 11000 | G127: -6.9 | H127: -140.4 | I127: -76.15 | J127: 1.6 | M127: 1 | N127: 4 | O127: 0 | X127: 0.611 | Y127: 0.001147 | Z127: 0.566 | AA127: 0.0011824 | AB127: 91.4 | AC127: 0.26817 | AD127: 0.000478 | AE127: 9.1011 | AF127: 2116.42 | AG127: 33.48
A128: Isobutyraldehyde | B128: 78-84-2 | C128: 72.1 | D128: 65 | E128: 65 | F128: 470 | G128: 63.9 | H128: -65 | I128: -18.2 | J128: 1.6 | M128: 2 | N128: 3 | O128: 1 | Q128: Normal | S128: Medium | X128: 0.821 | Y128: 0.001126 | Z128: 0.479 | AA128: 0.001053 | AB128: 110.2 | AC128: 0.1578 | AD128: 0.000329 | AE128: 9.8335 | AF128: 2927.3 | AG128: 39.4
A129: Isobutyronitrile | B129: 78-82-0 | C129: 69.11 | E129: 30 | F129: 100 | G129: 103.6 | H129: -71.5 | I129: 8.333 | J129: 1.9 | M129: 3 | N129: 3 | O129: 0 | X129: 0.787 | Y129: 0.001055 | Z129: 0.523 | AA129: 0.0012273 | AB129: 138.7 | AC129: 0.175455 | AD129: 0.000318 | AE129: 9.9023 | AF129: 3264.6 | AG129: 47.51
A130: Isopentane | B130: 78-78-4 | C130: 72.15 | D130: 600 | E130: 610 | F130: 4400 | G130: 27.8 | H130: -159.9 | I130: -56.15 | J130: 1.4 | M130: 1 | N130: 4 | O130: 0 | Q130: Normal | S130: Medium | X130: 0.633 | Y130: 0.000967 | Z130: 0.52 | AA130: 0.0013722 | AB130: 87.4 | AC130: 0.184444 | AD130: 0.00037 | AE130: 9.1895 | AF130: 2446.94 | AG130: 34.79
A131: Isophorone | B131: 78-59-1 | C131: 138.21 | D131: 4 | E131: 5 | F131: 800 | G131: 215.3 | H131: -8.2 | I131: 84 | J131: 0.8 | M131: 2 | N131: 2 | O131: 1 | Q131: Normal | S131: Medium | T131: Harmful | X131: 0.941 | Y131: 0.000862 | Z131: 0.37 | AA131: 0.0009345 | AB131: 95.9 | AC131: 0.089512 | AD131: 7.61e-05 | AE131: 10.197 | AF131: 4592.16 | AG131: 35.69
A132: isoPropanol | B132: 67-63-0 | C132: 60.09 | D132: 400 | E132: 400 | F132: 12000 | G132: 82 | H132: -85.8 | I132: 12 | J132: 2 | M132: 1 | N132: 3 | O132: 0 | Q132: Normal | S132: Medium | W132: Conductive | X132: 0.801 | Y132: 0.00085 | Z132: 0.552 | AA132: 0.00286 | AB132: 188 | AC132: 0.262 | AD132: 0 | AE132: 15.348 | AF132: 5451.6 | AG132: 0
A133: Isopropyl Acetate | B133: 108-21-4 | C133: 102.13 | D133: 200 | E133: 200 | F133: 16000 | G133: 88.6 | H133: -73 | I133: 2 | J133: 1.8 | M133: 1 | N133: 3 | O133: 1 | Q133: Normal | S133: Medium | W133: Conductive | X133: 0.903 | Y133: 0.001474 | Z133: 0.411 | AA133: 0.0009873 | AB133: 93 | AC133: 0.149394 | AD133: 0.00027 | AE133: 9.7275 | AF133: 2990.42 | AG133: 54.58
A134: isoPropyl amine (anhy) | B134: 75-31-0 | C134: 59.11 | D134: 10 | E134: 670 | F134: 4000 | G134: 32 | H134: -139.4 | I134: -39 | J134: 2 | M134: 3 | N134: 4 | O134: 0 | Q134: Normal | S134: Medium | X134: 0.711 | Y134: 0.00108 | Z134: 0.623 | AA134: 0.00117 | AB134: 121 | AC134: 0.297 | AD134: 0 | AE134: 11.698 | AF134: 3565.4 | AG134: 0
A135: Isopropyl Chloroformate | B135: 108-23-6 | C135: 122.55 | D135: 150 | E135: 520 | F135: 1600 | G135: 103.8 | I135: 20 | J135: 4 | M135: 3 | N135: 3 | O135: 3 | Q135: Normal | S135: Medium | X135: 1.095 | Y135: 0.001382 | Z135: 0.334 | AA135: 0.0007409 | AB135: 81.8 | AC135: 0.109793 | AD135: 0.000202 | AE135: 10.166 | AF135: 3326.48 | AG135: 49.77
A136: Isopropyl Ether | B136: 108-20-3 | C136: 102.18 | G136: 68.6 | H136: -85.5 | I136: -28.15 | J136: 1.4 | M136: 0 | N136: 3 | O136: 3 | Q136: Normal | S136: Medium | X136: 0.738 | Y136: 0.001085 | Z136: 0.488 | AA136: 0.000805 | AB136: 78.9 | AC136: 0.1605 | AD136: 5e-05 | AE136: 9.5012 | AF136: 2798.2 | AG136: 46.95
A137: Maleic Anhydride | B137: 108-31-6 | C137: 98.1 | D137: 0.2 | E137: 2 | F137: 20 | G137: 204.1 | H137: 56 | I137: 102 | J137: 1.4 | M137: 3 | N137: 1 | O137: 1 | Q137: Normal | S137: Medium | T137: Corrosive | X137: 1.395 | Y137: 0.0014 | Z137: 0.35 | AA137: 0.000445 | AB137: 133.6 | AC137: 0.101 | AD137: 0.000155 | AE137: 10.244 | AF137: 4282.64 | AG137: 59.41
A138: Mesityl Oxide | B138: 141-79-7 | C138: 98.14 | D138: 25 | E138: 25 | F138: 5000 | G138: 129.7 | H138: -52.9 | I138: 30.6 | J138: 1.4 | M138: 1 | N138: 3 | O138: 3 | T138: Harmful | X138: 0.875 | Y138: 0.001029 | Z138: 0.456 | AA138: 0.0009333 | AB138: 110.6 | AC138: 0.1525 | AD138: 0.000222 | AE138: 9.825 | AF138: 3436.28 | AG138: 53.42
A139: Methacrylic Acid | B139: 79-41-4 | C139: 86.1 | D139: 6.7 | E139: 61 | F139: 220 | G139: 162.5 | H139: 15.9 | I139: 67 | J139: 2 | M139: 3 | N139: 2 | O139: 2 | Q139: Normal | S139: Medium | T139: Corrosive | X139: 1.05 | Y139: 0.00119 | Z139: 0.464 | AA139: 0.00079 | AB139: 170.4 | AC139: 0.241 | AD139: 0 | AE139: 13.37750089 | AF139: 5844.960597 | AG139: 0
A140: Methacrylonitrile | B140: 126-98-7 | C140: 67.09 | E140: 1 | F140: 3.1 | G140: 90.3 | H140: -36.2 | I140: 21 | J140: 1.7 | M140: 4 | N140: 3 | O140: 2 | Q140: Normal | S140: Medium | T140: Toxic | X140: 0.816 | Y140: 0.001145 | Z140: 0.465 | AA140: 0.00075 | AB140: 121.3 | AC140: 0.172727 | AD140: 0.000252 | AE140: 9.8336 | AF140: 3310.79 | AG140: 26.79
A141: Methane | B141: 74-82-8 | C141: 16.04 | D141: 2900 | E141: 2900 | F141: 17000 | G141: -161.5 | H141: -182.5 | I141: -187.2 | J141: 5 | M141: 0 | N141: 4 | O141: 0 | Q141: Normal | S141: Low | X141: 0.124 | Y141: 0.00176 | Z141: 1.434 | AA141: 0.00375 | AB141: 44.8 | AC141: 0.417 | AD141: 0 | AE141: 9.286 | AF141: 1037.1 | AG141: 0
A142: Methanol | B142: 67-56-1 | C142: 32.04 | D142: 200 | E142: 1000 | F142: 5000 | G142: 65 | H142: -97 | I142: 11 | J142: 6.7 | K142: 36 | L142: 385 | M142: 1 | N142: 3 | O142: 0 | Q142: Normal | S142: Medium | W142: Conductive | X142: 0.795 | Y142: 0.000877 | Z142: 0.613 | AA142: 0.001822 | AB142: 285.2 | AC142: 0.2813 | AD142: 0.001193 | AE142: 12.0992 | AF142: 3737.63 | AG142: 28.89
A143: Methyl Acrylate | B143: 96-33-3 | C143: 86.09 | D143: 6 | E143: 170 | F143: 1000 | G143: 80.7 | H143: -75 | I143: -3 | J143: 2.1 | M143: 3 | N143: 3 | O143: 2 | Q143: Normal | S143: Medium | T143: Harmful | W143: Conductive | X143: 0.9766822941 | Y143: 0.001464070588 | Z143: 0.3706106471 | AA143: 0.0007216647059 | AB143: 97.92007059 | AC143: 0.1815629412 | AD143: 0 | AE143: 11.30130549 | AF143: 4043.213456 | AG143: 0
A144: Methyl Amine | B144: 74-89-5 | C144: 31.08 | D144: 10 | E144: 100 | F144: 500 | G144: -6.3 | H144: -93.5 | I144: -62 | J144: 4.9 | M144: 3 | N144: 4 | O144: 0 | T144: Harmful | X144: 0.679 | Y144: 0.001206 | Z144: 0.833 | AA144: -0.000124 | AB144: 195.4 | AC144: 0.510381 | AD144: 0.000346 | AE144: 10.1656 | AF144: 2309.35 | AG144: 39.68
A145: Methyl Amyl Alcohol | B145: 108-11-2 | C145: 102.18 | D145: 0.04 | E145: 40 | F145: 200 | G145: 131.7 | H145: -90 | I145: 40.85 | J145: 1 | M145: 2 | N145: 2 | O145: 0 | W145: Conductive | X145: 0.821 | Y145: 0.000952 | Z145: 0.544 | AA145: 0.0013087 | AB145: 120.9 | AC145: 0.148771 | AD145: 0.00031 | AE145: 11.2627 | AF145: 3975.92 | AG145: 52.79
A146: Methyl Butyraldehyde, 2- | B146: 96-17-3 | C146: 86.13 | D146: 10 | E146: 93 | F146: 467 | G146: 91.7 | H146: -60 | I146: -2.15 | J146: 1.24 | M146: 2 | N146: 3 | O146: 1 | Q146: Normal | S146: Medium | X146: 0.824 | Y146: 0.001041 | Z146: 0.497 | AA146: 0.0006888 | AB146: 104.7 | AC146: 0.111818 | AD146: 0.000275 | AE146: 10.2057 | AF146: 3336.83 | AG146: 37.96
A147: Methyl Chloride | B147: 74-87-3 | C147: 50.49 | D147: 150 | E147: 1000 | F147: 3000 | G147: -24.2 | H147: -97.7 | I147: -45 | J147: 7 | M147: 1 | N147: 4 | O147: 0 | Q147: Normal | S147: Medium | X147: 0.967 | Y147: 0.0033 | Z147: 0.396 | AA147: 0.00179 | AB147: 96.6 | AC147: 0.52 | AD147: 0 | AE147: 10.376 | AF147: 2575.6 | AG147: 0
A148: Methyl Chloroformate | B148: 79-22-1 | C148: 97.5 | E148: 2 | F148: 5 | G148: 71.2 | I148: 12 | M148: 3 | N148: 3 | O148: 0 | T148: Harmful | X148: 1.244 | Y148: 0.001714 | Z148: 0.318 | AA148: 0.0005286 | AB148: 90.3 | AC148: 0.133265 | AD148: 0.000249 | AE148: 9.9372 | AF148: 2966.51 | AG148: 54.94
A149: Methyl Cyanoacetate | B149: 105-34-0 | C149: 99.1 | D149: 1 | E149: 12 | F149: 61 | G149: 205.1 | H149: -13.1 | I149: 110 | J149: 2.3 | M149: 0 | N149: 1 | O149: 0 | Q149: Normal | S149: Medium | W149: Conductive | X149: 1.146 | Y149: 0.00134 | Z149: 0.418 | AA149: 0.000625 | AB149: 151.5 | AC149: 0.171 | AD149: 0 | AE149: 13.261 | AF149: 6340.3 | AG149: 0
A150: Methyl Ethyl Ketone | B150: 78-93-3 | C150: 72.11 | D150: 100 | E150: 2700 | F150: 4000 | G150: 79.6 | H150: -87.1 | I150: -9 | J150: 1.4 | M150: 2 | N150: 3 | O150: 0 | W150: Conductive | X150: 0.82 | Y150: 0.001129 | Z150: 0.457 | AA150: 0.0011257 | AB150: 118.6 | AC150: 0.148182 | AD150: 0.000409 | AE150: 9.9793 | AF150: 3131.26 | AG150: 39.22
A151: Methyl Iodide | B151: 74-88-4 | C151: 141.94 | D151: 25 | E151: 50 | F151: 125 | G151: 42.4 | H151: -66.2 | M151: 3 | N151: 0 | O151: 1 | T151: Harmful | X151: 2.32 | Y151: 0.003048 | Z151: 0.14 | AA151: 9.52e-05 | AB151: 49.7 | AC151: 0.074082 | AD151: 0.000113 | AE151: 9.4619 | AF151: 2650.56 | AG151: 35.42
A152: Methyl Isobutyl Ketone | B152: 108-10-1 | C152: 100.16 | D152: 75 | E152: 490 | F152: 3000 | G152: 116 | H152: -84.7 | I152: 13.9 | J152: 1.5 | M152: 2 | N152: 3 | O152: 0 | W152: Conductive | X152: 0.808 | Y152: 0.000818 | Z152: 0.46 | AA152: 0.0010036 | AB152: 100.8 | AC152: 0.137879 | AD152: 0.00022 | AE152: 9.9386 | AF152: 3411.64 | AG152: 46.83
A153: Methyl Isocyanate | B153: 624-83-9 | C153: 57.05 | D153: 0.025 | E153: 0.25 | F153: 1.5 | G153: 38 | I153: -7 | J153: 5.3 | M153: 4 | N153: 3 | O153: 2 | Q153: Normal | S153: Medium | X153: 0.979 | Y153: 0.00121 | Z153: 0.388 | AA153: 0.00063 | AB153: 121.8 | AC153: 0.196 | AD153: 0 | AE153: 11.243 | AF153: 3501.1 | AG153: 0
A154: Methyl Mercaptan | B154: 74-93-1 | C154: 48.1 | D154: 0.005 | E154: 25 | F154: 100 | G154: 5.9 | H154: -123 | I154: -18 | J154: 3.9 | M154: 4 | N154: 4 | O154: 0 | Q154: Normal | S154: Medium | U154: Very Toxic | X154: 0.883 | Y154: 0.001367 | Z154: 0.447 | AA154: 0.000571 | AB154: 122.7 | AC154: 0.2465 | AD154: 0.000429 | AE154: 9.5299 | AF154: 2326.82 | AG154: 34.88
A155: Methyl Mercaptopropionaldehyde | B155: 3268-49-3 | C155: 104.17 | D155: 0.0006 | E155: 0.01 | F155: 0.03 | H155: 170.8 | I155: 61 | M155: 3 | N155: 2 | O155: 1 | X155: 1.074 | Y155: 0.001126 | Z155: 0.442 | AA155: 0.0004704 | AB155: 124.6 | AC155: 0.138519 | AD155: 0.000148 | AE155: 10.4997 | AF155: 4088.21 | AG155: 56.53
A156: Methyl Methacrylate | B156: 80-62-6 | C156: 100.11 | D156: 17 | E156: 120 | F156: 570 | G156: 100.7 | H156: -48.2 | I156: 8.8 | J156: 1.7 | K156: 8.2 | L156: 435 | M156: 2 | N156: 3 | O156: 2 | Q156: Normal | S156: Medium | X156: 0.962 | Y156: 0.00125 | Z156: 0.382 | AA156: 0.0008182 | AB156: 92.7 | AC156: 0.135124 | AD156: -0.000603 | AE156: 9.7638 | AF156: 3110.78 | AG156: 55.79
A157: Methyl Styrene (alpha) | B157: 98-83-9 | C157: 118.18 | D157: 100 | E157: 830 | F157: 5000 | G157: 165.4 | H157: -22.4 | I157: 48 | J157: 1.5 | K157: 6.1 | L157: 442 | M157: 2 | N157: 2 | O157: 0 | X157: 0.93 | Y157: 0.000943 | Z157: 0.382 | AA157: 0.000922 | AB157: 100.1 | AC157: 0.1006 | AD157: 0.000151 | AE157: 9.7795 | AF157: 3691.42 | AG157: 61.27
A158: Methyl Vinyl Acetate | B158: 108-22-5 | C158: 100.12 | D158: 0.49 | E158: 4.88 | F158: 24.42 | G158: 96.9 | H158: -92.9 | I158: 9.85 | J158: 1.74 | M158: 0 | N158: 3 | O158: 0 | X158: 0.934 | Y158: 0.00113 | Z158: 0.467 | AA158: 0.0005551 | AB158: 97.3 | AC158: 0.169924 | AD158: -0.000203 | AE158: 10.2355 | AF158: 3294.83 | AG158: 48.47
A159: Methyl-2-Pyrrolidone (n) (NMP) | B159: 872-50-4 | C159: 99.13 | D159: 1 | E159: 15 | F159: 250 | G159: 204 | H159: -24 | I159: 86 | J159: 2.2 | K159: 12.2 | M159: 2 | N159: 2 | O159: 1 | Q159: Normal | S159: Medium | W159: Conductive | X159: 1.054 | Y159: 0.000961 | Z159: 0.333 | AA159: 0.001105 | AB159: 133.3 | AC159: 0.08935 | AD159: 0.000172 | AE159: 10.0074 | AF159: 4131.14 | AG159: 64.69
A160: Methylene Chloride | B160: 75-09-02 | C160: 84.94 | D160: 300 | E160: 750 | F160: 4000 | G160: 40 | H160: -97 | J160: 14.5 | K160: 21.2 | L160: 556 | M160: 2 | N160: 1 | O160: 0 | Q160: Low | S160: Medium | W160: Semi-Conductive | X160: 1.355 | Y160: 0.00203 | Z160: 0.288 | AA160: 0.0002145 | AB160: 85.4 | AC160: 0.1552 | AD160: 0.000219 | AE160: 9.6222 | AF160: 2594.38 | AG160: 43.2
A161: Monomethyl Amine | B161: 74-89-5 | C161: 31.06 | D161: 10 | E161: 100 | F161: 500 | G161: -6.3 | H161: -93.5 | I161: 30 | J161: 4.9 | M161: 3 | N161: 4 | O161: 0 | X161: 0.69 | Y161: 0.001512 | Z161: 0.871 | AA161: 0.002947 | AB161: 197.8 | AC161: 0.502249 | AD161: 0.001349 | AE161: 10.462 | AF161: 2441.91 | AG161: 33.46
A162: Neodecanoyl chloride | B162: 40292-82-8 | C162: 190.7 | D162: 0.1 | E162: 1 | F162: 4 | G162: 210.7 | H162: -60 | I162: 92 | J162: 5.4 | K162: 9.9 | M162: 3 | N162: 2 | O162: 2 | Q162: Normal | S162: Medium | X162: 0.97 | Y162: 0.000993 | Z162: 0.346 | AA162: 0.00086 | AB162: 70.5 | AC162: 0.0572 | AD162: 8.4e-05 | AE162: 10.5229 | AF162: 4551.32 | AG162: 51.21
A163: Nitrapyrin | B163: 1929-82-4 | C163: 230.9 | D163: 2.1 | E163: 2.1 | F163: 20.1 | G163: 271 | M163: 1 | N163: 0 | O163: 1 | X163: 1.5328 | Y163: 0.001185 | Z163: 0.2176 | AA163: 0.000305 | AB163: 69.7 | AC163: 0.065 | AD163: 0 | AE163: 13.01776209 | AF163: 7094.367947 | AG163: 0
A164: Nitroethane | B164: 79-24-3 | C164: 75.1 | D164: 170 | E164: 170 | F164: 1000 | G164: 114.1 | H164: -89.5 | I164: 28 | J164: 3.4 | M164: 1 | N164: 3 | O164: 3 | Q164: Normal | S164: Medium | W164: Conductive | X164: 1.071 | Y164: 0.001327 | Z164: 0.413 | AA164: 0.000789 | AB164: 137.5 | AC164: 0.1752 | AD164: 0.000276 | AE164: 10.0315 | AF164: 3400.61 | AG164: 48.37
A165: Nitrogen | B165: 7727-37-9 | C165: 28 | G165: -196 | M165: 0 | N165: 0 | O165: 0 | X165: 0.058 | Y165: 0.00385 | Z165: 0.547 | AA165: 5e-05 | AB165: 9 | AC165: 0.2 | AD165: 0 | AE165: 5.6073 | AF165: 242.98 | AG165: 33.78
A166: Nitrogen Dioxide | B166: 10102-44-0 | C166: 46 | D166: 1 | E166: 15 | F166: 30 | G166: 21.1 | M166: 3 | N166: 0 | O166: 3 | X166: 1.6655 | Y166: 0.004075 | Z166: 0.1975 | AA166: 0.003775 | AB166: 176.2 | AC166: 0.245 | AD166: 0 | AE166: 14.10387505 | AF166: 4148.274743 | AG166: 0
A167: Nitromethane | B167: 75-52-5 | C167: 61.04 | D167: 38 | E167: 38 | F167: 1000 | G167: 101.2 | H167: -28.6 | I167: 35 | J167: 7.3 | K167: 63 | L167: 418 | M167: 1 | N167: 3 | O167: 4 | Q167: Normal | S167: Medium | W167: Conductive | X167: 1.17 | Y167: 0.001571 | Z167: 0.402 | AA167: 0.000634 | AB167: 154.4 | AC167: 0.1741 | AD167: 0.00037 | AE167: 10.193 | AF167: 3366.33 | AG167: 44.08
A168: Nitropropane, 1- | B168: 108-03-2 | C168: 89.1 | D168: 74 | E168: 385 | F168: 2300 | G168: 131.2 | H168: -104.2 | I168: 36 | J168: 2.2 | M168: 2 | N168: 3 | O168: 2 | Q168: Normal | S168: Medium | T168: Harmful | W168: Conductive | X168: 1.02 | Y168: 0.001196 | Z168: 0.415 | AA168: 0.000825 | AB168: 121.8 | AC168: 0.14872 | AD168: 0.000224 | AE168: 10.0045 | AF168: 3545.06 | AG168: 50.28
A169: Nitropropane, 2- | B169: 79-46-9 | C169: 89.1 | D169: 27 | E169: 385 | F169: 2300 | G169: 120.3 | H169: -91.2 | I169: 24 | J169: 2.6 | M169: 1 | N169: 3 | O169: 1 | Q169: Normal | S169: Medium | X169: 1.008 | Y169: 0.001223 | Z169: 0.389 | AA169: 0.000844 | AB169: 115.1 | AC169: 0.13785 | AD169: 0.000227 | AE169: 9.8517 | AF169: 3392.38 | AG169: 49.25
A170: Octadecanol, 1- | B170: 112-92-5 | C170: 270.5 | E170: 2 | F170: 360 | G170: 350.8 | H170: 57.9 | I170: 176 | J170: 0.4 | M170: 0 | N170: 0 | O170: 0 | Q170: Normal | S170: Medium | X170: 0.86 | Y170: 0.000758 | Z170: 0.636 | AA170: 0.000385 | AB170: 105.1 | AC170: 0.1385 | AD170: 7.5e-05 | AE170: 10.4154 | AF170: 5135.49 | AG170: 130.75
A171: Octane | B171: 111-65-9 | C171: 114.23 | D171: 235 | E171: 385 | F171: 5000 | G171: 125.6 | H171: -56.8 | I171: 13 | J171: 0.95 | M171: 2 | N171: 3 | O171: 0 | Q171: Normal | S171: Medium | T171: Harmful | U171: Very Toxic | X171: 0.716 | Y171: 0.000891 | Z171: 0.518 | AA171: 0.0009727 | AB171: 91.2 | AC171: 0.148347 | AD171: 8.26e-05 | AE171: 9.5432 | AF171: 3276.02 | AG171: 55.91
A172: Pentane | B172: 78-78-4 | C172: 72.15 | D172: 3000 | E172: 32500 | F172: 190000 | G172: 36 | H172: -129.8 | I172: -48.15 | J172: 1.4 | M172: 2 | N172: 4 | O172: 0 | X172: 0.638 | Y172: 0.000995 | Z172: 0.523 | AA172: 0.0012842 | AB172: 92 | AC172: 0.181136 | AD172: 0.000338 | AE172: 9.3118 | AF172: 2541.57 | AG172: 36.27
A173: Pentanedione, 2, 4- | B173: 123-54-6 | C173: 100.12 | D173: 25 | E173: 25 | F173: 39 | G173: 141.3 | H173: -23 | I173: 34 | M173: 2 | N173: 3 | O173: 1 | T173: Harmful | W173: Conductive | X173: 0.991 | Y173: 0.001046 | Z173: 0.38 | AA173: 0.0006692 | AB173: 98.7 | AC173: 0.092071 | AD173: 0.000172 | AE173: 9.1478 | AF173: 3281.49 | AG173: 55.84
A174: Pentenenitrile, 2- | B174: 13284-42-9 | C174: 81.12 | D174: 2 | E174: 15 | F174: 75 | G174: 125 | I174: 8 | M174: 3 | N174: 3 | O174: 1 | Q174: Normal | S174: Medium | X174: 0.838 | Y174: 0.00086 | Z174: 0.442 | AA174: 0.00108 | AB174: 138.3 | AC174: 0.174 | AD174: 0 | AE174: 13.046 | AF174: 5192.4 | AG174: 0
A175: Phenol | B175: 108-95-2 | C175: 94.11 | D175: 10 | E175: 50 | F175: 200 | G175: 181.9 | H175: 40.9 | I175: 79 | J175: 1.8 | M175: 4 | N175: 2 | O175: 0 | Q175: Normal | S175: Medium | T175: Toxic | W175: Conductive | X175: 1.103 | Y175: 0.00101 | Z175: 0.499 | AA175: 0.000421 | AB175: 157.2 | AC175: 0.2192 | AD175: 3.33e-05 | AE175: 9.951 | AF175: 3616.65 | AG175: 91.67
A176: Phenyl Isocyanate | B176: 103-71-9 | C176: 119.1 | E176: 0.015 | F176: 0.15 | G176: 166.3 | H176: -30 | I176: 51 | J176: 1.5 | M176: 3 | N176: 2 | O176: 1 | Q176: Normal | S176: Medium | X176: 1.117 | Y176: 0.001117 | Z176: 0.315 | AA176: 0.000706 | AB176: 95 | AC176: 0.07895 | AD176: 0.000112 | AE176: 9.9575 | AF176: 3876.08 | AG176: 50.29
A177: Phosgene | B177: 75-44-5 | C177: 98.9 | E177: 0.5 | F177: 1.5 | G177: 7.5 | M177: 4 | N177: 0 | O177: 1 | W177: Conductive | X177: 1.421 | Y177: 0.00245 | Z177: 0.245 | AA177: 2e-05 | AB177: 59.8 | AC177: 0.131 | AD177: 0 | AE177: 10.675 | AF177: 2994.3 | AG177: 0
A178: Phosophorous Oxychloride | B178: 10025-87-3 | C178: 153.3 | E178: 0.2 | F178: 0.85 | G178: 106 | M178: 3 | N178: 0 | O178: 3 | T178: Corrosive | W178: Conductive | X178: 1.698 | Y178: 0.00213 | Z178: 0.189 | AA178: 1e-05 | AB178: 48.1 | AC178: 0.058 | AD178: 0 | AE178: 11.447 | AF178: 4335 | AG178: 0
A179: Phosophorous Trichloride | B179: 7719-12-2 | C179: 137.3 | D179: 0.5 | E179: 3 | F179: 15 | G179: 76.1 | H179: -92 | M179: 3 | N179: 0 | O179: 2 | T179: Corrosive | X179: 1.614 | Y179: 0.002148 | Z179: 0.201 | AA179: 3.4e-05 | AB179: 58.2 | AC179: 0.0818 | AD179: 0.000152 | AE179: 9.4897 | AF179: 2959.23 | AG179: 37.48
A180: Phosphine | B180: 7803-51-2 | C180: 34 | E180: 0.5 | F180: 5 | G180: -87.5 | I180: -115 | J180: 16.7 | M180: 4 | N180: 4 | O180: 2 | Q180: High | S180: Medium | U180: Very Toxic | X180: 0.602 | Y180: 0.00183 | Z180: 0.548 | AA180: 0.00137 | AB180: 72.7 | AC180: 0.499 | AD180: 0.00166 | AE180: 8.8354 | AF180: 1447.13 | AG180: 21.88
A181: Piperazine | B181: 110-85-0 | C181: 86.1 | D181: 0.28 | E181: 3.12 | F181: 53.9 | G181: 148.6 | H181: 110.3 | I181: 87.8 | J181: 1.9 | M181: 3 | N181: 1 | O181: 1 | Q181: Normal | S181: Medium | X181: 1.013 | Y181: 0.00108 | Z181: 0.528 | AA181: 0.00084 | AB181: 141.8 | AC181: 0.1905 | AD181: 8.5e-05 | AE181: 11.0904 | AF181: 4372.62 | AG181: 28.48
A182: Polyethylene Glycol | B182: 25322-68-3 | C182: 310.4 | D182: 2.36 | E182: 15.8 | F182: 1418 | G182: 369.3 | M182: 0 | N182: 1 | O182: 0 | Q182: Normal | S182: Medium | X182: 1.105 | Y182: 0.000556 | Z182: 0.403 | AA182: 0.00074 | AB182: 90.9 | AC182: 0.06235 | AD182: 7.05e-05 | AE182: 14.4269 | AF182: 8795.24 | AG182: 32.24
A183: Propane | B183: 74-98-6 | C183: 44.09 | D183: 5500 | G183: -42 | I183: -104 | J183: 2.1 | M183: 2 | N183: 4 | O183: 0 | Q183: Normal | S183: Medium | X183: 0.529 | Y183: 0.00154 | Z183: 0.593 | AA183: 0.00249 | AB183: 89.7 | AC183: 0.401 | AD183: 0 | AE183: 9.952 | AF183: 2298.8 | AG183: 0
A184: Propanol, 1- | B184: 71-23-8 | C184: 60.07 | D184: 250 | E184: 250 | F184: 4000 | G184: 97.2 | H184: -126 | I184: 17.85 | J184: 2 | M184: 1 | N184: 3 | O184: 0 | Q184: Normal | S184: Medium | W184: Conductive | X184: 0.818 | Y184: 0.00091 | Z184: 0.56 | AA184: 0.0023507 | AB184: 195.5 | AC184: 0.268124 | AD184: 0.000449 | AE184: 13.0519 | AF184: 4372.62 | AG184: 36.74
A185: Propionaldehyde | B185: 123-38-6 | C185: 58.08 | D185: 45 | E185: 260 | F185: 840 | G185: 47.9 | H185: -101.6 | I185: -30 | J185: 2.9 | M185: 3 | N185: 3 | O185: 2 | W185: Conductive | X185: 0.814 | Y185: 0.00122 | Z185: 0.537 | AA185: 0.00048 | AB185: 130.5 | AC185: 0.2464 | AD185: 0.00016 | AE185: 9.7242 | AF185: 2707.95 | AG185: 42.55
A186: Propionic Acid | B186: 79-09-4 | C186: 74.08 | D186: 15 | E186: 15 | F186: 170 | G186: 141 | H186: -20.5 | I186: 51.85 | J186: 2.9 | M186: 3 | N186: 2 | O186: 0 | W186: Semi-Conductive | X186: 1.008 | Y186: 0.001108 | Z186: 0.48 | AA186: 0.001033 | AB186: 95.1 | AC186: -0.236215 | AD186: 0.001274 | AE186: 11.6413 | AF186: 4384.34 | AG186: 38.75
A187: Propyl Acetate, n- | B187: 109-60-4 | C187: 102.13 | D187: 240 | E187: 1300 | F187: 7900 | G187: 101.5 | H187: -92.5 | I187: 14 | J187: 1.8 | M187: 1 | N187: 3 | O187: 0 | Q187: Normal | S187: Medium | W187: Semi-Conductive | X187: 0.906 | Y187: 0.001205 | Z187: 0.449 | AA187: 0.0009318 | AB187: 97.2 | AC187: 0.154545 | AD187: 0.000236 | AE187: 10.0108 | AF187: 3241.85 | AG187: 51.56
A188: Propylene | B188: 115-07-1 | C188: 42.1 | D188: 1500 | E188: 2800 | F188: 17000 | G188: -47.7 | H188: -185.3 | I188: -108.2 | J188: 2 | K188: 11 | L188: 455 | M188: 1 | N188: 4 | O188: 1 | Q188: Normal | S188: Medium | X188: 0.552 | Y188: 0.0012 | Z188: 0.539 | AA188: 0.0003375 | AB188: 92 | AC188: 0.275 | AD188: 0.000187 | AE188: 8.6662 | AF188: 1680.06 | AG188: 31.54
A189: Propylene Glycol | B189: 57-55-6 | C189: 76.1 | D189: 9.6 | E189: 418 | F189: 2500 | G189: 187.6 | H189: -31 | I189: 99 | J189: 2.6 | M189: 0 | N189: 1 | O189: 0 | Q189: Normal | S189: Medium | X189: 1.053 | Y189: 0.000828 | Z189: 0.554 | AA189: 0.001127 | AB189: 216 | AC189: 0.197 | AD189: 0.00026 | AE189: 13.9485 | AF189: 6152.6 | AG189: 19.75
A190: Propylene Oxide | B190: 75-56-9 | C190: 58.08 | D190: 50 | E190: 250 | F190: 750 | G190: 34.2 | H190: -111.9 | I190: -37 | J190: 1.6 | K190: 41.6 | L190: 449 | M190: 3 | N190: 4 | O190: 2 | Q190: Elevated | S190: High | X190: 0.843 | Y190: 0.00125 | Z190: 0.498 | AA190: 0.00071 | AB190: 120.8 | AC190: 0.2344 | AD190: 0.00024 | AE190: 9.6994 | AF190: 2596.98 | AG190: 39.56
A191: Pyridine | B191: 110-86-1 | C191: 79.1 | D191: 3 | E191: 19 | F191: 3700 | G191: 115.2 | H191: -41.7 | I191: 20 | J191: 1.8 | K191: 12 | L191: 482 | M191: 3 | N191: 3 | O191: 0 | Q191: Normal | S191: Medium | W191: Conductive | X191: 1.004 | Y191: 0.001143 | Z191: 0.371 | AA191: 0.000864 | AB191: 125.1 | AC191: 0.1407 | AD191: 0.000238 | AE191: 9.7914 | AF191: 3307.98 | AG191: 50.6
A192: Styrene | B192: 100-42-5 | C192: 104.15 | D192: 50 | E192: 250 | F192: 1000 | G192: 145.2 | H192: -30.6 | I192: 31 | J192: 0.88 | M192: 2 | N192: 3 | O192: 2 | Q192: Normal | S192: Medium | W192: Non-Conductive | X192: 0.924 | Y192: 0.0009 | Z192: 0.401 | AA192: 0.00074 | AB192: 104.4 | AC192: 0.139 | AD192: 0 | AE192: 12.055 | AF192: 5036.3 | AG192: 0
A193: Sulfolane | B193: 126-33-0 | C193: 120.17 | D193: 0.2 | E193: 2.44 | F193: 2.44 | G193: 285.9 | H193: 30.5 | I193: 177 | J193: 1.9 | M193: 1 | N193: 1 | O193: 0 | X193: 1.296 | Y193: 0.000938 | Z193: 0.291 | AA193: 0.000608 | AB193: 130.7 | AC193: 0.06615 | AD193: 8.95e-05 | AE193: 10.6209 | AF193: 5307.5 | AG193: 59.29
A194: Sulfur Dioxide | B194: 7446-09-5 | C194: 64.06 | D194: 0.3 | E194: 3 | F194: 25 | G194: -10 | H194: -103.4 | M194: 3 | N194: 0 | O194: 0 | X194: 1.402 | Y194: 0.00264 | Z194: 0.333 | AA194: 0.000244 | AB194: 91.1 | AC194: 0.2277 | AD194: 0.000476 | AE194: 10.2555 | AF194: 2351.06 | AG194: 33.92
A195: Sulfuric Acid | B195: 7664-93-9 | C195: 98.1 | D195: 0.5 | E195: 2.49 | F195: 29.9 | G195: 336.9 | H195: 10.3 | M195: 3 | N195: 0 | O195: 2 | T195: Corrosive | W195: Conductive | X195: 1.857 | Y195: 0.001057 | Z195: 0.336 | AA195: 0.0002418 | AB195: 213 | AC195: 0.148 | AD195: 5.1e-05 | AE195: 15.416 | AF195: 9100 | AG195: 0
A196: Sulfuryl Chloride | B196: 7791-25-5 | C196: 134.97 | D196: 0.3 | E196: 3 | F196: 15 | G196: 72.7 | H196: -46.2 | M196: 3 | N196: 0 | O196: 2 | X196: 1.7146 | Y196: 0.002363 | Z196: 0.2058 | AA196: 0.0001823 | AB196: 57.8 | AC196: 0.1059 | AD196: 0 | AE196: 10.3989 | AF196: 3607.23 | AG196: 0
A197: Sulfuryl Fluoride | B197: 2699-79-8 | C197: 102.06 | E197: 21 | F197: 64 | G197: -55 | H197: -214.1 | M197: 3 | N197: 0 | O197: 1 | U197: Very Toxic | X197: 1.459 | Y197: 0.00613 | Z197: 0.271 | AA197: 0.00188 | AB197: 36.3 | AC197: 0.233 | AD197: 0 | AE197: 10.543 | AF197: 2295.2 | AG197: 0
A198: t-Butyl Catechol | B198: 98-29-3 | C198: 166.22 | E198: 0.29 | F198: 82.4 | G198: 289.7 | H198: 52.8 | I198: 130 | M198: 3 | N198: 1 | O198: 0 | T198: Toxic | X198: 1.108 | Y198: 0.000938 | Z198: 0.433 | AA198: 0.000859 | AB198: 122.2 | AC198: 0.1083 | AD198: 0.000134 | AE198: 11.108 | AF198: 5243.62 | AG198: 90.7
A199: Tetrachloroethane, 1,1,1,2- | B199: 630-20-6 | C199: 167.85 | D199: 1 | E199: 6 | F199: 13 | G199: 130.2 | H199: -68.7 | M199: 3 | N199: 0 | O199: 0 | Q199: Normal | S199: Medium | X199: 1.5708 | Y199: 0.001494 | Z199: 0.2057 | AA199: 0.0002731 | AB199: 60.62 | AC199: 0.07663 | AD199: 0 | AE199: 11.73287 | AF199: 4746.132 | AG199: 0
A200: Tetrachloroethylene (Perchloroethylene) | B200: 127-18-4 | C200: 165.85 | D200: 100 | E200: 200 | F200: 1000 | G200: 121 | H200: -22.4 | M200: 2 | N200: 0 | O200: 0 | U200: Toxic | X200: 1.664 | Y200: 0.001902 | Z200: 0.206 | AA200: 0.00017 | AB200: 59.6 | AC200: 0.0645 | AD200: 0.000119 | AE200: 9.3628 | AF200: 3161.06 | AG200: 56.57
... 24 more rows

Sheet Revision History (hidden)
B2: Change History
B4: Title: | C4: CHEF Calculation Aid
B5: Document Owner: | C5: CCPS
B8: Version | C8: Change | D8: Date
B9: Workbook V1.0 | C9: Initial issue. Originally donated documentation with minor modifications. Updated Correlation Coefficient for Baker-Strehlow-Tank to match correlations used in RAST | D9: 2018-02-05
B10: Workbook V1.1 | C10: Corrected coefficient for aerosol evaporation. Updated Vapor Cloud Explosion to reference Lower Flammable Limit (LFL) rather than ½ LFL and updated cloud volume correlation. Corrected indoor population density under Impact Assessment. Added Offsite Toxic section to the Impact Assessment worksheet. | D10: 2018-09-14
B11: Workbook V2.0 | C11: Updated Vapor Cloud Volume as quantity in cloud divided by an average concentration. Averaging Time correction for flammable releases added to Vapor Dispersion. Updated input label on Impact Assessment to "Offsite" population density. Added list of example scenarios. Updated equation numbers of match CHEF Manual version 2.0. Updated vessel burst energy to reflect flashing liquid. Added example LOPA worksheet. | D11: 2019-02-24
B12: Workbook V3.0 | C12: Updated Vapor Dispersion correlation to directly utilize Britter-McQuaid Dense Gas model and account for non-isothermal release. Updated equation numbers to match CHEF Manual version 3.0. | D12: 2020-03-09
B13: Workbook V3.1 | C13: Corrected surface roughness correction estimate for dense gas dispersion for alternative weather conditions. | D13: 2020-04-02
B14: Workbook V3.2 | C14: Corrected toxic infiltration to utilize User input for Multiple of ERPG-3 at LC01 and LC50. Corrected coefficient for Explosion Building Vulerability. Corrected Offsite Toxic Integration Coefficient. Corrected for Altnerate Weather jet mixing. | D14: 2020-10-20
B15: Workbook V3.2 | C15: Corrected surface roughness correction estimate for dense gas dispersion and neutrally buoyant puffs. Updated cloud footprint to 0.3 X2 to better account for dense gas. Added fragment range to explosion impact area. | D15: 2020-11-28
B16: Workbook V4.0 | C16: Added New Worksheets for Chemical Hazards, Reactiviy Hazards, and Frequency Evaluation. Correction Averaging Time factor for Vapor Dispersions to be only applicable to gaussian neutrally bouyant region. Updated all equation numbers to match current CHEF Manual. | D16: 2021-03-23
B17: Workbook V4.1 | C17: Updated some notes and formats on various worksheets. Added Short Pipe L/D<3 on Source Model. Updated TNT Equivalency Graph. Added Indoor Concentration vs Time graph to Vapor Dispersion worksheet. Added offsite explosion impact estimate. Added aerosol and pool temperature trial-and-error estimates. | D17: 2022-02-18
B18: Workbook V4.2 | C18: Corrected error in Effective Release Elevation in Equation 12-16 and added Pool Fire Radiation distance estimate to Impact worksheet based on equation 14-10. | D18: 2022-09-22
B19: Workbook V4.2 | C19: Correcting spelling errors throughout workbook, | D19: 2022-10-17
B20: Workbook V4.2 | C20: Vapor Dispersion worksheet - Removed limit on indoor concentration at Steady State | D20: 2022-12-21
B21: Workbook V4.3 | C21: Source Model worksheet - Corrected coefficients for liquid hole sizen and flashing liquid hole size. Impact Assessment worksheet - added Building Vulnerability category for "Structural Frame" construction type. | D21: 2023-01-20
B22: Workbook V4.3 | C22: Added Dimethyl Disulfide to the Chemical Table | D22: 2023-03-29
B23: Workbook V4.3 | C23: Corrected cell link in Chemical Hazards worksheet for flammability. Correct ERPG values for Ethylene Glycol. Corrected conversion factors for Explosion worksheet. | D23: 2023-07-20
B24: Workbook V4.3 | C24: Moved wind speed and surface roughness inputs for Vapor Dispersion to input section of worksheet. Corrected conditional format for inputs on Explosion worksheet. | D24: 2024-01-26
B25: Workbook V4.3 | C25: Corrected input units for Distance to 1 psi overpressure on Impact Assessment. Added note to offsite toxic impact on Impact Assessment worksheet. | D25: 2024-06-06
B26: Workbook V4.3 | C26: Updated CHEF Guide equation numbers on Vapor Dispersion worksheet. | D26: 2024-12-23
B27: Workbook V4.4 | C27: Updated Impact Assessment worksheet to show toxic infiltration concentration versus time plot and average indoor concentration. Updated text description for explosion building type. | D27: 2025-03-24
B28: Workbook V4.5 | C28: Updated Explosions worksheet to utilize estimated cloud flammable mass times heat of combustion for Vapor Cloud Explosion. Updated equation numbers. | D28: 2025-12-28
